Workbook

Sheet Instructions
E3: Instructions
E5: 1) On "MainSheet" add the hours to subtract in cell U4 for your local time as times are EST or EDST.
E6: 2) Go to "Data" sheet and press "Delete" to clear any old race files.
E7: 3) Press the "Start" button you can then change the date for back testing your ratings or click "OK" for today's races.
E8: 4) If you wish to import all races press "Automatic" it will take about 30 seconds a race to import just let the sheet run until finished.
E9: 5) You can choose to import your choice of races by going to "RaceLists" sheet and clearing the race numbers of the races you are not interested in,
E10: Then go back to "Data" sheet and press the "Automatic" button and let the sheet run.
E11: 6) If you want to just import a race as you go then on the "Data" sheet click on a cell from A3 downwards for the race you want then press "Manual".
E13: Adjust Ratings
E15: The sheet is unprotected so you can make any changes you want, to add your own values go to the " Tables" sheet, if you wish to exclude a form factor
E16: from being assessed put an X in the box above that factor.
E17: You can also change any factor in red or even add your own assessment criterior and values if you wish,
E18: you will need to make major changes if you want to add your own form factors so make a copy of the sheet before you start.

Sheet MainSheet
B2: =Race!A5 -> RADIO TAB | D2: =Race!B5 -> 10-5-12-9 | F2: =Race!C5 -> 0 | H2: =Race!D5 -> 0 | J2: =Race!E5 -> Late Mail 10
C4: Venue | D4: =Data!N1 -> Morphettville Pk | G4: Race | H4: =Data!O2 -> 3 | I4: Class | J4: =Form!E2 -> Maiden | L4: Value | M4: =Form!H3 -> 10000 | N4: Distance | O4: =Form!I2 -> 1400m | Q4: Race Time | S4: =Form!A3-(U4/24) -> -0.05 | T4: - | U4: 3 | V4: Hours
B7: Form | C7: No | D7: Runner | G7: Trainer | I7: Jockey | K7: Weight | L7: Barrier | M7: Rated | N7: Rating | P7: Price
B9: =IF(C9="","",Form!B5) -> 376 | C9: =IF(Data!BB2="","",Data!BB2) -> 1 | D9: =IF(C9="","",IF(VLOOKUP(Data!AZ2,Race!C1:N100,6,FALSE)="SCRATCHED","SCRATCHED",Data!AZ2)) -> Hoosang | G9: =IF(C9="","",IF(D9="SCRATCHED","",Form!D5)) -> J E Hickmott | I9: =IF(C9="","",IF(D9="SCRATCHED","",Form!E5)) -> D Robinson | K9: =IF(C9="","",IF(D9="SCRATCHED","",Form!F5)) -> 57 | L9: =IF(C9="","",IF(D9="SCRATCHED","",VLOOKUP(D9,Race!$C$1:'Race'!$N$100,7,FALSE))) -> 6 | M9: =IF(C9="","",IF(N9="","",IF(RANK(N9,$N$9:$N$32)<5,RANK(N9,$N$9:$N$32),""))) ->  | N9: =IF(C9="","",IF(D9="SCRATCHED","",Data!EI2)) ->  | O9: =IF(N9="","",(N9/$N$34)*100) ->  | P9: =IF(O9="","",IF(O9=0,50,110/O9)) ->  | Q9: =IF(Race!D2="Paying","Paying","") -> Paying
B10: =IF(C10="","",Form!B6) -> 8735 | C10: =IF(Data!BB3="","",Data!BB3) -> 2 | D10: =IF(C10="","",IF(VLOOKUP(Data!AZ3,Race!C2:N101,6,FALSE)="SCRATCHED","SCRATCHED",Data!AZ3)) -> Kotor | G10: =IF(B10="","",IF(D10="SCRATCHED","",Form!D6)) -> S G Padman | I10: =IF(B10="","",IF(D10="SCRATCHED","",Form!E6)) -> S Cahill | K10: =IF(B10="","",IF(D10="SCRATCHED","",Form!F6)) -> 57 | L10: =IF(C10="","",IF(D10="SCRATCHED","",VLOOKUP(D10,Race!$C$1:$N$100,7,FALSE))) -> 16 | M10: =IF(C10="","",IF(N10="","",IF(RANK(N10,$N$9:$N$32)<5,RANK(N10,$N$9:$N$32),""))) ->  | N10: =IF(C10="","",IF(D10="SCRATCHED","",Data!EI3)) ->  | O10: =IF(N10="","",(N10/$N$34)*100) ->  | P10: =IF(O10="","",IF(O10=0,50,110/O10)) ->  | U10: =IF($Q$9<>"","Win","") -> Win | V10: =IF($Q$9<>"","Place","") -> Place
B11: =IF(C11="","",Form!B7) -> 93753 | C11: =IF(Data!BB4="","",Data!BB4) -> 3 | D11: =IF(C11="","",IF(VLOOKUP(Data!AZ4,Race!C3:N102,6,FALSE)="SCRATCHED","SCRATCHED",Data!AZ4)) -> Red Hot Jeune | G11: =IF(B11="","",IF(D11="SCRATCHED","",Form!D7)) -> P L Seater | I11: =IF(B11="","",IF(D11="SCRATCHED","",Form!E7)) -> M Neilson | K11: =IF(B11="","",IF(D11="SCRATCHED","",Form!F7)) -> 57 | L11: =IF(C11="","",IF(D11="SCRATCHED","",VLOOKUP(D11,Race!$C$1:$N$100,7,FALSE))) -> 17 | M11: =IF(C11="","",IF(N11="","",IF(RANK(N11,$N$9:$N$32)<5,RANK(N11,$N$9:$N$32),""))) ->  | N11: =IF(C11="","",IF(D11="SCRATCHED","",Data!EI4)) ->  | O11: =IF(N11="","",(N11/$N$34)*100) ->  | P11: =IF(O11="","",IF(O11=0,50,110/O11)) ->  | Q11: =IF($Q$9<>"","1st","") -> 1st | R11: =IF($Q$9="","",INDEX(Race!$A$1:$A$20,MATCH("QN",Race!$A1:$A$20,0)-4,0)) -> 10 | S11: =IF($Q$9="","",INDEX(Race!$A$1:$C20,MATCH("QN",Race!$A1:$A$20,0)-4,3)) -> OFTEN AWAY | U11: =IF($Q$9="","",INDEX(Race!$A$1:$E20,MATCH("QN",Race!$A1:$A$20,0)-4,4)) -> 4.5 | V11: =IF($Q$9="","",INDEX(Race!$A$1:$E20,MATCH("QN",Race!$A1:$A$20,0)-4,5)) -> 1.8
B12: =IF(C12="","",Form!B8) -> 855944 | C12: =IF(Data!BB5="","",Data!BB5) -> 4 | D12: =IF(C12="","",IF(VLOOKUP(Data!AZ5,Race!C4:N103,6,FALSE)="SCRATCHED","SCRATCHED",Data!AZ5)) -> Shiraz Knight | G12: =IF(B12="","",IF(D12="SCRATCHED","",Form!D8)) -> J Maddigan | I12: =IF(B12="","",IF(D12="SCRATCHED","",Form!E8)) -> B Hoppo | K12: =IF(B12="","",IF(D12="SCRATCHED","",Form!F8)) -> 57 | L12: =IF(C12="","",IF(D12="SCRATCHED","",VLOOKUP(D12,Race!$C$1:$N$100,7,FALSE))) -> 1 | N12: =IF(C12="","",IF(D12="SCRATCHED","",Data!EI5)) ->  | Q12: =IF($Q$9<>"","2nd","") -> 2nd | R12: =IF($Q$9="","",INDEX(Race!$A$1:$A$20,MATCH("QN",Race!$A1:$A$20,0)-3,0)) -> 7 | S12: =IF($Q$9="","",INDEX(Race!$A$1:$C21,MATCH("QN",Race!$A2:$A$20,0)-2,3)) -> BURGUNDY NOTES | V12: =IF($Q$9="","",INDEX(Race!$A$1:$E20,MATCH("QN",Race!$A1:$A$20,0)-3,5)) -> 12.8
B13: =IF(C13="","",Form!B9) -> 5423 | C13: =IF(Data!BB6="","",Data!BB6) -> 5 | D13: =IF(C13="","",IF(VLOOKUP(Data!AZ6,Race!C5:N104,6,FALSE)="SCRATCHED","SCRATCHED",Data!AZ6)) -> Drafted | G13: =IF(B13="","",IF(D13="SCRATCHED","",Form!D9)) -> M S Minervini | I13: =IF(B13="","",IF(D13="SCRATCHED","",Form!E9)) -> C Lions | K13: =IF(B13="","",IF(D13="SCRATCHED","",Form!F9)) -> 55.5 | L13: =IF(C13="","",IF(D13="SCRATCHED","",VLOOKUP(D13,Race!$C$1:$N$100,7,FALSE))) -> 2 | N13: =IF(C13="","",IF(D13="SCRATCHED","",Data!EI6)) ->  | Q13: =IF($Q$9<>"","3rd","") -> 3rd | R13: =IF($Q$9="","",INDEX(Race!$A$1:$A$20,MATCH("QN",Race!$A1:$A$20,0)-2,0)) -> 12 | S13: =IF($Q$9="","",INDEX(Race!$A$1:$C22,MATCH("QN",Race!$A3:$A$20,0)-0,3)) -> RED SAVINA | V13: =IF($Q$9="","",INDEX(Race!$A$1:$E20,MATCH("QN",Race!$A1:$A$20,0)-2,5)) -> 1.6
B14: =IF(C14="","",Form!B10) -> 7 | C14: =IF(Data!BB7="","",Data!BB7) -> 6 | D14: =IF(C14="","",IF(VLOOKUP(Data!AZ7,Race!C6:N105,6,FALSE)="SCRATCHED","SCRATCHED",Data!AZ7)) -> Baena | G14: =IF(B14="","",IF(D14="SCRATCHED","",Form!D10)) -> Ms R Day | I14: =IF(B14="","",IF(D14="SCRATCHED","",Form!E10)) -> A Patterson | K14: =IF(B14="","",IF(D14="SCRATCHED","",Form!F10)) -> 55 | L14: =IF(C14="","",IF(D14="SCRATCHED","",VLOOKUP(D14,Race!$C$1:$N$100,7,FALSE))) -> 18 | N14: =IF(C14="","",IF(D14="SCRATCHED","",Data!EI7)) -> 
B15: =IF(C15="","",Form!B11) -> 522227 | C15: =IF(Data!BB8="","",Data!BB8) -> 7 | D15: =IF(C15="","",IF(VLOOKUP(Data!AZ8,Race!C7:N106,6,FALSE)="SCRATCHED","SCRATCHED",Data!AZ8)) -> Burgundy Notes | G15: =IF(B15="","",IF(D15="SCRATCHED","",Form!D11)) -> Bill Papazaharoudakis | I15: =IF(B15="","",IF(D15="SCRATCHED","",Form!E11)) -> J Matthews | K15: =IF(B15="","",IF(D15="SCRATCHED","",Form!F11)) -> 55 | L15: =IF(C15="","",IF(D15="SCRATCHED","",VLOOKUP(D15,Race!$C$1:$N$100,7,FALSE))) -> 0 | N15: =IF(C15="","",IF(D15="SCRATCHED","",Data!EI8)) ->  | Q15: =IF($Q$9="","","QN") -> QN | R15: =IF($Q$9="","",INDEX(Race!$A$1:$C20,MATCH("EX",Race!$A1:$A$20,0)-1,2)) -> 7*10 | U15: =IF($Q$9="","",INDEX(Race!$A$1:$C20,MATCH("EX",Race!$A1:$A$20,0)-1,3)) -> 203
B16: =IF(C16="","",Form!B12) -> 805244 | C16: =IF(Data!BB9="","",Data!BB9) -> 8 | D16: =IF(C16="","",IF(VLOOKUP(Data!AZ9,Race!C8:N107,6,FALSE)="SCRATCHED","SCRATCHED",Data!AZ9)) -> Champagne Journey | G16: =IF(B16="","",IF(D16="SCRATCHED","",Form!D12)) -> Ms E Hubbard | I16: =IF(B16="","",IF(D16="SCRATCHED","",Form!E12)) -> T Baker | K16: =IF(B16="","",IF(D16="SCRATCHED","",Form!F12)) -> 55 | L16: =IF(C16="","",IF(D16="SCRATCHED","",VLOOKUP(D16,Race!$C$1:$N$100,7,FALSE))) -> 12 | N16: =IF(C16="","",IF(D16="SCRATCHED","",Data!EI9)) ->  | Q16: =IF($Q$9="","","EX") -> EX | R16: =IF($Q$9="","",INDEX(Race!$A$1:$C21,MATCH("QN",Race!$A2:$A$20,0)+2,2)) -> 10* 7 | U16: =IF($Q$9="","",INDEX(Race!$A$1:$C21,MATCH("QN",Race!$A2:$A$20,0)+2,3)) -> 187.1
B17: =IF(C17="","",Form!B13) -> 354423 | C17: =IF(Data!BB10="","",Data!BB10) -> 9 | D17: =IF(C17="","",IF(VLOOKUP(Data!AZ10,Race!C9:N108,6,FALSE)="SCRATCHED","SCRATCHED",Data!AZ10)) -> Coco Loco | G17: =IF(B17="","",IF(D17="SCRATCHED","",Form!D13)) -> L Kennewell | I17: =IF(B17="","",IF(D17="SCRATCHED","",Form!E13)) -> D Tourneur | K17: =IF(B17="","",IF(D17="SCRATCHED","",Form!F13)) -> 55 | L17: =IF(C17="","",IF(D17="SCRATCHED","",VLOOKUP(D17,Race!$C$1:$N$100,7,FALSE))) -> 7 | N17: =IF(C17="","",IF(D17="SCRATCHED","",Data!EI10)) ->  | Q17: =IF($Q$9="","","TF") -> TF | R17: =IF($Q$9="","",INDEX(Race!$A$1:$I20,MATCH("EX",Race!$A1:$A$20,0)-1,8)) -> 10* 7*12 | U17: =IF($Q$9="","",INDEX(Race!$A$1:$I20,MATCH("EX",Race!$A1:$A$20,0)-1,9)) -> 1171.9
B18: =IF(C18="","",Form!B14) -> 334422 | C18: =IF(Data!BB11="","",Data!BB11) -> 10 | D18: =IF(C18="","",IF(VLOOKUP(Data!AZ11,Race!C10:N109,6,FALSE)="SCRATCHED","SCRATCHED",Data!AZ11)) -> Often Away | G18: =IF(B18="","",IF(D18="SCRATCHED","",Form!D14)) -> John Thompson | I18: =IF(B18="","",IF(D18="SCRATCHED","",Form!E14)) -> P Gatt | K18: =IF(B18="","",IF(D18="SCRATCHED","",Form!F14)) -> 55 | L18: =IF(C18="","",IF(D18="SCRATCHED","",VLOOKUP(D18,Race!$C$1:$N$100,7,FALSE))) -> 0 | N18: =IF(C18="","",IF(D18="SCRATCHED","",Data!EI11)) ->  | Q18: =IF($Q$9="","","F4") -> F4 | R18: =IF($Q$9="","",INDEX(Race!$A$1:$C23,MATCH("EX",Race!$A4:$A$20,0)+4,2)) -> 10* 7*12* 3 | U18: =IF($Q$9="","",INDEX(Race!$A$1:$C23,MATCH("EX",Race!$A4:$A$20,0)+4,3)) -> 2793.4
B19: =IF(C19="","",Form!B15) -> 6 | C19: =IF(Data!BB12="","",Data!BB12) -> 11 | D19: =IF(C19="","",IF(VLOOKUP(Data!AZ12,Race!C11:N110,6,FALSE)="SCRATCHED","SCRATCHED",Data!AZ12)) -> Promotional | G19: =IF(B19="","",IF(D19="SCRATCHED","",Form!D15)) -> Leon Macdonald & Andrew Gluyas | I19: =IF(B19="","",IF(D19="SCRATCHED","",Form!E15)) -> C Lindop | K19: =IF(B19="","",IF(D19="SCRATCHED","",Form!F15)) -> 55 | L19: =IF(C19="","",IF(D19="SCRATCHED","",VLOOKUP(D19,Race!$C$1:$N$100,7,FALSE))) -> 8 | N19: =IF(C19="","",IF(D19="SCRATCHED","",Data!EI12)) -> 
B20: =IF(C20="","",Form!B16) -> 373226 | C20: =IF(Data!BB13="","",Data!BB13) -> 12 | D20: =IF(C20="","",IF(VLOOKUP(Data!AZ13,Race!C12:N111,6,FALSE)="SCRATCHED","SCRATCHED",Data!AZ13)) -> Red Savina | G20: =IF(B20="","",IF(D20="SCRATCHED","",Form!D16)) -> M A Kavanagh | I20: =IF(B20="","",IF(D20="SCRATCHED","",Form!E16)) -> S Price | K20: =IF(B20="","",IF(D20="SCRATCHED","",Form!F16)) -> 55 | L20: =IF(C20="","",IF(D20="SCRATCHED","",VLOOKUP(D20,Race!$C$1:$N$100,7,FALSE))) -> 0 | N20: =IF(C20="","",IF(D20="SCRATCHED","",Data!EI13)) -> 
B21: =IF(C21="","",Form!B17) -> 64 | C21: =IF(Data!BB14="","",Data!BB14) -> 13 | D21: =IF(C21="","",IF(VLOOKUP(Data!AZ14,Race!C13:N112,6,FALSE)="SCRATCHED","SCRATCHED",Data!AZ14)) -> September Rain | G21: =IF(B21="","",IF(D21="SCRATCHED","",Form!D17)) -> P C Barns | I21: =IF(B21="","",IF(D21="SCRATCHED","",Form!E17)) -> J Potter | K21: =IF(B21="","",IF(D21="SCRATCHED","",Form!F17)) -> 53.5 | L21: =IF(C21="","",IF(D21="SCRATCHED","",VLOOKUP(D21,Race!$C$1:$N$100,7,FALSE))) -> 4 | N21: =IF(C21="","",IF(D21="SCRATCHED","",Data!EI14)) -> 
B22: =IF(C22="","",Form!B18) -> 2945 | C22: =IF(Data!BB15="","",Data!BB15) -> 14 | D22: =IF(C22="","",IF(VLOOKUP(Data!AZ15,Race!C14:N113,6,FALSE)="SCRATCHED","SCRATCHED",Data!AZ15)) -> Twilight Dancer | G22: =IF(B22="","",IF(D22="SCRATCHED","",Form!D18)) -> W A Bogarts | I22: =IF(B22="","",IF(D22="SCRATCHED","",Form!E18)) -> L Hopwood | K22: =IF(B22="","",IF(D22="SCRATCHED","",Form!F18)) -> 53.5 | L22: =IF(C22="","",IF(D22="SCRATCHED","",VLOOKUP(D22,Race!$C$1:$N$100,7,FALSE))) -> 10 | N22: =IF(C22="","",IF(D22="SCRATCHED","",Data!EI15)) -> 
B23: =IF(C23="","",Form!B19) -> 98 | C23: =IF(Data!BB16="","",Data!BB16) -> 15 | D23: =IF(C23="","",IF(VLOOKUP(Data!AZ16,Race!C15:N114,6,FALSE)="SCRATCHED","SCRATCHED",Data!AZ16)) -> SCRATCHED | G23: =IF(B23="","",IF(D23="SCRATCHED","",Form!D19)) ->  | I23: =IF(B23="","",IF(D23="SCRATCHED","",Form!E19)) ->  | K23: =IF(B23="","",IF(D23="SCRATCHED","",Form!F19)) ->  | L23: =IF(C23="","",IF(D23="SCRATCHED","",VLOOKUP(D23,Race!$C$1:$N$100,7,FALSE))) ->  | N23: =IF(C23="","",IF(D23="SCRATCHED","",Data!EI16)) -> 
B24: =IF(C24="","",Form!B20) -> 87 | C24: =IF(Data!BB17="","",Data!BB17) -> 16 | D24: =IF(C24="","",IF(VLOOKUP(Data!AZ17,Race!C16:N115,6,FALSE)="SCRATCHED","SCRATCHED",Data!AZ17)) -> SCRATCHED | G24: =IF(B24="","",IF(D24="SCRATCHED","",Form!D20)) ->  | I24: =IF(B24="","",IF(D24="SCRATCHED","",Form!E20)) ->  | K24: =IF(B24="","",IF(D24="SCRATCHED","",Form!F20)) ->  | L24: =IF(C24="","",IF(D24="SCRATCHED","",VLOOKUP(D24,Race!$C$1:$N$100,7,FALSE))) ->  | N24: =IF(C24="","",IF(D24="SCRATCHED","",Data!EI17)) -> 
B25: =IF(C25="","",Form!B21) -> 960 | C25: =IF(Data!BB18="","",Data!BB18) -> 17 | D25: =IF(C25="","",IF(VLOOKUP(Data!AZ18,Race!C17:N116,6,FALSE)="SCRATCHED","SCRATCHED",Data!AZ18)) -> SCRATCHED | G25: =IF(B25="","",IF(D25="SCRATCHED","",Form!D21)) ->  | I25: =IF(B25="","",IF(D25="SCRATCHED","",Form!E21)) ->  | K25: =IF(B25="","",IF(D25="SCRATCHED","",Form!F21)) ->  | L25: =IF(C25="","",IF(D25="SCRATCHED","",VLOOKUP(D25,Race!$C$1:$N$100,7,FALSE))) ->  | N25: =IF(C25="","",IF(D25="SCRATCHED","",Data!EI18)) -> 
B26: =IF(C26="","",Form!B22) -> 8 | C26: =IF(Data!BB19="","",Data!BB19) -> 18 | D26: =IF(C26="","",IF(VLOOKUP(Data!AZ19,Race!C18:N117,6,FALSE)="SCRATCHED","SCRATCHED",Data!AZ19)) ->  | G26: =IF(B26="","",IF(D26="SCRATCHED","",Form!D22)) ->  | I26: =IF(B26="","",IF(D26="SCRATCHED","",Form!E22)) ->  | K26: =IF(B26="","",IF(D26="SCRATCHED","",Form!F22)) ->  | L26: =IF(C26="","",IF(D26="SCRATCHED","",VLOOKUP(D26,Race!$C$1:$N$100,7,FALSE))) ->  | N26: =IF(C26="","",IF(D26="SCRATCHED","",Data!EI19)) -> 
B27: =IF(C27="","",Form!B23) -> 909 | C27: =IF(Data!BB20="","",Data!BB20) -> 18 | D27: =IF(C27="","",IF(VLOOKUP(Data!AZ20,Race!C19:N118,6,FALSE)="SCRATCHED","SCRATCHED",Data!AZ20)) -> SCRATCHED | G27: =IF(B27="","",IF(D27="SCRATCHED","",Form!D23)) ->  | I27: =IF(B27="","",IF(D27="SCRATCHED","",Form!E23)) ->  | K27: =IF(B27="","",IF(D27="SCRATCHED","",Form!F23)) ->  | L27: =IF(C27="","",IF(D27="SCRATCHED","",VLOOKUP(D27,Race!$C$1:$N$100,7,FALSE))) ->  | N27: =IF(C27="","",IF(D27="SCRATCHED","",Data!EI20)) -> 
B28: =IF(C28="","",Form!B24) ->  | C28: =IF(Data!BB21="","",Data!BB21) ->  | D28: =IF(C28="","",IF(VLOOKUP(Data!AZ21,Race!C20:N119,6,FALSE)="SCRATCHED","SCRATCHED",Data!AZ21)) ->  | G28: =IF(B28="","",IF(D28="SCRATCHED","",Form!D24)) ->  | I28: =IF(B28="","",IF(D28="SCRATCHED","",Form!E24)) ->  | K28: =IF(B28="","",IF(D28="SCRATCHED","",Form!F24)) ->  | L28: =IF(C28="","",IF(D28="SCRATCHED","",VLOOKUP(D28,Race!$C$1:$N$100,7,FALSE))) ->  | N28: =IF(C28="","",IF(D28="SCRATCHED","",Data!EI21)) -> 
B29: =IF(C29="","",Form!B25) ->  | C29: =IF(Data!BB22="","",Data!BB22) ->  | D29: =IF(C29="","",IF(VLOOKUP(Data!AZ22,Race!C21:N120,6,FALSE)="SCRATCHED","SCRATCHED",Data!AZ22)) ->  | G29: =IF(B29="","",IF(D29="SCRATCHED","",Form!D25)) ->  | I29: =IF(B29="","",IF(D29="SCRATCHED","",Form!E25)) ->  | K29: =IF(B29="","",IF(D29="SCRATCHED","",Form!F25)) ->  | L29: =IF(C29="","",IF(D29="SCRATCHED","",VLOOKUP(D29,Race!$C$1:$N$100,7,FALSE))) ->  | N29: =IF(C29="","",IF(D29="SCRATCHED","",Data!EI22)) -> 
B30: =IF(C30="","",Form!B26) ->  | C30: =IF(Data!BB23="","",Data!BB23) ->  | D30: =IF(C30="","",IF(VLOOKUP(Data!AZ23,Race!C22:N121,6,FALSE)="SCRATCHED","SCRATCHED",Data!AZ23)) ->  | G30: =IF(B30="","",IF(D30="SCRATCHED","",Form!D26)) ->  | I30: =IF(B30="","",IF(D30="SCRATCHED","",Form!E26)) ->  | K30: =IF(B30="","",IF(D30="SCRATCHED","",Form!F26)) ->  | L30: =IF(C30="","",IF(D30="SCRATCHED","",VLOOKUP(D30,Race!$C$1:$N$100,7,FALSE))) ->  | N30: =IF(C30="","",IF(D30="SCRATCHED","",Data!EI23)) -> 
B31: =IF(C31="","",Form!B27) ->  | C31: =IF(Data!BB24="","",Data!BB24) ->  | D31: =IF(C31="","",IF(VLOOKUP(Data!AZ24,Race!C23:N122,6,FALSE)="SCRATCHED","SCRATCHED",Data!AZ24)) ->  | G31: =IF(B31="","",IF(D31="SCRATCHED","",Form!D27)) ->  | I31: =IF(B31="","",IF(D31="SCRATCHED","",Form!E27)) ->  | K31: =IF(B31="","",IF(D31="SCRATCHED","",Form!F27)) ->  | L31: =IF(C31="","",IF(D31="SCRATCHED","",VLOOKUP(D31,Race!$C$1:$N$100,7,FALSE))) ->  | N31: =IF(C31="","",IF(D31="SCRATCHED","",Data!EI24)) -> 
B32: =IF(C32="","",Form!B28) ->  | C32: =IF(Data!BB25="","",Data!BB25) ->  | D32: =IF(C32="","",IF(VLOOKUP(Data!AZ25,Race!C24:N123,6,FALSE)="SCRATCHED","SCRATCHED",Data!AZ25)) ->  | G32: =IF(B32="","",IF(D32="SCRATCHED","",Form!D28)) ->  | I32: =IF(B32="","",IF(D32="SCRATCHED","",Form!E28)) ->  | K32: =IF(B32="","",IF(D32="SCRATCHED","",Form!F28)) ->  | L32: =IF(C32="","",IF(D32="SCRATCHED","",VLOOKUP(D32,Race!$C$1:$N$100,7,FALSE))) ->  | N32: =IF(C32="","",IF(D32="SCRATCHED","",Data!EI25)) -> 
N34: =SUM(N9:N33)*0.98 -> 

Sheet RaceLists
A1: Select Date | H1: Live Odds By
A2: Bunbury
A3: 1 | B3: 12:55:00 | C3: Active Plumbing Mdn - 1200m | D3: Fields | E3: Form | F3: Xtra Ratings | G3: Consistency
A4: 2 | B4: 01:35:00 | C4: Tradelink Mdn - 1200m | D4: Fields | E4: Form | F4: Xtra Ratings | G4: Consistency
A5: 3 | B5: 02:15:00 | C5: Australind Pre-mix Mdn - 1400m | D5: Fields | E5: Form | F5: Xtra Ratings | G5: Consistency
A6: 4 | B6: 02:55:00 | C6: Solahart South West Hcp - 1400m | D6: Fields | E6: Form | F6: Xtra Ratings | G6: Consistency
A7: 5 | B7: 03:30:00 | C7: Combined Metal Ind. (bm60+) - 1400m | D7: Fields | E7: Form | F7: Xtra Ratings | G7: Consistency
A8: 6 | B8: 04:05:00 | C8: W A Country Builders Hcp (64) - 1675m | D8: Fields | E8: Form | F8: Xtra Ratings | G8: Consistency
A9: 7 | B9: 04:40:00 | C9: Midland Brick Hcp (c1) - 1100m | D9: Fields | E9: Form | F9: Xtra Ratings | G9: Consistency
A10: 8 | B10: 05:15:00 | C10: Kitchen Cabinet Mftg Hcp (68) - 1200m | D10: Fields | E10: Form | F10: Xtra Ratings | G10: Consistency
A11: Doomben
A12: 1 | B12: 12:58:00 | C12: Glenlogan Park Mdn Plate - 1350m | D12: Fields | E12: Form | F12: Xtra Ratings | G12: Consistency
A13: 2 | B13: 01:33:00 | C13: Sita Environmental Mdn Plate - 1350m | D13: Fields | E13: Form | F13: Xtra Ratings | G13: Consistency
A14: 3 | B14: 02:08:00 | C14: Subiaco Mdn Hcp - 1030m | D14: Fields | E14: Form | F14: Xtra Ratings | G14: Consistency
A15: 4 | B15: 02:47:00 | C15: Woolworths Mdn Hcp - 1030m | D15: Fields | E15: Form | F15: Xtra Ratings | G15: Consistency
A16: 5 | B16: 03:27:00 | C16: Brc.Com.Au Hcp (c3) - 1350m | D16: Fields | E16: Form | F16: Xtra Ratings | G16: Consistency
A17: 6 | B17: 04:07:00 | C17: Q H A Hcp (c3) - 1350m | D17: Fields | E17: Form | F17: Xtra Ratings | G17: Consistency
A18: 7 | B18: 04:47:00 | C18: Hardy Brothers Jewellers (c5) - 1200m | D18: Fields | E18: Form | F18: Xtra Ratings | G18: Consistency
A19: Sandown-Lakeside
A20: 1 | B20: 01:35:00 | C20: American Car Parts Hcp (68) - 1400m | D20: Fields | E20: Form | F20: Xtra Ratings | G20: Consistency
A21: 2 | B21: 02:10:00 | C21: Highways R&r Members Day (78) - 2100m | D21: Fields | E21: Form | F21: Xtra Ratings | G21: Consistency
A22: 3 | B22: 02:45:00 | C22: Patricia Halcroft Hcp (82) - 2100m | D22: Fields | E22: Form | F22: Xtra Ratings | G22: Consistency
A23: 4 | B23: 03:20:00 | C23: Bolland Hcp (68) - 1600m | D23: Fields | E23: Form | F23: Xtra Ratings | G23: Consistency
A24: 5 | B24: 04:00:00 | C24: Betfair Hcp (78) - 1400m | D24: Fields | E24: Form | F24: Xtra Ratings | G24: Consistency
A25: 6 | B25: 04:40:00 | C25: Fri After 3 Club At H'ways-78 - 1200m | D25: Fields | E25: Form | F25: Xtra Ratings | G25: Consistency
A26: 7 | B26: 05:20:00 | C26: Ahern's At Highways Hcp (72) - 1200m | D26: Fields | E26: Form | F26: Xtra Ratings | G26: Consistency
A27: Morphettville Pk
A28: 1 | B28: 12:38:00 | C28: Betfair Mdn Plate - 1000m | D28: Fields | E28: Form | F28: Xtra Ratings | G28: Consistency
A29: 2 | B29: 01:13:00 | C29: Sportingbet Mdn Plate - 1000m | D29: Fields | E29: Form | F29: Xtra Ratings | G29: Consistency
A30: 3 | B30: 01:48:00 | C30: Apache Cat Here Saturday Mdn - 1400m | D30: Fields | E30: Form | F30: Xtra Ratings | G30: Consistency
A31: 4 | B31: 02:23:00 | C31: Adelaide Galvanising Hcp (c1) - 1000m | D31: Fields | E31: Form | F31: Xtra Ratings | G31: Consistency
A32: 5 | B32: 02:58:00 | C32: Schweppes Tonic Hcp (68) - 2250m | D32: Fields | E32: Form | F32: Xtra Ratings | G32: Consistency
A33: 6 | B33: 03:38:00 | C33: Panasonic Hcp (62) - 1250m | D33: Fields | E33: Form | F33: Xtra Ratings | G33: Consistency
A34: 7 | B34: 04:18:00 | C34: Allan Scott Park Hcp (71) - 1400m | D34: Fields | E34: Form | F34: Xtra Ratings | G34: Consistency
A35: 8 | B35: 04:58:00 | C35: Windsor Estate Wines Hcp (62) - 1550m | D35: Fields | E35: Form | F35: Xtra Ratings | G35: Consistency
A36: Warwick Farm
A37: 1 | B37: 01:50:00 | C37: Free Entry Today Mdn Plate - 1600m | D37: Fields | E37: Form | F37: Xtra Ratings | G37: Consistency
A38: 2 | B38: 02:25:00 | C38: Start Of Summer 27/11 Mdn Hcp - 1300m | D38: Fields | E38: Form | F38: Xtra Ratings | G38: Consistency
A39: 3 | B39: 03:00:00 | C39: R'wick Betting Auditorium-bm75 - 2400m | D39: Fields | E39: Form | F39: Xtra Ratings | G39: Consistency
A40: 4 | B40: 03:37:00 | C40: Order Your Ajc Xmas Fare Hcp - 1000m | D40: Fields | E40: Form | F40: Xtra Ratings | G40: Consistency
A41: 5 | B41: 04:17:00 | C41: Ajc Corporate Membership-bm70 - 1600m | D41: Fields | E41: Form | F41: Xtra Ratings | G41: Consistency
A42: 6 | B42: 04:57:00 | C42: Ajc Convention Centre (bm70) - 1300m | D42: Fields | E42: Form | F42: Xtra Ratings | G42: Consistency
A43: 7 | B43: 05:37:00 | C43: 100 Club-join Now (bm70) - 1400m | D43: Fields | E43: Form | F43: Xtra Ratings | G43: Consistency
A44: END

Sheet Meetings
A2: Races | D2: 1 | E2: 2 | F2: 3 | G2: 4 | H2: 5 | I2: 6 | J2: 7 | K2: 8 | L2: 9 | M2: 10 | N2: 11 | O2: 12
B3: DOOMBEN (BR) | C3: Fields | D3: 5,3,7 F4 | E3: 2,1,4 F4 | F3: (2,4),1 F4 | G3: 3,8,12 F4 | H3: 4,6,3 F4 | I3: 2,4,9 F4 | J3: 8m F4
B4: WARWICK FARM (SR) | C4: Fields | D4: 7,5,2 F4 | E4: 8,7,10 F4 | F4: 3,1,7 F4 | G4: 2,6,9 F4 | H4: 6,2,7 F4 | I4: 4,10,3 F4 | J4: Closed F4
B5: SANDOWN (MR) | C5: Fields | D5: 4,2,1 F4 | E5: 6,5,2 F4 | F5: 4,6,1 F4 | G5: 3,4,6 F4 | H5: 3,11,6 F4 | I5: 11,7,10 F4 | J5: 5,14,8 F4
B6: MORPHETTVILLE (AR) | C6: Fields | D6: 9,1,5 F4 | E6: 6,11,1 F4 | F6: 10,7,12 F4 | G6: 3,2,10 F4 | H6: 1,9,5 F4 | I6: 9,1,3 F4 | J6: 12,2,11 F4 | K6: 1,4,5 F4
B7: BUNBURY (PR) | C7: Fields | D7: 2,5,11 | E7: 10,5,6 | F7: 13,1,12 | G7: 16m | H7: 51m | I7: 06:05:00 | J7: 06:40:00 | K7: 07:15:00
B8: KENILWORTH (AS) | C8: Fields | D8: 09:40:00 | E8: 10:20:00 | F8: 10:55:00 | G8: 11:25:00 | H8: 11:55:00 | I8: 12:25am
B9: CHEPSTOW (CS) | C9: Fields | D9: 11:10:00 | E9: 11:40:00
B10: LINGFIELD (ES) | C10: Fields | D10: 10:00:00 | E10: 10:30:00 | F10: 11:00:00 | G10: 11:30:00 | H10: 12:05am | I10: 12:40am
B11: HAPPY VALLEY (OS) | C11: Fields | D11: 09:15:00 | E11: 09:45:00 | F11: 10:15:00 | G11: 10:50:00 | H11: 11:20:00 | I11: 11:50:00 | J11: 12:20am | K11: 12:55am
B12: TE AROHA (ZS) | C12: Fields | D12: 1,3,5 | E12: 3,10,2 | F12: 18,17,13 | G12: 8,6,19 | H12: 2,1,13 | I12: 11,3,4 | J12: 1,13,11 | K12: 4,1,15 | L12: 7,(9,12) | M12: 19,6,1
A13: Trots | D13: 1 | E13: 2 | F13: 3 | G13: 4 | H13: 5 | I13: 6 | J13: 7 | K13: 8 | L13: 9 | M13: 10 | N13: 11 | O13: 12
B14: REDCLIFFE (BT) | C14: Fields | D14: 5:40 F4 | E14: 6:10 F4 | F14: 6:47 F4 | G14: 7:21 F4 | H14: 7:50 F4 | I14: 8:20 F4 | J14: 8:50 F4 | K14: 9:20 F4
B15: DUBBO (ST) | C15: Fields | D15: 45m | E15: 05:54:00 | F15: 06:29:00 | G15: 07:06:00 | H15: 07:40:00 | I15: 08:10:00 | J15: 08:40:00 | K15: 09:09:00
B16: MILDURA (MT) | C16: Fields | D16: 35m | E16: 05:48:00 | F16: 06:21:00 | G16: 06:55:00 | H16: 07:30:00 | I16: 08:00:00 | J16: 08:30:00 | K16: 09:00:00
A17: Greyhounds | D17: 1 | E17: 2 | F17: 3 | G17: 4 | H17: 5 | I17: 6 | J17: 7 | K17: 8 | L17: 9 | M17: 10 | N17: 11 | O17: 12
B18: ALBION PARK (BG) | C18: Fields | D18: 8,7,10 F4 | E18: 1,2,8 F4 | F18: 6,10,7 F4 | G18: 8,2,1 F4 | H18: 4,3,8 F4 | I18: 1,4,6 F4 | J18: 3m F4 | K18: 23m F4 | L18: 41m F4 | M18: 5:45 F4
B19: THE GARDENS (SG) | C19: Fields | D19: 06:02:00 | E19: 06:26:00 | F19: 06:44:00 | G19: 07:03:00 | H19: 07:26:00 | I19: 07:46:00 | J19: 08:06:00 | K19: 08:26:00 | L19: 08:46:00 | M19: 09:06:00
B20: THE MEADOWS (MG) | C20: Fields | D20: 6,1,4 | E20: 7,5,8 | F20: 1,5,2 | G20: 8,3,1 | H20: 8,2,6 | I20: 2,4,7 | J20: 2,3,5 | K20: 2,6,9 F4 | L20: 6,3,4 | M20: 4,8,7 | N20: 5,1,9 | O20: 4,8,1
B21: IPSWICH (QG) | C21: Fields | D21: 6:15 F4 | E21: 6:34 F4 | F21: 6:52 F4 | G21: 7:11 F4 | H21: 7:35 F4 | I21: 7:55 F4 | J21: 8:15 F4 | K21: 8:35 F4 | L21: 8:55 F4 | M21: 9:14 F4
B22: NOWRA (NG) | C22: Fields | D22: 3,1,4 | E22: 1,2,3 | F22: 6,3,1 | G22: 8,4,7 | H22: 5,3,1 | I22: 7,8,1 | J22: 4,7,5 | K22: 12m | L22: 31m | M22: 56m
B23: SHEPPARTON (VG) | C23: Fields | D23: 4,7,3 | E23: 3,2,7 | F23: 7,8,6 | G23: 3,4,6 | H23: 7,9,10 | I23: 6,5,1 | J23: Interim | K23: 15m | L23: 34m | M23: 50m | N23: 05:53:00 | O23: 06:09:00
B24: ANGLE PARK (AG) | C24: Fields | D24: 1,7,6 F4 | E24: 5,7,6 F4 | F24: 2,5,1 F4 | G24: 8,7,3 F4 | H24: 3,2,4 F4 | I24: 1,2,6 F4 | J24: 5,1,2 F4 | K24: 8,1,3 F4 | L24: 1,4,3 F4 | M24: 8,3,7 F4
B25: CANNINGTON (PG) | C25: Fields | D25: 08:39:00 | E25: 08:57:00 | F25: 09:12:00 | G25: 09:30:00 | H25: 09:52:00 | I25: 10:10:00 | J25: 10:27:00 | K25: 10:42:00 | L25: 11:07:00 | M25: 11:27:00 | N25: 11:47:00 | O25: 12:02am
B26: BALLARAT (EG) | C26: Fields | D26: 05:59:00 | E26: 06:18:00 | F26: 06:37:00 | G26: 07:00:00 | H26: 07:18:00 | I26: 07:38:00 | J26: 07:58:00 | K26: 08:18:00 | L26: 08:38:00 | M26: 08:58:00 | N26: 09:18:00 | O26: 09:35:00
B27: HATRICK (ZG) | C27: Fields | D27: 2,1,5 | E27: 2,3,4 | F27: 4,5,3 | G27: 5,2,1 | H27: 4,2,1 | I27: 5,4,6 | J27: 2,4,3 | K27: 3,8,1 | L27: 1,3,2 | M27: 3,7,1 | N27: 2,5,9 | O27: 8,3,2

Sheet Form
A1: Form - Morphettville Pk 24/11/10
A2: Race 3 | C2: Apache Cat Here Saturday Mdn | E2: Maiden | G2: 3yo+ | I2: 1400m
A3: 01:48:00 | C3: Apprentices Can Claim | E3: Set Weight | H3: 10000
A4: # | B4: Form | C4: Horse (Barrier) | D4: Trainer | E4: Jockey | F4: Weight | G4: API | H4: Win % | I4: Place %
A5: 1 | B5: 376 | C5: Hoosang (6) | D5: J E Hickmott | E5: D Robinson | F5: 57 | G5: 0.3 | H5: 0 | I5: 25
A6: 2 | B6: 8735 | C6: Kotor (16) | D6: S G Padman | E6: S Cahill | F6: 57 | G6: 0.2 | H6: 0 | I6: 25
A7: 3 | B7: 93753 | C7: Red Hot Jeune (17) | D7: P L Seater | E7: M Neilson | F7: 57 | G7: 0.4 | H7: 0 | I7: 40
A8: 4 | B8: 855944 | C8: Shiraz Knight (1) | D8: J Maddigan | E8: B Hoppo | F8: 57 | G8: 0.1 | H8: 0 | I8: 0
A9: 5 | B9: 5423 | C9: Drafted (2) | D9: M S Minervini | E9: C Lions | F9: 55.5 | G9: 1.1 | H9: 0 | I9: 50
A10: 6 | B10: 7 | C10: Baena (18) | D10: Ms R Day | E10: A Patterson | F10: 55 | G10: 0 | H10: 0 | I10: 0
A11: 7 | B11: 522227 | C11: Burgundy Notes (14) | D11: Bill Papazaharoudakis | E11: J Matthews | F11: 55 | G11: 0.7 | H11: 0 | I11: 50
A12: 1900-01-08 | B12: 4104-09-05 | C12: Champagne Journey (12) | D12: Ms E Hubbard | E12: T Baker | F12: 55 | G12: 0.5 | H12: 0 | I12: 12.5
A13: 9 | B13: 354423 | C13: Coco Loco (7) | D13: L Kennewell | E13: D Tourneur | F13: 55 | G13: 0.7 | H13: 0 | I13: 29.4
A14: 10 | B14: 334422 | C14: Often Away (9) | D14: John Thompson | E14: P Gatt | F14: 55 | G14: 1.1 | H14: 0 | I14: 57.1
A15: 11 | B15: 6 | C15: Promotional (8) | D15: Leon Macdonald & Andrew Gluyas | E15: C Lindop | F15: 55 | G15: 0 | H15: 0 | I15: 0
A16: 12 | B16: 373226 | C16: Red Savina (11) | D16: M A Kavanagh | E16: S Price | F16: 55 | G16: 1.2 | H16: 0 | I16: 57.1
A17: 13 | B17: 64 | C17: September Rain (4) | D17: P C Barns | E17: J Potter | F17: 53.5 | G17: 0.3 | H17: 0 | I17: 0
A18: 14 | B18: 2945 | C18: Twilight Dancer (10) | D18: W A Bogarts | E18: L Hopwood | F18: 53.5 | G18: 1.1 | H18: 0 | I18: 25
A19: 1900-01-15 | B19: 1900-04-07 | C19: Boolcunda Gold (3) | D19: B Dunn | E19: J Frew | F19: 1900-02-24T12:00:00 | G19: 00:00:00 | H19: 00:00:00 | I19: 0
A20: 1900-01-16 | B20: 1900-03-27 | C20: Steely Resolve (5) | D20: Jon O'Connor | E20: T Pannell | F20: 1900-02-26 | G20: 04:48:00 | H20: 00:00:00 | I20: 0
A21: 1900-01-17 | B21: 1902-08-17 | C21: Mr Diligent (15) | D21: W J Smart | E21: T Pannell | F21: 1900-02-24T12:00:00 | G21: 02:24:00 | H21: 00:00:00 | I21: 0
A22: 1900-01-18 | B22: 1900-01-08 | C22: Deed Of Honor (6) | D22: K J Matson | E22: J Frew | F22: 1900-02-26 | G22: 02:24:00 | H22: 00:00:00 | I22: 0
A23: 1900-01-18 | B23: 1902-06-27 | C23: Pack Saddle (13) | D23: G V Richards | E23: M Hoppo | F23: 1900-02-26 | G23: 00:00:00 | H23: 00:00:00 | I23: 0
A25: 1 Hoosang (6) 57.0kg 4yo br g | D25: Trainer: J E Hickmott at Murray Bridge | G25: Jockey: D Robinson
A26: Colours: Royal blue, cream diagonal stripes and purple cap | D26: Breeding: Danasinga - Special Teams by Entrepreneur
A27: Owners: J E Hickmott, K J Hickmott, D King, G H Curtis, M R Mulligan, G J King, J A Coe, J N Pearce, B J Beecroft & T J Macleod
A28: Career: | B28: Earnings: | C28: Win: 0.0% | D28: API: | E28: First Up: | F28: Second Up: | G28: Distance: | H28: Track:
A29: 4:0-0-1 | B29: 1350 | C29: Place: 25.0% | D29: 07:12:00 | E29: 3:0-0-1 | F29: 1:0-0-0 | G29: 0:0-0-0 | H29: 0:0-0-0
A30: Fast: | B30: Good: | C30: Dead: | D30: Slow: | E30: Heavy:
A31: 0:0-0-0 | B31: 4:0-0-1 | C31: 0:0-0-0 | D31: 0:0-0-0 | E31: 0:0-0-0
A32: 6-13 6.1L, M.Brge, 2010-11-10, 1200m, Good, Race 1, 4yo+ Mdn, Mdn 4+, $10000, ($0), D Robinson, 13, Cd 57.0-0.0, (SW), 1:12.23, (35.60), 25/1, Settled-9 1200-- 800-- Turn-7, 1-Ambitious Bride 55.0
A33: 7-10 9.5L, F. Bay, 2010-07-28, 1100m, Good, Race 3, Mdn, Mdn, $15200, ($0), S Scriven, 5, Cd 58.0-0.0, (SW), 1:03.78, (34.74), 4/1, Settled-- 1200-- 800-- Turn--, 1-Charge Up 58.0
A34: 3-12 1.6L, F. Bay, 2010-07-14, 1200m, Good, Race 1, Mdn Plate, Mdn, $15200, ($1300), C Spry, 1, Cd 58.0-0.0, (SW), 1:10.80, (36.10), 12/1, Settled-- 1200-- 800-- Turn--, 1-Sharvee 58.0
A35: 12-13 15.6L, Balakl, 2010-02-28, 1400m, Good, Race 5, 3yo+ Mdn, Mdn 3+, $10000, ($0), M Tyndall, 6, Cd 53.0--3.0, (SW), 1:23.64, (), 50/1, Settled-3 1200-- 800-3 Turn-6, 1-Bunker Boy 56.0
A36: 2 Kotor (16) 57.0kg 4yo b g | D36: Trainer: S G Padman at Murray Bridge | G36: Jockey: S Cahill
A37: Colours: Burgundy, gold stripe, black braces, white sleeves, burgundy cuffs, black cap | D37: Breeding: Dash For Cash - Lady Milina by Euclase
A38: Owners: P & Mrs J Zecevich
A39: Career: | B39: Earnings: | C39: Win: 0.0% | D39: API: | E39: First Up: | F39: Second Up: | G39: Distance: | H39: Track:
A40: 4:0-0-1 | B40: 900 | C40: Place: 25.0% | D40: 04:48:00 | E40: 2:0-0-0 | F40: 1:0-0-1 | G40: 1:0-0-0 | H40: 1:0-0-0
A41: Fast: | B41: Good: | C41: Dead: | D41: Slow: | E41: Heavy:
A42: 0:0-0-0 | B42: 3:0-0-1 | C42: 1:0-0-0 | D42: 0:0-0-0 | E42: 0:0-0-0
A43: 5-13 2.4L, MorhPk, 2010-11-04, 1400m, Good, Race 5, 4yo+ Mdn, Mdn 4+, $10000, ($0), S Cahill, 12, Cd 57.0-0.0, (SW), 1:26.26, (36.74), 9/1, Settled-7 1200-- 800-- Turn-2, 1-Master Beckett 55.0
A44: 3-13 2.6L, Strath, 2010-10-20, 1200m, Good, Race 5, 3yo+ Mdn, Mdn 3+, $10000, ($900), S Cahill, 4, Cd 57.0-0.0, (SW), 1:14.24, (36.26), 11/1, Settled-2 1200-- 800-- Turn-2, 1-Chilli Deva 55.0
A45: 7-8 5.8L, Balakl, 2010-09-29, 1050m, Dead, Race 3, 4yo+ Mdn, Mdn 4+, $10000, ($0), S Cahill, 1, Cd 57.0-0.0, (SW), 1:02.14, (34.21), 6/1, Settled-4 1200-- 800-- Turn-4, 1-Hollywood Dream 55.0
A46: 8-9 5.5L, M.Brge, 2010-03-03, 1000m, Good, Race 2, 3yo Mdn, Mdn 3, $10000, ($0), P Gatt, 2, Cd 56.5-0.0, (SW), 0:58.54, (), 7/1, Settled-4 1200-- 800-- Turn-5, 1-Hearts 'n' Halos 54.5
A47: 3 Red Hot Jeune (17) 57.0kg 4yo ch g | D47: Trainer: P L Seater at Murray Bridge | G47: Jockey: M Neilson
A48: Colours: Royal blue, pink striped sleeves, royal blue cap | D48: Breeding: Jeune (GB) - Scarlet Bisque by Biscay
A49: Owners: G L Martin
A50: Career: | B50: Earnings: | C50: Win: 0.0% | D50: API: | E50: First Up: | F50: Second Up: | G50: Distance: | H50: Track:
A51: 5:0-0-2 | B51: 2050 | C51: Place: 40.0% | D51: 09:36:00 | E51: 2:0-0-0 | F51: 2:0-0-2 | G51: 0:0-0-0 | H51: 0:0-0-0
A52: Fast: | B52: Good: | C52: Dead: | D52: Slow: | E52: Heavy:
A53: 0:0-0-0 | B53: 3:0-0-1 | C53: 2:0-0-1 | D53: 0:0-0-0 | E53: 0:0-0-0
A54: 3-13 0.6L, M.Brge, 2010-11-10, 1200m, Good, Race 1, 4yo+ Mdn, Mdn 4+, $10000, ($900), M Neilson, 7, Cd 57.0-0.0, (SW), 1:12.23, (35.60), 45/10, Settled-5 1200-- 800-- Turn-4, 1-Ambitious Bride 55.0
A55: 5-12 2.8L, Gawlr, 2010-10-27, 1100m, Good, Race 1, 3yo+ Mdn, Mdn 3+, $10000, ($0), M Neilson, 5, Cd 57.0-0.0, (SW), 1:04.93, (34.71), 15/2, Settled-6 1200-- 800-- Turn-6, 1-Cattyshack 52.0
A56: 7-12 4.3L, Balakl, 2010-06-09, 1055m, Dead, Race 3, 3yo+ Mdn, Mdn 3+, $10000, ($0), S Price, 7, Cd 56.5-0.0, (SW), 1:03.40, (36.10), 32/10, Settled-7 1200-- 800-- Turn-6, 1-Red England 57.0
A57: 3-11 3.0L, M.Brge, 2010-05-26, 1006m, Dead, Race 4, 3yo+ Mdn, Mdn 3+, $10000, ($900), S Price, 1, Cd 56.5-0.0, (SW), 0:59.55, (35.47), 5/1, Settled-1 1200-- 800-- Turn-1, 1-Silent Mode 54.5
A58: 9-11 3.9L, Bend, 2010-05-07, 1000m, Good, Race 1, 3yo Mdn, Mdn 3, $13000, ($200), M Pumpa, 6, Cd 57.0-0.0, (SW), 0:58.68, (), 9/1, Settled-1 1200-- 800-- Turn-1, 1-Bel Shandy 57.0
A59: 4 Shiraz Knight (1) 57.0kg 6yo b/br g | D59: Trainer: J Maddigan at Morphettville | G59: Jockey: B Hoppo
A60: Colours: Gold, royal blue spots, green hooped sleeves and cap | D60: Breeding: Staaraq - Lady Jennifer by Hamersley
A61: Owners: J L P Maddigan, J L Maddigan, Mrs K S Maddigan, P G Hansen & A J Whiley
A62: Career: | B62: Earnings: | C62: Win: 0.0% | D62: API: | E62: First Up: | F62: Second Up: | G62: Distance: | H62: Track:
A63: 9:0-0-0 | B63: 1200 | C63: Place: 0.0% | D63: 02:24:00 | E63: 3:0-0-0 | F63: 2:0-0-0 | G63: 0:0-0-0 | H63: 1:0-0-0
A64: Fast: | B64: Good: | C64: Dead: | D64: Slow: | E64: Heavy:
A65: 0:0-0-0 | B65: 4:0-0-0 | C65: 2:0-0-0 | D65: 3:0-0-0 | E65: 0:0-0-0
A66: 4-12 4.5L, Gawlr, 2010-09-12, 2100m, Slow, Race 2, 3yo+ Mdn, Mdn 3+, $10000, ($600), O Ay, 5, Cd 54.0--3.0, (SW), 2:16.97, (39.00), 55/10, Settled-11 1200-12 800-12 Turn-10, 1-Marizza's Dream 53.5
A67: 4-10 2.1L, Gawlr, 2010-08-05, 2100m, Slow, Race 4, 3yo+ Mdn, Mdn 3+, $10000, ($600), D Robinson, 3, Cd 57.0-0.0, (SW), 2:19.12, (39.15), 20/1, Settled-10 1200-10 800-9 Turn-7, 1-Blanche Port 55.0
A68: 9-10 5.8L, Strath, 2010-07-21, 2050m, Slow, Race 2, 3yo+ Mdn, Mdn 3+, $10000, ($0), D Robinson, 1, Cd 57.0-0.0, (SW), 2:15.77, (38.97), 8/1, Settled-7 1200-8 800-8 Turn-9, 1-Robeson 56.5
A69: 5-12 2.6L, MorhPk, 2010-07-07, 1950m, Dead, Race 4, 2yo+ Mdn, Mdn, $10000, ($0), D Robinson, 3, Cd 57.0-0.0, (SW), 2:06.38, (37.51), 14/1, Settled-10 1200-10 800-8 Turn-10, 1-Big Love 54.5
A70: 5-7 4.0L, M.Brge, 2010-06-14, 1400m, Dead, Race 2, 2yo+ Mdn, Mdn, $10000, ($0), D Robinson, 4, Cd 57.0-0.0, (SW), 1:27.05, (), 25/1, Settled-6 1200-- 800-6 Turn-7, 1-Fantastic Glen 54.5
A71: 8-13 6.6L, Clare, 2010-03-14, 1800m, Good, Race 2, 3yo+ Mdn, Mdn 3+, $8000, ($0), D Robinson, 5, Cd 57.0-0.0, (SW), 1:55.96, (), 40/1, Settled-- 1200-- 800-- Turn--, 1-Lord Of The Song 57.0
A72: 10-13 7.3L, Balakl, 2010-02-28, 1400m, Good, Race 5, 3yo+ Mdn, Mdn 3+, $10000, ($0), O Ay, 3, Cd 54.0--3.0, (SW), 1:23.64, (), 50/1, Settled-11 1200-- 800-12 Turn-10, 1-Bunker Boy 56.0
A73: 10-10 7.1L, Strath, 2010-01-27, 1350m, Good, Race 2, 4yo+ Mdn, Mdn 4+, $7700, ($0), S Price, 4, Cd 57.0-0.0, (SW), 1:22.97, (), 20/1, Settled-10 1200-- 800-- Turn-10, 1-Alakate 55.0
A74: 15-16 26.7L, Mphvl, 2009-08-19, 1050m, Good, Race 3, 3yo+ Mdn, Mdn 3+, $7700, ($0), M Hoppo, 12, Cd 57.0-0.0, (SW), 0:59.42, (33.86), 40/1, Settled-14 1200-- 800-- Turn-15, 1-Definitely Ready 55.0
A75: 5 Drafted (2) 55.5kg 3yo br g | D75: Trainer: M S Minervini at Morphettville | G75: Jockey: C Lions
A76: Colours: White, red and black diamond sash and armbands | D76: Breeding: Commands - Diplome by End Sweep
A77: Owners: J I Halsall, P J & Mrs E B Noone, D P & D A Heffernan, Diplomats & M A Nunan
A78: Career: | B78: Earnings: | C78: Win: 0.0% | D78: API: | E78: First Up: | F78: Second Up: | G78: Distance: | H78: Track:
A79: 2010-01-01T04:00:00 | B79: 4200 | C79: Place: 50.0% | D79: 1900-01-01T02:24:00 | E79: 2:0-1-0 | F79: 2:0-0-1 | G79: 0:0-0-0 | H79: 0:0-0-0
A80: Fast: | B80: Good: | C80: Dead: | D80: Slow: | E80: Heavy:
A81: 0:0-0-0 | B81: 2010-01-01T02:00:00 | C81: 2:0-0-0 | D81: 0:0-0-0 | E81: 0:0-0-0
A82: 3-12 1.3L, Gawlr, 2010-11-17, 1100m, Good, Race 2, 3yo+ E&g Mdn, Mdn 3+, $10000, ($900), S Cahill, 3, Cd 55.5-0.0, (SW), 1:04.90, (35.38), 15/10F, Settled-- 1200-- 800-- Turn--, 1-Vintage Punch 55.5
A83: 2-13 0.8L, Mphvl, 2010-11-02, 1200m, Good, Race 2, 3yo+ E&g Mdn, Mdn 3+, $10000, ($1800), S Cahill, 8, Cd 55.5-0.0, (SW), 1:10.73, (35.62), 22/10, Settled-3 1200-- 800-- Turn-5, 1-Mavross 57.0
A84: 4-11 3.5L, Balakl, 2010-06-09, 1210m, Dead, Race 1, 2yo Mdn, Mdn 2, $10000, ($600), S Cahill, 6, Cd 56.5-0.0, (SW), 1:12.89, (), 11/10F, Settled-5 1200-- 800-- Turn-5, 1-Kosciuszko's Side 56.5
A85: 5-12 4.4L, Mphvl, 2010-05-29, 1000m, Dead, Race 1, 2yo Hcp, Open 2, $40000, ($900), A Patterson, 12, Cd 55.5-0.0, (53.0), 1:00.18, (36.35), 6/1, Settled-5 1200-- 800-- Turn-6, 1-Lilgiggleo 54.5
A86: 6 Baena (18) 55.0kg 4yo b m | D86: Trainer: Ms R Day at Strathalbyn | G86: Jockey: A Patterson
A87: Colours: Green, white hooped sleeves | D87: Breeding: Akhadan - Tally Belle by Canny Lad
A88: Owners: Dr H Awang, C Tan, W H Lee, Dr Y Awang & Dato Azzat Kamaludin
A89: Career: | B89: Earnings: | C89: Win: 0.0% | D89: API: | E89: First Up: | F89: Second Up: | G89: Distance: | H89: Track:
A90: 1:0-0-0 | B90: 0 | C90: Place: 0.0% | D90: 00:00:00 | E90: 1:0-0-0 | F90: 0:0-0-0 | G90: 0:0-0-0 | H90: 1:0-0-0
A91: Fast: | B91: Good: | C91: Dead: | D91: Slow: | E91: Heavy:
A92: 0:0-0-0 | B92: 1:0-0-0 | C92: 0:0-0-0 | D92: 0:0-0-0 | E92: 0:0-0-0
A93: 7-10 4.7L, MorhPk, 2010-11-04, 1250m, Good, Race 1, 3yo+ F&m Mdn, Mdn fm, $10000, ($0), J Frew, 1, Cd 53.5--3.0, (SW), 1:15.57, (36.01), 60/1, Settled-3 1200-- 800-- Turn-7, 1-Fleet Riane 55.0
A94: 7 Burgundy Notes (14) 55.0kg 5yo b m | D94: Trainer: Bill Papazaharoudakis at Morphettville | G94: Jockey: J Matthews
A95: Colours: Light green, dark green, light green sleeves with dark green horse stripe, | D95: Breeding: Montjeu (IRE) - Tosca (ARG) by Laramie Trail
A96: Owners: Tosca Farm Syndicate & Ms H Papazaharoudakis
A97: Career: | B97: Earnings: | C97: Win: 0.0% | D97: API: | E97: First Up: | F97: Second Up: | G97: Distance: | H97: Track:
A98: 10:0-5-0 | B98: 7350 | C98: Place: 50.0% | D98: 0.7 | E98: 3:0-1-0 | F98: 1:0-0-0 | G98: 2:0-0-0 | H98: 1:0-1-0
A99: Fast: | B99: Good: | C99: Dead: | D99: Slow: | E99: Heavy:
A100: 0:0-0-0 | B100: 10:0-5-0 | C100: 0:0-0-0 | D100: 0:0-0-0 | E100: 0:0-0-0
A101: 7-13 6.2L, M.Brge, 2010-11-10, 1200m, Good, Race 1, 4yo+ Mdn, Mdn 4+, $10000, ($0), T Pannell, 5, Cd 55.0-0.0, (SW), 1:12.23, (35.60), 4/1, Settled-4 1200-- 800-- Turn-5, 1-Ambitious Bride 55.0
A102: 2-6 3.0L, Balakl, 2010-02-28, 2200m, Good, Race 1, 3yo+ Mdn, Mdn 3+, $10000, ($1800), C Lever, 1, Cd 55.0-0.0, (SW), 2:23.96, (), 8/11F, Settled-1 1200-1 800-1 Turn-3, 1-Pleats 55.0
A103: 2-10 2.3L, Mphvl, 2010-02-03, 2028m, Good, Race 2, 3yo+ Mdn, Mdn 3+, $10000, ($1800), M Neilson, 6, Cd 55.0-0.0, (SW), 2:06.17, (36.49), 2/1F, Settled-4 1200-4 800-4 Turn-5, 1-Autentico Teatro 57.0
A104: 2-7 0.4L, Mphvl, 2010-01-20, 2044m, Good, Race 4, 3yo+ Mdn, Mdn 3+, $7700, ($1000), M Neilson, 6, Cd 55.0-0.0, (SW), 2:09.76, (37.43), 15/10F, Settled-5 1200-5 800-4 Turn-3, 1-Hold That Conquest 53.5
A105: 2-9 4.0L, Mphvl, 2010-01-06, 1600m, Good, Race 3, 3yo+ Mdn, Mdn 3+, $7700, ($1300), M Neilson, 8, Cd 55.0-0.0, (SW), 1:37.47, (36.35), 4/1, Settled-7 1200-7 800-7 Turn-5, 1-Syanna's Bro 57.0
A106: 5-14 5.6L, Mphvl, 2009-12-23, 1200m, Good, Race 4, 3yo+ Mdn, Mdn 3+, $7700, ($0), M Neilson, 4, Cd 55.0-0.0, (SW), 1:10.68, (35.42), 12/1, Settled-11 1200-- 800-- Turn-6, 1-Catsonsong 55.5
A107: 9-11 5.1L, Balakl, 2009-11-25, 1407m, Good, Race 8, 3yo+ Mdn, Mdn 3+, $7700, ($0), C Lever, 1, Cd 55.0-0.0, (SW), 1:24.30, (), 22/10, Settled-4 1200-- 800-5 Turn-6, 1-Sacre Nazaire 57.0
A108: 5-11 3.5L, M.Brge, 2009-11-18, 1400m, Good, Race 8, 3yo+ Mdn, Mdn 3+, $7700, ($0), C Lever, 7, Cd 55.0-0.0, (SW), 1:24.33, (), 25/10, Settled-9 1200-- 800-10 Turn-10, 1-Ucetek 55.0
A109: 2-12 1.0L, MorhPk, 2009-11-05, 1250m, Good, Race 8, 3yo+ F&m Mdn, Mdn fm, $7700, ($1300), C Lever, 10, Cd 56.5-0.0, (SW), 1:16.53, (), 12/1, Settled-8 1200-- 800-- Turn-9, 1-Zhen Zhen 55.0
A110: 11-13 9.4L, Balakl, 2009-05-20, 1200m, Good, Race 3, 3yo+ Mdn, Mdn 3+, $7500, ($0), T Baker, 8, Cd 54.5-0.0, (SW), 1:11.64, (), 25/1, Settled-10 1200-- 800-- Turn-11, 1-Cybercyn 52.0
A111: 8 Champagne Journey (12) 55.0kg 4yo ch m | D111: Trainer: Ms E Hubbard at Strathalbyn | G111: Jockey: T Baker
A112: Colours: Light blue and purple diamonds, light blue cap, purple pom pom | D112: Breeding: Good Journey (USA) - Pamela's Hill by Danehill
A113: Owners: Miss E Hubbard, A N Barratt, C Robertson & Ms M Freeman
A114: Career: | B114: Earnings: | C114: Win: 0.0% | D114: API: | E114: First Up: | F114: Second Up: | G114: Distance: | H114: Track:
A115: 8:0-1-0 | B115: 3600 | C115: Place: 12.5% | D115: 12:00:00 | E115: 1:0-0-0 | F115: 1:0-0-0 | G115: 0:0-0-0 | H115: 0:0-0-0
A116: Fast: | B116: Good: | C116: Dead: | D116: Slow: | E116: Heavy:
A117: 0:0-0-0 | B117: 2:0-0-0 | C117: 4:0-0-0 | D117: 1:0-1-0 | E117: 1:0-0-0
A118: 4-13 2.9L, M.Brge, 2010-11-10, 1200m, Good, Race 1, 4yo+ Mdn, Mdn 4+, $10000, ($600), T Baker, 10, Cd 55.0-0.0, (SW), 1:12.23, (35.60), 12/1, Settled-3 1200-- 800-- Turn-2, 1-Ambitious Bride 55.0
A119: 4-12 0.6L, Bortwn, 2010-10-24, 1100m, Good, Race 3, 3yo+ Mdn, Mdn 3+, $8000, ($400), T Baker, 7, Cd 55.0-0.0, (SW), 1:06.06, (), 6/1, Settled-- 1200-- 800-- Turn--, 1-Billy Whitesox 57.0
A120: 2-15 1.5L, Strath, 2010-09-02, 1250m, Slow, Race 5, 3yo+ Mdn, Mdn 3+, $10000, ($1800), T Baker, 5, Cd 55.0-0.0, (SW), 1:20.90, (39.58), 12/1, Settled-1 1200-- 800-- Turn-1, 1-Any Minute Now 57.0
A121: 5-12 6.0L, M.Brge, 2010-07-28, 1000m, Dead, Race 4, 3yo+ Mdn, Mdn 3+, $10000, ($0), T Baker, 3, Cd 54.5-0.0, (SW), 0:59.04, (35.12), 50/1, Settled-7 1200-- 800-- Turn-9, 1-Chicago Hood 56.5
A122: 11-12 10.4L, Seymor, 2010-05-24, 1600m, Dead, Race 2, 2yo+ F&m Mdn, Mdn fm, $12000, ($0), L Beer, 1, Cd 57.0-0.0, (SW), 1:39.65, (), 50/1, Settled-3 1200-- 800-3 Turn-3, 1-Bravelli 57.0
A123: 8-12 12.7L, P'ham, 2010-05-08, 1300m, Heavy, Race 1, 3yo Mdn, Mdn 3, $12000, ($200), A Mccabe, 5, Cd 54.0--1.0, (SW), 1:21.70, (), 14/1, Settled-8 1200-- 800-- Turn-8, 1-Nenagh 55.0
A124: 7-8 7.3L, G'long, 2010-04-09, 1112m, Dead, Race 1, 2yo+ Mdn Plate, Mdn, $13000, ($200), L Currie, 8, Cd 55.5-0.0, (SW), 1:06.33, (38.86), 20/1, Settled-7 1200-- 800-- Turn-8, 1-Brombed Out 56.0
A125: 6-8 6.1L, G'long, 2010-03-26, 1103m, Dead, Race 2, 3yo F Mdn, Mdn 3 f, $12000, ($200), Michelle Payne, 2, Cd 57.0-0.0, (SW), 1:05.74, (34.21), 9/1, Settled-5 1200-- 800-- Turn-5, 1-Nothin Mist 57.0
A126: 9 Coco Loco (7) 55.0kg 5yo b m | D126: Trainer: L Kennewell at Morphettville | G126: Jockey: D Tourneur
A127: Colours: Green, black and white checked sash, armbands and cap | D127: Breeding: Fusaichi Pegasus (USA) - Really Wild (USA) by Wild Again
A128: Owners: W P & Mrs E S Benson
A129: Career: | B129: Earnings: | C129: Win: 0.0% | D129: API: | E129: First Up: | F129: Second Up: | G129: Distance: | H129: Track:
A130: 2010-04-01T17:00:00 | B130: 12700 | C130: Place: 29.4% | D130: 0.7 | E130: 3:0-0-1 | F130: 3:0-0-1 | G130: 2010-02-01T05:00:00 | H130: 0:0-0-0
A131: Fast: | B131: Good: | C131: Dead: | D131: Slow: | E131: Heavy:
A132: 0:0-0-0 | B132: 2010-02-01T11:00:00 | C132: 4:0-0-1 | D132: 0:0-0-0 | E132: 2:0-0-1
A133: 3-8 4.6L, Kem.Gr, 2010-07-31, 1600m, Heavy, Race 3, Mdn, Mdn, $14000, ($1400), J Penza, 7, Cd 56.5-0.0, (56.0), 1:45.36, (37.68), 5/1, Settled-6 1200-- 800-6 Turn-2, 1-Irish Love 57.5
A134: 2-14 0.2L, Kem.Gr, 2010-07-17, 1400m, Good, Race 4, F&m Mdn, Mdn fm, $14000, ($2800), C Reith, 6, Cd 55.5-0.0, (55.5), 1:26.25, (36.30), 7/2, Settled-9 1200-- 800-8 Turn-6, 1-Symphony 55.5
A135: 4-14 3.5L, Kem.Gr, 2010-07-03, 1300m, Dead, Race 7, Mdn Plate, Mdn, $14000, ($700), C Reith, 14, Cd 56.0-0.0, (SW), 1:19.78, (34.98), 11/1, Settled-14 1200-- 800-- Turn-13, 1-Patricks 58.0
A136: 4-13 1.3L, Kem.Gr, 2010-06-19, 1400m, Dead, Race 7, Mdn Plate, Mdn, $14000, ($700), J Penza, 2, Cd 56.0-0.0, (SW), 1:26.21, (35.61), 9/2, Settled-5 1200-- 800-6 Turn-6, 1-Stratocruiser 58.0
A137: 5-6 5.3L, Kem.Gr, 2010-05-29, 1500m, Heavy, Race 7, Mdn Plate, Mdn, $14000, ($0), J Penza, 3, Cd 56.0-0.0, (SW), 1:33.90, (36.56), 9/4, Settled-6 1200-- 800-4 Turn-4, 1-Distant And Lovely 54.5
A138: 3-8 0.9L, Kem.Gr, 2010-05-15, 1400m, Good, Race 1, Mdn Plate, Mdn, $14000, ($1400), J Penza, 4, Cd 56.0-0.0, (SW), 1:25.17, (33.41), 4/1, Settled-4 1200-- 800-4 Turn-2, 1-Zoot Suit 58.0
A139: 3-11 2.3L, N'ctle, 2010-05-01, 1200m, Dead, Race 5, F&m Mdn, Mdn fm, $14000, ($1400), C Reith, 7, Cd 55.0-0.0, (55.0), 1:11.32, (35.67), 11/1, Settled-11 1200-- 800-- Turn-8, 1-Tokyo Light 55.5
A140: 5-12 2.7L, N'ctle, 2009-12-26, 1850m, Dead, Race 6, Mdn, Mdn, $14000, ($0), J Adams, 8, Cd 52.5--2.0, (54.5), 1:54.63, (36.10), 8/1, Settled-12 1200-12 800-12 Turn-8, 1-Vilayet 55.5
A141: 6-12 1.7L, C'bury, 2009-12-17, 1550m, Good, Race 3, 3yo+ Mdn, Mdn 3+, $27000, ($0), J Parr, 9, Cd 54.5-0.0, (54.5), 1:34.20, (36.03), 16/1, Settled-7 1200-- 800-7 Turn-7, 1-Buffalo 56.5
A142: 7-12 4.5L, C'bury, 2009-12-03, 1550m, Good, Race 2, 3yo+ Mdn Plate, Mdn 3+, $27000, ($0), C Brown, 7, Cd 56.0-0.0, (SW), 1:35.02, (35.99), 9/1, Settled-4 1200-- 800-- Turn-5, 1-I Don't Recall 58.0
A143: 10 Often Away (9) 55.0kg 4yo b/br m | D143: Trainer: John Thompson at Morphettville | G143: Jockey: P Gatt
A144: Colours: Royal blue, green and gold logo, green sleeves, gold cap and pom pom | D144: Breeding: Hussonet (USA) - Dashing Granada by Keltrice
A145: Owners: Patinack Farm Racing Syndicate (mgr: N L Tinkler)
A146: Career: | B146: Earnings: | C146: Win: 0.0% | D146: API: | E146: First Up: | F146: Second Up: | G146: Distance: | H146: Track:
A147: 2010-02-02T07:00:00 | B147: 8000 | C147: Place: 57.1% | D147: 1.1 | E147: 3:0-0-0 | F147: 2010-01-01T02:00:00 | G147: 3:0-0-1 | H147: 1:0-1-0
A148: Fast: | B148: Good: | C148: Dead: | D148: Slow: | E148: Heavy:
A149: 0:0-0-0 | B149: 2010-02-02T05:00:00 | C149: 0:0-0-0 | D149: 2:0-0-0 | E149: 0:0-0-0
A150: 2-13 0.1L, Gawlr, 2010-11-17, 1200m, Good, Race 3, 4yo+ M Mdn, Mdn 4+ m, $10000, ($1800), T Pannell, 13, Cd 56.5-0.0, (SW), 1:12.22, (36.40), 25/10, Settled-10 1200-- 800-- Turn-8, 1-Rippa Matilla 56.5
A151: 2-10 0.1L, MorhPk, 2010-11-04, 1250m, Good, Race 1, 3yo+ F&m Mdn, Mdn 3+ fm, $10000, ($1800), T Pannell, 10, Cd 56.5-0.0, (SW), 1:15.57, (36.01), 9/1, Settled-10 1200-- 800-- Turn-9, 1-Fleet Riane 55.0
A152: 4-10 4.6L, Strath, 2010-10-20, 1100m, Good, Race 3, 3yo+ F&m Mdn, Mdn 3+ fm, $10000, ($600), C Lever, 8, Cd 56.5-0.0, (SW), 1:06.89, (36.13), 45/10, Settled-9 1200-- 800-- Turn-9, 1-Golden Penny 54.5
A153: 4-7 3.5L, H'bury, 2010-04-01, 1000m, Slow, Race 1, Mdn Plate, Mdn, $16000, ($800), B Avdulla, 2, Cd 55.5-0.0, (SW), 0:59.32, (35.87), 12/1, Settled-6 1200-- 800-- Turn-6, 1-Maypan 55.5
A154: 3-9 0.5L, N'ctle, 2009-11-15, 900m, Good, Race 1, 3yo Mdn Plate, Mdn 3, $14000, ($1400), P Robl, 7, Cd 54.0-0.0, (SW), 0:52.98, (34.10), 10/9F, Settled-2 1200-- 800-- Turn-2, 1-It's Our Turn 54.0
A155: 3-10 2.3L, H'bury, 2009-10-22, 1000m, Good, Race 1, Mdn Plate, Mdn, $16000, ($1600), C Munce, 7, Cd 53.5-0.0, (SW), 0:57.77, (34.34), 5/2F, Settled-4 1200-- 800-- Turn-3, 1-Dragon's Keep 55.5
A156: 5-7 1.4L, H'bury, 2009-10-11, 1000m, Slow, Race 1, 3yo Mdn, Mdn 3, $14000, ($0), H Bowman, 6, Cd 56.0-0.0, (55.5), 0:58.89, (35.25), 9/2, Settled-3 1200-- 800-- Turn-3, 1-Whiner 56.5
A157: 11 Promotional (8) 55.0kg 4yo b m | D157: Trainer: Leon Macdonald & Andrew Gluyas at Morphettville | G157: Jockey: C Lindop
A158: Colours: Pale blue, orange spot | D158: Breeding: Al Maher - Sutra by Jade Hunter
A159: Owners: Pukhraj Breeding & Racing Syndicate
A160: Career: | B160: Earnings: | C160: Win: 0.0% | D160: API: | E160: First Up: | F160: Second Up: | G160: Distance: | H160: Track:
A161: 1:0-0-0 | B161: 0 | C161: Place: 0.0% | D161: 00:00:00 | E161: 1:0-0-0 | F161: 0:0-0-0 | G161: 0:0-0-0 | H161: 1:0-0-0
A162: Fast: | B162: Good: | C162: Dead: | D162: Slow: | E162: Heavy:
A163: 0:0-0-0 | B163: 1:0-0-0 | C163: 0:0-0-0 | D163: 0:0-0-0 | E163: 0:0-0-0
A164: 6-9 4.8L, MorhPk, 2010-11-04, 1250m, Good, Race 2, 3yo+ F&m Mdn, Mdn fm, $10000, ($0), P Gatt, 4, Cd 56.5-0.0, (SW), 1:15.92, (34.77), 7/1, Settled-6 1200-- 800-- Turn-6, 1-Coquelet 53.5
A165: 12 Red Savina (11) 55.0kg 4yo b m | D165: Trainer: M A Kavanagh at Flemington | G165: Jockey: S Price
A166: Colours: Royal blue, black and white checked sash and cap | D166: Breeding: Hussonet (USA) - Surprise Twist by Runyon
A167: Owners: G J Hannan, Mrs J R Hannan, D D Bruton & J Vaughan
A168: Career: | B168: Earnings: | C168: Win: 0.0% | D168: API: | E168: First Up: | F168: Second Up: | G168: Distance: | H168: Track:
A169: 2010-02-02T07:00:00 | B169: 8400 | C169: Place: 57.1% | D169: 1900-01-01T04:48:00 | E169: 2:0-0-1 | F169: 1:0-0-0 | G169: 0:0-0-0 | H169: 1:0-0-0
A170: Fast: | B170: Good: | C170: Dead: | D170: Slow: | E170: Heavy:
A171: 0:0-0-0 | B171: 3:0-0-1 | C171: 3:0-2-0 | D171: 0:0-0-0 | E171: 1:0-0-1
A172: 6-10 4.1L, MorhPk, 2010-11-04, 1250m, Good, Race 1, 3yo+ F&m Mdn, Mdn fm, $10000, ($0), S Price, 6, Cd 56.5-0.0, (SW), 1:15.57, (36.01), 8/11F, Settled-8 1200-- 800-- Turn-8, 1-Fleet Riane 55.0
A173: 2-14 0.8L, Ball't, 2010-10-21, 1200m, Dead, Race 2, 3yo+ F&m Mdn, Mdn fm, $15000, ($2700), W Egan, 4, Cd 57.0-0.0, (SW), 1:13.12, (), 9/2, Settled-6 1200-- 800-- Turn-3, 1-Booklet 54.5
A174: 2-10 0.5L, Ball't, 2010-10-06, 1200m, Dead, Race 2, 3yo+ F&m Mdn, Mdn fm, $15000, ($2700), M Rodd, 8, Cd 57.0-0.0, (SW), 1:13.89, (), 11/2, Settled-3 1200-- 800-- Turn-2, 1-Our Testament 57.0
A175: 3-11 6.1L, Seymor, 2010-09-16, 1009m, Heavy, Race 3, 3yo+ Mdn, Mdn 3+, $15000, ($1300), M Rodd, 10, Cd 56.0-0.0, (SW), 1:00.71, (), 4/1, Settled-4 1200-- 800-- Turn-4, 1-Lady Dom 56.0
A176: 7-9 6.1L, GeeSyn, 2010-08-27, 1100m, Good, Race 1, 3yo+ Mdn Plate, Mdn 3+, $13000, ($200), W Egan, 1, Cd 56.0-0.0, (SW), 1:05.60, (34.23), 9/1, Settled-5 1200-- 800-- Turn-6, 1-Too Deadly 55.5
A177: 3-12 2.3L, GeeSyn, 2010-08-06, 1000m, Good, Race 3, 4yo+ Mdn Plate, Mdn 4+, $13000, ($1100), M Rodd, 9, Cd 56.0-0.0, (SW), 0:58.92, (33.88), 4/1, Settled-1 1200-- 800-- Turn-1, 1-Diamondcowboy 58.0
A178: 6-11 3.5L, G'long, 2009-09-11, 1340m, Dead, Race 4, 3yo Mdn, Mdn 3, $13000, ($200), W Egan, 11, Cd 55.0-0.0, (SW), 1:19.76, (35.06), 14/1, Settled-10 1200-- 800-- Turn-10, 1-Rebel Truce 57.0
A179: 13 September Rain (4) 53.5kg 3yo b f | D179: Trainer: P C Barns at Morphettville | G179: Jockey: J Potter
A180: Colours: White, pink stripes, black cap | D180: Breeding: Blevic - Artful Gold by Made Of Gold
A181: Owners: I H Ravenscroft, M R Ravenscroft, P J Johnson, B R Turvey, M A Ricciuto, C S Clarke, W J Butterfield, J Hazeal, S Hornhardt & M
A182: Career: | B182: Earnings: | C182: Win: 0.0% | D182: API: | E182: First Up: | F182: Second Up: | G182: Distance: | H182: Track:
A183: 2:0-0-0 | B183: 600 | C183: Place: 0.0% | D183: 0.3 | E183: 1:0-0-0 | F183: 1:0-0-0 | G183: 0:0-0-0 | H183: 2:0-0-0
A184: Fast: | B184: Good: | C184: Dead: | D184: Slow: | E184: Heavy:
A185: 0:0-0-0 | B185: 2:0-0-0 | C185: 0:0-0-0 | D185: 0:0-0-0 | E185: 0:0-0-0
A186: 4-9 3.9L, MorhPk, 2010-11-04, 1250m, Good, Race 2, 3yo+ F&m Mdn, Mdn fm, $10000, ($600), J Potter, 3, Cd 55.0-0.0, (SW), 1:15.92, (34.77), 6/1, Settled-4 1200-- 800-- Turn-4, 1-Coquelet 53.5
A187: 6-8 7.3L, MorhPk, 2010-10-04, 1000m, Good, Race 4, 3yo F Mdn, Mdn 3 f, $10000, ($0), C Lindop, 6, Cd 56.5-0.0, (SW), 0:58.73, (35.43), 10/1, Settled-7 1200-- 800-- Turn-7, 1-Amy's Glen 56.5
A188: 14 Twilight Dancer (10) 53.5kg 3yo ch f | D188: Trainer: W A Bogarts at Hope Forest | G188: Jockey: L Hopwood
A189: Colours: Red, white star | D189: Breeding: Real Jester - Cross Me Not by Bellotto
A190: Owners: W A Bogarts & J K Walker
A191: Career: | B191: Earnings: | C191: Win: 0.0% | D191: API: | E191: First Up: | F191: Second Up: | G191: Distance: | H191: Track:
A192: 4:0-1-0 | B192: 4600 | C192: Place: 25.0% | D192: 1.1 | E192: 2:0-1-0 | F192: 2:0-0-0 | G192: 0:0-0-0 | H192: 2:0-1-0
A193: Fast: | B193: Good: | C193: Dead: | D193: Slow: | E193: Heavy:
A194: 0:0-0-0 | B194: 4:0-1-0 | C194: 0:0-0-0 | D194: 0:0-0-0 | E194: 0:0-0-0
A195: 5-13 3.8L, Mphvl, 2010-11-02, 1100m, Good, Race 3, 3yo F Mdn, Mdn 3 f, $10000, ($0), L Hopwood, 9, Cd 55.0--1.5, (SW), 1:05.04, (35.43), 8/1, Settled-12 1200-- 800-- Turn-12, 1-Tigress Joy 56.5
A196: 4-13 4.2L, Gawlr, 2010-10-06, 1200m, Good, Race 4, 3yo Mdn, Mdn 3, $10000, ($600), L Hopwood, 3, Cd 54.5-0.0, (SW), 1:12.23, (36.48), 8/1, Settled-6 1200-- 800-- Turn-5, 1-It's Home 56.5
A197: 9-12 7.6L, MorhPk, 2010-05-08, 1250m, Good, Race 2, 2yo Rst1, RS1MW 2, $32000, ($400), L Hopwood, 3, Cd 54.0--1.5, (54.5), 1:15.22, (37.89), 4/1, Settled-4 1200-- 800-- Turn-5, 1-Condelago 56.5
A198: 2-14 1.5L, MorhPk, 2010-04-28, 1000m, Good, Race 2, 2yo Mdn Plate, Mdn 2, $10000, ($1800), L Hopwood, 2, Cd 53.0--1.5, (SW), 0:59.11, (36.35), 8/1, Settled-5 1200-- 800-- Turn-4, 1-Monegasque 56.5
A199: 15 Boolcunda Gold (3) 55.5kg 3yo b g | D199: Trainer: B Dunn at Strathalbyn | G199: Jockey: J Frew
A200: Colours: Red and white hoops, royal blue and white hooped sleeves, red and white qtrd cap | D200: Breeding: O'Reilly (NZ) - Beat Ofa Heart (NZ) by Fasliyev
A201: Owners: M H Wauchope, P R Barrett, S Benson, B J Dunn & Mrs S Benson
... 45 more rows

Sheet Race
A2: MORPHETTVILLE | C2: AR 3 | D2: PAYING
A4: 2010-11-24 | B4: (THE PARKS) MAIDEN PLATE | E4: Fixed Price
A5: RADIO TAB | B5: 10-5-12-9 | E5: Late Mail 10 | F5: 1400M | G5: SHOWERY | H5: DEAD(4)
G7: SCR 15 16 17 18
A8: 10 | C8: OFTEN AWAY | D8: 4.5 | E8: 1.8
A9: 7 | C9: BURGUNDY NOTES | E9: 12.8 | G9: Sub Fav 5
A10: 12 | C10: RED SAVINA | E10: 1.6
A12: QN | B12: 7*10 | C12: 203 | G12: TF | H12: 10* 7*12 | I12: 1171.9
A13: EX | B13: 10* 7 | C13: 187.1 | G13: A2 | H13: 7*10 | I13: 36.6
A14: F4 | B14: 10* 7*12* 3 | C14: 2793.4 | H14: 10*12 | I14: 4.2
B15: Jackpot | C15: 684.84 | H15: 7*12 | I15: 122.8
A16: No. | C16: Name | D16: 01:15:00 | E16: Win | F16: Plc | H16: Rider | I16: Bar | J16: Wght | L16: Form | M16: L3S | N16: Rtng
A17: 1 | C17: HOOSANG | D17: 42.5 | E17: 93.4 | F17: 14.3 | H17: D ROBINSON | I17: 6 | J17: 57 | M17: 7X6 | N17: 86
A18: 2 | C18: KOTOR | D18: 34.5 | E18: 36.7 | F18: 7.8 | H18: S CAHILL | I18: 16 | J18: 57 | M18: 735 | N18: 91
A19: 3 | C19: RED HOT JEUNE | D19: 11 | E19: 10 | F19: 3.2 | H19: M NEILSON | I19: 17 | J19: 57 | M19: X53 | N19: 92
A20: 4 | C20: SHIRAZ KNIGHT | D20: 45 | E20: 68.9 | F20: 11.4 | H20: B HOPPO | I20: 1 | J20: 57 | M20: 44X | N20: 85
A21: 5 | C21: DRAFTED | D21: 5.8 | E21: 3.1 | F21: 1.6 | H21: C LIONS(A) | I21: 2 | J21: 55.5 | M21: X23 | N21: 94
A22: 6 | C22: BAENA | D22: 45.9 | E22: 98.2 | F22: 20.7 | H22: A PATTERSON | I22: 18 | J22: 55 | M22: 7 | N22: 89
A23: 7 | C23: BURGUNDY NOTES | D23: 37.3 | E23: 73.4 | F23: 12.8 | H23: J MATTHEWS(A) | I23: 14 | J23: 55 | M23: 2X7 | N23: 82
A24: 8 | C24: CHAMPAGNE JOURNEY | D24: 20.2 | E24: 35.7 | F24: 8 | H24: T BAKER | I24: 12 | J24: 55 | M24: 244 | N24: 87
A25: 9 | C25: COCO LOCO | D25: 8.4 | E25: 8.3 | F25: 2.3 | H25: D TOURNEUR | I25: 7 | J25: 55 | M25: 23X | N25: 88
A26: 10 | C26: OFTEN AWAY | D26: 3.1 | E26: 4.5 | F26: 1.8 | H26: P GATT | I26: 9 | J26: 55 | M26: 422 | N26: 98
A27: 11 | C27: PROMOTIONAL | D27: 23.3 | E27: 35.1 | F27: 7.5 | H27: C LINDOP | I27: 8 | J27: 55 | M27: 6 | N27: 88
A28: 12 | C28: RED SAVINA | D28: 6.9 | E28: 4.8 | F28: 1.6 | H28: S PRICE | I28: 11 | J28: 55 | M28: 226 | N28: 100
A29: 13 | C29: SEPTEMBER RAIN | D29: 14.5 | E29: 28.4 | F29: 5.7 | H29: J POTTER | I29: 4 | J29: 53.5 | M29: 64 | N29: 89
A30: 14 | C30: TWILIGHT DANCER | D30: 22.5 | E30: 24.3 | F30: 5.7 | H30: L HOPWOOD(A) | I30: 10 | J30: 53.5 | M30: X45 | N30: 89
A31: 15 | C31: BOOLCUNDA GOLD | H31: SCRATCHED | I31: 3
A32: 16 | C32: STEELY RESOLVE | H32: SCRATCHED | I32: 5
A33: 17 | C33: MR DILIGENT | H33: SCRATCHED | I33: 15
A34: 18 | C34: PACK SADDLE | H34: SCRATCHED | I34: 13
A36: UNiTAB Pool Totals
A37: WN | B37: 51707 | C37: QN | D37: 6578 | E37: TF | F37: 22428
A38: PL | B38: 19833 | C38: EX | D38: 3534 | E38: F4 | F38: 901
C39: A2 | D39: 1551 | E39: XD(3,4) $4481
A41: << AR 1 2 3 4 5 6 7 8 DD/TT/QD XD Riders Fixed Price >>
A43: Help | B43: Gambling Advice | C43: TAB Home | D43: Refresh
A44: © Copyright UNiTAB Ltd | B44: Created: Wed, 24 Nov 2010 13:44:34 Aust EST

Sheet Tables
U1: Track | V1: =Data!N2 -> DEAD | W1: =IF(V1="SLOW",1,IF(V1="HEAVY",1,0)) -> 0
A3: Exclude | C3: Exclude | E3: Exclude | G3: Exclude | I3: Exclude | K3: Exclude | M3: Exclude | O3: Exclude | Q3: Exclude | S3: Exclude | U3: Exclude | W3: Exclude | Y3: Exclude | AA3: Exclude | AC3: Exclude | AE3: Exclude | AG3: Exclude | AI3: Exclude | AK3: Exclude | AM3: Exclude | AO3: Exclude | AQ3: Exclude
A4: Tab Number | C4: Barrier | E4: Weight | G4: L/S Weight Change | I4: API | K4: Win% | M4: Place% | O4: Distance | Q4: Track | S4: Course | U4: Wet | W4: Days L/S | Y4: Days 2nd L/S | AA4: Days 3rd L/S | AC4: Class | AE4: LS FP | AG4: L/S Margin | AI4: 2nd LS FP | AK4: 2nd L/S Margin | AM4: 3rd LS FP | AO4: 3rd L/S Margin | AQ4: Qld Tab Rating
A5: =IF(B$3<>"","",1) -> 1 | B5: 5 | C5: =IF(D$3<>"","",1) -> 1 | D5: 5 | E5: =IF(F$3<>"","",70) -> 70 | F5: 0 | G5: =IF(H$3<>"","",0+12) -> 12 | H5: 0 | I5: =IF(J$3<>"","",1) -> 1 | J5: 8 | K5: =IF(L$3<>"","",1) -> 1 | L5: 8 | M5: =IF(N$3<>"","",1) -> 1 | N5: 8 | O5: =IF(P$3<>"","","Y") -> Y | P5: 5 | Q5: =IF(R$3<>"","","Y") -> Y | R5: 5 | S5: =IF(T$3<>"","","Y") -> Y | T5: 8 | U5: =IF(W1=0,"",IF(V$3<>"","","Y")) ->  | V5: 8 | W5: =IF(X$3<>"","",1) -> 1 | X5: 3 | Y5: =IF(Z$3<>"","",1) -> 1 | Z5: 3 | AA5: =IF(AB$3<>"","",1) -> 1 | AB5: 3 | AC5: =IF(AD$3<>"","",1) -> 1 | AD5: -5 | AE5: =IF(AF$3<>"","",1) -> 1 | AF5: 7 | AG5: =IF(AH$3<>"","",0.5) -> 0.5 | AH5: 7 | AI5: 1 | AJ5: 7 | AK5: 0.5 | AL5: 7 | AM5: =IF(AN$3<>"","",1) -> 1 | AN5: 7 | AO5: 0.5 | AP5: 7 | AQ5: 100 | AR5: 7
A6: =IF(B$3<>"","",A5+1) -> 2 | B6: 5 | C6: =IF(D$3<>"","",C5+1) -> 2 | D6: 5 | E6: =IF(F$3<>"","",E5-0.5) -> 69.5 | F6: 0 | G6: =IF(H$3<>"","",0+G5-0.5) -> 11.5 | H6: 0 | I6: =IF(J$3<>"","",I5+1) -> 2 | J6: 6 | K6: =IF(L$3<>"","",K5+1) -> 2 | L6: 6 | M6: =IF(N$3<>"","",M5+1) -> 2 | N6: 6 | O6: =IF(P$3<>"","","N") -> N | P6: 0 | Q6: =IF(R$3<>"","","N") -> N | R6: 0 | S6: =IF(T$3<>"","","N") -> N | T6: 0 | U6: =IF(W1=0,"",IF(V$3<>"","","Y")) ->  | V6: 0 | W6: =IF(X$3<>"","",W5+1) -> 2 | X6: 3 | Y6: =IF(Z$3<>"","",Y5+1) -> 2 | Z6: 3 | AA6: =IF(AB$3<>"","",AA5+1) -> 2 | AB6: 3 | AC6: =IF(AD$3<>"","",2) -> 2 | AD6: 10 | AE6: =IF(AF$3<>"","",AE5+1) -> 2 | AF6: 5 | AG6: =IF(AH$3<>"","",AG5+0.5) -> 1 | AH6: 7 | AI6: 2 | AJ6: 5 | AK6: 1 | AL6: 7 | AM6: =IF(AN$3<>"","",AM5+1) -> 2 | AN6: 5 | AO6: 1 | AP6: 7 | AQ6: 99 | AR6: 5
A7: =IF(B$3<>"","",A6+1) -> 3 | B7: 5 | C7: =IF(D$3<>"","",C6+1) -> 3 | D7: 5 | E7: =IF(F$3<>"","",E6-0.5) -> 69 | F7: 0 | G7: =IF(H$3<>"","",0+G6-0.5) -> 11 | H7: 0 | I7: =IF(J$3<>"","",I6+1) -> 3 | J7: 4 | K7: =IF(L$3<>"","",K6+1) -> 3 | L7: 4 | M7: =IF(N$3<>"","",M6+1) -> 3 | N7: 4 | W7: =IF(X$3<>"","",W6+1) -> 3 | X7: 3 | Y7: =IF(Z$3<>"","",Y6+1) -> 3 | Z7: 3 | AA7: =IF(AB$3<>"","",AA6+1) -> 3 | AB7: 3 | AC7: =IF(AD$3<>"","",3) -> 3 | AD7: 0 | AE7: =IF(AF$3<>"","",AE6+1) -> 3 | AF7: 3 | AG7: =IF(AH$3<>"","",AG6+0.5) -> 1.5 | AH7: 5 | AI7: 3 | AJ7: 3 | AK7: 1.5 | AL7: 5 | AM7: 3 | AN7: 3 | AO7: 1.5 | AP7: 5 | AQ7: 98 | AR7: 3
A8: 4 | B8: 3 | C8: 4 | D8: 3 | E8: 68.5 | F8: 0 | G8: 10.5 | H8: 0 | I8: 4 | J8: 3 | K8: 4 | L8: 3 | M8: 4 | N8: 3 | W8: 4 | X8: 3 | Y8: 4 | Z8: 3 | AA8: 4 | AB8: 3 | AE8: 4 | AF8: 2 | AG8: =IF(AH$3<>"","",AG7+0.5) -> 2 | AH8: 5 | AI8: 4 | AJ8: 2 | AK8: 2 | AL8: 5 | AM8: 4 | AN8: 2 | AO8: 2 | AP8: 5 | AQ8: 97 | AR8: 3
A9: 5 | B9: 3 | C9: 5 | D9: 3 | E9: 68 | F9: 0 | G9: 10 | H9: 0 | I9: 5 | J9: 3 | K9: 5 | L9: 3 | M9: 5 | N9: 3 | W9: 5 | X9: 5 | Y9: 5 | Z9: 3 | AA9: 5 | AB9: 3 | AE9: 5 | AF9: 2 | AG9: 2.5 | AH9: 5 | AI9: 5 | AJ9: 2 | AK9: 2.5 | AL9: 5 | AM9: 5 | AN9: 2 | AO9: 2.5 | AP9: 5 | AQ9: 96 | AR9: 3
A10: 6 | B10: 3 | C10: 6 | D10: 3 | E10: 67.5 | F10: 0 | G10: 9.5 | H10: 0 | I10: 6 | J10: 2 | K10: 6 | L10: 2 | M10: 6 | N10: 2 | W10: 6 | X10: 5 | Y10: 6 | Z10: 3 | AA10: 6 | AB10: 3 | AE10: 6 | AF10: 0 | AG10: 3 | AH10: 3 | AI10: 6 | AJ10: 0 | AK10: 3 | AL10: 3 | AM10: 6 | AN10: 0 | AO10: 3 | AP10: 3 | AQ10: 95 | AR10: 2
A11: 7 | B11: 2 | C11: 7 | D11: 2 | E11: 67 | F11: 0 | G11: 9 | H11: 0 | I11: 7 | J11: 2 | K11: 7 | L11: 2 | M11: 7 | N11: 2 | W11: 7 | X11: 5 | Y11: 7 | Z11: 3 | AA11: 7 | AB11: 3 | AE11: 7 | AF11: 0 | AG11: 3.5 | AH11: 2 | AI11: 7 | AJ11: 0 | AK11: 3.5 | AL11: 2 | AM11: 7 | AN11: 0 | AO11: 3.5 | AP11: 2 | AQ11: 94 | AR11: 2
A12: 8 | B12: 2 | C12: 8 | D12: 2 | E12: 66.5 | F12: 0 | G12: 8.5 | H12: 0 | I12: 8 | J12: 2 | K12: 8 | L12: 2 | M12: 8 | N12: 2 | W12: 8 | X12: 5 | Y12: 8 | Z12: 3 | AA12: 8 | AB12: 3 | AE12: 8 | AF12: 0 | AG12: 4 | AH12: 2 | AI12: 8 | AJ12: 0 | AK12: 4 | AL12: 2 | AM12: 8 | AN12: 0 | AO12: 4 | AP12: 2 | AQ12: 93 | AR12: 0
A13: 9 | B13: 2 | C13: 9 | D13: 2 | E13: 66 | F13: 0 | G13: 8 | H13: 0 | I13: 9 | J13: 2 | K13: 9 | L13: 2 | M13: 9 | N13: 2 | W13: 9 | X13: 5 | Y13: 9 | Z13: 3 | AA13: 9 | AB13: 3 | AE13: 9 | AF13: 0 | AG13: 4.5 | AH13: 2 | AI13: 9 | AJ13: 0 | AK13: 4.5 | AL13: 2 | AM13: 9 | AN13: 0 | AO13: 4.5 | AP13: 2 | AQ13: 92 | AR13: 0
A14: 10 | B14: 1 | C14: 10 | D14: 1 | E14: 65.5 | F14: 0 | G14: 7.5 | H14: 0 | I14: 10 | J14: 2 | K14: 10 | L14: 2 | M14: 10 | N14: 2 | W14: 10 | X14: 5 | Y14: 10 | Z14: 3 | AA14: 10 | AB14: 3 | AE14: 10 | AF14: 0 | AG14: 5 | AH14: 2 | AI14: 10 | AJ14: 0 | AK14: 5 | AL14: 2 | AM14: 10 | AN14: 0 | AO14: 5 | AP14: 2 | AQ14: 91 | AR14: 0
A15: 11 | B15: 1 | C15: 11 | D15: 1 | E15: 65 | F15: 0 | G15: 7 | H15: 2 | I15: 11 | J15: 2 | K15: 11 | L15: 2 | M15: 11 | N15: 2 | W15: 11 | X15: 3 | Y15: 11 | Z15: 3 | AA15: 11 | AB15: 3 | AE15: 0 | AF15: 0 | AG15: 5.5 | AH15: 0 | AI15: 0 | AJ15: 0 | AK15: 5.5 | AL15: 0 | AM15: 0 | AN15: 0 | AO15: 5.5 | AP15: 0 | AQ15: 90 | AR15: 0
A16: 12 | B16: 1 | C16: 12 | D16: 1 | E16: 64.5 | F16: 0 | G16: 6.5 | H16: 2 | I16: 12 | J16: 0 | K16: 12 | L16: 0 | M16: 12 | N16: 0 | W16: 12 | X16: 3 | Y16: 12 | Z16: 5 | AA16: 12 | AB16: 3 | AG16: 6 | AH16: 0 | AK16: 6 | AL16: 0 | AO16: 6 | AP16: 0 | AQ16: 89 | AR16: 0
A17: 13 | B17: 0 | C17: 13 | D17: 0 | E17: 64 | F17: 0 | G17: 6 | H17: 2 | I17: 13 | J17: 0 | K17: 13 | L17: 0 | M17: 13 | N17: 0 | W17: 13 | X17: 3 | Y17: 13 | Z17: 5 | AA17: 13 | AB17: 3 | AG17: 6.5 | AH17: 0 | AK17: 6.5 | AL17: 0 | AO17: 6.5 | AP17: 0 | AQ17: 88 | AR17: 0
A18: 14 | B18: 0 | C18: 14 | D18: 0 | E18: 63.5 | F18: 0 | G18: 5.5 | H18: 2 | I18: 14 | J18: 0 | K18: 14 | L18: 0 | M18: 14 | N18: 0 | W18: 14 | X18: 3 | Y18: 14 | Z18: 5 | AA18: 14 | AB18: 3 | AG18: 7 | AH18: 0 | AK18: 7 | AL18: 0 | AO18: 7 | AP18: 0 | AQ18: 87 | AR18: 0
A19: 15 | B19: 0 | C19: 15 | D19: 0 | E19: 63 | F19: 0 | G19: 5 | H19: 5 | I19: 15 | J19: 0 | K19: 15 | L19: 0 | M19: 15 | N19: 0 | W19: 15 | X19: 2 | Y19: 15 | Z19: 5 | AA19: 15 | AB19: 3 | AG19: 7.5 | AH19: 0 | AK19: 7.5 | AL19: 0 | AO19: 7.5 | AP19: 0 | AQ19: 86 | AR19: 0
A20: 16 | B20: 0 | C20: 16 | D20: 0 | E20: 62.5 | F20: 0 | G20: 4.5 | H20: 5 | I20: 16 | J20: 0 | K20: 16 | L20: 0 | M20: 16 | N20: 0 | W20: 16 | X20: 2 | Y20: 16 | Z20: 5 | AA20: 16 | AB20: 3 | AG20: 8 | AH20: 0 | AK20: 8 | AL20: 0 | AO20: 8 | AP20: 0 | AQ20: 85 | AR20: 0
A21: 17 | B21: 0 | C21: 17 | D21: 0 | E21: 62 | F21: 0 | G21: 4 | H21: 5 | I21: 17 | J21: 0 | K21: 17 | L21: 0 | M21: 17 | N21: 0 | W21: 17 | X21: 2 | Y21: 17 | Z21: 5 | AA21: 17 | AB21: 3 | AG21: 8.5 | AH21: 0 | AK21: 8.5 | AL21: 0 | AO21: 8.5 | AP21: 0 | AQ21: 0 | AR21: 0
A22: 18 | B22: 0 | C22: 18 | D22: 0 | E22: 61.5 | F22: 0 | G22: 3.5 | H22: 5 | I22: 18 | J22: 0 | K22: 18 | L22: 0 | M22: 18 | N22: 0 | W22: 18 | X22: 2 | Y22: 18 | Z22: 3 | AA22: 18 | AB22: 3 | AG22: 9 | AH22: 0 | AK22: 9 | AL22: 0 | AO22: 9 | AP22: 0
A23: 19 | B23: 0 | C23: 19 | D23: 0 | E23: 61 | F23: 1 | G23: 3 | H23: 5 | I23: 19 | J23: 0 | K23: 19 | L23: 0 | M23: 19 | N23: 0 | W23: 19 | X23: 2 | Y23: 19 | Z23: 3 | AA23: 19 | AB23: 5 | AG23: 9.5 | AH23: 0 | AK23: 9.5 | AL23: 0 | AO23: 9.5 | AP23: 0
A24: 20 | B24: 0 | C24: 20 | D24: 0 | E24: 60.5 | F24: 1 | G24: 2.5 | H24: 5 | I24: 20 | J24: 0 | K24: 20 | L24: 0 | M24: 20 | N24: 0 | W24: 20 | X24: 2 | Y24: 20 | Z24: 3 | AA24: 20 | AB24: 5 | AG24: 10 | AH24: 0 | AK24: 10 | AL24: 0 | AO24: 10 | AP24: 0
A25: 21 | B25: 0 | C25: 21 | D25: 0 | E25: 60 | F25: 1 | G25: 2 | H25: 3 | I25: 21 | J25: 0 | K25: 21 | L25: 0 | M25: 21 | N25: 0 | W25: 21 | X25: 2 | Y25: 21 | Z25: 3 | AA25: 21 | AB25: 5 | AG25: =IF(AH$3<>"","",0) -> 0 | AH25: 5 | AK25: 0 | AL25: 5 | AO25: 0 | AP25: 5
A26: 22 | B26: 0 | C26: 22 | D26: 0 | E26: 59.5 | F26: 2 | G26: 1.5 | H26: 3 | I26: 22 | J26: 0 | K26: 22 | L26: 0 | M26: 22 | N26: 0 | W26: 22 | X26: 0 | Y26: 22 | Z26: 2 | AA26: 22 | AB26: 5
A27: 23 | B27: 0 | C27: 23 | D27: 0 | E27: 59 | F27: 2 | G27: 1 | H27: 3 | I27: 23 | J27: 0 | K27: 23 | L27: 0 | N27: 0 | W27: 23 | X27: 0 | Y27: 23 | Z27: 2 | AA27: 23 | AB27: 5
A28: 24 | B28: 0 | C28: 24 | D28: 0 | E28: 58.5 | F28: 3 | G28: 0.5 | H28: 3 | I28: 24 | J28: 0 | K28: 24 | L28: 0 | M28: =IF(N$3<>"","",Data!BS25) ->  | N28: 0 | W28: 24 | X28: 0 | Y28: 24 | Z28: 2 | AA28: 24 | AB28: 5
C29: 0 | D29: 0 | E29: 58 | F29: 3 | G29: 0 | H29: 3 | W29: 25 | X29: 0 | Y29: 25 | Z29: 2 | AA29: 25 | AB29: 3
E30: 57.5 | F30: 3 | G30: -0.5 | H30: 3 | W30: 26 | X30: 0 | Y30: 26 | Z30: 2 | AA30: 26 | AB30: 3
E31: 57 | F31: 5 | G31: -1 | H31: 3 | W31: 27 | X31: 0 | Y31: 27 | Z31: 2 | AA31: 27 | AB31: 3
E32: 56.5 | F32: 5 | G32: -1.5 | H32: 3 | W32: 28 | X32: 0 | Y32: 28 | Z32: 2 | AA32: 28 | AB32: 3
E33: 56 | F33: 5 | G33: -2 | H33: 3 | W33: 29 | X33: 0 | Y33: 29 | Z33: 0 | AA33: 29 | AB33: 2
E34: 55.5 | F34: 3 | G34: -2.5 | H34: 5 | W34: 30 | X34: 0 | Y34: 30 | Z34: 0 | AA34: 30 | AB34: 2
E35: 55 | F35: 3 | G35: -3 | H35: 5 | W35: 31 | X35: 0 | Y35: 31 | Z35: 0 | AA35: 31 | AB35: 2
E36: 54.5 | F36: 3 | G36: -3.5 | H36: 5 | L36: =IF(K36="","",K36/2.5) ->  | W36: 32 | X36: 0 | Y36: 32 | Z36: 0 | AA36: 32 | AB36: 2
E37: 54 | F37: 2 | G37: -4 | H37: 5 | L37: =IF(K37="","",K37/10) ->  | W37: 33 | X37: 0 | Y37: 33 | Z37: 0 | AA37: 33 | AB37: 2
E38: 53.5 | F38: 2 | G38: -4.5 | H38: 5 | W38: 34 | X38: 0 | Y38: 34 | Z38: 0 | AA38: 34 | AB38: 2
E39: 53 | F39: 1 | G39: -5 | H39: 5 | W39: 35 | X39: 0 | Y39: 35 | Z39: 0 | AA39: 35 | AB39: 2
E40: 52.5 | F40: 1 | G40: -5.5 | H40: 2 | W40: 36 | X40: 0 | Y40: 36 | Z40: 0 | AA40: 36 | AB40: 2
E41: 52 | F41: 1 | G41: -6 | H41: 2 | W41: 37 | X41: 0 | Y41: 37 | Z41: 0 | AA41: 37 | AB41: 0
E42: 51.5 | F42: 0 | G42: -6.5 | H42: 2 | W42: 38 | X42: 0 | Y42: 38 | Z42: 0 | AA42: 38 | AB42: 0
E43: 51 | F43: 0 | G43: -7 | H43: 2 | W43: 39 | X43: 0 | Y43: 39 | Z43: 0 | AA43: 39 | AB43: 0
E44: 50.5 | F44: 0 | G44: -7.5 | H44: 0 | W44: 40 | X44: 0 | Y44: 40 | Z44: 0 | AA44: 40 | AB44: 0
E45: 50 | F45: 0 | G45: -8 | H45: 0 | W45: 41 | X45: 0 | Y45: 41 | Z45: 0 | AA45: 41 | AB45: 0
E46: 49.5 | F46: 0 | G46: -8.5 | H46: 0 | W46: 42 | X46: 0 | Y46: 42 | Z46: 0 | AA46: 42 | AB46: 0
E47: 49 | F47: 0 | G47: -9 | H47: 0 | W47: 43 | X47: 0 | Y47: 43 | Z47: 0 | AA47: 43 | AB47: 0
E48: 48.5 | F48: 0 | G48: -9.5 | H48: 0 | W48: 44 | X48: 0 | Y48: 44 | Z48: 0 | AA48: 44 | AB48: 0
E49: 48 | F49: 0 | G49: -10 | H49: 0 | W49: 45 | X49: 0 | Y49: 45 | Z49: 0 | AA49: 45 | AB49: 0
E50: 47.5 | F50: 0 | G50: -10.5 | H50: 0 | W50: 46 | X50: 0 | Y50: 46 | Z50: 0 | AA50: 46 | AB50: 0
E51: 47 | F51: 0 | G51: -11 | H51: 0 | W51: 47 | X51: 0 | Y51: 47 | Z51: 0 | AA51: 47 | AB51: 0
E52: 46.5 | F52: 0 | G52: -11.5 | H52: 0 | W52: 48 | X52: 0 | Y52: 48 | Z52: 0 | AA52: 48 | AB52: 0
E53: 46 | F53: 0 | G53: -12 | H53: 0 | W53: 49 | X53: 0 | Y53: 49 | Z53: 0 | AA53: 49 | AB53: 0
E54: 45.5 | F54: 0 | W54: 50 | X54: 0 | Y54: 50 | Z54: 0 | AA54: 50 | AB54: 0
E55: 45 | F55: 0 | W55: 51 | X55: 0 | Y55: 51 | Z55: 0 | AA55: 51 | AB55: 0
W56: 52 | X56: 0 | Y56: 52 | Z56: 0 | AA56: 52 | AB56: 0
W57: 53 | X57: 0 | Y57: 53 | Z57: 0 | AA57: 53 | AB57: 0
W58: 54 | X58: 0 | Y58: 54 | Z58: 0 | AA58: 54 | AB58: 0
W59: 55 | X59: 0 | Y59: 55 | Z59: 0 | AA59: 55 | AB59: 0
W60: 56 | X60: 0 | Y60: 56 | Z60: 0 | AA60: 56 | AB60: 0
W61: 57 | X61: 0 | Y61: 57 | Z61: 0 | AA61: 57 | AB61: 0
W62: 58 | X62: 0 | Y62: 58 | Z62: 0 | AA62: 58 | AB62: 0
W63: 59 | X63: 0 | Y63: 59 | Z63: 0 | AA63: 59 | AB63: 0
W64: 60 | X64: 0 | Y64: 60 | Z64: 0 | AA64: 60 | AB64: 0
W65: 61 | X65: 0 | Y65: 61 | Z65: 0 | AA65: 61 | AB65: 0
W66: 62 | X66: 0 | Y66: 62 | Z66: 0 | AA66: 62 | AB66: 0
W67: 63 | X67: 0 | Y67: 63 | Z67: 0 | AA67: 63 | AB67: 0
W68: 64 | X68: 0 | Y68: 64 | Z68: 0 | AA68: 64 | AB68: 0
W69: 65 | X69: 0 | Y69: 65 | Z69: 0 | AA69: 65 | AB69: 0
W70: 66 | X70: 0 | Y70: 66 | Z70: 0 | AA70: 66 | AB70: 0
W71: =IF(X$3<>"","",W70+1) -> 67 | X71: 0 | Y71: =IF(Z$3<>"","",Y70+1) -> 67 | Z71: 0 | AA71: =IF(AB$3<>"","",AA70+1) -> 67 | AB71: 0
W72: 68 | X72: 0 | Y72: 68 | Z72: 0 | AA72: 68 | AB72: 0
W73: 69 | X73: 0 | Y73: 69 | Z73: 0 | AA73: 69 | AB73: 0
W74: 70 | X74: 0 | Y74: 70 | Z74: 0 | AA74: 70 | AB74: 0
W75: 71 | X75: 0 | Y75: 71 | Z75: 0 | AA75: 71 | AB75: 0
W76: 72 | X76: 0 | Y76: 72 | Z76: 0 | AA76: 72 | AB76: 0
W77: 73 | X77: 0 | Y77: 73 | Z77: 0 | AA77: 73 | AB77: 0
W78: 74 | X78: 0 | Y78: 74 | Z78: 0 | AA78: 74 | AB78: 0
W79: 75 | X79: 0 | Y79: 75 | Z79: 0 | AA79: 75 | AB79: 0
W80: 76 | X80: 0 | Y80: 76 | Z80: 0 | AA80: 76 | AB80: 0
W81: 77 | X81: 0 | Y81: 77 | Z81: 0 | AA81: 77 | AB81: 0
W82: 78 | X82: 0 | Y82: 78 | Z82: 0 | AA82: 78 | AB82: 0
W83: 79 | X83: 0 | Y83: 79 | Z83: 0 | AA83: 79 | AB83: 0
W84: 80 | X84: 0 | Y84: 80 | Z84: 0 | AA84: 80 | AB84: 0
W85: 81 | X85: 0 | Y85: 81 | Z85: 0 | AA85: 81 | AB85: 0
W86: 82 | X86: 0 | Y86: 82 | Z86: 0 | AA86: 82 | AB86: 0
W87: 83 | X87: 0 | Y87: 83 | Z87: 0 | AA87: 83 | AB87: 0
W88: 84 | X88: 0 | Y88: 84 | Z88: 0 | AA88: 84 | AB88: 0
W89: 85 | X89: 0 | Y89: 85 | Z89: 0 | AA89: 85 | AB89: 0
W90: 86 | X90: 0 | Y90: 86 | Z90: 0 | AA90: 86 | AB90: 0
W91: 87 | X91: 0 | Y91: 87 | Z91: 0 | AA91: 87 | AB91: 0
W92: 88 | X92: 0 | Y92: 88 | Z92: 0 | AA92: 88 | AB92: 0
W93: 89 | X93: 0 | Y93: 89 | Z93: 0 | AA93: 89 | AB93: 0
W94: 90 | X94: 0 | Y94: 90 | Z94: 0 | AA94: 90 | AB94: 0
W95: 0 | X95: 0 | Y95: 0 | Z95: 0 | AA95: 0 | AB95: 0

Sheet Data
A1: =A3 -> http://formguide.cyberhorse.com.au/index.php/Form/form.html?formdate=2010-11-24&track=Bunbry&raceno=1 | L1: END | M1: =IF(Form!A1="","",LEFT(Form!A1,FIND("/",Form!A1)-3)) -> Form - Morphettville Pk | N1: =IF(M1="","",TRIM(MID(M1,7,20))) -> Morphettville Pk | O1: =IF(ISERROR(LEFT(N1,FIND("-",N1)-1)),IF(ISERROR(LEFT(N1,FIND(" ",N1)-1)),N1,LEFT(N1,FIND(" ",N1)-1)),LEFT(N1,FIND("-",N1)-1)) -> Morphettville | Z1: =IF(AA1="","",IF(ISERROR(MID(AA1,FIND(" ",AA1,1)+1,FIND("(",AA1,1)-FIND(" ",AA1,1)-2)),"",MID(AA1,FIND(" ",AA1,1)+1,FIND("(",AA1,1)-FIND(" ",AA1,1)-2))) ->  | AA1: Form - Morphettville Pk 24/11/10 | AZ1: Name | BB1: Tab No | BC1: Tab No | BD1: Barrier | BE1: Barrier | BF1: Weight | BG1: Weight | BK1: LS/Weight | BL1: LS/Weight | BM1: API | BO1: API | BP1: Win% | BR1: Win% | BS1: Place% | BU1: Place% | BW1: D | BX1: Distance | BY1: Distance | BZ1: T | CA1: Track | CB1: Track | CC1: C | CD1: Course | CE1: Course | CF1: w | CG1: Wet | CH1: Wet | CJ1: Days LS | CL1: Days LS | CN1: Days 2ndLS | CP1: Days 2ndLS | CR1: Days 3rdLS | CT1: Days 3rdLS | CU1: Class | CX1: Class | DA1: LS FP | DB1: LS FP | DG1: LS Mrg | DH1: LS Mrg | DK1: 2nd LS FP | DL1: 2nd LS FP | DQ1: 2nd LS Mrg | DR1: 2nd LS Mrg | DU1: 3rd LS FP | DV1: 3rd LS FP | EA1: 3rd Las Mrg | EB1: 3rd Las Mrg | ED1: Qld Rtg | EF1: Qld Rtg | EG1: Final Rating | EH1: Priceing | EI1: =MIN(EG2:EG25) ->  | EJ1: =MAX(EG2:EG25) -> 
A2: http://formguide.cyberhorse.com.au/index.php/Form/form.html?formdate=2010-11-24&track=MorhPk&raceno=3 | M2: 2010-11-24 | N2: =IF(Race!H5="","",LEFT(Race!H5,FIND("(",Race!H5)-1)) -> DEAD | O2: =IF(Form!A2="","",TRIM(MID(Form!A2,5,2))) -> 3 | P2: =VLOOKUP(O1,N3:Y20,$O$2+1,FALSE) -> http://www.tabonline.com.au/2010/11/24/AR03.html | Z2: =IF(AA2="","",IF(ISERROR(MID(AA2,FIND(" ",AA2,1)+1,FIND("(",AA2,1)-FIND(" ",AA2,1)-2)),"",MID(AA2,FIND(" ",AA2,1)+1,FIND("(",AA2,1)-FIND(" ",AA2,1)-2))) ->  | AA2: Race 3 | AZ2: =IF(Form!I5<>"",LEFT(Form!C5,FIND("(",Form!C5)-2),"") -> Hoosang | BB2: =IF(AZ2="","",Form!A5) -> 1 | BC2: =IF($AZ2="","",IF(ISNA(VLOOKUP(BB2,Tables!A$5:B$100,2,FALSE)),"0",VLOOKUP(BB2,Tables!A$5:B$100,2,FALSE))) -> 5 | BD2: =IF($AZ2="","",VLOOKUP(AZ2,Race!$C$1:$N$100,7,FALSE)) -> 6 | BE2: =IF($AZ2="","",IF(ISNA(VLOOKUP(BD2,Tables!C$5:D$100,2,FALSE)),"0",VLOOKUP(BD2,Tables!C$5:D$100,2,FALSE))) -> 3 | BF2: =IF(AZ2="","",Form!F5) -> 57 | BG2: =IF($AZ2="","",IF(ISNA(VLOOKUP(BF2,Tables!E$5:F$100,2,FALSE)),"0",VLOOKUP(BF2,Tables!E$5:F$100,2,FALSE))) -> 5 | BH2: =IF($AZ2="","",INDEX($AA$1:$AT$499,MATCH($AZ2,$Z$1:$Z$499,0)+7,13)) -> Cd 57.0-0.0 | BI2: =IF($AZ2="","",LEFT(BH2,FIND("-",BH2)-1)) -> Cd 57.0 | BJ2: =IF(BF2="","",BF2-BK2) -> 0 | BK2: =IF($AZ2="","",TRIM(MID(BI2,4,5))) -> 57.0 | BL2: =IF($AZ2="","",IF(ISERROR(BK2),0,IF(ISNA(VLOOKUP(BJ2,Tables!G$5:H$100,2,FALSE)),"0",VLOOKUP(BJ2,Tables!G5:H$100,2,FALSE)))) -> 3 | BM2: =IF($AZ2="","",Form!G5) -> 0.3 | BN2: =IF(BM2="","",IF(RANK(BM2,$BM$2:$BM$32)<25,RANK(BM2,$BM$2:$BM$32),"")) -> 9 | BO2: =IF($AZ2="","",IF(ISNA(VLOOKUP(BN2,Tables!I$5:J$100,2,FALSE)),"0",VLOOKUP(BN2,Tables!I$5:J$100,2,FALSE))) -> 2 | BP2: =IF($AZ2="","",Form!H5) -> 0 | BQ2: =IF(AZ2="","",IF(RANK(BP2,$BP$2:$BP$32)<25,RANK(BP2,$BP$2:$BP$32),"")) -> 1 | BR2: =IF($AZ2="","",IF(ISNA(VLOOKUP(BQ2,Tables!K$5:L$100,2,FALSE)),"0",VLOOKUP(BQ2,Tables!K$5:L$100,2,FALSE))) -> 8 | BS2: =IF($AZ2="","",Form!I5) -> 25 | BT2: =IF(AZ2="","",IF(RANK(BS2,$BS$2:$BS$32)<25,RANK(BS2,$BS$2:$BS$32),"")) -> 7 | BU2: =IF($AZ2="","",IF(ISNA(VLOOKUP(BT2,Tables!M$5:N$100,2,FALSE)),"0",VLOOKUP(BT2,Tables!M$5:N$100,2,FALSE))) -> 2 | BV2: =IF($AZ2="","",INDEX(Race!$D$1:$P$100,MATCH($AZ2,Race!$C$1:$C$100,0)+0,9)) -> 0 | BW2: =IF($AZ2="","",IF(ISERROR(FIND(BW$1,$BV2,1)),"",BW$1)) ->  | BX2: =IF(BW2<>"","Y","N") -> N | BY2: =IF($AZ2="","",IF(ISNA(VLOOKUP(BX2,Tables!O$5:P$100,2,FALSE)),0,VLOOKUP(BX2,Tables!O$5:P$100,2,FALSE))) -> 0 | BZ2: =IF($AZ2="","",IF(ISERROR(FIND(BZ$1,$BV2,1)),"",BZ$1)) ->  | CA2: =IF(BZ2<>"","Y","N") -> N | CB2: =IF($AZ2="","",IF(ISNA(VLOOKUP(CA2,Tables!Q$5:R$100,2,FALSE)),0,VLOOKUP(CA2,Tables!Q$5:R$100,2,FALSE))) -> 0 | CC2: =IF($AZ2="","",IF(ISERROR(FIND(CC$1,$BV2,1)),"",CC$1)) ->  | CD2: =IF(CC2<>"","Y","N") -> N | CE2: =IF($AZ2="","",IF(ISNA(VLOOKUP(CD2,Tables!S$5:T$100,2,FALSE)),0,VLOOKUP(CD2,Tables!S$5:T$100,2,FALSE))) -> 0 | CF2: =IF($AZ2="","",IF(ISERROR(FIND(CF$1,$BV2,1)),"",CF$1)) ->  | CG2: =IF(CF2<>"","Y","N") -> N | CH2: =IF($AZ2="","",IF(ISNA(VLOOKUP(CG2,Tables!U$5:V$100,2,FALSE)),0,VLOOKUP(CG2,Tables!U$5:V$100,2,FALSE))) -> 0 | CI2: =IF($AZ2="","",INDEX($AA$1:$AT$499,MATCH($AZ2,$Z$1:$Z$499,0)+7,3)) -> 2010-11-10 | CJ2: =IF(CI2="","",($M$2-CI2)) -> 14 | CK2: =IF(CJ2>90,0,CJ2) -> 14 | CL2: =IF($AZ2="","",IF(ISERROR(CK2),0,IF(ISNA(VLOOKUP(CK2,Tables!W$5:X$100,2,FALSE)),"0",VLOOKUP(CK2,Tables!W$5:X$100,2,FALSE)))) -> 3 | CM2: =IF($AZ2="","",INDEX($AA$1:$AT$499,MATCH($AZ2,$Z$1:$Z$499,0)+8,3)) -> 2010-07-28 | CN2: =IF(CM2="","",$M$2-CM2) -> 119 | CO2: =IF(CN2>90,0,CN2) -> 0 | CP2: =IF($AZ2="","",IF(ISERROR(CO2),0,IF(ISNA(VLOOKUP(CO2,Tables!Y$5:Z$100,2,FALSE)),"0",VLOOKUP(CO2,Tables!Y$5:Z$100,2,FALSE)))) -> 0 | CQ2: =IF($AZ2="","",INDEX($AA$1:$AT$499,MATCH($AZ2,$Z$1:$Z$499,0)+9,3)) -> 2010-07-14 | CR2: =IF(CQ2="","",$M$2-CQ2) -> 133 | CS2: =IF(CR2>90,0,CR2) -> 0 | CT2: =IF($AZ2="","",IF(ISERROR(CS2),0,IF(ISNA(VLOOKUP(CS2,Tables!AA$5:AB$100,2,FALSE)),"0",VLOOKUP(CS2,Tables!AA$5:AB$100,2,FALSE)))) -> 0 | CU2: =IF($AZ2="","",INDEX($AA$1:$AT$499,MATCH($AZ2,$Z$1:$Z$499,0)+7,9)) -> 10000 | CV2: =IF(CU2="","",(Form!$H$3-CU2)/CU2*100) -> 0 | CW2: =IF(CV2="","",IF(CV2>10,1,IF(CV2<-10,2,3))) -> 3 | CX2: =IF($AZ2="","",IF(ISERROR(CW2),0,IF(ISNA(VLOOKUP(CW2,Tables!AC$5:AD$100,2,FALSE)),"0",VLOOKUP(CW2,Tables!AC$5:AD$100,2,FALSE)))) -> 0 | CY2: =IF($AZ2="","",INDEX($AA$1:$AT$499,MATCH($AZ2,$Z$1:$Z$499,0)+7,1)) -> 6-13 6.1L | CZ2: =IF($CY2="","",CLEAN(LEFT(CY2,FIND("-",CY2)-1))) -> 6 | DA2: =IF($CZ2="","",IF(0+CZ2>10,0,0+CZ2)) -> 6 | DB2: =IF($AZ2="","",IF(ISERROR(DA2),0,IF(ISNA(VLOOKUP(DA2,Tables!AE$5:AF$100,2,FALSE)),"0",VLOOKUP(DA2,Tables!AE$5:AF$100,2,FALSE)))) -> 0 | DC2: =IF(CY2="","",MID(CY2,FIND(CHAR(22),SUBSTITUTE(CY2," ",CHAR(22),LEN(CY2)-LEN(SUBSTITUTE(CY2," ",""))))+1,255)) -> 6.1L | DD2: =IF($BH2="","",LEFT(DC2,FIND("L",DC2)-1)) -> 6.1 | DE2: =IF($BH2="","",ROUND(0+DD2/0.5,0)*0.5) -> 6 | DF2: =IF(DE2="","",IF(DA2=1,0,DE2)) -> 6 | DG2: =IF(DF2="","",DF2) -> 6 | DH2: =IF($AZ2="","",IF(ISERROR(DG2),0,IF(ISNA(VLOOKUP(DF2,Tables!AG$5:AH$100,2,FALSE)),"0",VLOOKUP(DF2,Tables!AG$5:AH$100,2,FALSE)))) -> 0 | DI2: =IF($AZ2="","",INDEX($AA$1:$AT$499,MATCH($AZ2,$Z$1:$Z$499,0)+8,1)) -> 7-10 9.5L | DJ2: =IF($DI2="","",CLEAN(LEFT(DI2,FIND("-",DI2)-1))) -> 7 | DK2: =IF($DJ2="","",IF(0+DJ2>10,0,0+DJ2)) -> 7 | DL2: =IF($AZ2="","",IF(ISERROR(DK2),0,IF(ISNA(VLOOKUP(DK2,Tables!AI$5:AJ$100,2,FALSE)),"0",VLOOKUP(DK2,Tables!AI$5:AJ$100,2,FALSE)))) -> 0 | DM2: =IF($BH2="","",RIGHT(DI2,FIND(" ",DI2)-1)) -> 9.5L | DN2: =IF($BH2="","",LEFT(DM2,FIND("L",DM2)-1)) -> 9.5 | DO2: =IF($BH2="","",ROUND(0+DN2/0.5,0)*0.5) -> 9.5 | DP2: =IF(DO2="","",IF(DK2=1,0,DO2)) -> 9.5 | DQ2: =IF(DP2="","",DP2) -> 9.5 | DR2: =IF($AZ2="","",IF(ISERROR(DQ2),0,IF(ISNA(VLOOKUP(DP2,Tables!AK$5:AL$100,2,FALSE)),"0",VLOOKUP(DP2,Tables!AK$5:AL$100,2,FALSE)))) -> 0 | DS2: =IF($AZ2="","",INDEX($AA$1:$AT$499,MATCH($AZ2,$Z$1:$Z$499,0)+9,1)) -> 3-12 1.6L | DT2: =IF($DI2="","",CLEAN(LEFT(DS2,FIND("-",DS2)-1))) -> 3 | DU2: =IF($DT2="","",IF(ISERROR(IF(0+DT2>10,0,0+DT2)),0,IF(0+DT2>10,0,0+DT2))) -> 3 | DV2: =IF($AZ2="","",IF(ISERROR(DU2),0,IF(ISNA(VLOOKUP(DU2,Tables!AM$5:AN$100,2,FALSE)),"0",VLOOKUP(DU2,Tables!AM$5:AN$100,2,FALSE)))) -> 3 | DW2: =IF($BH2="","",RIGHT(DS2,FIND(" ",DS2)-1)) -> 1.6L | DX2: =IF($BH2="","",LEFT(DW2,FIND("L",DW2)-1)) -> 1.6 | DY2: =IF($BH2="","",ROUND(0+DX2/0.5,0)*0.5) -> 1.5 | DZ2: =IF(DY2="","",IF(DU2=1,0,DY2)) -> 1.5 | EA2: =IF(DZ2="","",DZ2) -> 1.5 | EB2: =IF($BB2="","",IF(ISERROR(EA2),0,IF(ISNA(VLOOKUP(DZ2,Tables!AO$5:AP$100,2,FALSE)),"0",VLOOKUP(DZ2,Tables!AO$5:AP$100,2,FALSE)))) -> 5 | EC2: =IF(AZ2="","",VLOOKUP(AZ2,Race!$C$1:$N$100,12,FALSE)) -> 86 | ED2: =IF($AZ2="","",CLEAN(TRIM(EC2))) -> 86 | EE2: =IF(ED2="","",0+ED2) -> 86 | EF2: =IF($BB2="","",IF(ISNA(VLOOKUP(EE2,Tables!AQ$5:AR$100,2,FALSE)),"0",VLOOKUP(EE2,Tables!AQ$5:AR$100,2,FALSE))) -> 0 | EG2: =IF(AZ2="","",IF(MainSheet!D9="Scratched","",BC2+BE2+BG2+BL2+BO2+BR2+BU2+BY2+CB2+CE2+CH2+CL2+CP2+CT2+CX2+DB2+DH2+DL2+DR2+DV2+EB2+EF2)) -> 39 | EH2: =IF(EG2="","",IF($EI$1>0,EG2-$EI$1,EG2+$EI$1)) ->  | EI2: =IF(EH2="","",EH2+((EH2*EH2*1)/(IF($EI$1>0,140-$EI$1,140+$EI$1)-$EJ$1))) -> 
A3: =IF(RaceLists!A3="","",IF(RaceLists!A3="END","END",IF(RaceLists!E3="","",getAddress(RaceLists!E3)))) -> http://formguide.cyberhorse.com.au/index.php/Form/form.html?formdate=2010-11-24&track=Bunbry&raceno=1 | M3: =IF(Meetings!B3="","",LEFT(Meetings!B3,FIND("(",Meetings!B3)-2)) -> DOOMBEN | N3: =IF(M3="","",IF(ISERROR(LEFT(M3,FIND("-",M3)-1)),IF(ISERROR(LEFT(M3,FIND(" ",M3)-1)),M3,LEFT(M3,FIND(" ",M3)-1)),LEFT(M3,FIND("-",M3)-1))) -> DOOMBEN | O3: =IF(Meetings!D3="","",getAddress(Meetings!D3)) -> http://www.tabonline.com.au/2010/11/24/BR01.html | P3: =IF(Meetings!E3="","",getAddress(Meetings!E3)) -> http://www.tabonline.com.au/2010/11/24/BR02.html | Q3: =IF(Meetings!F3="","",getAddress(Meetings!F3)) -> http://www.tabonline.com.au/2010/11/24/BR03.html | R3: =IF(Meetings!G3="","",getAddress(Meetings!G3)) -> http://www.tabonline.com.au/2010/11/24/BR04.html | S3: =IF(Meetings!H3="","",getAddress(Meetings!H3)) -> http://www.tabonline.com.au/2010/11/24/BR05.html | T3: =IF(Meetings!I3="","",getAddress(Meetings!I3)) -> http://www.tabonline.com.au/2010/11/24/BR06.html | U3: =IF(Meetings!J3="","",getAddress(Meetings!J3)) -> http://www.tabonline.com.au/2010/11/24/BR07.html | V3: =IF(Meetings!K3="","",getAddress(Meetings!K3)) ->  | W3: =IF(Meetings!L3="","",getAddress(Meetings!L3)) ->  | X3: =IF(Meetings!M3="","",getAddress(Meetings!M3)) ->  | Y3: =IF(Meetings!N3="","",getAddress(Meetings!N3)) ->  | AA3: 0.075 | AZ3: =IF(Form!I6<>"",LEFT(Form!C6,FIND("(",Form!C6)-2),"") -> Kotor | BB3: =IF(AZ3="","",Form!A6) -> 2 | BC3: =IF($AZ3="","",IF(ISNA(VLOOKUP(BB3,Tables!A$5:B$100,2,FALSE)),"0",VLOOKUP(BB3,Tables!A$5:B$100,2,FALSE))) -> 5 | BD3: =IF($AZ3="","",VLOOKUP(AZ3,Race!$C$1:$N$100,7,FALSE)) -> 16 | BE3: =IF($AZ3="","",IF(ISNA(VLOOKUP(BD3,Tables!C$5:D$100,2,FALSE)),"0",VLOOKUP(BD3,Tables!C$5:D$100,2,FALSE))) -> 0 | BF3: =IF(AZ3="","",Form!F6) -> 57 | BG3: =IF($AZ3="","",IF(ISNA(VLOOKUP(BF3,Tables!E$5:F$100,2,FALSE)),"0",VLOOKUP(BF3,Tables!E$5:F$100,2,FALSE))) -> 5 | BH3: =IF($AZ3="","",INDEX($AA$1:$AT$499,MATCH($AZ3,$Z$1:$Z$499,0)+7,13)) -> Cd 57.0-0.0 | BI3: =IF($AZ3="","",LEFT(BH3,FIND("-",BH3)-1)) -> Cd 57.0 | BJ3: =IF(BF3="","",BF3-BK3) -> 0 | BK3: =IF($AZ3="","",TRIM(MID(BI3,4,5))) -> 57.0 | BL3: =IF($AZ3="","",IF(ISERROR(BK3),0,IF(ISNA(VLOOKUP(BJ3,Tables!G$5:H$100,2,FALSE)),"0",VLOOKUP(BJ3,Tables!G6:H$100,2,FALSE)))) -> 3 | BM3: =IF($AZ3="","",Form!G6) -> 0.2 | BN3: =IF(BM3="","",IF(RANK(BM3,$BM$2:$BM$32)<25,RANK(BM3,$BM$2:$BM$32),"")) -> 11 | BO3: =IF($AZ3="","",IF(ISNA(VLOOKUP(BN3,Tables!I$5:J$100,2,FALSE)),"0",VLOOKUP(BN3,Tables!I$5:J$100,2,FALSE))) -> 2 | BP3: =IF($AZ3="","",Form!H6) -> 0 | BQ3: =IF(AZ3="","",IF(RANK(BP3,$BP$2:$BP$32)<25,RANK(BP3,$BP$2:$BP$32),"")) -> 1 | BR3: =IF($AZ3="","",IF(ISNA(VLOOKUP(BQ3,Tables!K$5:L$100,2,FALSE)),"0",VLOOKUP(BQ3,Tables!K$5:L$100,2,FALSE))) -> 8 | BS3: =IF($AZ3="","",Form!I6) -> 25 | BT3: =IF(AZ3="","",IF(RANK(BS3,$BS$2:$BS$32)<25,RANK(BS3,$BS$2:$BS$32),"")) -> 7 | BU3: =IF($AZ3="","",IF(ISNA(VLOOKUP(BT3,Tables!M$5:N$100,2,FALSE)),"0",VLOOKUP(BT3,Tables!M$5:N$100,2,FALSE))) -> 2 | BV3: =IF($AZ3="","",INDEX(Race!$D$1:$P$100,MATCH($AZ3,Race!$C$1:$C$100,0)+0,9)) -> 0 | BW3: =IF($AZ3="","",IF(ISERROR(FIND(BW$1,$BV3,1)),"",BW$1)) ->  | BX3: =IF(BW3<>"","Y","N") -> N | BY3: =IF($AZ3="","",IF(ISNA(VLOOKUP(BX3,Tables!O$5:P$100,2,FALSE)),0,VLOOKUP(BX3,Tables!O$5:P$100,2,FALSE))) -> 0 | BZ3: =IF($AZ3="","",IF(ISERROR(FIND(BZ$1,$BV3,1)),"",BZ$1)) ->  | CA3: =IF(BZ3<>"","Y","N") -> N | CB3: =IF($AZ3="","",IF(ISNA(VLOOKUP(CA3,Tables!Q$5:R$100,2,FALSE)),0,VLOOKUP(CA3,Tables!Q$5:R$100,2,FALSE))) -> 0 | CC3: =IF($AZ3="","",IF(ISERROR(FIND(CC$1,$BV3,1)),"",CC$1)) ->  | CD3: =IF(CC3<>"","Y","N") -> N | CE3: =IF($AZ3="","",IF(ISNA(VLOOKUP(CD3,Tables!S$5:T$100,2,FALSE)),0,VLOOKUP(CD3,Tables!S$5:T$100,2,FALSE))) -> 0 | CF3: =IF($AZ3="","",IF(ISERROR(FIND(CF$1,$BV3,1)),"",CF$1)) ->  | CG3: =IF(CF3<>"","Y","N") -> N | CH3: =IF($AZ3="","",IF(ISNA(VLOOKUP(CG3,Tables!U$5:V$100,2,FALSE)),0,VLOOKUP(CG3,Tables!U$5:V$100,2,FALSE))) -> 0 | CI3: =IF($AZ3="","",INDEX($AA$1:$AT$499,MATCH($AZ3,$Z$1:$Z$499,0)+7,3)) -> 2010-11-04 | CJ3: =IF(CI3="","",$M$2-CI3) -> 20 | CK3: =IF(CJ3>90,0,CJ3) -> 20 | CL3: =IF($AZ3="","",IF(ISERROR(CK3),0,IF(ISNA(VLOOKUP(CK3,Tables!W$5:X$100,2,FALSE)),"0",VLOOKUP(CK3,Tables!W$5:X$100,2,FALSE)))) -> 2 | CM3: =IF($AZ3="","",INDEX($AA$1:$AT$499,MATCH($AZ3,$Z$1:$Z$499,0)+8,3)) -> 2010-10-20 | CN3: =IF(CM3="","",$M$2-CM3) -> 35 | CO3: =IF(CN3>90,0,CN3) -> 35 | CP3: =IF($AZ3="","",IF(ISERROR(CO3),0,IF(ISNA(VLOOKUP(CO3,Tables!Y$5:Z$100,2,FALSE)),"0",VLOOKUP(CO3,Tables!Y$5:Z$100,2,FALSE)))) -> 0 | CQ3: =IF($AZ3="","",INDEX($AA$1:$AT$499,MATCH($AZ3,$Z$1:$Z$499,0)+9,3)) -> 2010-09-29 | CR3: =IF(CQ3="","",$M$2-CQ3) -> 56 | CS3: =IF(CR3>90,0,CR3) -> 56 | CT3: =IF($AZ3="","",IF(ISERROR(CS3),0,IF(ISNA(VLOOKUP(CS3,Tables!AA$5:AB$100,2,FALSE)),"0",VLOOKUP(CS3,Tables!AA$5:AB$100,2,FALSE)))) -> 0 | CU3: =IF($AZ3="","",INDEX($AA$1:$AT$499,MATCH($AZ3,$Z$1:$Z$499,0)+7,9)) -> 10000 | CV3: =IF(CU3="","",(Form!$H$3-CU3)/CU3*100) -> 0 | CW3: =IF(CV3="","",IF(CV3>10,1,IF(CV3<-10,2,3))) -> 3 | CX3: =IF($AZ3="","",IF(ISERROR(CW3),0,IF(ISNA(VLOOKUP(CW3,Tables!AC$5:AD$100,2,FALSE)),"0",VLOOKUP(CW3,Tables!AC$5:AD$100,2,FALSE)))) -> 0 | CY3: =IF($AZ3="","",INDEX($AA$1:$AT$499,MATCH($AZ3,$Z$1:$Z$499,0)+7,1)) -> 5-13 2.4L | CZ3: =IF($CY3="","",CLEAN(LEFT(CY3,FIND("-",CY3)-1))) -> 5 | DA3: =IF($CZ3="","",IF(0+CZ3>10,0,0+CZ3)) -> 5 | DB3: =IF($AZ3="","",IF(ISERROR(DA3),0,IF(ISNA(VLOOKUP(DA3,Tables!AE$5:AF$100,2,FALSE)),"0",VLOOKUP(DA3,Tables!AE$5:AF$100,2,FALSE)))) -> 2 | DC3: 2.4L | DD3: =IF($BH3="","",LEFT(DC3,FIND("L",DC3)-1)) -> 2.4 | DE3: =IF($BH3="","",ROUND(0+DD3/0.5,0)*0.5) -> 2.5 | DF3: =IF(DE3="","",IF(DA3=1,0,DE3)) -> 2.5 | DG3: =IF(DF3="","",DF3) -> 2.5 | DH3: =IF($AZ3="","",IF(ISERROR(DG3),0,IF(ISNA(VLOOKUP(DF3,Tables!AG$5:AH$100,2,FALSE)),"0",VLOOKUP(DF3,Tables!AG$5:AH$100,2,FALSE)))) -> 5 | DI3: =IF($AZ3="","",INDEX($AA$1:$AT$499,MATCH($AZ3,$Z$1:$Z$499,0)+8,1)) -> 3-13 2.6L | DJ3: =IF($DI3="","",CLEAN(LEFT(DI3,FIND("-",DI3)-1))) -> 3 | DK3: =IF($DJ3="","",IF(0+DJ3>10,0,0+DJ3)) -> 3 | DL3: =IF($AZ3="","",IF(ISERROR(DK3),0,IF(ISNA(VLOOKUP(DK3,Tables!AI$5:AJ$100,2,FALSE)),"0",VLOOKUP(DK3,Tables!AI$5:AJ$100,2,FALSE)))) -> 3 | DM3: 2.6L | DN3: 2.6 | DO3: 2.5 | DP3: =IF(DO3="","",IF(DK3=1,0,DO3)) -> 2.5 | DQ3: =IF(DP3="","",DP3) -> 2.5 | DR3: =IF($AZ3="","",IF(ISERROR(DQ3),0,IF(ISNA(VLOOKUP(DP3,Tables!AK$5:AL$100,2,FALSE)),"0",VLOOKUP(DP3,Tables!AK$5:AL$100,2,FALSE)))) -> 5 | DS3: =IF($AZ3="","",INDEX($AA$1:$AT$499,MATCH($AZ3,$Z$1:$Z$499,0)+9,1)) -> 7-8 5.8L | DT3: =IF($DI3="","",CLEAN(LEFT(DS3,FIND("-",DS3)-1))) -> 7 | DU3: =IF($DT3="","",IF(ISERROR(IF(0+DT3>10,0,0+DT3)),0,IF(0+DT3>10,0,0+DT3))) -> 7 | DV3: =IF($AZ3="","",IF(ISERROR(DU3),0,IF(ISNA(VLOOKUP(DU3,Tables!AM$5:AN$100,2,FALSE)),"0",VLOOKUP(DU3,Tables!AM$5:AN$100,2,FALSE)))) -> 0 | DW3: =IF($BH3="","",RIGHT(DS3,FIND(" ",DS3)-1)) -> .8L | DX3: =IF($BH3="","",LEFT(DW3,FIND("L",DW3)-1)) -> .8 | DY3: 1 | DZ3: =IF(DY3="","",IF(DU3=1,0,DY3)) -> 1 | EA3: =IF(DZ3="","",DZ3) -> 1 | EB3: =IF($BB3="","",IF(ISERROR(EA3),0,IF(ISNA(VLOOKUP(DZ3,Tables!AO$5:AP$100,2,FALSE)),"0",VLOOKUP(DZ3,Tables!AO$5:AP$100,2,FALSE)))) -> 7 | EC3: =IF(AZ3="","",VLOOKUP(AZ3,Race!$C$1:$N$100,12,FALSE)) -> 91 | ED3: =IF($AZ3="","",CLEAN(TRIM(EC3))) -> 91 | EE3: =IF(ED3="","",0+ED3) -> 91 | EF3: =IF($BB3="","",IF(ISNA(VLOOKUP(EE3,Tables!AQ$5:AR$100,2,FALSE)),"0",VLOOKUP(EE3,Tables!AQ$5:AR$100,2,FALSE))) -> 0 | EG3: =IF(AZ3="","",IF(MainSheet!D10="Scratched","",BC3+BE3+BG3+BL3+BO3+BR3+BU3+BY3+CB3+CE3+CH3+CL3+CP3+CT3+CX3+DB3+DH3+DL3+DR3+DV3+EB3+EF3)) -> 49 | EH3: =IF(EG3="","",IF($EI$1>0,EG3-$EI$1,EG3+$EI$1)) ->  | EI3: =IF(EH3="","",EH3+((EH3*EH3*1)/(IF($EI$1>0,140-$EI$1,140+$EI$1)-$EJ$1))) -> 
A4: =IF(RaceLists!A4="","",IF(RaceLists!A4="END","END",IF(RaceLists!E4="","",getAddress(RaceLists!E4)))) -> http://formguide.cyberhorse.com.au/index.php/Form/form.html?formdate=2010-11-24&track=Bunbry&raceno=2 | M4: =IF(Meetings!B4="","",LEFT(Meetings!B4,FIND("(",Meetings!B4)-2)) -> WARWICK FARM | N4: =IF(M4="","",IF(ISERROR(LEFT(M4,FIND("-",M4)-1)),IF(ISERROR(LEFT(M4,FIND(" ",M4)-1)),M4,LEFT(M4,FIND(" ",M4)-1)),LEFT(M4,FIND("-",M4)-1))) -> WARWICK | O4: =IF(Meetings!D4="","",getAddress(Meetings!D4)) -> http://www.tabonline.com.au/2010/11/24/SR01.html | P4: =IF(Meetings!E4="","",getAddress(Meetings!E4)) -> http://www.tabonline.com.au/2010/11/24/SR02.html | Q4: =IF(Meetings!F4="","",getAddress(Meetings!F4)) -> http://www.tabonline.com.au/2010/11/24/SR03.html | R4: =IF(Meetings!G4="","",getAddress(Meetings!G4)) -> http://www.tabonline.com.au/2010/11/24/SR04.html | S4: =IF(Meetings!H4="","",getAddress(Meetings!H4)) -> http://www.tabonline.com.au/2010/11/24/SR05.html | T4: =IF(Meetings!I4="","",getAddress(Meetings!I4)) -> http://www.tabonline.com.au/2010/11/24/SR06.html | U4: =IF(Meetings!J4="","",getAddress(Meetings!J4)) -> http://www.tabonline.com.au/2010/11/24/SR07.html | V4: =IF(Meetings!K4="","",getAddress(Meetings!K4)) ->  | W4: =IF(Meetings!L4="","",getAddress(Meetings!L4)) ->  | X4: =IF(Meetings!M4="","",getAddress(Meetings!M4)) ->  | Y4: =IF(Meetings!N4="","",getAddress(Meetings!N4)) ->  | AA4: # | AZ4: =IF(Form!I7<>"",LEFT(Form!C7,FIND("(",Form!C7)-2),"") -> Red Hot Jeune | BB4: =IF(AZ4="","",Form!A7) -> 3 | BC4: =IF($AZ4="","",IF(ISNA(VLOOKUP(BB4,Tables!A$5:B$100,2,FALSE)),"0",VLOOKUP(BB4,Tables!A$5:B$100,2,FALSE))) -> 5 | BD4: =IF($AZ4="","",VLOOKUP(AZ4,Race!$C$1:$N$100,7,FALSE)) -> 17 | BE4: =IF($AZ4="","",IF(ISNA(VLOOKUP(BD4,Tables!C$5:D$100,2,FALSE)),"0",VLOOKUP(BD4,Tables!C$5:D$100,2,FALSE))) -> 0 | BF4: =IF(AZ4="","",Form!F7) -> 57 | BG4: =IF($AZ4="","",IF(ISNA(VLOOKUP(BF4,Tables!E$5:F$100,2,FALSE)),"0",VLOOKUP(BF4,Tables!E$5:F$100,2,FALSE))) -> 5 | BH4: =IF($AZ4="","",INDEX($AA$1:$AT$499,MATCH($AZ4,$Z$1:$Z$499,0)+7,13)) -> Cd 57.0-0.0 | BI4: Cd 57.0 | BJ4: 0 | BK4: 57.0 | BL4: =IF($AZ4="","",IF(ISERROR(BK4),0,IF(ISNA(VLOOKUP(BJ4,Tables!G$5:H$100,2,FALSE)),"0",VLOOKUP(BJ4,Tables!G7:H$100,2,FALSE)))) -> 3 | BM4: =IF($AZ4="","",Form!G7) -> 0.4 | BN4: 8 | BO4: =IF($AZ4="","",IF(ISNA(VLOOKUP(BN4,Tables!I$5:J$100,2,FALSE)),"0",VLOOKUP(BN4,Tables!I$5:J$100,2,FALSE))) -> 2 | BP4: =IF($AZ4="","",Form!H7) -> 0 | BQ4: 1 | BR4: =IF($AZ4="","",IF(ISNA(VLOOKUP(BQ4,Tables!K$5:L$100,2,FALSE)),"0",VLOOKUP(BQ4,Tables!K$5:L$100,2,FALSE))) -> 8 | BS4: =IF($AZ4="","",Form!I7) -> 40 | BT4: 5 | BU4: =IF($AZ4="","",IF(ISNA(VLOOKUP(BT4,Tables!M$5:N$100,2,FALSE)),"0",VLOOKUP(BT4,Tables!M$5:N$100,2,FALSE))) -> 3 | BV4: =IF($AZ4="","",INDEX(Race!$D$1:$P$100,MATCH($AZ4,Race!$C$1:$C$100,0)+0,9)) -> 0 | BX4: N | BY4: =IF($AZ4="","",IF(ISNA(VLOOKUP(BX4,Tables!O$5:P$100,2,FALSE)),0,VLOOKUP(BX4,Tables!O$5:P$100,2,FALSE))) -> 0 | CA4: N | CB4: =IF($AZ4="","",IF(ISNA(VLOOKUP(CA4,Tables!Q$5:R$100,2,FALSE)),0,VLOOKUP(CA4,Tables!Q$5:R$100,2,FALSE))) -> 0 | CD4: N | CE4: =IF($AZ4="","",IF(ISNA(VLOOKUP(CD4,Tables!S$5:T$100,2,FALSE)),0,VLOOKUP(CD4,Tables!S$5:T$100,2,FALSE))) -> 0 | CG4: N | CH4: =IF($AZ4="","",IF(ISNA(VLOOKUP(CG4,Tables!U$5:V$100,2,FALSE)),0,VLOOKUP(CG4,Tables!U$5:V$100,2,FALSE))) -> 0 | CI4: 2010-11-10 | CJ4: 14 | CK4: 14 | CL4: =IF($AZ4="","",IF(ISERROR(CK4),0,IF(ISNA(VLOOKUP(CK4,Tables!W$5:X$100,2,FALSE)),"0",VLOOKUP(CK4,Tables!W$5:X$100,2,FALSE)))) -> 3 | CM4: 2010-10-27 | CN4: 28 | CO4: 28 | CP4: =IF($AZ4="","",IF(ISERROR(CO4),0,IF(ISNA(VLOOKUP(CO4,Tables!Y$5:Z$100,2,FALSE)),"0",VLOOKUP(CO4,Tables!Y$5:Z$100,2,FALSE)))) -> 2 | CQ4: 2010-06-09 | CR4: 168 | CS4: 0 | CT4: =IF($AZ4="","",IF(ISERROR(CS4),0,IF(ISNA(VLOOKUP(CS4,Tables!AA$5:AB$100,2,FALSE)),"0",VLOOKUP(CS4,Tables!AA$5:AB$100,2,FALSE)))) -> 0 | CU4: 10000 | CV4: =IF(CU4="","",(Form!$H$3-CU4)/CU4*100) -> 0 | CW4: 3 | CX4: =IF($AZ4="","",IF(ISERROR(CW4),0,IF(ISNA(VLOOKUP(CW4,Tables!AC$5:AD$100,2,FALSE)),"0",VLOOKUP(CW4,Tables!AC$5:AD$100,2,FALSE)))) -> 0 | CY4: 3-13 0.6L | CZ4: 3 | DA4: 3 | DB4: =IF($AZ4="","",IF(ISERROR(DA4),0,IF(ISNA(VLOOKUP(DA4,Tables!AE$5:AF$100,2,FALSE)),"0",VLOOKUP(DA4,Tables!AE$5:AF$100,2,FALSE)))) -> 3 | DC4: 0.6L | DD4: 0.6 | DE4: 0.5 | DF4: 0.5 | DG4: 0.5 | DH4: =IF($AZ4="","",IF(ISERROR(DG4),0,IF(ISNA(VLOOKUP(DF4,Tables!AG$5:AH$100,2,FALSE)),"0",VLOOKUP(DF4,Tables!AG$5:AH$100,2,FALSE)))) -> 7 | DI4: 5-12 2.8L | DJ4: 5 | DK4: 5 | DL4: =IF($AZ4="","",IF(ISERROR(DK4),0,IF(ISNA(VLOOKUP(DK4,Tables!AI$5:AJ$100,2,FALSE)),"0",VLOOKUP(DK4,Tables!AI$5:AJ$100,2,FALSE)))) -> 2 | DM4: 2.8L | DN4: 2.8 | DO4: 3 | DP4: 3 | DQ4: 3 | DR4: =IF($AZ4="","",IF(ISERROR(DQ4),0,IF(ISNA(VLOOKUP(DP4,Tables!AK$5:AL$100,2,FALSE)),"0",VLOOKUP(DP4,Tables!AK$5:AL$100,2,FALSE)))) -> 3 | DS4: 7-12 4.3L | DT4: 7 | DU4: 7 | DV4: =IF($AZ4="","",IF(ISERROR(DU4),0,IF(ISNA(VLOOKUP(DU4,Tables!AM$5:AN$100,2,FALSE)),"0",VLOOKUP(DU4,Tables!AM$5:AN$100,2,FALSE)))) -> 0 | DW4: 4.3L | DX4: 4.3 | DY4: 4.5 | DZ4: 4.5 | EA4: 4.5 | EB4: =IF($BB4="","",IF(ISERROR(EA4),0,IF(ISNA(VLOOKUP(DZ4,Tables!AO$5:AP$100,2,FALSE)),"0",VLOOKUP(DZ4,Tables!AO$5:AP$100,2,FALSE)))) -> 2 | EC4: =IF(AZ4="","",VLOOKUP(AZ4,Race!$C$1:$N$100,12,FALSE)) -> 92 | ED4: 92 | EE4: 92 | EF4: =IF($BB4="","",IF(ISNA(VLOOKUP(EE4,Tables!AQ$5:AR$100,2,FALSE)),"0",VLOOKUP(EE4,Tables!AQ$5:AR$100,2,FALSE))) -> 0 | EG4: =IF(AZ4="","",IF(MainSheet!D11="Scratched","",BC4+BE4+BG4+BL4+BO4+BR4+BU4+BY4+CB4+CE4+CH4+CL4+CP4+CT4+CX4+DB4+DH4+DL4+DR4+DV4+EB4+EF4)) -> 48
A5: =IF(RaceLists!A5="","",IF(RaceLists!A5="END","END",IF(RaceLists!E5="","",getAddress(RaceLists!E5)))) -> http://formguide.cyberhorse.com.au/index.php/Form/form.html?formdate=2010-11-24&track=Bunbry&raceno=3 | M5: =IF(Meetings!B5="","",LEFT(Meetings!B5,FIND("(",Meetings!B5)-2)) -> SANDOWN | N5: SANDOWN | O5: =IF(Meetings!D5="","",getAddress(Meetings!D5)) -> http://www.tabonline.com.au/2010/11/24/MR01.html | P5: =IF(Meetings!E5="","",getAddress(Meetings!E5)) -> http://www.tabonline.com.au/2010/11/24/MR02.html | Q5: =IF(Meetings!F5="","",getAddress(Meetings!F5)) -> http://www.tabonline.com.au/2010/11/24/MR03.html | R5: =IF(Meetings!G5="","",getAddress(Meetings!G5)) -> http://www.tabonline.com.au/2010/11/24/MR04.html | S5: =IF(Meetings!H5="","",getAddress(Meetings!H5)) -> http://www.tabonline.com.au/2010/11/24/MR05.html | T5: =IF(Meetings!I5="","",getAddress(Meetings!I5)) -> http://www.tabonline.com.au/2010/11/24/MR06.html | U5: =IF(Meetings!J5="","",getAddress(Meetings!J5)) -> http://www.tabonline.com.au/2010/11/24/MR07.html | V5: =IF(Meetings!K5="","",getAddress(Meetings!K5)) ->  | W5: =IF(Meetings!L5="","",getAddress(Meetings!L5)) ->  | X5: =IF(Meetings!M5="","",getAddress(Meetings!M5)) ->  | Y5: =IF(Meetings!N5="","",getAddress(Meetings!N5)) ->  | AA5: 1 | AZ5: =IF(Form!I8<>"",LEFT(Form!C8,FIND("(",Form!C8)-2),"") -> Shiraz Knight | BB5: =IF(AZ5="","",Form!A8) -> 4 | BC5: =IF($AZ5="","",IF(ISNA(VLOOKUP(BB5,Tables!A$5:B$100,2,FALSE)),"0",VLOOKUP(BB5,Tables!A$5:B$100,2,FALSE))) -> 3 | BD5: =IF($AZ5="","",VLOOKUP(AZ5,Race!$C$1:$N$100,7,FALSE)) -> 1 | BE5: =IF($AZ5="","",IF(ISNA(VLOOKUP(BD5,Tables!C$5:D$100,2,FALSE)),"0",VLOOKUP(BD5,Tables!C$5:D$100,2,FALSE))) -> 5 | BF5: =IF(AZ5="","",Form!F8) -> 57 | BG5: =IF($AZ5="","",IF(ISNA(VLOOKUP(BF5,Tables!E$5:F$100,2,FALSE)),"0",VLOOKUP(BF5,Tables!E$5:F$100,2,FALSE))) -> 5 | BH5: Cd 54.0--3.0 | BI5: Cd 54.0 | BJ5: 3 | BK5: 54.0 | BL5: =IF($AZ5="","",IF(ISERROR(BK5),0,IF(ISNA(VLOOKUP(BJ5,Tables!G$5:H$100,2,FALSE)),"0",VLOOKUP(BJ5,Tables!G8:H$100,2,FALSE)))) -> 5 | BM5: =IF($AZ5="","",Form!G8) -> 0.1 | BN5: 13 | BO5: =IF($AZ5="","",IF(ISNA(VLOOKUP(BN5,Tables!I$5:J$100,2,FALSE)),"0",VLOOKUP(BN5,Tables!I$5:J$100,2,FALSE))) -> 0 | BP5: =IF($AZ5="","",Form!H8) -> 0 | BQ5: 1 | BR5: =IF($AZ5="","",IF(ISNA(VLOOKUP(BQ5,Tables!K$5:L$100,2,FALSE)),"0",VLOOKUP(BQ5,Tables!K$5:L$100,2,FALSE))) -> 8 | BS5: =IF($AZ5="","",Form!I8) -> 0 | BT5: 11 | BU5: =IF($AZ5="","",IF(ISNA(VLOOKUP(BT5,Tables!M$5:N$100,2,FALSE)),"0",VLOOKUP(BT5,Tables!M$5:N$100,2,FALSE))) -> 2 | BV5: =IF($AZ5="","",INDEX(Race!$D$1:$P$100,MATCH($AZ5,Race!$C$1:$C$100,0)+0,9)) -> 0 | BX5: N | BY5: =IF($AZ5="","",IF(ISNA(VLOOKUP(BX5,Tables!O$5:P$100,2,FALSE)),0,VLOOKUP(BX5,Tables!O$5:P$100,2,FALSE))) -> 0 | CA5: N | CB5: =IF($AZ5="","",IF(ISNA(VLOOKUP(CA5,Tables!Q$5:R$100,2,FALSE)),0,VLOOKUP(CA5,Tables!Q$5:R$100,2,FALSE))) -> 0 | CD5: N | CE5: =IF($AZ5="","",IF(ISNA(VLOOKUP(CD5,Tables!S$5:T$100,2,FALSE)),0,VLOOKUP(CD5,Tables!S$5:T$100,2,FALSE))) -> 0 | CG5: N | CH5: =IF($AZ5="","",IF(ISNA(VLOOKUP(CG5,Tables!U$5:V$100,2,FALSE)),0,VLOOKUP(CG5,Tables!U$5:V$100,2,FALSE))) -> 0 | CI5: 2010-09-12 | CJ5: 73 | CK5: 73 | CL5: =IF($AZ5="","",IF(ISERROR(CK5),0,IF(ISNA(VLOOKUP(CK5,Tables!W$5:X$100,2,FALSE)),"0",VLOOKUP(CK5,Tables!W$5:X$100,2,FALSE)))) -> 0 | CM5: 2010-08-05 | CN5: 111 | CO5: 0 | CP5: =IF($AZ5="","",IF(ISERROR(CO5),0,IF(ISNA(VLOOKUP(CO5,Tables!Y$5:Z$100,2,FALSE)),"0",VLOOKUP(CO5,Tables!Y$5:Z$100,2,FALSE)))) -> 0 | CQ5: 2010-07-21 | CR5: 126 | CS5: 0 | CT5: =IF($AZ5="","",IF(ISERROR(CS5),0,IF(ISNA(VLOOKUP(CS5,Tables!AA$5:AB$100,2,FALSE)),"0",VLOOKUP(CS5,Tables!AA$5:AB$100,2,FALSE)))) -> 0 | CU5: 10000 | CV5: =IF(CU5="","",(Form!$H$3-CU5)/CU5*100) -> 0 | CW5: 3 | CX5: =IF($AZ5="","",IF(ISERROR(CW5),0,IF(ISNA(VLOOKUP(CW5,Tables!AC$5:AD$100,2,FALSE)),"0",VLOOKUP(CW5,Tables!AC$5:AD$100,2,FALSE)))) -> 0 | CY5: 4-12 4.5L | CZ5: 4 | DA5: 4 | DB5: =IF($AZ5="","",IF(ISERROR(DA5),0,IF(ISNA(VLOOKUP(DA5,Tables!AE$5:AF$100,2,FALSE)),"0",VLOOKUP(DA5,Tables!AE$5:AF$100,2,FALSE)))) -> 2 | DC5: 4.5L | DD5: 4.5 | DE5: 4.5 | DF5: 4.5 | DG5: 4.5 | DH5: =IF($AZ5="","",IF(ISERROR(DG5),0,IF(ISNA(VLOOKUP(DF5,Tables!AG$5:AH$100,2,FALSE)),"0",VLOOKUP(DF5,Tables!AG$5:AH$100,2,FALSE)))) -> 2 | DI5: 4-10 2.1L | DJ5: 4 | DK5: 4 | DL5: =IF($AZ5="","",IF(ISERROR(DK5),0,IF(ISNA(VLOOKUP(DK5,Tables!AI$5:AJ$100,2,FALSE)),"0",VLOOKUP(DK5,Tables!AI$5:AJ$100,2,FALSE)))) -> 2 | DM5: 2.1L | DN5: 2.1 | DO5: 2 | DP5: 2 | DQ5: 2 | DR5: =IF($AZ5="","",IF(ISERROR(DQ5),0,IF(ISNA(VLOOKUP(DP5,Tables!AK$5:AL$100,2,FALSE)),"0",VLOOKUP(DP5,Tables!AK$5:AL$100,2,FALSE)))) -> 5 | DS5: 9-10 5.8L | DT5: 9 | DU5: 9 | DV5: =IF($AZ5="","",IF(ISERROR(DU5),0,IF(ISNA(VLOOKUP(DU5,Tables!AM$5:AN$100,2,FALSE)),"0",VLOOKUP(DU5,Tables!AM$5:AN$100,2,FALSE)))) -> 0 | DW5: 5.8L | DX5: 5.8 | DY5: 6 | DZ5: 6 | EA5: 6 | EB5: =IF($BB5="","",IF(ISERROR(EA5),0,IF(ISNA(VLOOKUP(DZ5,Tables!AO$5:AP$100,2,FALSE)),"0",VLOOKUP(DZ5,Tables!AO$5:AP$100,2,FALSE)))) -> 0 | EC5: =IF(AZ5="","",VLOOKUP(AZ5,Race!$C$1:$N$100,12,FALSE)) -> 85 | ED5: 85 | EE5: 85 | EF5: =IF($BB5="","",IF(ISNA(VLOOKUP(EE5,Tables!AQ$5:AR$100,2,FALSE)),"0",VLOOKUP(EE5,Tables!AQ$5:AR$100,2,FALSE))) -> 0 | EG5: =IF(AZ5="","",IF(MainSheet!D12="Scratched","",BC5+BE5+BG5+BL5+BO5+BR5+BU5+BY5+CB5+CE5+CH5+CL5+CP5+CT5+CX5+DB5+DH5+DL5+DR5+DV5+EB5+EF5)) -> 39
A6: =IF(RaceLists!A6="","",IF(RaceLists!A6="END","END",IF(RaceLists!E6="","",getAddress(RaceLists!E6)))) -> http://formguide.cyberhorse.com.au/index.php/Form/form.html?formdate=2010-11-24&track=Bunbry&raceno=4 | M6: =IF(Meetings!B6="","",LEFT(Meetings!B6,FIND("(",Meetings!B6)-2)) -> MORPHETTVILLE | N6: MORPHETTVILLE | O6: =IF(Meetings!D6="","",getAddress(Meetings!D6)) -> http://www.tabonline.com.au/2010/11/24/AR01.html | P6: =IF(Meetings!E6="","",getAddress(Meetings!E6)) -> http://www.tabonline.com.au/2010/11/24/AR02.html | Q6: =IF(Meetings!F6="","",getAddress(Meetings!F6)) -> http://www.tabonline.com.au/2010/11/24/AR03.html | R6: =IF(Meetings!G6="","",getAddress(Meetings!G6)) -> http://www.tabonline.com.au/2010/11/24/AR04.html | S6: =IF(Meetings!H6="","",getAddress(Meetings!H6)) -> http://www.tabonline.com.au/2010/11/24/AR05.html | T6: =IF(Meetings!I6="","",getAddress(Meetings!I6)) -> http://www.tabonline.com.au/2010/11/24/AR06.html | U6: =IF(Meetings!J6="","",getAddress(Meetings!J6)) -> http://www.tabonline.com.au/2010/11/24/AR07.html | V6: =IF(Meetings!K6="","",getAddress(Meetings!K6)) -> http://www.tabonline.com.au/2010/11/24/AR08.html | W6: =IF(Meetings!L6="","",getAddress(Meetings!L6)) ->  | X6: =IF(Meetings!M6="","",getAddress(Meetings!M6)) ->  | Y6: =IF(Meetings!N6="","",getAddress(Meetings!N6)) ->  | AA6: 2 | AZ6: =IF(Form!I9<>"",LEFT(Form!C9,FIND("(",Form!C9)-2),"") -> Drafted | BB6: =IF(AZ6="","",Form!A9) -> 5 | BC6: =IF($AZ6="","",IF(ISNA(VLOOKUP(BB6,Tables!A$5:B$100,2,FALSE)),"0",VLOOKUP(BB6,Tables!A$5:B$100,2,FALSE))) -> 3 | BD6: =IF($AZ6="","",VLOOKUP(AZ6,Race!$C$1:$N$100,7,FALSE)) -> 2 | BE6: =IF($AZ6="","",IF(ISNA(VLOOKUP(BD6,Tables!C$5:D$100,2,FALSE)),"0",VLOOKUP(BD6,Tables!C$5:D$100,2,FALSE))) -> 5 | BF6: =IF(AZ6="","",Form!F9) -> 55.5 | BG6: =IF($AZ6="","",IF(ISNA(VLOOKUP(BF6,Tables!E$5:F$100,2,FALSE)),"0",VLOOKUP(BF6,Tables!E$5:F$100,2,FALSE))) -> 3 | BH6: Cd 55.5-0.0 | BI6: Cd 55.5 | BJ6: 0 | BK6: 55.5 | BL6: =IF($AZ6="","",IF(ISERROR(BK6),0,IF(ISNA(VLOOKUP(BJ6,Tables!G$5:H$100,2,FALSE)),"0",VLOOKUP(BJ6,Tables!G9:H$100,2,FALSE)))) -> 3 | BM6: =IF($AZ6="","",Form!G9) -> 1.1 | BN6: 2 | BO6: =IF($AZ6="","",IF(ISNA(VLOOKUP(BN6,Tables!I$5:J$100,2,FALSE)),"0",VLOOKUP(BN6,Tables!I$5:J$100,2,FALSE))) -> 6 | BP6: =IF($AZ6="","",Form!H9) -> 0 | BQ6: 1 | BR6: =IF($AZ6="","",IF(ISNA(VLOOKUP(BQ6,Tables!K$5:L$100,2,FALSE)),"0",VLOOKUP(BQ6,Tables!K$5:L$100,2,FALSE))) -> 8 | BS6: =IF($AZ6="","",Form!I9) -> 50 | BT6: 3 | BU6: =IF($AZ6="","",IF(ISNA(VLOOKUP(BT6,Tables!M$5:N$100,2,FALSE)),"0",VLOOKUP(BT6,Tables!M$5:N$100,2,FALSE))) -> 4 | BV6: =IF($AZ6="","",INDEX(Race!$D$1:$P$100,MATCH($AZ6,Race!$C$1:$C$100,0)+0,9)) -> 0 | BX6: N | BY6: =IF($AZ6="","",IF(ISNA(VLOOKUP(BX6,Tables!O$5:P$100,2,FALSE)),0,VLOOKUP(BX6,Tables!O$5:P$100,2,FALSE))) -> 0 | CA6: N | CB6: =IF($AZ6="","",IF(ISNA(VLOOKUP(CA6,Tables!Q$5:R$100,2,FALSE)),0,VLOOKUP(CA6,Tables!Q$5:R$100,2,FALSE))) -> 0 | CD6: N | CE6: =IF($AZ6="","",IF(ISNA(VLOOKUP(CD6,Tables!S$5:T$100,2,FALSE)),0,VLOOKUP(CD6,Tables!S$5:T$100,2,FALSE))) -> 0 | CG6: N | CH6: =IF($AZ6="","",IF(ISNA(VLOOKUP(CG6,Tables!U$5:V$100,2,FALSE)),0,VLOOKUP(CG6,Tables!U$5:V$100,2,FALSE))) -> 0 | CI6: 2010-11-17 | CJ6: 7 | CK6: 7 | CL6: =IF($AZ6="","",IF(ISERROR(CK6),0,IF(ISNA(VLOOKUP(CK6,Tables!W$5:X$100,2,FALSE)),"0",VLOOKUP(CK6,Tables!W$5:X$100,2,FALSE)))) -> 5 | CM6: 2010-11-02 | CN6: 22 | CO6: 22 | CP6: =IF($AZ6="","",IF(ISERROR(CO6),0,IF(ISNA(VLOOKUP(CO6,Tables!Y$5:Z$100,2,FALSE)),"0",VLOOKUP(CO6,Tables!Y$5:Z$100,2,FALSE)))) -> 2 | CQ6: 2010-06-09 | CR6: 168 | CS6: 0 | CT6: =IF($AZ6="","",IF(ISERROR(CS6),0,IF(ISNA(VLOOKUP(CS6,Tables!AA$5:AB$100,2,FALSE)),"0",VLOOKUP(CS6,Tables!AA$5:AB$100,2,FALSE)))) -> 0 | CU6: 10000 | CV6: =IF(CU6="","",(Form!$H$3-CU6)/CU6*100) -> 0 | CW6: 3 | CX6: =IF($AZ6="","",IF(ISERROR(CW6),0,IF(ISNA(VLOOKUP(CW6,Tables!AC$5:AD$100,2,FALSE)),"0",VLOOKUP(CW6,Tables!AC$5:AD$100,2,FALSE)))) -> 0 | CY6: 3-12 1.3L | CZ6: 3 | DA6: 3 | DB6: =IF($AZ6="","",IF(ISERROR(DA6),0,IF(ISNA(VLOOKUP(DA6,Tables!AE$5:AF$100,2,FALSE)),"0",VLOOKUP(DA6,Tables!AE$5:AF$100,2,FALSE)))) -> 3 | DC6: 1.3L | DD6: 1.3 | DE6: 1.5 | DF6: 1.5 | DG6: 1.5 | DH6: =IF($AZ6="","",IF(ISERROR(DG6),0,IF(ISNA(VLOOKUP(DF6,Tables!AG$5:AH$100,2,FALSE)),"0",VLOOKUP(DF6,Tables!AG$5:AH$100,2,FALSE)))) -> 5 | DI6: 2-13 0.8L | DJ6: 2 | DK6: 2 | DL6: =IF($AZ6="","",IF(ISERROR(DK6),0,IF(ISNA(VLOOKUP(DK6,Tables!AI$5:AJ$100,2,FALSE)),"0",VLOOKUP(DK6,Tables!AI$5:AJ$100,2,FALSE)))) -> 5 | DM6: 0.8L | DN6: 0.8 | DO6: 1 | DP6: 1 | DQ6: 1 | DR6: =IF($AZ6="","",IF(ISERROR(DQ6),0,IF(ISNA(VLOOKUP(DP6,Tables!AK$5:AL$100,2,FALSE)),"0",VLOOKUP(DP6,Tables!AK$5:AL$100,2,FALSE)))) -> 7 | DS6: 4-11 3.5L | DT6: 4 | DU6: 4 | DV6: =IF($AZ6="","",IF(ISERROR(DU6),0,IF(ISNA(VLOOKUP(DU6,Tables!AM$5:AN$100,2,FALSE)),"0",VLOOKUP(DU6,Tables!AM$5:AN$100,2,FALSE)))) -> 2 | DW6: 3.5L | DX6: 3.5 | DY6: 3.5 | DZ6: 3.5 | EA6: 3.5 | EB6: =IF($BB6="","",IF(ISERROR(EA6),0,IF(ISNA(VLOOKUP(DZ6,Tables!AO$5:AP$100,2,FALSE)),"0",VLOOKUP(DZ6,Tables!AO$5:AP$100,2,FALSE)))) -> 2 | EC6: =IF(AZ6="","",VLOOKUP(AZ6,Race!$C$1:$N$100,12,FALSE)) -> 94 | ED6: 94 | EE6: 94 | EF6: =IF($BB6="","",IF(ISNA(VLOOKUP(EE6,Tables!AQ$5:AR$100,2,FALSE)),"0",VLOOKUP(EE6,Tables!AQ$5:AR$100,2,FALSE))) -> 2 | EG6: =IF(AZ6="","",IF(MainSheet!D13="Scratched","",BC6+BE6+BG6+BL6+BO6+BR6+BU6+BY6+CB6+CE6+CH6+CL6+CP6+CT6+CX6+DB6+DH6+DL6+DR6+DV6+EB6+EF6)) -> 65
A7: =IF(RaceLists!A7="","",IF(RaceLists!A7="END","END",IF(RaceLists!E7="","",getAddress(RaceLists!E7)))) -> http://formguide.cyberhorse.com.au/index.php/Form/form.html?formdate=2010-11-24&track=Bunbry&raceno=5 | M7: =IF(Meetings!B7="","",LEFT(Meetings!B7,FIND("(",Meetings!B7)-2)) -> BUNBURY | N7: BUNBURY | O7: =IF(Meetings!D7="","",getAddress(Meetings!D7)) -> http://www.tabonline.com.au/2010/11/24/PR01.html | P7: =IF(Meetings!E7="","",getAddress(Meetings!E7)) -> http://www.tabonline.com.au/2010/11/24/PR02.html | Q7: =IF(Meetings!F7="","",getAddress(Meetings!F7)) -> http://www.tabonline.com.au/2010/11/24/PR03.html | R7: =IF(Meetings!G7="","",getAddress(Meetings!G7)) -> http://www.tabonline.com.au/2010/11/24/PR04.html | S7: =IF(Meetings!H7="","",getAddress(Meetings!H7)) -> http://www.tabonline.com.au/2010/11/24/PR05.html | T7: =IF(Meetings!I7="","",getAddress(Meetings!I7)) -> http://www.tabonline.com.au/2010/11/24/PR06.html | U7: =IF(Meetings!J7="","",getAddress(Meetings!J7)) -> http://www.tabonline.com.au/2010/11/24/PR07.html | V7: =IF(Meetings!K7="","",getAddress(Meetings!K7)) -> http://www.tabonline.com.au/2010/11/24/PR08.html | W7: =IF(Meetings!L7="","",getAddress(Meetings!L7)) ->  | X7: =IF(Meetings!M7="","",getAddress(Meetings!M7)) ->  | Y7: =IF(Meetings!N7="","",getAddress(Meetings!N7)) ->  | AA7: 3 | AZ7: =IF(Form!I10<>"",LEFT(Form!C10,FIND("(",Form!C10)-2),"") -> Baena | BB7: =IF(AZ7="","",Form!A10) -> 6 | BC7: =IF($AZ7="","",IF(ISNA(VLOOKUP(BB7,Tables!A$5:B$100,2,FALSE)),"0",VLOOKUP(BB7,Tables!A$5:B$100,2,FALSE))) -> 3 | BD7: =IF($AZ7="","",VLOOKUP(AZ7,Race!$C$1:$N$100,7,FALSE)) -> 18 | BE7: =IF($AZ7="","",IF(ISNA(VLOOKUP(BD7,Tables!C$5:D$100,2,FALSE)),"0",VLOOKUP(BD7,Tables!C$5:D$100,2,FALSE))) -> 0 | BF7: =IF(AZ7="","",Form!F10) -> 55 | BG7: =IF($AZ7="","",IF(ISNA(VLOOKUP(BF7,Tables!E$5:F$100,2,FALSE)),"0",VLOOKUP(BF7,Tables!E$5:F$100,2,FALSE))) -> 3 | BH7: Cd 53.5--3.0 | BI7: Cd 53.5 | BJ7: 1.5 | BK7: 53.5 | BL7: =IF($AZ7="","",IF(ISERROR(BK7),0,IF(ISNA(VLOOKUP(BJ7,Tables!G$5:H$100,2,FALSE)),"0",VLOOKUP(BJ7,Tables!G10:H$100,2,FALSE)))) -> 3 | BM7: =IF($AZ7="","",Form!G10) -> 0 | BN7: 16 | BO7: =IF($AZ7="","",IF(ISNA(VLOOKUP(BN7,Tables!I$5:J$100,2,FALSE)),"0",VLOOKUP(BN7,Tables!I$5:J$100,2,FALSE))) -> 0 | BP7: =IF($AZ7="","",Form!H10) -> 0 | BQ7: 1 | BR7: =IF($AZ7="","",IF(ISNA(VLOOKUP(BQ7,Tables!K$5:L$100,2,FALSE)),"0",VLOOKUP(BQ7,Tables!K$5:L$100,2,FALSE))) -> 8 | BS7: =IF($AZ7="","",Form!I10) -> 0 | BT7: 11 | BU7: =IF($AZ7="","",IF(ISNA(VLOOKUP(BT7,Tables!M$5:N$100,2,FALSE)),"0",VLOOKUP(BT7,Tables!M$5:N$100,2,FALSE))) -> 2 | BV7: =IF($AZ7="","",INDEX(Race!$D$1:$P$100,MATCH($AZ7,Race!$C$1:$C$100,0)+0,9)) -> 0 | BX7: N | BY7: =IF($AZ7="","",IF(ISNA(VLOOKUP(BX7,Tables!O$5:P$100,2,FALSE)),0,VLOOKUP(BX7,Tables!O$5:P$100,2,FALSE))) -> 0 | CA7: N | CB7: =IF($AZ7="","",IF(ISNA(VLOOKUP(CA7,Tables!Q$5:R$100,2,FALSE)),0,VLOOKUP(CA7,Tables!Q$5:R$100,2,FALSE))) -> 0 | CD7: N | CE7: =IF($AZ7="","",IF(ISNA(VLOOKUP(CD7,Tables!S$5:T$100,2,FALSE)),0,VLOOKUP(CD7,Tables!S$5:T$100,2,FALSE))) -> 0 | CG7: N | CH7: =IF($AZ7="","",IF(ISNA(VLOOKUP(CG7,Tables!U$5:V$100,2,FALSE)),0,VLOOKUP(CG7,Tables!U$5:V$100,2,FALSE))) -> 0 | CI7: 2010-11-04 | CJ7: 20 | CK7: 20 | CL7: =IF($AZ7="","",IF(ISERROR(CK7),0,IF(ISNA(VLOOKUP(CK7,Tables!W$5:X$100,2,FALSE)),"0",VLOOKUP(CK7,Tables!W$5:X$100,2,FALSE)))) -> 2 | CM7: 00:00:00 | CN7: 40506 | CO7: 0 | CP7: =IF($AZ7="","",IF(ISERROR(CO7),0,IF(ISNA(VLOOKUP(CO7,Tables!Y$5:Z$100,2,FALSE)),"0",VLOOKUP(CO7,Tables!Y$5:Z$100,2,FALSE)))) -> 0 | CQ7: light green sleeves with dark green horse stripe | CT7: =IF($AZ7="","",IF(ISERROR(CS7),0,IF(ISNA(VLOOKUP(CS7,Tables!AA$5:AB$100,2,FALSE)),"0",VLOOKUP(CS7,Tables!AA$5:AB$100,2,FALSE)))) -> 0 | CU7: 10000 | CV7: =IF(CU7="","",(Form!$H$3-CU7)/CU7*100) -> 0 | CW7: 3 | CX7: =IF($AZ7="","",IF(ISERROR(CW7),0,IF(ISNA(VLOOKUP(CW7,Tables!AC$5:AD$100,2,FALSE)),"0",VLOOKUP(CW7,Tables!AC$5:AD$100,2,FALSE)))) -> 0 | CY7: 7-10 4.7L | CZ7: 7 | DA7: 7 | DB7: =IF($AZ7="","",IF(ISERROR(DA7),0,IF(ISNA(VLOOKUP(DA7,Tables!AE$5:AF$100,2,FALSE)),"0",VLOOKUP(DA7,Tables!AE$5:AF$100,2,FALSE)))) -> 0 | DC7: 4.7L | DD7: 4.7 | DE7: 4.5 | DF7: 4.5 | DG7: 4.5 | DH7: =IF($AZ7="","",IF(ISERROR(DG7),0,IF(ISNA(VLOOKUP(DF7,Tables!AG$5:AH$100,2,FALSE)),"0",VLOOKUP(DF7,Tables!AG$5:AH$100,2,FALSE)))) -> 2 | DI7: 7 Burgundy Notes (14) 55.0kg 5yo b m | DL7: =IF($AZ7="","",IF(ISERROR(DK7),0,IF(ISNA(VLOOKUP(DK7,Tables!AI$5:AJ$100,2,FALSE)),"0",VLOOKUP(DK7,Tables!AI$5:AJ$100,2,FALSE)))) -> 0 | DM7: m | DR7: =IF($AZ7="","",IF(ISERROR(DQ7),0,IF(ISNA(VLOOKUP(DP7,Tables!AK$5:AL$100,2,FALSE)),"0",VLOOKUP(DP7,Tables!AK$5:AL$100,2,FALSE)))) -> 0 | DS7: Colours: Light green | DV7: =IF($AZ7="","",IF(ISERROR(DU7),0,IF(ISNA(VLOOKUP(DU7,Tables!AM$5:AN$100,2,FALSE)),"0",VLOOKUP(DU7,Tables!AM$5:AN$100,2,FALSE)))) -> 0 | DW7: ht green | EB7: =IF($BB7="","",IF(ISERROR(EA7),0,IF(ISNA(VLOOKUP(DZ7,Tables!AO$5:AP$100,2,FALSE)),"0",VLOOKUP(DZ7,Tables!AO$5:AP$100,2,FALSE)))) -> 0 | EC7: =IF(AZ7="","",VLOOKUP(AZ7,Race!$C$1:$N$100,12,FALSE)) -> 89 | ED7: 89 | EE7: 89 | EF7: =IF($BB7="","",IF(ISNA(VLOOKUP(EE7,Tables!AQ$5:AR$100,2,FALSE)),"0",VLOOKUP(EE7,Tables!AQ$5:AR$100,2,FALSE))) -> 0 | EG7: =IF(AZ7="","",IF(MainSheet!D14="Scratched","",BC7+BE7+BG7+BL7+BO7+BR7+BU7+BY7+CB7+CE7+CH7+CL7+CP7+CT7+CX7+DB7+DH7+DL7+DR7+DV7+EB7+EF7)) -> 23
A8: =IF(RaceLists!A8="","",IF(RaceLists!A8="END","END",IF(RaceLists!E8="","",getAddress(RaceLists!E8)))) -> http://formguide.cyberhorse.com.au/index.php/Form/form.html?formdate=2010-11-24&track=Bunbry&raceno=6 | M8: =IF(Meetings!B8="","",LEFT(Meetings!B8,FIND("(",Meetings!B8)-2)) -> KENILWORTH | N8: KENILWORTH | O8: =IF(Meetings!D8="","",getAddress(Meetings!D8)) -> http://www.tabonline.com.au/2010/11/24/AS01.html | P8: =IF(Meetings!E8="","",getAddress(Meetings!E8)) -> http://www.tabonline.com.au/2010/11/24/AS02.html | Q8: =IF(Meetings!F8="","",getAddress(Meetings!F8)) -> http://www.tabonline.com.au/2010/11/24/AS03.html | R8: =IF(Meetings!G8="","",getAddress(Meetings!G8)) -> http://www.tabonline.com.au/2010/11/24/AS04.html | S8: =IF(Meetings!H8="","",getAddress(Meetings!H8)) -> http://www.tabonline.com.au/2010/11/24/AS05.html | T8: =IF(Meetings!I8="","",getAddress(Meetings!I8)) -> http://www.tabonline.com.au/2010/11/24/AS06.html | U8: =IF(Meetings!J8="","",getAddress(Meetings!J8)) ->  | V8: =IF(Meetings!K8="","",getAddress(Meetings!K8)) ->  | W8: =IF(Meetings!L8="","",getAddress(Meetings!L8)) ->  | X8: =IF(Meetings!M8="","",getAddress(Meetings!M8)) ->  | Y8: =IF(Meetings!N8="","",getAddress(Meetings!N8)) ->  | AA8: 4 | AZ8: =IF(Form!I11<>"",LEFT(Form!C11,FIND("(",Form!C11)-2),"") -> Burgundy Notes | BB8: =IF(AZ8="","",Form!A11) -> 7 | BC8: =IF($AZ8="","",IF(ISNA(VLOOKUP(BB8,Tables!A$5:B$100,2,FALSE)),"0",VLOOKUP(BB8,Tables!A$5:B$100,2,FALSE))) -> 2 | BD8: =IF($AZ8="","",VLOOKUP(AZ8,Race!$C$1:$N$100,7,FALSE)) -> 0 | BE8: =IF($AZ8="","",IF(ISNA(VLOOKUP(BD8,Tables!C$5:D$100,2,FALSE)),"0",VLOOKUP(BD8,Tables!C$5:D$100,2,FALSE))) -> 0 | BF8: =IF(AZ8="","",Form!F11) -> 55 | BG8: =IF($AZ8="","",IF(ISNA(VLOOKUP(BF8,Tables!E$5:F$100,2,FALSE)),"0",VLOOKUP(BF8,Tables!E$5:F$100,2,FALSE))) -> 3 | BH8: Cd 55.0-0.0 | BI8: Cd 55.0 | BJ8: 0 | BK8: 55.0 | BL8: =IF($AZ8="","",IF(ISERROR(BK8),0,IF(ISNA(VLOOKUP(BJ8,Tables!G$5:H$100,2,FALSE)),"0",VLOOKUP(BJ8,Tables!G11:H$100,2,FALSE)))) -> 3 | BM8: =IF($AZ8="","",Form!G11) -> 0.7 | BN8: 5 | BO8: =IF($AZ8="","",IF(ISNA(VLOOKUP(BN8,Tables!I$5:J$100,2,FALSE)),"0",VLOOKUP(BN8,Tables!I$5:J$100,2,FALSE))) -> 3 | BP8: =IF($AZ8="","",Form!H11) -> 0 | BQ8: 1 | BR8: =IF($AZ8="","",IF(ISNA(VLOOKUP(BQ8,Tables!K$5:L$100,2,FALSE)),"0",VLOOKUP(BQ8,Tables!K$5:L$100,2,FALSE))) -> 8 | BS8: =IF($AZ8="","",Form!I11) -> 50 | BT8: 3 | BU8: =IF($AZ8="","",IF(ISNA(VLOOKUP(BT8,Tables!M$5:N$100,2,FALSE)),"0",VLOOKUP(BT8,Tables!M$5:N$100,2,FALSE))) -> 4 | BV8: =IF($AZ8="","",INDEX(Race!$D$1:$P$100,MATCH($AZ8,Race!$C$1:$C$100,0)+0,9)) -> 0 | BX8: N | BY8: =IF($AZ8="","",IF(ISNA(VLOOKUP(BX8,Tables!O$5:P$100,2,FALSE)),0,VLOOKUP(BX8,Tables!O$5:P$100,2,FALSE))) -> 0 | CA8: N | CB8: =IF($AZ8="","",IF(ISNA(VLOOKUP(CA8,Tables!Q$5:R$100,2,FALSE)),0,VLOOKUP(CA8,Tables!Q$5:R$100,2,FALSE))) -> 0 | CD8: N | CE8: =IF($AZ8="","",IF(ISNA(VLOOKUP(CD8,Tables!S$5:T$100,2,FALSE)),0,VLOOKUP(CD8,Tables!S$5:T$100,2,FALSE))) -> 0 | CG8: N | CH8: =IF($AZ8="","",IF(ISNA(VLOOKUP(CG8,Tables!U$5:V$100,2,FALSE)),0,VLOOKUP(CG8,Tables!U$5:V$100,2,FALSE))) -> 0 | CI8: 2010-11-10 | CJ8: 14 | CK8: 14 | CL8: =IF($AZ8="","",IF(ISERROR(CK8),0,IF(ISNA(VLOOKUP(CK8,Tables!W$5:X$100,2,FALSE)),"0",VLOOKUP(CK8,Tables!W$5:X$100,2,FALSE)))) -> 3 | CM8: 2010-02-28 | CN8: 269 | CO8: 0 | CP8: =IF($AZ8="","",IF(ISERROR(CO8),0,IF(ISNA(VLOOKUP(CO8,Tables!Y$5:Z$100,2,FALSE)),"0",VLOOKUP(CO8,Tables!Y$5:Z$100,2,FALSE)))) -> 0 | CQ8: 2010-02-03 | CR8: 294 | CS8: 0 | CT8: =IF($AZ8="","",IF(ISERROR(CS8),0,IF(ISNA(VLOOKUP(CS8,Tables!AA$5:AB$100,2,FALSE)),"0",VLOOKUP(CS8,Tables!AA$5:AB$100,2,FALSE)))) -> 0 | CU8: 10000 | CV8: =IF(CU8="","",(Form!$H$3-CU8)/CU8*100) -> 0 | CW8: 3 | CX8: =IF($AZ8="","",IF(ISERROR(CW8),0,IF(ISNA(VLOOKUP(CW8,Tables!AC$5:AD$100,2,FALSE)),"0",VLOOKUP(CW8,Tables!AC$5:AD$100,2,FALSE)))) -> 0 | CY8: 7-13 6.2L | CZ8: 7 | DA8: 7 | DB8: =IF($AZ8="","",IF(ISERROR(DA8),0,IF(ISNA(VLOOKUP(DA8,Tables!AE$5:AF$100,2,FALSE)),"0",VLOOKUP(DA8,Tables!AE$5:AF$100,2,FALSE)))) -> 0 | DC8: 6.2L | DD8: 6.2 | DE8: 6 | DF8: 6 | DG8: 6 | DH8: =IF($AZ8="","",IF(ISERROR(DG8),0,IF(ISNA(VLOOKUP(DF8,Tables!AG$5:AH$100,2,FALSE)),"0",VLOOKUP(DF8,Tables!AG$5:AH$100,2,FALSE)))) -> 0 | DI8: 2-6 3.0L | DJ8: 2 | DK8: 2 | DL8: =IF($AZ8="","",IF(ISERROR(DK8),0,IF(ISNA(VLOOKUP(DK8,Tables!AI$5:AJ$100,2,FALSE)),"0",VLOOKUP(DK8,Tables!AI$5:AJ$100,2,FALSE)))) -> 5 | DM8: .0L | DN8: .0 | DO8: 0 | DP8: 0 | DQ8: 0 | DR8: =IF($AZ8="","",IF(ISERROR(DQ8),0,IF(ISNA(VLOOKUP(DP8,Tables!AK$5:AL$100,2,FALSE)),"0",VLOOKUP(DP8,Tables!AK$5:AL$100,2,FALSE)))) -> 5 | DS8: 2-10 2.3L | DT8: 2 | DU8: 2 | DV8: =IF($AZ8="","",IF(ISERROR(DU8),0,IF(ISNA(VLOOKUP(DU8,Tables!AM$5:AN$100,2,FALSE)),"0",VLOOKUP(DU8,Tables!AM$5:AN$100,2,FALSE)))) -> 5 | DW8: 2.3L | DX8: 2.3 | DY8: 2.5 | DZ8: 2.5 | EA8: 2.5 | EB8: =IF($BB8="","",IF(ISERROR(EA8),0,IF(ISNA(VLOOKUP(DZ8,Tables!AO$5:AP$100,2,FALSE)),"0",VLOOKUP(DZ8,Tables!AO$5:AP$100,2,FALSE)))) -> 5 | EC8: =IF(AZ8="","",VLOOKUP(AZ8,Race!$C$1:$N$100,12,FALSE)) -> 0 | ED8: 0 | EE8: 0 | EF8: =IF($BB8="","",IF(ISNA(VLOOKUP(EE8,Tables!AQ$5:AR$100,2,FALSE)),"0",VLOOKUP(EE8,Tables!AQ$5:AR$100,2,FALSE))) -> 0 | EG8: =IF(AZ8="","",IF(MainSheet!D15="Scratched","",BC8+BE8+BG8+BL8+BO8+BR8+BU8+BY8+CB8+CE8+CH8+CL8+CP8+CT8+CX8+DB8+DH8+DL8+DR8+DV8+EB8+EF8)) -> 46
A9: =IF(RaceLists!A9="","",IF(RaceLists!A9="END","END",IF(RaceLists!E9="","",getAddress(RaceLists!E9)))) -> http://formguide.cyberhorse.com.au/index.php/Form/form.html?formdate=2010-11-24&track=Bunbry&raceno=7 | M9: =IF(Meetings!B9="","",LEFT(Meetings!B9,FIND("(",Meetings!B9)-2)) -> CHEPSTOW | N9: CHEPSTOW | O9: =IF(Meetings!D9="","",getAddress(Meetings!D9)) -> http://www.tabonline.com.au/2010/11/24/CS01.html | P9: =IF(Meetings!E9="","",getAddress(Meetings!E9)) -> http://www.tabonline.com.au/2010/11/24/CS02.html | Q9: =IF(Meetings!F9="","",getAddress(Meetings!F9)) ->  | R9: =IF(Meetings!G9="","",getAddress(Meetings!G9)) ->  | S9: =IF(Meetings!H9="","",getAddress(Meetings!H9)) ->  | T9: =IF(Meetings!I9="","",getAddress(Meetings!I9)) ->  | U9: =IF(Meetings!J9="","",getAddress(Meetings!J9)) ->  | V9: =IF(Meetings!K9="","",getAddress(Meetings!K9)) ->  | W9: =IF(Meetings!L9="","",getAddress(Meetings!L9)) ->  | X9: =IF(Meetings!M9="","",getAddress(Meetings!M9)) ->  | Y9: =IF(Meetings!N9="","",getAddress(Meetings!N9)) ->  | AA9: 5 | AZ9: =IF(Form!I12<>"",LEFT(Form!C12,FIND("(",Form!C12)-2),"") -> Champagne Journey | BB9: =IF(AZ9="","",Form!A12) -> 8 | BC9: =IF($AZ9="","",IF(ISNA(VLOOKUP(BB9,Tables!A$5:B$100,2,FALSE)),"0",VLOOKUP(BB9,Tables!A$5:B$100,2,FALSE))) -> 2 | BD9: =IF($AZ9="","",VLOOKUP(AZ9,Race!$C$1:$N$100,7,FALSE)) -> 12 | BE9: =IF($AZ9="","",IF(ISNA(VLOOKUP(BD9,Tables!C$5:D$100,2,FALSE)),"0",VLOOKUP(BD9,Tables!C$5:D$100,2,FALSE))) -> 1 | BF9: =IF(AZ9="","",Form!F12) -> 55 | BG9: =IF($AZ9="","",IF(ISNA(VLOOKUP(BF9,Tables!E$5:F$100,2,FALSE)),"0",VLOOKUP(BF9,Tables!E$5:F$100,2,FALSE))) -> 3 | BH9: Cd 55.0-0.0 | BI9: Cd 55.0 | BJ9: 0 | BK9: 55.0 | BL9: =IF($AZ9="","",IF(ISERROR(BK9),0,IF(ISNA(VLOOKUP(BJ9,Tables!G$5:H$100,2,FALSE)),"0",VLOOKUP(BJ9,Tables!G12:H$100,2,FALSE)))) -> 3 | BM9: =IF($AZ9="","",Form!G12) -> 0.5 | BN9: 7 | BO9: =IF($AZ9="","",IF(ISNA(VLOOKUP(BN9,Tables!I$5:J$100,2,FALSE)),"0",VLOOKUP(BN9,Tables!I$5:J$100,2,FALSE))) -> 2 | BP9: =IF($AZ9="","",Form!H12) -> 0 | BQ9: 1 | BR9: =IF($AZ9="","",IF(ISNA(VLOOKUP(BQ9,Tables!K$5:L$100,2,FALSE)),"0",VLOOKUP(BQ9,Tables!K$5:L$100,2,FALSE))) -> 8 | BS9: =IF($AZ9="","",Form!I12) -> 12.5 | BT9: 10 | BU9: =IF($AZ9="","",IF(ISNA(VLOOKUP(BT9,Tables!M$5:N$100,2,FALSE)),"0",VLOOKUP(BT9,Tables!M$5:N$100,2,FALSE))) -> 2 | BV9: =IF($AZ9="","",INDEX(Race!$D$1:$P$100,MATCH($AZ9,Race!$C$1:$C$100,0)+0,9)) -> 0 | BX9: N | BY9: =IF($AZ9="","",IF(ISNA(VLOOKUP(BX9,Tables!O$5:P$100,2,FALSE)),0,VLOOKUP(BX9,Tables!O$5:P$100,2,FALSE))) -> 0 | CA9: N | CB9: =IF($AZ9="","",IF(ISNA(VLOOKUP(CA9,Tables!Q$5:R$100,2,FALSE)),0,VLOOKUP(CA9,Tables!Q$5:R$100,2,FALSE))) -> 0 | CD9: N | CE9: =IF($AZ9="","",IF(ISNA(VLOOKUP(CD9,Tables!S$5:T$100,2,FALSE)),0,VLOOKUP(CD9,Tables!S$5:T$100,2,FALSE))) -> 0 | CG9: N | CH9: =IF($AZ9="","",IF(ISNA(VLOOKUP(CG9,Tables!U$5:V$100,2,FALSE)),0,VLOOKUP(CG9,Tables!U$5:V$100,2,FALSE))) -> 0 | CI9: 2010-11-10 | CJ9: 14 | CK9: 14 | CL9: =IF($AZ9="","",IF(ISERROR(CK9),0,IF(ISNA(VLOOKUP(CK9,Tables!W$5:X$100,2,FALSE)),"0",VLOOKUP(CK9,Tables!W$5:X$100,2,FALSE)))) -> 3 | CM9: 2010-10-24 | CN9: 31 | CO9: 31 | CP9: =IF($AZ9="","",IF(ISERROR(CO9),0,IF(ISNA(VLOOKUP(CO9,Tables!Y$5:Z$100,2,FALSE)),"0",VLOOKUP(CO9,Tables!Y$5:Z$100,2,FALSE)))) -> 0 | CQ9: 2010-09-02 | CR9: 83 | CS9: 83 | CT9: =IF($AZ9="","",IF(ISERROR(CS9),0,IF(ISNA(VLOOKUP(CS9,Tables!AA$5:AB$100,2,FALSE)),"0",VLOOKUP(CS9,Tables!AA$5:AB$100,2,FALSE)))) -> 0 | CU9: 10000 | CV9: =IF(CU9="","",(Form!$H$3-CU9)/CU9*100) -> 0 | CW9: 3 | CX9: =IF($AZ9="","",IF(ISERROR(CW9),0,IF(ISNA(VLOOKUP(CW9,Tables!AC$5:AD$100,2,FALSE)),"0",VLOOKUP(CW9,Tables!AC$5:AD$100,2,FALSE)))) -> 0 | CY9: 4-13 2.9L | CZ9: 4 | DA9: 4 | DB9: =IF($AZ9="","",IF(ISERROR(DA9),0,IF(ISNA(VLOOKUP(DA9,Tables!AE$5:AF$100,2,FALSE)),"0",VLOOKUP(DA9,Tables!AE$5:AF$100,2,FALSE)))) -> 2 | DC9: 2.9L | DD9: 2.9 | DE9: 3 | DF9: 3 | DG9: 3 | DH9: =IF($AZ9="","",IF(ISERROR(DG9),0,IF(ISNA(VLOOKUP(DF9,Tables!AG$5:AH$100,2,FALSE)),"0",VLOOKUP(DF9,Tables!AG$5:AH$100,2,FALSE)))) -> 3 | DI9: 4-12 0.6L | DJ9: 4 | DK9: 4 | DL9: =IF($AZ9="","",IF(ISERROR(DK9),0,IF(ISNA(VLOOKUP(DK9,Tables!AI$5:AJ$100,2,FALSE)),"0",VLOOKUP(DK9,Tables!AI$5:AJ$100,2,FALSE)))) -> 2 | DM9: 0.6L | DN9: 0.6 | DO9: 0.5 | DP9: 0.5 | DQ9: 0.5 | DR9: =IF($AZ9="","",IF(ISERROR(DQ9),0,IF(ISNA(VLOOKUP(DP9,Tables!AK$5:AL$100,2,FALSE)),"0",VLOOKUP(DP9,Tables!AK$5:AL$100,2,FALSE)))) -> 7 | DS9: 2-15 1.5L | DT9: 2 | DU9: 2 | DV9: =IF($AZ9="","",IF(ISERROR(DU9),0,IF(ISNA(VLOOKUP(DU9,Tables!AM$5:AN$100,2,FALSE)),"0",VLOOKUP(DU9,Tables!AM$5:AN$100,2,FALSE)))) -> 5 | DW9: 1.5L | DX9: 1.5 | DY9: 1.5 | DZ9: 1.5 | EA9: 1.5 | EB9: =IF($BB9="","",IF(ISERROR(EA9),0,IF(ISNA(VLOOKUP(DZ9,Tables!AO$5:AP$100,2,FALSE)),"0",VLOOKUP(DZ9,Tables!AO$5:AP$100,2,FALSE)))) -> 5 | EC9: =IF(AZ9="","",VLOOKUP(AZ9,Race!$C$1:$N$100,12,FALSE)) -> 87 | ED9: 87 | EE9: 87 | EF9: =IF($BB9="","",IF(ISNA(VLOOKUP(EE9,Tables!AQ$5:AR$100,2,FALSE)),"0",VLOOKUP(EE9,Tables!AQ$5:AR$100,2,FALSE))) -> 0 | EG9: =IF(AZ9="","",IF(MainSheet!D16="Scratched","",BC9+BE9+BG9+BL9+BO9+BR9+BU9+BY9+CB9+CE9+CH9+CL9+CP9+CT9+CX9+DB9+DH9+DL9+DR9+DV9+EB9+EF9)) -> 48
A10: =IF(RaceLists!A10="","",IF(RaceLists!A10="END","END",IF(RaceLists!E10="","",getAddress(RaceLists!E10)))) -> http://formguide.cyberhorse.com.au/index.php/Form/form.html?formdate=2010-11-24&track=Bunbry&raceno=8 | M10: =IF(Meetings!B10="","",LEFT(Meetings!B10,FIND("(",Meetings!B10)-2)) -> LINGFIELD | N10: LINGFIELD | O10: =IF(Meetings!D10="","",getAddress(Meetings!D10)) -> http://www.tabonline.com.au/2010/11/24/ES01.html | P10: =IF(Meetings!E10="","",getAddress(Meetings!E10)) -> http://www.tabonline.com.au/2010/11/24/ES02.html | Q10: =IF(Meetings!F10="","",getAddress(Meetings!F10)) -> http://www.tabonline.com.au/2010/11/24/ES03.html | R10: =IF(Meetings!G10="","",getAddress(Meetings!G10)) -> http://www.tabonline.com.au/2010/11/24/ES04.html | S10: =IF(Meetings!H10="","",getAddress(Meetings!H10)) -> http://www.tabonline.com.au/2010/11/24/ES05.html | T10: =IF(Meetings!I10="","",getAddress(Meetings!I10)) -> http://www.tabonline.com.au/2010/11/24/ES06.html | U10: =IF(Meetings!J10="","",getAddress(Meetings!J10)) ->  | V10: =IF(Meetings!K10="","",getAddress(Meetings!K10)) ->  | W10: =IF(Meetings!L10="","",getAddress(Meetings!L10)) ->  | X10: =IF(Meetings!M10="","",getAddress(Meetings!M10)) ->  | Y10: =IF(Meetings!N10="","",getAddress(Meetings!N10)) ->  | AA10: 6 | AZ10: =IF(Form!I13<>"",LEFT(Form!C13,FIND("(",Form!C13)-2),"") -> Coco Loco | BB10: =IF(AZ10="","",Form!A13) -> 9 | BC10: =IF($AZ10="","",IF(ISNA(VLOOKUP(BB10,Tables!A$5:B$100,2,FALSE)),"0",VLOOKUP(BB10,Tables!A$5:B$100,2,FALSE))) -> 2 | BD10: =IF($AZ10="","",VLOOKUP(AZ10,Race!$C$1:$N$100,7,FALSE)) -> 7 | BE10: =IF($AZ10="","",IF(ISNA(VLOOKUP(BD10,Tables!C$5:D$100,2,FALSE)),"0",VLOOKUP(BD10,Tables!C$5:D$100,2,FALSE))) -> 2 | BF10: =IF(AZ10="","",Form!F13) -> 55 | BG10: =IF($AZ10="","",IF(ISNA(VLOOKUP(BF10,Tables!E$5:F$100,2,FALSE)),"0",VLOOKUP(BF10,Tables!E$5:F$100,2,FALSE))) -> 3 | BH10: Cd 56.5-0.0 | BI10: Cd 56.5 | BJ10: -1.5 | BK10: 56.5 | BL10: =IF($AZ10="","",IF(ISERROR(BK10),0,IF(ISNA(VLOOKUP(BJ10,Tables!G$5:H$100,2,FALSE)),"0",VLOOKUP(BJ10,Tables!G13:H$100,2,FALSE)))) -> 3 | BM10: =IF($AZ10="","",Form!G13) -> 0.7 | BN10: 5 | BO10: =IF($AZ10="","",IF(ISNA(VLOOKUP(BN10,Tables!I$5:J$100,2,FALSE)),"0",VLOOKUP(BN10,Tables!I$5:J$100,2,FALSE))) -> 3 | BP10: =IF($AZ10="","",Form!H13) -> 0 | BQ10: 1 | BR10: =IF($AZ10="","",IF(ISNA(VLOOKUP(BQ10,Tables!K$5:L$100,2,FALSE)),"0",VLOOKUP(BQ10,Tables!K$5:L$100,2,FALSE))) -> 8 | BS10: =IF($AZ10="","",Form!I13) -> 29.4 | BT10: 6 | BU10: =IF($AZ10="","",IF(ISNA(VLOOKUP(BT10,Tables!M$5:N$100,2,FALSE)),"0",VLOOKUP(BT10,Tables!M$5:N$100,2,FALSE))) -> 2 | BV10: =IF($AZ10="","",INDEX(Race!$D$1:$P$100,MATCH($AZ10,Race!$C$1:$C$100,0)+0,9)) -> 0 | BX10: N | BY10: =IF($AZ10="","",IF(ISNA(VLOOKUP(BX10,Tables!O$5:P$100,2,FALSE)),0,VLOOKUP(BX10,Tables!O$5:P$100,2,FALSE))) -> 0 | CA10: N | CB10: =IF($AZ10="","",IF(ISNA(VLOOKUP(CA10,Tables!Q$5:R$100,2,FALSE)),0,VLOOKUP(CA10,Tables!Q$5:R$100,2,FALSE))) -> 0 | CD10: N | CE10: =IF($AZ10="","",IF(ISNA(VLOOKUP(CD10,Tables!S$5:T$100,2,FALSE)),0,VLOOKUP(CD10,Tables!S$5:T$100,2,FALSE))) -> 0 | CG10: N | CH10: =IF($AZ10="","",IF(ISNA(VLOOKUP(CG10,Tables!U$5:V$100,2,FALSE)),0,VLOOKUP(CG10,Tables!U$5:V$100,2,FALSE))) -> 0 | CI10: 2010-07-31 | CJ10: 116 | CK10: 0 | CL10: =IF($AZ10="","",IF(ISERROR(CK10),0,IF(ISNA(VLOOKUP(CK10,Tables!W$5:X$100,2,FALSE)),"0",VLOOKUP(CK10,Tables!W$5:X$100,2,FALSE)))) -> 0 | CM10: 2010-07-17 | CN10: 130 | CO10: 0 | CP10: =IF($AZ10="","",IF(ISERROR(CO10),0,IF(ISNA(VLOOKUP(CO10,Tables!Y$5:Z$100,2,FALSE)),"0",VLOOKUP(CO10,Tables!Y$5:Z$100,2,FALSE)))) -> 0 | CQ10: 2010-07-03 | CR10: 144 | CS10: 0 | CT10: =IF($AZ10="","",IF(ISERROR(CS10),0,IF(ISNA(VLOOKUP(CS10,Tables!AA$5:AB$100,2,FALSE)),"0",VLOOKUP(CS10,Tables!AA$5:AB$100,2,FALSE)))) -> 0 | CU10: 14000 | CV10: =IF(CU10="","",(Form!$H$3-CU10)/CU10*100) -> -28.57142857 | CW10: 2 | CX10: =IF($AZ10="","",IF(ISERROR(CW10),0,IF(ISNA(VLOOKUP(CW10,Tables!AC$5:AD$100,2,FALSE)),"0",VLOOKUP(CW10,Tables!AC$5:AD$100,2,FALSE)))) -> 10 | CY10: 3-8 4.6L | CZ10: 3 | DA10: 3 | DB10: =IF($AZ10="","",IF(ISERROR(DA10),0,IF(ISNA(VLOOKUP(DA10,Tables!AE$5:AF$100,2,FALSE)),"0",VLOOKUP(DA10,Tables!AE$5:AF$100,2,FALSE)))) -> 3 | DC10: 4.6L | DD10: 4.6 | DE10: 4.5 | DF10: 4.5 | DG10: 4.5 | DH10: =IF($AZ10="","",IF(ISERROR(DG10),0,IF(ISNA(VLOOKUP(DF10,Tables!AG$5:AH$100,2,FALSE)),"0",VLOOKUP(DF10,Tables!AG$5:AH$100,2,FALSE)))) -> 2 | DI10: 2-14 0.2L | DJ10: 2 | DK10: 2 | DL10: =IF($AZ10="","",IF(ISERROR(DK10),0,IF(ISNA(VLOOKUP(DK10,Tables!AI$5:AJ$100,2,FALSE)),"0",VLOOKUP(DK10,Tables!AI$5:AJ$100,2,FALSE)))) -> 5 | DM10: 0.2L | DN10: 0.2 | DO10: 0 | DP10: 0 | DQ10: 0 | DR10: =IF($AZ10="","",IF(ISERROR(DQ10),0,IF(ISNA(VLOOKUP(DP10,Tables!AK$5:AL$100,2,FALSE)),"0",VLOOKUP(DP10,Tables!AK$5:AL$100,2,FALSE)))) -> 5 | DS10: 4-14 3.5L | DT10: 4 | DU10: 4 | DV10: =IF($AZ10="","",IF(ISERROR(DU10),0,IF(ISNA(VLOOKUP(DU10,Tables!AM$5:AN$100,2,FALSE)),"0",VLOOKUP(DU10,Tables!AM$5:AN$100,2,FALSE)))) -> 2 | DW10: 3.5L | DX10: 3.5 | DY10: 3.5 | DZ10: 3.5 | EA10: 3.5 | EB10: =IF($BB10="","",IF(ISERROR(EA10),0,IF(ISNA(VLOOKUP(DZ10,Tables!AO$5:AP$100,2,FALSE)),"0",VLOOKUP(DZ10,Tables!AO$5:AP$100,2,FALSE)))) -> 2 | EC10: =IF(AZ10="","",VLOOKUP(AZ10,Race!$C$1:$N$100,12,FALSE)) -> 88 | ED10: 88 | EE10: 88 | EF10: =IF($BB10="","",IF(ISNA(VLOOKUP(EE10,Tables!AQ$5:AR$100,2,FALSE)),"0",VLOOKUP(EE10,Tables!AQ$5:AR$100,2,FALSE))) -> 0 | EG10: =IF(AZ10="","",IF(MainSheet!D17="Scratched","",BC10+BE10+BG10+BL10+BO10+BR10+BU10+BY10+CB10+CE10+CH10+CL10+CP10+CT10+CX10+DB10+DH10+DL10+DR10+DV10+EB10+EF10)) -> 52
A11: =IF(RaceLists!A11="","",IF(RaceLists!A11="END","END",IF(RaceLists!E11="","",getAddress(RaceLists!E11)))) ->  | M11: =IF(Meetings!B11="","",LEFT(Meetings!B11,FIND("(",Meetings!B11)-2)) -> HAPPY VALLEY | N11: HAPPY | O11: =IF(Meetings!D11="","",getAddress(Meetings!D11)) -> http://www.tabonline.com.au/2010/11/24/OS01.html | P11: =IF(Meetings!E11="","",getAddress(Meetings!E11)) -> http://www.tabonline.com.au/2010/11/24/OS02.html | Q11: =IF(Meetings!F11="","",getAddress(Meetings!F11)) -> http://www.tabonline.com.au/2010/11/24/OS03.html | R11: =IF(Meetings!G11="","",getAddress(Meetings!G11)) -> http://www.tabonline.com.au/2010/11/24/OS04.html | S11: =IF(Meetings!H11="","",getAddress(Meetings!H11)) -> http://www.tabonline.com.au/2010/11/24/OS05.html | T11: =IF(Meetings!I11="","",getAddress(Meetings!I11)) -> http://www.tabonline.com.au/2010/11/24/OS06.html | U11: =IF(Meetings!J11="","",getAddress(Meetings!J11)) -> http://www.tabonline.com.au/2010/11/24/OS07.html | V11: =IF(Meetings!K11="","",getAddress(Meetings!K11)) -> http://www.tabonline.com.au/2010/11/24/OS08.html | W11: =IF(Meetings!L11="","",getAddress(Meetings!L11)) ->  | X11: =IF(Meetings!M11="","",getAddress(Meetings!M11)) ->  | Y11: =IF(Meetings!N11="","",getAddress(Meetings!N11)) ->  | AA11: 7 | AZ11: =IF(Form!I14<>"",LEFT(Form!C14,FIND("(",Form!C14)-2),"") -> Often Away | BB11: =IF(AZ11="","",Form!A14) -> 10 | BC11: =IF($AZ11="","",IF(ISNA(VLOOKUP(BB11,Tables!A$5:B$100,2,FALSE)),"0",VLOOKUP(BB11,Tables!A$5:B$100,2,FALSE))) -> 1 | BD11: =IF($AZ11="","",VLOOKUP(AZ11,Race!$C$1:$N$100,7,FALSE)) -> 0 | BE11: =IF($AZ11="","",IF(ISNA(VLOOKUP(BD11,Tables!C$5:D$100,2,FALSE)),"0",VLOOKUP(BD11,Tables!C$5:D$100,2,FALSE))) -> 0 | BF11: =IF(AZ11="","",Form!F14) -> 55 | BG11: =IF($AZ11="","",IF(ISNA(VLOOKUP(BF11,Tables!E$5:F$100,2,FALSE)),"0",VLOOKUP(BF11,Tables!E$5:F$100,2,FALSE))) -> 3 | BH11: Cd 56.5-0.0 | BI11: Cd 56.5 | BJ11: -1.5 | BK11: 56.5 | BL11: =IF($AZ11="","",IF(ISERROR(BK11),0,IF(ISNA(VLOOKUP(BJ11,Tables!G$5:H$100,2,FALSE)),"0",VLOOKUP(BJ11,Tables!G14:H$100,2,FALSE)))) -> 3 | BM11: =IF($AZ11="","",Form!G14) -> 1.1 | BN11: 2 | BO11: =IF($AZ11="","",IF(ISNA(VLOOKUP(BN11,Tables!I$5:J$100,2,FALSE)),"0",VLOOKUP(BN11,Tables!I$5:J$100,2,FALSE))) -> 6 | BP11: =IF($AZ11="","",Form!H14) -> 0 | BQ11: 1 | BR11: =IF($AZ11="","",IF(ISNA(VLOOKUP(BQ11,Tables!K$5:L$100,2,FALSE)),"0",VLOOKUP(BQ11,Tables!K$5:L$100,2,FALSE))) -> 8 | BS11: =IF($AZ11="","",Form!I14) -> 57.1 | BT11: 1 | BU11: =IF($AZ11="","",IF(ISNA(VLOOKUP(BT11,Tables!M$5:N$100,2,FALSE)),"0",VLOOKUP(BT11,Tables!M$5:N$100,2,FALSE))) -> 8 | BV11: =IF($AZ11="","",INDEX(Race!$D$1:$P$100,MATCH($AZ11,Race!$C$1:$C$100,0)+0,9)) -> 0 | BX11: N | BY11: =IF($AZ11="","",IF(ISNA(VLOOKUP(BX11,Tables!O$5:P$100,2,FALSE)),0,VLOOKUP(BX11,Tables!O$5:P$100,2,FALSE))) -> 0 | CA11: N | CB11: =IF($AZ11="","",IF(ISNA(VLOOKUP(CA11,Tables!Q$5:R$100,2,FALSE)),0,VLOOKUP(CA11,Tables!Q$5:R$100,2,FALSE))) -> 0 | CD11: N | CE11: =IF($AZ11="","",IF(ISNA(VLOOKUP(CD11,Tables!S$5:T$100,2,FALSE)),0,VLOOKUP(CD11,Tables!S$5:T$100,2,FALSE))) -> 0 | CG11: N | CH11: =IF($AZ11="","",IF(ISNA(VLOOKUP(CG11,Tables!U$5:V$100,2,FALSE)),0,VLOOKUP(CG11,Tables!U$5:V$100,2,FALSE))) -> 0 | CI11: 2010-11-17 | CJ11: 7 | CK11: 7 | CL11: =IF($AZ11="","",IF(ISERROR(CK11),0,IF(ISNA(VLOOKUP(CK11,Tables!W$5:X$100,2,FALSE)),"0",VLOOKUP(CK11,Tables!W$5:X$100,2,FALSE)))) -> 5 | CM11: 2010-11-04 | CN11: 20 | CO11: 20 | CP11: =IF($AZ11="","",IF(ISERROR(CO11),0,IF(ISNA(VLOOKUP(CO11,Tables!Y$5:Z$100,2,FALSE)),"0",VLOOKUP(CO11,Tables!Y$5:Z$100,2,FALSE)))) -> 3 | CQ11: 2010-10-20 | CR11: 35 | CS11: 35 | CT11: =IF($AZ11="","",IF(ISERROR(CS11),0,IF(ISNA(VLOOKUP(CS11,Tables!AA$5:AB$100,2,FALSE)),"0",VLOOKUP(CS11,Tables!AA$5:AB$100,2,FALSE)))) -> 2 | CU11: 10000 | CV11: =IF(CU11="","",(Form!$H$3-CU11)/CU11*100) -> 0 | CW11: 3 | CX11: =IF($AZ11="","",IF(ISERROR(CW11),0,IF(ISNA(VLOOKUP(CW11,Tables!AC$5:AD$100,2,FALSE)),"0",VLOOKUP(CW11,Tables!AC$5:AD$100,2,FALSE)))) -> 0 | CY11: 2-13 0.1L | CZ11: 2 | DA11: 2 | DB11: =IF($AZ11="","",IF(ISERROR(DA11),0,IF(ISNA(VLOOKUP(DA11,Tables!AE$5:AF$100,2,FALSE)),"0",VLOOKUP(DA11,Tables!AE$5:AF$100,2,FALSE)))) -> 5 | DC11: 0.1L | DD11: 0.1 | DE11: 0 | DF11: 0 | DG11: 0 | DH11: =IF($AZ11="","",IF(ISERROR(DG11),0,IF(ISNA(VLOOKUP(DF11,Tables!AG$5:AH$100,2,FALSE)),"0",VLOOKUP(DF11,Tables!AG$5:AH$100,2,FALSE)))) -> 5 | DI11: 2-10 0.1L | DJ11: 2 | DK11: 2 | DL11: =IF($AZ11="","",IF(ISERROR(DK11),0,IF(ISNA(VLOOKUP(DK11,Tables!AI$5:AJ$100,2,FALSE)),"0",VLOOKUP(DK11,Tables!AI$5:AJ$100,2,FALSE)))) -> 5 | DM11: 0.1L | DN11: 0.1 | DO11: 0 | DP11: 0 | DQ11: 0 | DR11: =IF($AZ11="","",IF(ISERROR(DQ11),0,IF(ISNA(VLOOKUP(DP11,Tables!AK$5:AL$100,2,FALSE)),"0",VLOOKUP(DP11,Tables!AK$5:AL$100,2,FALSE)))) -> 5 | DS11: 4-10 4.6L | DT11: 4 | DU11: 4 | DV11: =IF($AZ11="","",IF(ISERROR(DU11),0,IF(ISNA(VLOOKUP(DU11,Tables!AM$5:AN$100,2,FALSE)),"0",VLOOKUP(DU11,Tables!AM$5:AN$100,2,FALSE)))) -> 2 | DW11: 4.6L | DX11: 4.6 | DY11: 4.5 | DZ11: 4.5 | EA11: 4.5 | EB11: =IF($BB11="","",IF(ISERROR(EA11),0,IF(ISNA(VLOOKUP(DZ11,Tables!AO$5:AP$100,2,FALSE)),"0",VLOOKUP(DZ11,Tables!AO$5:AP$100,2,FALSE)))) -> 2 | EC11: =IF(AZ11="","",VLOOKUP(AZ11,Race!$C$1:$N$100,12,FALSE)) -> 0 | ED11: 0 | EE11: 0 | EF11: =IF($BB11="","",IF(ISNA(VLOOKUP(EE11,Tables!AQ$5:AR$100,2,FALSE)),"0",VLOOKUP(EE11,Tables!AQ$5:AR$100,2,FALSE))) -> 0 | EG11: =IF(AZ11="","",IF(MainSheet!D18="Scratched","",BC11+BE11+BG11+BL11+BO11+BR11+BU11+BY11+CB11+CE11+CH11+CL11+CP11+CT11+CX11+DB11+DH11+DL11+DR11+DV11+EB11+EF11)) -> 63
A12: =IF(RaceLists!A12="","",IF(RaceLists!A12="END","END",IF(RaceLists!E12="","",getAddress(RaceLists!E12)))) -> http://formguide.cyberhorse.com.au/index.php/Form/form.html?formdate=2010-11-24&track=D'Ben&raceno=1 | M12: =IF(Meetings!B12="","",LEFT(Meetings!B12,FIND("(",Meetings!B12)-2)) -> TE AROHA | N12: TE | O12: =IF(Meetings!D12="","",getAddress(Meetings!D12)) -> http://www.tabonline.com.au/2010/11/24/ZS01.html | P12: =IF(Meetings!E12="","",getAddress(Meetings!E12)) -> http://www.tabonline.com.au/2010/11/24/ZS02.html | Q12: =IF(Meetings!F12="","",getAddress(Meetings!F12)) -> http://www.tabonline.com.au/2010/11/24/ZS03.html | R12: =IF(Meetings!G12="","",getAddress(Meetings!G12)) -> http://www.tabonline.com.au/2010/11/24/ZS04.html | S12: =IF(Meetings!H12="","",getAddress(Meetings!H12)) -> http://www.tabonline.com.au/2010/11/24/ZS05.html | T12: =IF(Meetings!I12="","",getAddress(Meetings!I12)) -> http://www.tabonline.com.au/2010/11/24/ZS06.html | U12: =IF(Meetings!J12="","",getAddress(Meetings!J12)) -> http://www.tabonline.com.au/2010/11/24/ZS07.html | V12: =IF(Meetings!K12="","",getAddress(Meetings!K12)) -> http://www.tabonline.com.au/2010/11/24/ZS08.html | W12: =IF(Meetings!L12="","",getAddress(Meetings!L12)) -> http://www.tabonline.com.au/2010/11/24/ZS09.html | X12: =IF(Meetings!M12="","",getAddress(Meetings!M12)) -> http://www.tabonline.com.au/2010/11/24/ZS10.html | Y12: =IF(Meetings!N12="","",getAddress(Meetings!N12)) ->  | AA12: 8 | AZ12: =IF(Form!I15<>"",LEFT(Form!C15,FIND("(",Form!C15)-2),"") -> Promotional | BB12: =IF(AZ12="","",Form!A15) -> 11 | BC12: =IF($AZ12="","",IF(ISNA(VLOOKUP(BB12,Tables!A$5:B$100,2,FALSE)),"0",VLOOKUP(BB12,Tables!A$5:B$100,2,FALSE))) -> 1 | BD12: =IF($AZ12="","",VLOOKUP(AZ12,Race!$C$1:$N$100,7,FALSE)) -> 8 | BE12: =IF($AZ12="","",IF(ISNA(VLOOKUP(BD12,Tables!C$5:D$100,2,FALSE)),"0",VLOOKUP(BD12,Tables!C$5:D$100,2,FALSE))) -> 2 | BF12: =IF(AZ12="","",Form!F15) -> 55 | BG12: =IF($AZ12="","",IF(ISNA(VLOOKUP(BF12,Tables!E$5:F$100,2,FALSE)),"0",VLOOKUP(BF12,Tables!E$5:F$100,2,FALSE))) -> 3 | BH12: Cd 56.5-0.0 | BI12: Cd 56.5 | BJ12: -1.5 | BK12: 56.5 | BL12: =IF($AZ12="","",IF(ISERROR(BK12),0,IF(ISNA(VLOOKUP(BJ12,Tables!G$5:H$100,2,FALSE)),"0",VLOOKUP(BJ12,Tables!G15:H$100,2,FALSE)))) -> 3 | BM12: =IF($AZ12="","",Form!G15) -> 0 | BN12: 16 | BO12: =IF($AZ12="","",IF(ISNA(VLOOKUP(BN12,Tables!I$5:J$100,2,FALSE)),"0",VLOOKUP(BN12,Tables!I$5:J$100,2,FALSE))) -> 0 | BP12: =IF($AZ12="","",Form!H15) -> 0 | BQ12: 1 | BR12: =IF($AZ12="","",IF(ISNA(VLOOKUP(BQ12,Tables!K$5:L$100,2,FALSE)),"0",VLOOKUP(BQ12,Tables!K$5:L$100,2,FALSE))) -> 8 | BS12: =IF($AZ12="","",Form!I15) -> 0 | BT12: 11 | BU12: =IF($AZ12="","",IF(ISNA(VLOOKUP(BT12,Tables!M$5:N$100,2,FALSE)),"0",VLOOKUP(BT12,Tables!M$5:N$100,2,FALSE))) -> 2 | BV12: =IF($AZ12="","",INDEX(Race!$D$1:$P$100,MATCH($AZ12,Race!$C$1:$C$100,0)+0,9)) -> 0 | BX12: N | BY12: =IF($AZ12="","",IF(ISNA(VLOOKUP(BX12,Tables!O$5:P$100,2,FALSE)),0,VLOOKUP(BX12,Tables!O$5:P$100,2,FALSE))) -> 0 | CA12: N | CB12: =IF($AZ12="","",IF(ISNA(VLOOKUP(CA12,Tables!Q$5:R$100,2,FALSE)),0,VLOOKUP(CA12,Tables!Q$5:R$100,2,FALSE))) -> 0 | CD12: N | CE12: =IF($AZ12="","",IF(ISNA(VLOOKUP(CD12,Tables!S$5:T$100,2,FALSE)),0,VLOOKUP(CD12,Tables!S$5:T$100,2,FALSE))) -> 0 | CG12: N | CH12: =IF($AZ12="","",IF(ISNA(VLOOKUP(CG12,Tables!U$5:V$100,2,FALSE)),0,VLOOKUP(CG12,Tables!U$5:V$100,2,FALSE))) -> 0 | CI12: 2010-11-04 | CJ12: 20 | CK12: 20 | CL12: =IF($AZ12="","",IF(ISERROR(CK12),0,IF(ISNA(VLOOKUP(CK12,Tables!W$5:X$100,2,FALSE)),"0",VLOOKUP(CK12,Tables!W$5:X$100,2,FALSE)))) -> 2 | CM12: 00:00:00 | CN12: 40506 | CO12: 0 | CP12: =IF($AZ12="","",IF(ISERROR(CO12),0,IF(ISNA(VLOOKUP(CO12,Tables!Y$5:Z$100,2,FALSE)),"0",VLOOKUP(CO12,Tables!Y$5:Z$100,2,FALSE)))) -> 0 | CQ12: 00:00:00 | CR12: 40506 | CS12: 0 | CT12: =IF($AZ12="","",IF(ISERROR(CS12),0,IF(ISNA(VLOOKUP(CS12,Tables!AA$5:AB$100,2,FALSE)),"0",VLOOKUP(CS12,Tables!AA$5:AB$100,2,FALSE)))) -> 0 | CU12: 10000 | CV12: =IF(CU12="","",(Form!$H$3-CU12)/CU12*100) -> 0 | CW12: 3 | CX12: =IF($AZ12="","",IF(ISERROR(CW12),0,IF(ISNA(VLOOKUP(CW12,Tables!AC$5:AD$100,2,FALSE)),"0",VLOOKUP(CW12,Tables!AC$5:AD$100,2,FALSE)))) -> 0 | CY12: 6-9 4.8L | CZ12: 6 | DA12: 6 | DB12: =IF($AZ12="","",IF(ISERROR(DA12),0,IF(ISNA(VLOOKUP(DA12,Tables!AE$5:AF$100,2,FALSE)),"0",VLOOKUP(DA12,Tables!AE$5:AF$100,2,FALSE)))) -> 0 | DC12: 4.8L | DD12: 4.8 | DE12: 5 | DF12: 5 | DG12: 5 | DH12: =IF($AZ12="","",IF(ISERROR(DG12),0,IF(ISNA(VLOOKUP(DF12,Tables!AG$5:AH$100,2,FALSE)),"0",VLOOKUP(DF12,Tables!AG$5:AH$100,2,FALSE)))) -> 2 | DI12: 12 Red Savina (11) 55.0kg 4yo b m | DL12: =IF($AZ12="","",IF(ISERROR(DK12),0,IF(ISNA(VLOOKUP(DK12,Tables!AI$5:AJ$100,2,FALSE)),"0",VLOOKUP(DK12,Tables!AI$5:AJ$100,2,FALSE)))) -> 0 | DM12: m | DR12: =IF($AZ12="","",IF(ISERROR(DQ12),0,IF(ISNA(VLOOKUP(DP12,Tables!AK$5:AL$100,2,FALSE)),"0",VLOOKUP(DP12,Tables!AK$5:AL$100,2,FALSE)))) -> 0 | DS12: Colours: Royal blue | DV12: =IF($AZ12="","",IF(ISERROR(DU12),0,IF(ISNA(VLOOKUP(DU12,Tables!AM$5:AN$100,2,FALSE)),"0",VLOOKUP(DU12,Tables!AM$5:AN$100,2,FALSE)))) -> 0 | DW12: yal blue | EB12: =IF($BB12="","",IF(ISERROR(EA12),0,IF(ISNA(VLOOKUP(DZ12,Tables!AO$5:AP$100,2,FALSE)),"0",VLOOKUP(DZ12,Tables!AO$5:AP$100,2,FALSE)))) -> 0 | EC12: =IF(AZ12="","",VLOOKUP(AZ12,Race!$C$1:$N$100,12,FALSE)) -> 88 | ED12: 88 | EE12: 88 | EF12: =IF($BB12="","",IF(ISNA(VLOOKUP(EE12,Tables!AQ$5:AR$100,2,FALSE)),"0",VLOOKUP(EE12,Tables!AQ$5:AR$100,2,FALSE))) -> 0 | EG12: =IF(AZ12="","",IF(MainSheet!D19="Scratched","",BC12+BE12+BG12+BL12+BO12+BR12+BU12+BY12+CB12+CE12+CH12+CL12+CP12+CT12+CX12+DB12+DH12+DL12+DR12+DV12+EB12+EF12)) -> 23
A13: =IF(RaceLists!A13="","",IF(RaceLists!A13="END","END",IF(RaceLists!E13="","",getAddress(RaceLists!E13)))) -> http://formguide.cyberhorse.com.au/index.php/Form/form.html?formdate=2010-11-24&track=D'Ben&raceno=2 | M13: =IF(Meetings!B13="","",LEFT(Meetings!B13,FIND("(",Meetings!B13)-2)) ->  | O13: =IF(Meetings!D13="","",getAddress(Meetings!D13)) ->  | P13: =IF(Meetings!E13="","",getAddress(Meetings!E13)) ->  | Q13: =IF(Meetings!F13="","",getAddress(Meetings!F13)) ->  | R13: =IF(Meetings!G13="","",getAddress(Meetings!G13)) ->  | S13: =IF(Meetings!H13="","",getAddress(Meetings!H13)) ->  | T13: =IF(Meetings!I13="","",getAddress(Meetings!I13)) ->  | U13: =IF(Meetings!J13="","",getAddress(Meetings!J13)) ->  | V13: =IF(Meetings!K13="","",getAddress(Meetings!K13)) ->  | W13: =IF(Meetings!L13="","",getAddress(Meetings!L13)) ->  | X13: =IF(Meetings!M13="","",getAddress(Meetings!M13)) ->  | Y13: =IF(Meetings!N13="","",getAddress(Meetings!N13)) ->  | AA13: 9 | AZ13: =IF(Form!I16<>"",LEFT(Form!C16,FIND("(",Form!C16)-2),"") -> Red Savina | BB13: =IF(AZ13="","",Form!A16) -> 12 | BC13: =IF($AZ13="","",IF(ISNA(VLOOKUP(BB13,Tables!A$5:B$100,2,FALSE)),"0",VLOOKUP(BB13,Tables!A$5:B$100,2,FALSE))) -> 1 | BD13: =IF($AZ13="","",VLOOKUP(AZ13,Race!$C$1:$N$100,7,FALSE)) -> 0 | BE13: =IF($AZ13="","",IF(ISNA(VLOOKUP(BD13,Tables!C$5:D$100,2,FALSE)),"0",VLOOKUP(BD13,Tables!C$5:D$100,2,FALSE))) -> 0 | BF13: =IF(AZ13="","",Form!F16) -> 55 | BG13: =IF($AZ13="","",IF(ISNA(VLOOKUP(BF13,Tables!E$5:F$100,2,FALSE)),"0",VLOOKUP(BF13,Tables!E$5:F$100,2,FALSE))) -> 3 | BH13: Cd 56.5-0.0 | BI13: Cd 56.5 | BJ13: -1.5 | BK13: 56.5 | BL13: =IF($AZ13="","",IF(ISERROR(BK13),0,IF(ISNA(VLOOKUP(BJ13,Tables!G$5:H$100,2,FALSE)),"0",VLOOKUP(BJ13,Tables!G16:H$100,2,FALSE)))) -> 3 | BM13: =IF($AZ13="","",Form!G16) -> 1.2 | BN13: 1 | BO13: =IF($AZ13="","",IF(ISNA(VLOOKUP(BN13,Tables!I$5:J$100,2,FALSE)),"0",VLOOKUP(BN13,Tables!I$5:J$100,2,FALSE))) -> 8 | BP13: =IF($AZ13="","",Form!H16) -> 0 | BQ13: 1 | BR13: =IF($AZ13="","",IF(ISNA(VLOOKUP(BQ13,Tables!K$5:L$100,2,FALSE)),"0",VLOOKUP(BQ13,Tables!K$5:L$100,2,FALSE))) -> 8 | BS13: =IF($AZ13="","",Form!I16) -> 57.1 | BT13: 1 | BU13: =IF($AZ13="","",IF(ISNA(VLOOKUP(BT13,Tables!M$5:N$100,2,FALSE)),"0",VLOOKUP(BT13,Tables!M$5:N$100,2,FALSE))) -> 8 | BV13: =IF($AZ13="","",INDEX(Race!$D$1:$P$100,MATCH($AZ13,Race!$C$1:$C$100,0)+0,9)) -> 0 | BX13: N | BY13: =IF($AZ13="","",IF(ISNA(VLOOKUP(BX13,Tables!O$5:P$100,2,FALSE)),0,VLOOKUP(BX13,Tables!O$5:P$100,2,FALSE))) -> 0 | CA13: N | CB13: =IF($AZ13="","",IF(ISNA(VLOOKUP(CA13,Tables!Q$5:R$100,2,FALSE)),0,VLOOKUP(CA13,Tables!Q$5:R$100,2,FALSE))) -> 0 | CD13: N | CE13: =IF($AZ13="","",IF(ISNA(VLOOKUP(CD13,Tables!S$5:T$100,2,FALSE)),0,VLOOKUP(CD13,Tables!S$5:T$100,2,FALSE))) -> 0 | CG13: N | CH13: =IF($AZ13="","",IF(ISNA(VLOOKUP(CG13,Tables!U$5:V$100,2,FALSE)),0,VLOOKUP(CG13,Tables!U$5:V$100,2,FALSE))) -> 0 | CI13: 2010-11-04 | CJ13: 20 | CK13: 20 | CL13: =IF($AZ13="","",IF(ISERROR(CK13),0,IF(ISNA(VLOOKUP(CK13,Tables!W$5:X$100,2,FALSE)),"0",VLOOKUP(CK13,Tables!W$5:X$100,2,FALSE)))) -> 2 | CM13: 2010-10-21 | CN13: 34 | CO13: 34 | CP13: =IF($AZ13="","",IF(ISERROR(CO13),0,IF(ISNA(VLOOKUP(CO13,Tables!Y$5:Z$100,2,FALSE)),"0",VLOOKUP(CO13,Tables!Y$5:Z$100,2,FALSE)))) -> 0 | CQ13: 2010-10-06 | CR13: 49 | CS13: 49 | CT13: =IF($AZ13="","",IF(ISERROR(CS13),0,IF(ISNA(VLOOKUP(CS13,Tables!AA$5:AB$100,2,FALSE)),"0",VLOOKUP(CS13,Tables!AA$5:AB$100,2,FALSE)))) -> 0 | CU13: 10000 | CV13: =IF(CU13="","",(Form!$H$3-CU13)/CU13*100) -> 0 | CW13: 3 | CX13: =IF($AZ13="","",IF(ISERROR(CW13),0,IF(ISNA(VLOOKUP(CW13,Tables!AC$5:AD$100,2,FALSE)),"0",VLOOKUP(CW13,Tables!AC$5:AD$100,2,FALSE)))) -> 0 | CY13: 6-10 4.1L | CZ13: 6 | DA13: 6 | DB13: =IF($AZ13="","",IF(ISERROR(DA13),0,IF(ISNA(VLOOKUP(DA13,Tables!AE$5:AF$100,2,FALSE)),"0",VLOOKUP(DA13,Tables!AE$5:AF$100,2,FALSE)))) -> 0 | DC13: 4.1L | DD13: 4.1 | DE13: 4 | DF13: 4 | DG13: 4 | DH13: =IF($AZ13="","",IF(ISERROR(DG13),0,IF(ISNA(VLOOKUP(DF13,Tables!AG$5:AH$100,2,FALSE)),"0",VLOOKUP(DF13,Tables!AG$5:AH$100,2,FALSE)))) -> 2 | DI13: 2-14 0.8L | DJ13: 2 | DK13: 2 | DL13: =IF($AZ13="","",IF(ISERROR(DK13),0,IF(ISNA(VLOOKUP(DK13,Tables!AI$5:AJ$100,2,FALSE)),"0",VLOOKUP(DK13,Tables!AI$5:AJ$100,2,FALSE)))) -> 5 | DM13: 0.8L | DN13: 0.8 | DO13: 1 | DP13: 1 | DQ13: 1 | DR13: =IF($AZ13="","",IF(ISERROR(DQ13),0,IF(ISNA(VLOOKUP(DP13,Tables!AK$5:AL$100,2,FALSE)),"0",VLOOKUP(DP13,Tables!AK$5:AL$100,2,FALSE)))) -> 7 | DS13: 2-10 0.5L | DT13: 2 | DU13: 2 | DV13: =IF($AZ13="","",IF(ISERROR(DU13),0,IF(ISNA(VLOOKUP(DU13,Tables!AM$5:AN$100,2,FALSE)),"0",VLOOKUP(DU13,Tables!AM$5:AN$100,2,FALSE)))) -> 5 | DW13: 0.5L | DX13: 0.5 | DY13: 0.5 | DZ13: 0.5 | EA13: 0.5 | EB13: =IF($BB13="","",IF(ISERROR(EA13),0,IF(ISNA(VLOOKUP(DZ13,Tables!AO$5:AP$100,2,FALSE)),"0",VLOOKUP(DZ13,Tables!AO$5:AP$100,2,FALSE)))) -> 7 | EC13: =IF(AZ13="","",VLOOKUP(AZ13,Race!$C$1:$N$100,12,FALSE)) -> 0 | ED13: 0 | EE13: 0 | EF13: =IF($BB13="","",IF(ISNA(VLOOKUP(EE13,Tables!AQ$5:AR$100,2,FALSE)),"0",VLOOKUP(EE13,Tables!AQ$5:AR$100,2,FALSE))) -> 0 | EG13: =IF(AZ13="","",IF(MainSheet!D20="Scratched","",BC13+BE13+BG13+BL13+BO13+BR13+BU13+BY13+CB13+CE13+CH13+CL13+CP13+CT13+CX13+DB13+DH13+DL13+DR13+DV13+EB13+EF13)) -> 59
A14: =IF(RaceLists!A14="","",IF(RaceLists!A14="END","END",IF(RaceLists!E14="","",getAddress(RaceLists!E14)))) -> http://formguide.cyberhorse.com.au/index.php/Form/form.html?formdate=2010-11-24&track=D'Ben&raceno=3 | M14: =IF(Meetings!B14="","",LEFT(Meetings!B14,FIND("(",Meetings!B14)-2)) -> REDCLIFFE | N14: REDCLIFFE | O14: =IF(Meetings!D14="","",getAddress(Meetings!D14)) -> http://www.tabonline.com.au/2010/11/24/BT01.html | P14: =IF(Meetings!E14="","",getAddress(Meetings!E14)) -> http://www.tabonline.com.au/2010/11/24/BT02.html | Q14: =IF(Meetings!F14="","",getAddress(Meetings!F14)) -> http://www.tabonline.com.au/2010/11/24/BT03.html | R14: =IF(Meetings!G14="","",getAddress(Meetings!G14)) -> http://www.tabonline.com.au/2010/11/24/BT04.html | S14: =IF(Meetings!H14="","",getAddress(Meetings!H14)) -> http://www.tabonline.com.au/2010/11/24/BT05.html | T14: =IF(Meetings!I14="","",getAddress(Meetings!I14)) -> http://www.tabonline.com.au/2010/11/24/BT06.html | U14: =IF(Meetings!J14="","",getAddress(Meetings!J14)) -> http://www.tabonline.com.au/2010/11/24/BT07.html | V14: =IF(Meetings!K14="","",getAddress(Meetings!K14)) -> http://www.tabonline.com.au/2010/11/24/BT08.html | W14: =IF(Meetings!L14="","",getAddress(Meetings!L14)) ->  | X14: =IF(Meetings!M14="","",getAddress(Meetings!M14)) ->  | Y14: =IF(Meetings!N14="","",getAddress(Meetings!N14)) ->  | AA14: 10 | AZ14: =IF(Form!I17<>"",LEFT(Form!C17,FIND("(",Form!C17)-2),"") -> September Rain | BB14: =IF(AZ14="","",Form!A17) -> 13 | BC14: =IF($AZ14="","",IF(ISNA(VLOOKUP(BB14,Tables!A$5:B$100,2,FALSE)),"0",VLOOKUP(BB14,Tables!A$5:B$100,2,FALSE))) -> 0 | BD14: =IF($AZ14="","",VLOOKUP(AZ14,Race!$C$1:$N$100,7,FALSE)) -> 4 | BE14: =IF($AZ14="","",IF(ISNA(VLOOKUP(BD14,Tables!C$5:D$100,2,FALSE)),"0",VLOOKUP(BD14,Tables!C$5:D$100,2,FALSE))) -> 3 | BF14: =IF(AZ14="","",Form!F17) -> 53.5 | BG14: =IF($AZ14="","",IF(ISNA(VLOOKUP(BF14,Tables!E$5:F$100,2,FALSE)),"0",VLOOKUP(BF14,Tables!E$5:F$100,2,FALSE))) -> 2 | BH14: Cd 55.0-0.0 | BI14: Cd 55.0 | BJ14: -1.5 | BK14: 55.0 | BL14: =IF($AZ14="","",IF(ISERROR(BK14),0,IF(ISNA(VLOOKUP(BJ14,Tables!G$5:H$100,2,FALSE)),"0",VLOOKUP(BJ14,Tables!G17:H$100,2,FALSE)))) -> 3 | BM14: =IF($AZ14="","",Form!G17) -> 0.3 | BN14: 9 | BO14: =IF($AZ14="","",IF(ISNA(VLOOKUP(BN14,Tables!I$5:J$100,2,FALSE)),"0",VLOOKUP(BN14,Tables!I$5:J$100,2,FALSE))) -> 2 | BP14: =IF($AZ14="","",Form!H17) -> 0 | BQ14: 1 | BR14: =IF($AZ14="","",IF(ISNA(VLOOKUP(BQ14,Tables!K$5:L$100,2,FALSE)),"0",VLOOKUP(BQ14,Tables!K$5:L$100,2,FALSE))) -> 8 | BS14: =IF($AZ14="","",Form!I17) -> 0 | BT14: 11 | BU14: =IF($AZ14="","",IF(ISNA(VLOOKUP(BT14,Tables!M$5:N$100,2,FALSE)),"0",VLOOKUP(BT14,Tables!M$5:N$100,2,FALSE))) -> 2 | BV14: =IF($AZ14="","",INDEX(Race!$D$1:$P$100,MATCH($AZ14,Race!$C$1:$C$100,0)+0,9)) -> 0 | BX14: N | BY14: =IF($AZ14="","",IF(ISNA(VLOOKUP(BX14,Tables!O$5:P$100,2,FALSE)),0,VLOOKUP(BX14,Tables!O$5:P$100,2,FALSE))) -> 0 | CA14: N | CB14: =IF($AZ14="","",IF(ISNA(VLOOKUP(CA14,Tables!Q$5:R$100,2,FALSE)),0,VLOOKUP(CA14,Tables!Q$5:R$100,2,FALSE))) -> 0 | CD14: N | CE14: =IF($AZ14="","",IF(ISNA(VLOOKUP(CD14,Tables!S$5:T$100,2,FALSE)),0,VLOOKUP(CD14,Tables!S$5:T$100,2,FALSE))) -> 0 | CG14: N | CH14: =IF($AZ14="","",IF(ISNA(VLOOKUP(CG14,Tables!U$5:V$100,2,FALSE)),0,VLOOKUP(CG14,Tables!U$5:V$100,2,FALSE))) -> 0 | CI14: 2010-11-04 | CJ14: 20 | CK14: 20 | CL14: =IF($AZ14="","",IF(ISERROR(CK14),0,IF(ISNA(VLOOKUP(CK14,Tables!W$5:X$100,2,FALSE)),"0",VLOOKUP(CK14,Tables!W$5:X$100,2,FALSE)))) -> 2 | CM14: 2010-10-04 | CN14: 51 | CO14: 51 | CP14: =IF($AZ14="","",IF(ISERROR(CO14),0,IF(ISNA(VLOOKUP(CO14,Tables!Y$5:Z$100,2,FALSE)),"0",VLOOKUP(CO14,Tables!Y$5:Z$100,2,FALSE)))) -> 0 | CQ14: 00:00:00 | CR14: 40506 | CS14: 0 | CT14: =IF($AZ14="","",IF(ISERROR(CS14),0,IF(ISNA(VLOOKUP(CS14,Tables!AA$5:AB$100,2,FALSE)),"0",VLOOKUP(CS14,Tables!AA$5:AB$100,2,FALSE)))) -> 0 | CU14: 10000 | CV14: =IF(CU14="","",(Form!$H$3-CU14)/CU14*100) -> 0 | CW14: 3 | CX14: =IF($AZ14="","",IF(ISERROR(CW14),0,IF(ISNA(VLOOKUP(CW14,Tables!AC$5:AD$100,2,FALSE)),"0",VLOOKUP(CW14,Tables!AC$5:AD$100,2,FALSE)))) -> 0 | CY14: 4-9 3.9L | CZ14: 4 | DA14: 4 | DB14: =IF($AZ14="","",IF(ISERROR(DA14),0,IF(ISNA(VLOOKUP(DA14,Tables!AE$5:AF$100,2,FALSE)),"0",VLOOKUP(DA14,Tables!AE$5:AF$100,2,FALSE)))) -> 2 | DC14: 3.9L | DD14: 3.9 | DE14: 4 | DF14: 4 | DG14: 4 | DH14: =IF($AZ14="","",IF(ISERROR(DG14),0,IF(ISNA(VLOOKUP(DF14,Tables!AG$5:AH$100,2,FALSE)),"0",VLOOKUP(DF14,Tables!AG$5:AH$100,2,FALSE)))) -> 2 | DI14: 6-8 7.3L | DJ14: 6 | DK14: 6 | DL14: =IF($AZ14="","",IF(ISERROR(DK14),0,IF(ISNA(VLOOKUP(DK14,Tables!AI$5:AJ$100,2,FALSE)),"0",VLOOKUP(DK14,Tables!AI$5:AJ$100,2,FALSE)))) -> 0 | DM14: .3L | DN14: .3 | DO14: 0.5 | DP14: 0.5 | DQ14: 0.5 | DR14: =IF($AZ14="","",IF(ISERROR(DQ14),0,IF(ISNA(VLOOKUP(DP14,Tables!AK$5:AL$100,2,FALSE)),"0",VLOOKUP(DP14,Tables!AK$5:AL$100,2,FALSE)))) -> 7 | DS14: 14 Twilight Dancer (10) 53.5kg 3yo ch f | DV14: =IF($AZ14="","",IF(ISERROR(DU14),0,IF(ISNA(VLOOKUP(DU14,Tables!AM$5:AN$100,2,FALSE)),"0",VLOOKUP(DU14,Tables!AM$5:AN$100,2,FALSE)))) -> 0 | DW14: f | EB14: =IF($BB14="","",IF(ISERROR(EA14),0,IF(ISNA(VLOOKUP(DZ14,Tables!AO$5:AP$100,2,FALSE)),"0",VLOOKUP(DZ14,Tables!AO$5:AP$100,2,FALSE)))) -> 0 | EC14: =IF(AZ14="","",VLOOKUP(AZ14,Race!$C$1:$N$100,12,FALSE)) -> 89 | ED14: 89 | EE14: 89 | EF14: =IF($BB14="","",IF(ISNA(VLOOKUP(EE14,Tables!AQ$5:AR$100,2,FALSE)),"0",VLOOKUP(EE14,Tables!AQ$5:AR$100,2,FALSE))) -> 0 | EG14: =IF(AZ14="","",IF(MainSheet!D21="Scratched","",BC14+BE14+BG14+BL14+BO14+BR14+BU14+BY14+CB14+CE14+CH14+CL14+CP14+CT14+CX14+DB14+DH14+DL14+DR14+DV14+EB14+EF14)) -> 33
A15: =IF(RaceLists!A15="","",IF(RaceLists!A15="END","END",IF(RaceLists!E15="","",getAddress(RaceLists!E15)))) -> http://formguide.cyberhorse.com.au/index.php/Form/form.html?formdate=2010-11-24&track=D'Ben&raceno=4 | M15: =IF(Meetings!B15="","",LEFT(Meetings!B15,FIND("(",Meetings!B15)-2)) -> DUBBO | N15: DUBBO | O15: =IF(Meetings!D15="","",getAddress(Meetings!D15)) -> http://www.tabonline.com.au/2010/11/24/ST01.html | P15: =IF(Meetings!E15="","",getAddress(Meetings!E15)) -> http://www.tabonline.com.au/2010/11/24/ST02.html | Q15: =IF(Meetings!F15="","",getAddress(Meetings!F15)) -> http://www.tabonline.com.au/2010/11/24/ST03.html | R15: =IF(Meetings!G15="","",getAddress(Meetings!G15)) -> http://www.tabonline.com.au/2010/11/24/ST04.html | S15: =IF(Meetings!H15="","",getAddress(Meetings!H15)) -> http://www.tabonline.com.au/2010/11/24/ST05.html | T15: =IF(Meetings!I15="","",getAddress(Meetings!I15)) -> http://www.tabonline.com.au/2010/11/24/ST06.html | U15: =IF(Meetings!J15="","",getAddress(Meetings!J15)) -> http://www.tabonline.com.au/2010/11/24/ST07.html | V15: =IF(Meetings!K15="","",getAddress(Meetings!K15)) -> http://www.tabonline.com.au/2010/11/24/ST08.html | W15: =IF(Meetings!L15="","",getAddress(Meetings!L15)) ->  | X15: =IF(Meetings!M15="","",getAddress(Meetings!M15)) ->  | Y15: =IF(Meetings!N15="","",getAddress(Meetings!N15)) ->  | AA15: 11 | AZ15: =IF(Form!I18<>"",LEFT(Form!C18,FIND("(",Form!C18)-2),"") -> Twilight Dancer | BB15: =IF(AZ15="","",Form!A18) -> 14 | BC15: =IF($AZ15="","",IF(ISNA(VLOOKUP(BB15,Tables!A$5:B$100,2,FALSE)),"0",VLOOKUP(BB15,Tables!A$5:B$100,2,FALSE))) -> 0 | BD15: =IF($AZ15="","",VLOOKUP(AZ15,Race!$C$1:$N$100,7,FALSE)) -> 10 | BE15: =IF($AZ15="","",IF(ISNA(VLOOKUP(BD15,Tables!C$5:D$100,2,FALSE)),"0",VLOOKUP(BD15,Tables!C$5:D$100,2,FALSE))) -> 1 | BF15: =IF(AZ15="","",Form!F18) -> 53.5 | BG15: =IF($AZ15="","",IF(ISNA(VLOOKUP(BF15,Tables!E$5:F$100,2,FALSE)),"0",VLOOKUP(BF15,Tables!E$5:F$100,2,FALSE))) -> 2 | BH15: Cd 55.0--1.5 | BI15: Cd 55.0 | BJ15: -1.5 | BK15: 55.0 | BL15: =IF($AZ15="","",IF(ISERROR(BK15),0,IF(ISNA(VLOOKUP(BJ15,Tables!G$5:H$100,2,FALSE)),"0",VLOOKUP(BJ15,Tables!G18:H$100,2,FALSE)))) -> 3 | BM15: =IF($AZ15="","",Form!G18) -> 1.1 | BN15: 2 | BO15: =IF($AZ15="","",IF(ISNA(VLOOKUP(BN15,Tables!I$5:J$100,2,FALSE)),"0",VLOOKUP(BN15,Tables!I$5:J$100,2,FALSE))) -> 6 | BP15: =IF($AZ15="","",Form!H18) -> 0 | BQ15: 1 | BR15: =IF($AZ15="","",IF(ISNA(VLOOKUP(BQ15,Tables!K$5:L$100,2,FALSE)),"0",VLOOKUP(BQ15,Tables!K$5:L$100,2,FALSE))) -> 8 | BS15: =IF($AZ15="","",Form!I18) -> 25 | BT15: 7 | BU15: =IF($AZ15="","",IF(ISNA(VLOOKUP(BT15,Tables!M$5:N$100,2,FALSE)),"0",VLOOKUP(BT15,Tables!M$5:N$100,2,FALSE))) -> 2 | BV15: =IF($AZ15="","",INDEX(Race!$D$1:$P$100,MATCH($AZ15,Race!$C$1:$C$100,0)+0,9)) -> 0 | BX15: N | BY15: =IF($AZ15="","",IF(ISNA(VLOOKUP(BX15,Tables!O$5:P$100,2,FALSE)),0,VLOOKUP(BX15,Tables!O$5:P$100,2,FALSE))) -> 0 | CA15: N | CB15: =IF($AZ15="","",IF(ISNA(VLOOKUP(CA15,Tables!Q$5:R$100,2,FALSE)),0,VLOOKUP(CA15,Tables!Q$5:R$100,2,FALSE))) -> 0 | CD15: N | CE15: =IF($AZ15="","",IF(ISNA(VLOOKUP(CD15,Tables!S$5:T$100,2,FALSE)),0,VLOOKUP(CD15,Tables!S$5:T$100,2,FALSE))) -> 0 | CG15: N | CH15: =IF($AZ15="","",IF(ISNA(VLOOKUP(CG15,Tables!U$5:V$100,2,FALSE)),0,VLOOKUP(CG15,Tables!U$5:V$100,2,FALSE))) -> 0 | CI15: 2010-11-02 | CJ15: 22 | CK15: 22 | CL15: =IF($AZ15="","",IF(ISERROR(CK15),0,IF(ISNA(VLOOKUP(CK15,Tables!W$5:X$100,2,FALSE)),"0",VLOOKUP(CK15,Tables!W$5:X$100,2,FALSE)))) -> 0 | CM15: 2010-10-06 | CN15: 49 | CO15: 49 | CP15: =IF($AZ15="","",IF(ISERROR(CO15),0,IF(ISNA(VLOOKUP(CO15,Tables!Y$5:Z$100,2,FALSE)),"0",VLOOKUP(CO15,Tables!Y$5:Z$100,2,FALSE)))) -> 0 | CQ15: 2010-05-08 | CR15: 200 | CS15: 0 | CT15: =IF($AZ15="","",IF(ISERROR(CS15),0,IF(ISNA(VLOOKUP(CS15,Tables!AA$5:AB$100,2,FALSE)),"0",VLOOKUP(CS15,Tables!AA$5:AB$100,2,FALSE)))) -> 0 | CU15: 10000 | CV15: =IF(CU15="","",(Form!$H$3-CU15)/CU15*100) -> 0 | CW15: 3 | CX15: =IF($AZ15="","",IF(ISERROR(CW15),0,IF(ISNA(VLOOKUP(CW15,Tables!AC$5:AD$100,2,FALSE)),"0",VLOOKUP(CW15,Tables!AC$5:AD$100,2,FALSE)))) -> 0 | CY15: 5-13 3.8L | CZ15: 5 | DA15: 5 | DB15: =IF($AZ15="","",IF(ISERROR(DA15),0,IF(ISNA(VLOOKUP(DA15,Tables!AE$5:AF$100,2,FALSE)),"0",VLOOKUP(DA15,Tables!AE$5:AF$100,2,FALSE)))) -> 2 | DC15: 3.8L | DD15: 3.8 | DE15: 4 | DF15: 4 | DG15: 4 | DH15: =IF($AZ15="","",IF(ISERROR(DG15),0,IF(ISNA(VLOOKUP(DF15,Tables!AG$5:AH$100,2,FALSE)),"0",VLOOKUP(DF15,Tables!AG$5:AH$100,2,FALSE)))) -> 2 | DI15: 4-13 4.2L | DJ15: 4 | DK15: 4 | DL15: =IF($AZ15="","",IF(ISERROR(DK15),0,IF(ISNA(VLOOKUP(DK15,Tables!AI$5:AJ$100,2,FALSE)),"0",VLOOKUP(DK15,Tables!AI$5:AJ$100,2,FALSE)))) -> 2 | DM15: 4.2L | DN15: 4.2 | DO15: 4 | DP15: 4 | DQ15: 4 | DR15: =IF($AZ15="","",IF(ISERROR(DQ15),0,IF(ISNA(VLOOKUP(DP15,Tables!AK$5:AL$100,2,FALSE)),"0",VLOOKUP(DP15,Tables!AK$5:AL$100,2,FALSE)))) -> 2 | DS15: 9-12 7.6L | DT15: 9 | DU15: 9 | DV15: =IF($AZ15="","",IF(ISERROR(DU15),0,IF(ISNA(VLOOKUP(DU15,Tables!AM$5:AN$100,2,FALSE)),"0",VLOOKUP(DU15,Tables!AM$5:AN$100,2,FALSE)))) -> 0 | DW15: 7.6L | DX15: 7.6 | DY15: 7.5 | DZ15: 7.5 | EA15: 7.5 | EB15: =IF($BB15="","",IF(ISERROR(EA15),0,IF(ISNA(VLOOKUP(DZ15,Tables!AO$5:AP$100,2,FALSE)),"0",VLOOKUP(DZ15,Tables!AO$5:AP$100,2,FALSE)))) -> 0 | EC15: =IF(AZ15="","",VLOOKUP(AZ15,Race!$C$1:$N$100,12,FALSE)) -> 89 | ED15: 89 | EE15: 89 | EF15: =IF($BB15="","",IF(ISNA(VLOOKUP(EE15,Tables!AQ$5:AR$100,2,FALSE)),"0",VLOOKUP(EE15,Tables!AQ$5:AR$100,2,FALSE))) -> 0 | EG15: =IF(AZ15="","",IF(MainSheet!D22="Scratched","",BC15+BE15+BG15+BL15+BO15+BR15+BU15+BY15+CB15+CE15+CH15+CL15+CP15+CT15+CX15+DB15+DH15+DL15+DR15+DV15+EB15+EF15)) -> 30
A16: =IF(RaceLists!A16="","",IF(RaceLists!A16="END","END",IF(RaceLists!E16="","",getAddress(RaceLists!E16)))) -> http://formguide.cyberhorse.com.au/index.php/Form/form.html?formdate=2010-11-24&track=D'Ben&raceno=5 | M16: =IF(Meetings!B16="","",LEFT(Meetings!B16,FIND("(",Meetings!B16)-2)) -> MILDURA | N16: MILDURA | O16: =IF(Meetings!D16="","",getAddress(Meetings!D16)) -> http://www.tabonline.com.au/2010/11/24/MT01.html | P16: =IF(Meetings!E16="","",getAddress(Meetings!E16)) -> http://www.tabonline.com.au/2010/11/24/MT02.html | Q16: =IF(Meetings!F16="","",getAddress(Meetings!F16)) -> http://www.tabonline.com.au/2010/11/24/MT03.html | R16: =IF(Meetings!G16="","",getAddress(Meetings!G16)) -> http://www.tabonline.com.au/2010/11/24/MT04.html | S16: =IF(Meetings!H16="","",getAddress(Meetings!H16)) -> http://www.tabonline.com.au/2010/11/24/MT05.html | T16: =IF(Meetings!I16="","",getAddress(Meetings!I16)) -> http://www.tabonline.com.au/2010/11/24/MT06.html | U16: =IF(Meetings!J16="","",getAddress(Meetings!J16)) -> http://www.tabonline.com.au/2010/11/24/MT07.html | V16: =IF(Meetings!K16="","",getAddress(Meetings!K16)) -> http://www.tabonline.com.au/2010/11/24/MT08.html | W16: =IF(Meetings!L16="","",getAddress(Meetings!L16)) ->  | X16: =IF(Meetings!M16="","",getAddress(Meetings!M16)) ->  | Y16: =IF(Meetings!N16="","",getAddress(Meetings!N16)) ->  | AA16: 12 | AZ16: =IF(Form!I19<>"",LEFT(Form!C19,FIND("(",Form!C19)-2),"") -> Boolcunda Gold | BB16: =IF(AZ16="","",Form!A19) -> 15 | BC16: =IF($AZ16="","",IF(ISNA(VLOOKUP(BB16,Tables!A$5:B$100,2,FALSE)),"0",VLOOKUP(BB16,Tables!A$5:B$100,2,FALSE))) -> 0 | BD16: =IF($AZ16="","",VLOOKUP(AZ16,Race!$C$1:$N$100,7,FALSE)) -> 3 | BE16: =IF($AZ16="","",IF(ISNA(VLOOKUP(BD16,Tables!C$5:D$100,2,FALSE)),"0",VLOOKUP(BD16,Tables!C$5:D$100,2,FALSE))) -> 5 | BF16: =IF(AZ16="","",Form!F19) -> 55.5 | BG16: =IF($AZ16="","",IF(ISNA(VLOOKUP(BF16,Tables!E$5:F$100,2,FALSE)),"0",VLOOKUP(BF16,Tables!E$5:F$100,2,FALSE))) -> 3 | BH16: Cd 55.5-0.0 | BI16: Cd 55.5 | BJ16: 0 | BK16: 55.5 | BL16: =IF($AZ16="","",IF(ISERROR(BK16),0,IF(ISNA(VLOOKUP(BJ16,Tables!G$5:H$100,2,FALSE)),"0",VLOOKUP(BJ16,Tables!G19:H$100,2,FALSE)))) -> 3 | BM16: =IF($AZ16="","",Form!G19) -> 0 | BN16: 16 | BO16: =IF($AZ16="","",IF(ISNA(VLOOKUP(BN16,Tables!I$5:J$100,2,FALSE)),"0",VLOOKUP(BN16,Tables!I$5:J$100,2,FALSE))) -> 0 | BP16: =IF($AZ16="","",Form!H19) -> 0 | BQ16: 1 | BR16: =IF($AZ16="","",IF(ISNA(VLOOKUP(BQ16,Tables!K$5:L$100,2,FALSE)),"0",VLOOKUP(BQ16,Tables!K$5:L$100,2,FALSE))) -> 8 | BS16: =IF($AZ16="","",Form!I19) -> 0 | BT16: 11 | BU16: =IF($AZ16="","",IF(ISNA(VLOOKUP(BT16,Tables!M$5:N$100,2,FALSE)),"0",VLOOKUP(BT16,Tables!M$5:N$100,2,FALSE))) -> 2 | BV16: =IF($AZ16="","",INDEX(Race!$D$1:$P$100,MATCH($AZ16,Race!$C$1:$C$100,0)+0,9)) -> 0 | BX16: N | BY16: =IF($AZ16="","",IF(ISNA(VLOOKUP(BX16,Tables!O$5:P$100,2,FALSE)),0,VLOOKUP(BX16,Tables!O$5:P$100,2,FALSE))) -> 0 | CA16: N | CB16: =IF($AZ16="","",IF(ISNA(VLOOKUP(CA16,Tables!Q$5:R$100,2,FALSE)),0,VLOOKUP(CA16,Tables!Q$5:R$100,2,FALSE))) -> 0 | CD16: N | CE16: =IF($AZ16="","",IF(ISNA(VLOOKUP(CD16,Tables!S$5:T$100,2,FALSE)),0,VLOOKUP(CD16,Tables!S$5:T$100,2,FALSE))) -> 0 | CG16: N | CH16: =IF($AZ16="","",IF(ISNA(VLOOKUP(CG16,Tables!U$5:V$100,2,FALSE)),0,VLOOKUP(CG16,Tables!U$5:V$100,2,FALSE))) -> 0 | CI16: 2010-11-14 | CJ16: 10 | CK16: 10 | CL16: =IF($AZ16="","",IF(ISERROR(CK16),0,IF(ISNA(VLOOKUP(CK16,Tables!W$5:X$100,2,FALSE)),"0",VLOOKUP(CK16,Tables!W$5:X$100,2,FALSE)))) -> 5 | CM16: 2010-10-27 | CN16: 28 | CO16: 28 | CP16: =IF($AZ16="","",IF(ISERROR(CO16),0,IF(ISNA(VLOOKUP(CO16,Tables!Y$5:Z$100,2,FALSE)),"0",VLOOKUP(CO16,Tables!Y$5:Z$100,2,FALSE)))) -> 2 | CQ16: 00:00:00 | CR16: 40506 | CS16: 0 | CT16: =IF($AZ16="","",IF(ISERROR(CS16),0,IF(ISNA(VLOOKUP(CS16,Tables!AA$5:AB$100,2,FALSE)),"0",VLOOKUP(CS16,Tables!AA$5:AB$100,2,FALSE)))) -> 0 | CU16: 8500 | CV16: =IF(CU16="","",(Form!$H$3-CU16)/CU16*100) -> 17.64705882 | CW16: 1 | CX16: =IF($AZ16="","",IF(ISERROR(CW16),0,IF(ISNA(VLOOKUP(CW16,Tables!AC$5:AD$100,2,FALSE)),"0",VLOOKUP(CW16,Tables!AC$5:AD$100,2,FALSE)))) -> -5 | CY16: 8-12 5.6L | CZ16: 8 | DA16: 8 | DB16: =IF($AZ16="","",IF(ISERROR(DA16),0,IF(ISNA(VLOOKUP(DA16,Tables!AE$5:AF$100,2,FALSE)),"0",VLOOKUP(DA16,Tables!AE$5:AF$100,2,FALSE)))) -> 0 | DC16: 5.6L | DD16: 5.6 | DE16: 5.5 | DF16: 5.5 | DG16: 5.5 | DH16: =IF($AZ16="","",IF(ISERROR(DG16),0,IF(ISNA(VLOOKUP(DF16,Tables!AG$5:AH$100,2,FALSE)),"0",VLOOKUP(DF16,Tables!AG$5:AH$100,2,FALSE)))) -> 0 | DI16: 9-13 10.3L | DJ16: 9 | DK16: 9 | DL16: =IF($AZ16="","",IF(ISERROR(DK16),0,IF(ISNA(VLOOKUP(DK16,Tables!AI$5:AJ$100,2,FALSE)),"0",VLOOKUP(DK16,Tables!AI$5:AJ$100,2,FALSE)))) -> 0 | DM16: 0.3L | DN16: 0.3 | DO16: 0.5 | DP16: 0.5 | DQ16: 0.5 | DR16: =IF($AZ16="","",IF(ISERROR(DQ16),0,IF(ISNA(VLOOKUP(DP16,Tables!AK$5:AL$100,2,FALSE)),"0",VLOOKUP(DP16,Tables!AK$5:AL$100,2,FALSE)))) -> 7 | DS16: 16 Steely Resolve (5) 57.0kg 4yo b h | DV16: =IF($AZ16="","",IF(ISERROR(DU16),0,IF(ISNA(VLOOKUP(DU16,Tables!AM$5:AN$100,2,FALSE)),"0",VLOOKUP(DU16,Tables!AM$5:AN$100,2,FALSE)))) -> 0 | DW16: h | EB16: =IF($BB16="","",IF(ISERROR(EA16),0,IF(ISNA(VLOOKUP(DZ16,Tables!AO$5:AP$100,2,FALSE)),"0",VLOOKUP(DZ16,Tables!AO$5:AP$100,2,FALSE)))) -> 0 | EC16: =IF(AZ16="","",VLOOKUP(AZ16,Race!$C$1:$N$100,12,FALSE)) -> 0 | ED16: 0 | EE16: 0 | EF16: =IF($BB16="","",IF(ISNA(VLOOKUP(EE16,Tables!AQ$5:AR$100,2,FALSE)),"0",VLOOKUP(EE16,Tables!AQ$5:AR$100,2,FALSE))) -> 0 | EG16: =IF(AZ16="","",IF(MainSheet!D23="Scratched","",BC16+BE16+BG16+BL16+BO16+BR16+BU16+BY16+CB16+CE16+CH16+CL16+CP16+CT16+CX16+DB16+DH16+DL16+DR16+DV16+EB16+EF16)) -> 
A17: =IF(RaceLists!A17="","",IF(RaceLists!A17="END","END",IF(RaceLists!E17="","",getAddress(RaceLists!E17)))) -> http://formguide.cyberhorse.com.au/index.php/Form/form.html?formdate=2010-11-24&track=D'Ben&raceno=6 | M17: =IF(Meetings!B17="","",LEFT(Meetings!B17,FIND("(",Meetings!B17)-2)) ->  | O17: =IF(Meetings!D17="","",getAddress(Meetings!D17)) ->  | P17: =IF(Meetings!E17="","",getAddress(Meetings!E17)) ->  | Q17: =IF(Meetings!F17="","",getAddress(Meetings!F17)) ->  | R17: =IF(Meetings!G17="","",getAddress(Meetings!G17)) ->  | S17: =IF(Meetings!H17="","",getAddress(Meetings!H17)) ->  | T17: =IF(Meetings!I17="","",getAddress(Meetings!I17)) ->  | U17: =IF(Meetings!J17="","",getAddress(Meetings!J17)) ->  | V17: =IF(Meetings!K17="","",getAddress(Meetings!K17)) ->  | W17: =IF(Meetings!L17="","",getAddress(Meetings!L17)) ->  | X17: =IF(Meetings!M17="","",getAddress(Meetings!M17)) ->  | Y17: =IF(Meetings!N17="","",getAddress(Meetings!N17)) ->  | AA17: 13 | AZ17: =IF(Form!I20<>"",LEFT(Form!C20,FIND("(",Form!C20)-2),"") -> Steely Resolve | BB17: =IF(AZ17="","",Form!A20) -> 16 | BC17: =IF($AZ17="","",IF(ISNA(VLOOKUP(BB17,Tables!A$5:B$100,2,FALSE)),"0",VLOOKUP(BB17,Tables!A$5:B$100,2,FALSE))) -> 0 | BD17: =IF($AZ17="","",VLOOKUP(AZ17,Race!$C$1:$N$100,7,FALSE)) -> 5 | BE17: =IF($AZ17="","",IF(ISNA(VLOOKUP(BD17,Tables!C$5:D$100,2,FALSE)),"0",VLOOKUP(BD17,Tables!C$5:D$100,2,FALSE))) -> 3 | BF17: =IF(AZ17="","",Form!F20) -> 57 | BG17: =IF($AZ17="","",IF(ISNA(VLOOKUP(BF17,Tables!E$5:F$100,2,FALSE)),"0",VLOOKUP(BF17,Tables!E$5:F$100,2,FALSE))) -> 5 | BH17: Cd 57.0-0.0 | BI17: Cd 57.0 | BJ17: 0 | BK17: 57.0 | BL17: =IF($AZ17="","",IF(ISERROR(BK17),0,IF(ISNA(VLOOKUP(BJ17,Tables!G$5:H$100,2,FALSE)),"0",VLOOKUP(BJ17,Tables!G20:H$100,2,FALSE)))) -> 3 | BM17: =IF($AZ17="","",Form!G20) -> 0.2 | BN17: 11 | BO17: =IF($AZ17="","",IF(ISNA(VLOOKUP(BN17,Tables!I$5:J$100,2,FALSE)),"0",VLOOKUP(BN17,Tables!I$5:J$100,2,FALSE))) -> 2 | BP17: =IF($AZ17="","",Form!H20) -> 0 | BQ17: 1 | BR17: =IF($AZ17="","",IF(ISNA(VLOOKUP(BQ17,Tables!K$5:L$100,2,FALSE)),"0",VLOOKUP(BQ17,Tables!K$5:L$100,2,FALSE))) -> 8 | BS17: =IF($AZ17="","",Form!I20) -> 0 | BT17: 11 | BU17: =IF($AZ17="","",IF(ISNA(VLOOKUP(BT17,Tables!M$5:N$100,2,FALSE)),"0",VLOOKUP(BT17,Tables!M$5:N$100,2,FALSE))) -> 2 | BV17: =IF($AZ17="","",INDEX(Race!$D$1:$P$100,MATCH($AZ17,Race!$C$1:$C$100,0)+0,9)) -> 0 | BX17: N | BY17: =IF($AZ17="","",IF(ISNA(VLOOKUP(BX17,Tables!O$5:P$100,2,FALSE)),0,VLOOKUP(BX17,Tables!O$5:P$100,2,FALSE))) -> 0 | CA17: N | CB17: =IF($AZ17="","",IF(ISNA(VLOOKUP(CA17,Tables!Q$5:R$100,2,FALSE)),0,VLOOKUP(CA17,Tables!Q$5:R$100,2,FALSE))) -> 0 | CD17: N | CE17: =IF($AZ17="","",IF(ISNA(VLOOKUP(CD17,Tables!S$5:T$100,2,FALSE)),0,VLOOKUP(CD17,Tables!S$5:T$100,2,FALSE))) -> 0 | CG17: N | CH17: =IF($AZ17="","",IF(ISNA(VLOOKUP(CG17,Tables!U$5:V$100,2,FALSE)),0,VLOOKUP(CG17,Tables!U$5:V$100,2,FALSE))) -> 0 | CI17: 2010-11-02 | CJ17: 22 | CK17: 22 | CL17: =IF($AZ17="","",IF(ISERROR(CK17),0,IF(ISNA(VLOOKUP(CK17,Tables!W$5:X$100,2,FALSE)),"0",VLOOKUP(CK17,Tables!W$5:X$100,2,FALSE)))) -> 0 | CM17: 2010-06-26 | CN17: 151 | CO17: 0 | CP17: =IF($AZ17="","",IF(ISERROR(CO17),0,IF(ISNA(VLOOKUP(CO17,Tables!Y$5:Z$100,2,FALSE)),"0",VLOOKUP(CO17,Tables!Y$5:Z$100,2,FALSE)))) -> 0 | CQ17: 00:00:00 | CR17: 40506 | CS17: 0 | CT17: =IF($AZ17="","",IF(ISERROR(CS17),0,IF(ISNA(VLOOKUP(CS17,Tables!AA$5:AB$100,2,FALSE)),"0",VLOOKUP(CS17,Tables!AA$5:AB$100,2,FALSE)))) -> 0 | CU17: 10000 | CV17: =IF(CU17="","",(Form!$H$3-CU17)/CU17*100) -> 0 | CW17: 3 | CX17: =IF($AZ17="","",IF(ISERROR(CW17),0,IF(ISNA(VLOOKUP(CW17,Tables!AC$5:AD$100,2,FALSE)),"0",VLOOKUP(CW17,Tables!AC$5:AD$100,2,FALSE)))) -> 0 | CY17: 7-13 4.6L | CZ17: 7 | DA17: 7 | DB17: =IF($AZ17="","",IF(ISERROR(DA17),0,IF(ISNA(VLOOKUP(DA17,Tables!AE$5:AF$100,2,FALSE)),"0",VLOOKUP(DA17,Tables!AE$5:AF$100,2,FALSE)))) -> 0 | DC17: 4.6L | DD17: 4.6 | DE17: 4.5 | DF17: 4.5 | DG17: 4.5 | DH17: =IF($AZ17="","",IF(ISERROR(DG17),0,IF(ISNA(VLOOKUP(DF17,Tables!AG$5:AH$100,2,FALSE)),"0",VLOOKUP(DF17,Tables!AG$5:AH$100,2,FALSE)))) -> 2 | DI17: 8-13 5.5L | DJ17: 8 | DK17: 8 | DL17: =IF($AZ17="","",IF(ISERROR(DK17),0,IF(ISNA(VLOOKUP(DK17,Tables!AI$5:AJ$100,2,FALSE)),"0",VLOOKUP(DK17,Tables!AI$5:AJ$100,2,FALSE)))) -> 0 | DM17: 5.5L | DN17: 5.5 | DO17: 5.5 | DP17: 5.5 | DQ17: 5.5 | DR17: =IF($AZ17="","",IF(ISERROR(DQ17),0,IF(ISNA(VLOOKUP(DP17,Tables!AK$5:AL$100,2,FALSE)),"0",VLOOKUP(DP17,Tables!AK$5:AL$100,2,FALSE)))) -> 0 | DS17: 17 Mr Diligent (15) 55.5kg 3yo br g | DV17: =IF($AZ17="","",IF(ISERROR(DU17),0,IF(ISNA(VLOOKUP(DU17,Tables!AM$5:AN$100,2,FALSE)),"0",VLOOKUP(DU17,Tables!AM$5:AN$100,2,FALSE)))) -> 0 | DW17: g | EB17: =IF($BB17="","",IF(ISERROR(EA17),0,IF(ISNA(VLOOKUP(DZ17,Tables!AO$5:AP$100,2,FALSE)),"0",VLOOKUP(DZ17,Tables!AO$5:AP$100,2,FALSE)))) -> 0 | EC17: =IF(AZ17="","",VLOOKUP(AZ17,Race!$C$1:$N$100,12,FALSE)) -> 0 | ED17: 0 | EE17: 0 | EF17: =IF($BB17="","",IF(ISNA(VLOOKUP(EE17,Tables!AQ$5:AR$100,2,FALSE)),"0",VLOOKUP(EE17,Tables!AQ$5:AR$100,2,FALSE))) -> 0 | EG17: =IF(AZ17="","",IF(MainSheet!D24="Scratched","",BC17+BE17+BG17+BL17+BO17+BR17+BU17+BY17+CB17+CE17+CH17+CL17+CP17+CT17+CX17+DB17+DH17+DL17+DR17+DV17+EB17+EF17)) -> 
A18: =IF(RaceLists!A18="","",IF(RaceLists!A18="END","END",IF(RaceLists!E18="","",getAddress(RaceLists!E18)))) -> http://formguide.cyberhorse.com.au/index.php/Form/form.html?formdate=2010-11-24&track=D'Ben&raceno=7 | M18: =IF(Meetings!B18="","",LEFT(Meetings!B18,FIND("(",Meetings!B18)-2)) -> ALBION PARK | N18: ALBION | O18: =IF(Meetings!D18="","",getAddress(Meetings!D18)) -> http://www.tabonline.com.au/2010/11/24/BG01.html | P18: =IF(Meetings!E18="","",getAddress(Meetings!E18)) -> http://www.tabonline.com.au/2010/11/24/BG02.html | Q18: =IF(Meetings!F18="","",getAddress(Meetings!F18)) -> http://www.tabonline.com.au/2010/11/24/BG03.html | R18: =IF(Meetings!G18="","",getAddress(Meetings!G18)) -> http://www.tabonline.com.au/2010/11/24/BG04.html | S18: =IF(Meetings!H18="","",getAddress(Meetings!H18)) -> http://www.tabonline.com.au/2010/11/24/BG05.html | T18: =IF(Meetings!I18="","",getAddress(Meetings!I18)) -> http://www.tabonline.com.au/2010/11/24/BG06.html | U18: =IF(Meetings!J18="","",getAddress(Meetings!J18)) -> http://www.tabonline.com.au/2010/11/24/BG07.html | V18: =IF(Meetings!K18="","",getAddress(Meetings!K18)) -> http://www.tabonline.com.au/2010/11/24/BG08.html | W18: =IF(Meetings!L18="","",getAddress(Meetings!L18)) -> http://www.tabonline.com.au/2010/11/24/BG09.html | X18: =IF(Meetings!M18="","",getAddress(Meetings!M18)) -> http://www.tabonline.com.au/2010/11/24/BG10.html | Y18: =IF(Meetings!N18="","",getAddress(Meetings!N18)) ->  | AA18: 14 | AZ18: =IF(Form!I21<>"",LEFT(Form!C21,FIND("(",Form!C21)-2),"") -> Mr Diligent | BB18: =IF(AZ18="","",Form!A21) -> 17 | BC18: =IF($AZ18="","",IF(ISNA(VLOOKUP(BB18,Tables!A$5:B$100,2,FALSE)),"0",VLOOKUP(BB18,Tables!A$5:B$100,2,FALSE))) -> 0 | BD18: =IF($AZ18="","",VLOOKUP(AZ18,Race!$C$1:$N$100,7,FALSE)) -> 15 | BE18: =IF($AZ18="","",IF(ISNA(VLOOKUP(BD18,Tables!C$5:D$100,2,FALSE)),"0",VLOOKUP(BD18,Tables!C$5:D$100,2,FALSE))) -> 0 | BF18: =IF(AZ18="","",Form!F21) -> 55.5 | BG18: =IF($AZ18="","",IF(ISNA(VLOOKUP(BF18,Tables!E$5:F$100,2,FALSE)),"0",VLOOKUP(BF18,Tables!E$5:F$100,2,FALSE))) -> 3 | BH18: Cd 55.5-0.0 | BI18: Cd 55.5 | BJ18: 0 | BK18: 55.5 | BL18: =IF($AZ18="","",IF(ISERROR(BK18),0,IF(ISNA(VLOOKUP(BJ18,Tables!G$5:H$100,2,FALSE)),"0",VLOOKUP(BJ18,Tables!G21:H$100,2,FALSE)))) -> 3 | BM18: =IF($AZ18="","",Form!G21) -> 0.1 | BN18: 13 | BO18: =IF($AZ18="","",IF(ISNA(VLOOKUP(BN18,Tables!I$5:J$100,2,FALSE)),"0",VLOOKUP(BN18,Tables!I$5:J$100,2,FALSE))) -> 0 | BP18: =IF($AZ18="","",Form!H21) -> 0 | BQ18: 1 | BR18: =IF($AZ18="","",IF(ISNA(VLOOKUP(BQ18,Tables!K$5:L$100,2,FALSE)),"0",VLOOKUP(BQ18,Tables!K$5:L$100,2,FALSE))) -> 8 | BS18: =IF($AZ18="","",Form!I21) -> 0 | BT18: 11 | BU18: =IF($AZ18="","",IF(ISNA(VLOOKUP(BT18,Tables!M$5:N$100,2,FALSE)),"0",VLOOKUP(BT18,Tables!M$5:N$100,2,FALSE))) -> 2 | BV18: =IF($AZ18="","",INDEX(Race!$D$1:$P$100,MATCH($AZ18,Race!$C$1:$C$100,0)+0,9)) -> 0 | BX18: N | BY18: =IF($AZ18="","",IF(ISNA(VLOOKUP(BX18,Tables!O$5:P$100,2,FALSE)),0,VLOOKUP(BX18,Tables!O$5:P$100,2,FALSE))) -> 0 | CA18: N | CB18: =IF($AZ18="","",IF(ISNA(VLOOKUP(CA18,Tables!Q$5:R$100,2,FALSE)),0,VLOOKUP(CA18,Tables!Q$5:R$100,2,FALSE))) -> 0 | CD18: N | CE18: =IF($AZ18="","",IF(ISNA(VLOOKUP(CD18,Tables!S$5:T$100,2,FALSE)),0,VLOOKUP(CD18,Tables!S$5:T$100,2,FALSE))) -> 0 | CG18: N | CH18: =IF($AZ18="","",IF(ISNA(VLOOKUP(CG18,Tables!U$5:V$100,2,FALSE)),0,VLOOKUP(CG18,Tables!U$5:V$100,2,FALSE))) -> 0 | CI18: 2010-11-17 | CJ18: 7 | CK18: 7 | CL18: =IF($AZ18="","",IF(ISERROR(CK18),0,IF(ISNA(VLOOKUP(CK18,Tables!W$5:X$100,2,FALSE)),"0",VLOOKUP(CK18,Tables!W$5:X$100,2,FALSE)))) -> 5 | CM18: 2010-09-19 | CN18: 66 | CO18: 66 | CP18: =IF($AZ18="","",IF(ISERROR(CO18),0,IF(ISNA(VLOOKUP(CO18,Tables!Y$5:Z$100,2,FALSE)),"0",VLOOKUP(CO18,Tables!Y$5:Z$100,2,FALSE)))) -> 0 | CQ18: 2010-05-15 | CR18: 193 | CS18: 0 | CT18: =IF($AZ18="","",IF(ISERROR(CS18),0,IF(ISNA(VLOOKUP(CS18,Tables!AA$5:AB$100,2,FALSE)),"0",VLOOKUP(CS18,Tables!AA$5:AB$100,2,FALSE)))) -> 0 | CU18: 10000 | CV18: =IF(CU18="","",(Form!$H$3-CU18)/CU18*100) -> 0 | CW18: 3 | CX18: =IF($AZ18="","",IF(ISERROR(CW18),0,IF(ISNA(VLOOKUP(CW18,Tables!AC$5:AD$100,2,FALSE)),"0",VLOOKUP(CW18,Tables!AC$5:AD$100,2,FALSE)))) -> 0 | CY18: 11-12 11.6L | CZ18: 11 | DA18: 0 | DB18: =IF($AZ18="","",IF(ISERROR(DA18),0,IF(ISNA(VLOOKUP(DA18,Tables!AE$5:AF$100,2,FALSE)),"0",VLOOKUP(DA18,Tables!AE$5:AF$100,2,FALSE)))) -> 0 | DC18: 11.6L | DD18: 11.6 | DE18: 11.5 | DF18: 11.5 | DG18: 11.5 | DH18: =IF($AZ18="","",IF(ISERROR(DG18),0,IF(ISNA(VLOOKUP(DF18,Tables!AG$5:AH$100,2,FALSE)),"0",VLOOKUP(DF18,Tables!AG$5:AH$100,2,FALSE)))) -> 0 | DI18: 6-7 4.8L | DJ18: 6 | DK18: 6 | DL18: =IF($AZ18="","",IF(ISERROR(DK18),0,IF(ISNA(VLOOKUP(DK18,Tables!AI$5:AJ$100,2,FALSE)),"0",VLOOKUP(DK18,Tables!AI$5:AJ$100,2,FALSE)))) -> 0 | DM18: .8L | DN18: .8 | DO18: 1 | DP18: 1 | DQ18: 1 | DR18: =IF($AZ18="","",IF(ISERROR(DQ18),0,IF(ISNA(VLOOKUP(DP18,Tables!AK$5:AL$100,2,FALSE)),"0",VLOOKUP(DP18,Tables!AK$5:AL$100,2,FALSE)))) -> 7 | DS18: 9-9 16.5L | DT18: 9 | DU18: 9 | DV18: =IF($AZ18="","",IF(ISERROR(DU18),0,IF(ISNA(VLOOKUP(DU18,Tables!AM$5:AN$100,2,FALSE)),"0",VLOOKUP(DU18,Tables!AM$5:AN$100,2,FALSE)))) -> 0 | DW18: .5L | DX18: .5 | DY18: 0.5 | DZ18: 0.5 | EA18: 0.5 | EB18: =IF($BB18="","",IF(ISERROR(EA18),0,IF(ISNA(VLOOKUP(DZ18,Tables!AO$5:AP$100,2,FALSE)),"0",VLOOKUP(DZ18,Tables!AO$5:AP$100,2,FALSE)))) -> 7 | EC18: =IF(AZ18="","",VLOOKUP(AZ18,Race!$C$1:$N$100,12,FALSE)) -> 0 | ED18: 0 | EE18: 0 | EF18: =IF($BB18="","",IF(ISNA(VLOOKUP(EE18,Tables!AQ$5:AR$100,2,FALSE)),"0",VLOOKUP(EE18,Tables!AQ$5:AR$100,2,FALSE))) -> 0 | EG18: =IF(AZ18="","",IF(MainSheet!D25="Scratched","",BC18+BE18+BG18+BL18+BO18+BR18+BU18+BY18+CB18+CE18+CH18+CL18+CP18+CT18+CX18+DB18+DH18+DL18+DR18+DV18+EB18+EF18)) -> 
A19: =IF(RaceLists!A19="","",IF(RaceLists!A19="END","END",IF(RaceLists!E19="","",getAddress(RaceLists!E19)))) ->  | M19: =A3 -> http://formguide.cyberhorse.com.au/index.php/Form/form.html?formdate=2010-11-24&track=Bunbry&raceno=1 | N19: http://formguide.cyberhorse.com.au/index.php/Form/form.html?formdate=2010 | O19: =IF(Meetings!D19="","",getAddress(Meetings!D19)) -> http://www.tabonline.com.au/2010/11/24/SG01.html | P19: =IF(Meetings!E19="","",getAddress(Meetings!E19)) -> http://www.tabonline.com.au/2010/11/24/SG02.html | Q19: =IF(Meetings!F19="","",getAddress(Meetings!F19)) -> http://www.tabonline.com.au/2010/11/24/SG03.html | R19: =IF(Meetings!G19="","",getAddress(Meetings!G19)) -> http://www.tabonline.com.au/2010/11/24/SG04.html | S19: =IF(Meetings!H19="","",getAddress(Meetings!H19)) -> http://www.tabonline.com.au/2010/11/24/SG05.html | T19: =IF(Meetings!I19="","",getAddress(Meetings!I19)) -> http://www.tabonline.com.au/2010/11/24/SG06.html | U19: =IF(Meetings!J19="","",getAddress(Meetings!J19)) -> http://www.tabonline.com.au/2010/11/24/SG07.html | V19: =IF(Meetings!K19="","",getAddress(Meetings!K19)) -> http://www.tabonline.com.au/2010/11/24/SG08.html | W19: =IF(Meetings!L19="","",getAddress(Meetings!L19)) -> http://www.tabonline.com.au/2010/11/24/SG09.html | X19: =IF(Meetings!M19="","",getAddress(Meetings!M19)) -> http://www.tabonline.com.au/2010/11/24/SG10.html | Y19: =IF(Meetings!N19="","",getAddress(Meetings!N19)) ->  | AA19: 15 | AZ19: =IF(Form!I22<>"",LEFT(Form!C22,FIND("(",Form!C22)-2),"") -> Deed Of Honor | BB19: =IF(AZ19="","",Form!A22) -> 18 | BC19: =IF($AZ19="","",IF(ISNA(VLOOKUP(BB19,Tables!A$5:B$100,2,FALSE)),"0",VLOOKUP(BB19,Tables!A$5:B$100,2,FALSE))) -> 0 | BD19: =IF($AZ19="","",VLOOKUP(AZ19,Race!$C$1:$N$100,7,FALSE)) ->  | BE19: =IF($AZ19="","",IF(ISNA(VLOOKUP(BD19,Tables!C$5:D$100,2,FALSE)),"0",VLOOKUP(BD19,Tables!C$5:D$100,2,FALSE))) -> 0 | BF19: =IF(AZ19="","",Form!F22) -> 57 | BG19: =IF($AZ19="","",IF(ISNA(VLOOKUP(BF19,Tables!E$5:F$100,2,FALSE)),"0",VLOOKUP(BF19,Tables!E$5:F$100,2,FALSE))) -> 5 | BH19: Cd 53.0--3.0 | BI19: Cd 53.0 | BJ19: 4 | BK19: 53.0 | BL19: =IF($AZ19="","",IF(ISERROR(BK19),0,IF(ISNA(VLOOKUP(BJ19,Tables!G$5:H$100,2,FALSE)),"0",VLOOKUP(BJ19,Tables!G22:H$100,2,FALSE)))) ->  | BM19: =IF($AZ19="","",Form!G22) -> 0.1 | BN19: 13 | BO19: =IF($AZ19="","",IF(ISNA(VLOOKUP(BN19,Tables!I$5:J$100,2,FALSE)),"0",VLOOKUP(BN19,Tables!I$5:J$100,2,FALSE))) -> 0 | BP19: =IF($AZ19="","",Form!H22) -> 0 | BQ19: 1 | BR19: =IF($AZ19="","",IF(ISNA(VLOOKUP(BQ19,Tables!K$5:L$100,2,FALSE)),"0",VLOOKUP(BQ19,Tables!K$5:L$100,2,FALSE))) -> 8 | BS19: =IF($AZ19="","",Form!I22) -> 0 | BT19: 11 | BU19: =IF($AZ19="","",IF(ISNA(VLOOKUP(BT19,Tables!M$5:N$100,2,FALSE)),"0",VLOOKUP(BT19,Tables!M$5:N$100,2,FALSE))) -> 2 | BV19: =IF($AZ19="","",INDEX(Race!$D$1:$P$100,MATCH($AZ19,Race!$C$1:$C$100,0)+0,9)) ->  | BX19: N | BY19: =IF($AZ19="","",IF(ISNA(VLOOKUP(BX19,Tables!O$5:P$100,2,FALSE)),0,VLOOKUP(BX19,Tables!O$5:P$100,2,FALSE))) -> 0 | CA19: N | CB19: =IF($AZ19="","",IF(ISNA(VLOOKUP(CA19,Tables!Q$5:R$100,2,FALSE)),0,VLOOKUP(CA19,Tables!Q$5:R$100,2,FALSE))) -> 0 | CD19: N | CE19: =IF($AZ19="","",IF(ISNA(VLOOKUP(CD19,Tables!S$5:T$100,2,FALSE)),0,VLOOKUP(CD19,Tables!S$5:T$100,2,FALSE))) -> 0 | CG19: N | CH19: =IF($AZ19="","",IF(ISNA(VLOOKUP(CG19,Tables!U$5:V$100,2,FALSE)),0,VLOOKUP(CG19,Tables!U$5:V$100,2,FALSE))) -> 0 | CI19: 2010-03-31 | CJ19: 238 | CK19: 0 | CL19: =IF($AZ19="","",IF(ISERROR(CK19),0,IF(ISNA(VLOOKUP(CK19,Tables!W$5:X$100,2,FALSE)),"0",VLOOKUP(CK19,Tables!W$5:X$100,2,FALSE)))) -> 0 | CM19: 2010-03-13 | CN19: 256 | CO19: 0 | CP19: =IF($AZ19="","",IF(ISERROR(CO19),0,IF(ISNA(VLOOKUP(CO19,Tables!Y$5:Z$100,2,FALSE)),"0",VLOOKUP(CO19,Tables!Y$5:Z$100,2,FALSE)))) -> 0 | CQ19: 2010-03-03 | CR19: 266 | CS19: 0 | CT19: =IF($AZ19="","",IF(ISERROR(CS19),0,IF(ISNA(VLOOKUP(CS19,Tables!AA$5:AB$100,2,FALSE)),"0",VLOOKUP(CS19,Tables!AA$5:AB$100,2,FALSE)))) -> 0 | CU19: 10000 | CV19: =IF(CU19="","",(Form!$H$3-CU19)/CU19*100) -> 0 | CW19: 3 | CX19: =IF($AZ19="","",IF(ISERROR(CW19),0,IF(ISNA(VLOOKUP(CW19,Tables!AC$5:AD$100,2,FALSE)),"0",VLOOKUP(CW19,Tables!AC$5:AD$100,2,FALSE)))) -> 0 | CY19: 8-11 8.3L | CZ19: 8 | DA19: 8 | DB19: =IF($AZ19="","",IF(ISERROR(DA19),0,IF(ISNA(VLOOKUP(DA19,Tables!AE$5:AF$100,2,FALSE)),"0",VLOOKUP(DA19,Tables!AE$5:AF$100,2,FALSE)))) -> 0 | DC19: 8.3L | DD19: 8.3 | DE19: 8.5 | DF19: 8.5 | DG19: 8.5 | DH19: =IF($AZ19="","",IF(ISERROR(DG19),0,IF(ISNA(VLOOKUP(DF19,Tables!AG$5:AH$100,2,FALSE)),"0",VLOOKUP(DF19,Tables!AG$5:AH$100,2,FALSE)))) -> 0 | DI19: 10-12 11.6L | DJ19: 10 | DK19: 10 | DL19: =IF($AZ19="","",IF(ISERROR(DK19),0,IF(ISNA(VLOOKUP(DK19,Tables!AI$5:AJ$100,2,FALSE)),"0",VLOOKUP(DK19,Tables!AI$5:AJ$100,2,FALSE)))) -> 0 | DM19: 11.6L | DN19: 11.6 | DO19: 11.5 | DP19: 11.5 | DQ19: 11.5 | DR19: =IF($AZ19="","",IF(ISERROR(DQ19),0,IF(ISNA(VLOOKUP(DP19,Tables!AK$5:AL$100,2,FALSE)),"0",VLOOKUP(DP19,Tables!AK$5:AL$100,2,FALSE)))) -> 0 | DS19: 15-16 10.5L | DT19: 15 | DU19: 0 | DV19: =IF($AZ19="","",IF(ISERROR(DU19),0,IF(ISNA(VLOOKUP(DU19,Tables!AM$5:AN$100,2,FALSE)),"0",VLOOKUP(DU19,Tables!AM$5:AN$100,2,FALSE)))) -> 0 | DW19: 10.5L | DX19: 10.5 | DY19: 10.5 | DZ19: 10.5 | EA19: 10.5 | EB19: =IF($BB19="","",IF(ISERROR(EA19),0,IF(ISNA(VLOOKUP(DZ19,Tables!AO$5:AP$100,2,FALSE)),"0",VLOOKUP(DZ19,Tables!AO$5:AP$100,2,FALSE)))) -> 0 | EC19: =IF(AZ19="","",VLOOKUP(AZ19,Race!$C$1:$N$100,12,FALSE)) ->  | EF19: =IF($BB19="","",IF(ISNA(VLOOKUP(EE19,Tables!AQ$5:AR$100,2,FALSE)),"0",VLOOKUP(EE19,Tables!AQ$5:AR$100,2,FALSE))) -> 0 | EG19: =IF(AZ19="","",IF(MainSheet!D26="Scratched","",BC19+BE19+BG19+BL19+BO19+BR19+BU19+BY19+CB19+CE19+CH19+CL19+CP19+CT19+CX19+DB19+DH19+DL19+DR19+DV19+EB19+EF19)) -> 
A20: =IF(RaceLists!A20="","",IF(RaceLists!A20="END","END",IF(RaceLists!E20="","",getAddress(RaceLists!E20)))) -> http://formguide.cyberhorse.com.au/index.php/Form/form.html?formdate=2010-11-24&track=Lakesi&raceno=1 | M20: =IF(Meetings!B20="","",LEFT(Meetings!B20,FIND("(",Meetings!B20)-2)) -> THE MEADOWS | N20: THE | O20: =IF(Meetings!D20="","",getAddress(Meetings!D20)) -> http://www.tabonline.com.au/2010/11/24/MG01.html | P20: =IF(Meetings!E20="","",getAddress(Meetings!E20)) -> http://www.tabonline.com.au/2010/11/24/MG02.html | Q20: =IF(Meetings!F20="","",getAddress(Meetings!F20)) -> http://www.tabonline.com.au/2010/11/24/MG03.html | R20: =IF(Meetings!G20="","",getAddress(Meetings!G20)) -> http://www.tabonline.com.au/2010/11/24/MG04.html | S20: =IF(Meetings!H20="","",getAddress(Meetings!H20)) -> http://www.tabonline.com.au/2010/11/24/MG05.html | T20: =IF(Meetings!I20="","",getAddress(Meetings!I20)) -> http://www.tabonline.com.au/2010/11/24/MG06.html | U20: =IF(Meetings!J20="","",getAddress(Meetings!J20)) -> http://www.tabonline.com.au/2010/11/24/MG07.html | V20: =IF(Meetings!K20="","",getAddress(Meetings!K20)) -> http://www.tabonline.com.au/2010/11/24/MG08.html | W20: =IF(Meetings!L20="","",getAddress(Meetings!L20)) -> http://www.tabonline.com.au/2010/11/24/MG09.html | X20: =IF(Meetings!M20="","",getAddress(Meetings!M20)) -> http://www.tabonline.com.au/2010/11/24/MG10.html | Y20: =IF(Meetings!N20="","",getAddress(Meetings!N20)) -> http://www.tabonline.com.au/2010/11/24/MG11.html | AA20: 1900-01-16 | AZ20: =IF(Form!I23<>"",LEFT(Form!C23,FIND("(",Form!C23)-2),"") -> Pack Saddle | BB20: =IF(AZ20="","",Form!A23) -> 18 | BC20: =IF($AZ20="","",IF(ISNA(VLOOKUP(BB20,Tables!A$5:B$100,2,FALSE)),"0",VLOOKUP(BB20,Tables!A$5:B$100,2,FALSE))) -> 0 | BD20: =IF($AZ20="","",VLOOKUP(AZ20,Race!$C$1:$N$100,7,FALSE)) -> 13 | BE20: =IF($AZ20="","",IF(ISNA(VLOOKUP(BD20,Tables!C$5:D$100,2,FALSE)),"0",VLOOKUP(BD20,Tables!C$5:D$100,2,FALSE))) -> 0 | BF20: =IF(AZ20="","",Form!F23) -> 57 | BG20: =IF($AZ20="","",IF(ISNA(VLOOKUP(BF20,Tables!E$5:F$100,2,FALSE)),"0",VLOOKUP(BF20,Tables!E$5:F$100,2,FALSE))) -> 5 | BH20: Cd 57.0-0.0 | BI20: Cd 57.0 | BJ20: 0 | BK20: 57.0 | BL20: =IF($AZ20="","",IF(ISERROR(BK20),0,IF(ISNA(VLOOKUP(BJ20,Tables!G$5:H$100,2,FALSE)),"0",VLOOKUP(BJ20,Tables!G23:H$100,2,FALSE)))) -> 3 | BM20: =IF($AZ20="","",Form!G23) -> 0 | BN20: 16 | BO20: =IF($AZ20="","",IF(ISNA(VLOOKUP(BN20,Tables!I$5:J$100,2,FALSE)),"0",VLOOKUP(BN20,Tables!I$5:J$100,2,FALSE))) -> 0 | BP20: =IF($AZ20="","",Form!H23) -> 0 | BQ20: 1 | BR20: =IF($AZ20="","",IF(ISNA(VLOOKUP(BQ20,Tables!K$5:L$100,2,FALSE)),"0",VLOOKUP(BQ20,Tables!K$5:L$100,2,FALSE))) -> 8 | BS20: =IF($AZ20="","",Form!I23) -> 0 | BT20: 11 | BU20: =IF($AZ20="","",IF(ISNA(VLOOKUP(BT20,Tables!M$5:N$100,2,FALSE)),"0",VLOOKUP(BT20,Tables!M$5:N$100,2,FALSE))) -> 2 | BV20: =IF($AZ20="","",INDEX(Race!$D$1:$P$100,MATCH($AZ20,Race!$C$1:$C$100,0)+0,9)) -> 0 | BX20: N | BY20: =IF($AZ20="","",IF(ISNA(VLOOKUP(BX20,Tables!O$5:P$100,2,FALSE)),0,VLOOKUP(BX20,Tables!O$5:P$100,2,FALSE))) -> 0 | CA20: N | CB20: =IF($AZ20="","",IF(ISNA(VLOOKUP(CA20,Tables!Q$5:R$100,2,FALSE)),0,VLOOKUP(CA20,Tables!Q$5:R$100,2,FALSE))) -> 0 | CD20: N | CE20: =IF($AZ20="","",IF(ISNA(VLOOKUP(CD20,Tables!S$5:T$100,2,FALSE)),0,VLOOKUP(CD20,Tables!S$5:T$100,2,FALSE))) -> 0 | CG20: N | CH20: =IF($AZ20="","",IF(ISNA(VLOOKUP(CG20,Tables!U$5:V$100,2,FALSE)),0,VLOOKUP(CG20,Tables!U$5:V$100,2,FALSE))) -> 0 | CI20: 2010-11-02 | CJ20: 22 | CK20: 22 | CL20: =IF($AZ20="","",IF(ISERROR(CK20),0,IF(ISNA(VLOOKUP(CK20,Tables!W$5:X$100,2,FALSE)),"0",VLOOKUP(CK20,Tables!W$5:X$100,2,FALSE)))) -> 0 | CM20: 2009-11-03 | CN20: 386 | CO20: 0 | CP20: =IF($AZ20="","",IF(ISERROR(CO20),0,IF(ISNA(VLOOKUP(CO20,Tables!Y$5:Z$100,2,FALSE)),"0",VLOOKUP(CO20,Tables!Y$5:Z$100,2,FALSE)))) -> 0 | CQ20: 2009-10-21 | CR20: 399 | CS20: 0 | CT20: =IF($AZ20="","",IF(ISERROR(CS20),0,IF(ISNA(VLOOKUP(CS20,Tables!AA$5:AB$100,2,FALSE)),"0",VLOOKUP(CS20,Tables!AA$5:AB$100,2,FALSE)))) -> 0 | CU20: 10000 | CV20: =IF(CU20="","",(Form!$H$3-CU20)/CU20*100) -> 0 | CW20: 3 | CX20: =IF($AZ20="","",IF(ISERROR(CW20),0,IF(ISNA(VLOOKUP(CW20,Tables!AC$5:AD$100,2,FALSE)),"0",VLOOKUP(CW20,Tables!AC$5:AD$100,2,FALSE)))) -> 0 | CY20: 9-13 5.5L | CZ20: 9 | DA20: 9 | DB20: =IF($AZ20="","",IF(ISERROR(DA20),0,IF(ISNA(VLOOKUP(DA20,Tables!AE$5:AF$100,2,FALSE)),"0",VLOOKUP(DA20,Tables!AE$5:AF$100,2,FALSE)))) -> 0 | DC20: 5.5L | DD20: 5.5 | DE20: 5.5 | DF20: 5.5 | DG20: 5.5 | DH20: =IF($AZ20="","",IF(ISERROR(DG20),0,IF(ISNA(VLOOKUP(DF20,Tables!AG$5:AH$100,2,FALSE)),"0",VLOOKUP(DF20,Tables!AG$5:AH$100,2,FALSE)))) -> 0 | DI20: 12-12 15.6L | DJ20: 12 | DK20: 0 | DL20: =IF($AZ20="","",IF(ISERROR(DK20),0,IF(ISNA(VLOOKUP(DK20,Tables!AI$5:AJ$100,2,FALSE)),"0",VLOOKUP(DK20,Tables!AI$5:AJ$100,2,FALSE)))) -> 0 | DM20: 15.6L | DN20: 15.6 | DO20: 15.5 | DP20: 15.5 | DQ20: 15.5 | DR20: =IF($AZ20="","",IF(ISERROR(DQ20),0,IF(ISNA(VLOOKUP(DP20,Tables!AK$5:AL$100,2,FALSE)),"0",VLOOKUP(DP20,Tables!AK$5:AL$100,2,FALSE)))) -> 0 | DS20: 9-9 19.5L | DT20: 9 | DU20: 9 | DV20: =IF($AZ20="","",IF(ISERROR(DU20),0,IF(ISNA(VLOOKUP(DU20,Tables!AM$5:AN$100,2,FALSE)),"0",VLOOKUP(DU20,Tables!AM$5:AN$100,2,FALSE)))) -> 0 | DW20: .5L | DX20: .5 | DY20: 0.5 | DZ20: 0.5 | EA20: 0.5 | EB20: =IF($BB20="","",IF(ISERROR(EA20),0,IF(ISNA(VLOOKUP(DZ20,Tables!AO$5:AP$100,2,FALSE)),"0",VLOOKUP(DZ20,Tables!AO$5:AP$100,2,FALSE)))) -> 7 | EC20: =IF(AZ20="","",VLOOKUP(AZ20,Race!$C$1:$N$100,12,FALSE)) -> 0 | ED20: 0 | EE20: 0 | EF20: =IF($BB20="","",IF(ISNA(VLOOKUP(EE20,Tables!AQ$5:AR$100,2,FALSE)),"0",VLOOKUP(EE20,Tables!AQ$5:AR$100,2,FALSE))) -> 0 | EG20: =IF(AZ20="","",IF(MainSheet!D27="Scratched","",BC20+BE20+BG20+BL20+BO20+BR20+BU20+BY20+CB20+CE20+CH20+CL20+CP20+CT20+CX20+DB20+DH20+DL20+DR20+DV20+EB20+EF20)) -> 
A21: =IF(RaceLists!A21="","",IF(RaceLists!A21="END","END",IF(RaceLists!E21="","",getAddress(RaceLists!E21)))) -> http://formguide.cyberhorse.com.au/index.php/Form/form.html?formdate=2010-11-24&track=Lakesi&raceno=2 | O21: =IF(Meetings!D21="","",getAddress(Meetings!D21)) -> http://www.tabonline.com.au/2010/11/24/QG01.html | P21: =IF(Meetings!E21="","",getAddress(Meetings!E21)) -> http://www.tabonline.com.au/2010/11/24/QG02.html | Q21: =IF(Meetings!F21="","",getAddress(Meetings!F21)) -> http://www.tabonline.com.au/2010/11/24/QG03.html | R21: =IF(Meetings!G21="","",getAddress(Meetings!G21)) -> http://www.tabonline.com.au/2010/11/24/QG04.html | S21: =IF(Meetings!H21="","",getAddress(Meetings!H21)) -> http://www.tabonline.com.au/2010/11/24/QG05.html | T21: =IF(Meetings!I21="","",getAddress(Meetings!I21)) -> http://www.tabonline.com.au/2010/11/24/QG06.html | U21: =IF(Meetings!J21="","",getAddress(Meetings!J21)) -> http://www.tabonline.com.au/2010/11/24/QG07.html | V21: =IF(Meetings!K21="","",getAddress(Meetings!K21)) -> http://www.tabonline.com.au/2010/11/24/QG08.html | W21: =IF(Meetings!L21="","",getAddress(Meetings!L21)) -> http://www.tabonline.com.au/2010/11/24/QG09.html | X21: =IF(Meetings!M21="","",getAddress(Meetings!M21)) -> http://www.tabonline.com.au/2010/11/24/QG10.html | Y21: =IF(Meetings!N21="","",getAddress(Meetings!N21)) ->  | AA21: 1900-01-17 | AZ21: =IF(Form!I24<>"",LEFT(Form!C24,FIND("(",Form!C24)-2),"") ->  | BB21: =IF(AZ21="","",Form!A24) ->  | BC21: =IF($AZ21="","",IF(ISNA(VLOOKUP(BB21,Tables!A$5:B$100,2,FALSE)),"0",VLOOKUP(BB21,Tables!A$5:B$100,2,FALSE))) ->  | BD21: =IF($AZ21="","",VLOOKUP(AZ21,Race!$C$1:$N$100,7,FALSE)) ->  | BE21: =IF($AZ21="","",IF(ISNA(VLOOKUP(BD21,Tables!C$5:D$100,2,FALSE)),"0",VLOOKUP(BD21,Tables!C$5:D$100,2,FALSE))) ->  | BF21: =IF(AZ21="","",Form!F24) ->  | BG21: =IF($AZ21="","",IF(ISNA(VLOOKUP(BF21,Tables!E$5:F$100,2,FALSE)),"0",VLOOKUP(BF21,Tables!E$5:F$100,2,FALSE))) ->  | BL21: =IF($AZ21="","",IF(ISERROR(BK21),0,IF(ISNA(VLOOKUP(BJ21,Tables!G$5:H$100,2,FALSE)),"0",VLOOKUP(BJ21,Tables!G24:H$100,2,FALSE)))) ->  | BM21: =IF($AZ21="","",Form!G24) ->  | BO21: =IF($AZ21="","",IF(ISNA(VLOOKUP(BN21,Tables!I$5:J$100,2,FALSE)),"0",VLOOKUP(BN21,Tables!I$5:J$100,2,FALSE))) ->  | BP21: =IF($AZ21="","",Form!H24) ->  | BR21: =IF($AZ21="","",IF(ISNA(VLOOKUP(BQ21,Tables!K$5:L$100,2,FALSE)),"0",VLOOKUP(BQ21,Tables!K$5:L$100,2,FALSE))) ->  | BS21: =IF($AZ21="","",Form!I24) ->  | BU21: =IF($AZ21="","",IF(ISNA(VLOOKUP(BT21,Tables!M$5:N$100,2,FALSE)),"0",VLOOKUP(BT21,Tables!M$5:N$100,2,FALSE))) ->  | BV21: =IF($AZ21="","",INDEX(Race!$D$1:$P$100,MATCH($AZ21,Race!$C$1:$C$100,0)+0,9)) ->  | BX21: N | BY21: =IF($AZ21="","",IF(ISNA(VLOOKUP(BX21,Tables!O$5:P$100,2,FALSE)),0,VLOOKUP(BX21,Tables!O$5:P$100,2,FALSE))) ->  | CA21: N | CB21: =IF($AZ21="","",IF(ISNA(VLOOKUP(CA21,Tables!Q$5:R$100,2,FALSE)),0,VLOOKUP(CA21,Tables!Q$5:R$100,2,FALSE))) ->  | CD21: N | CE21: =IF($AZ21="","",IF(ISNA(VLOOKUP(CD21,Tables!S$5:T$100,2,FALSE)),0,VLOOKUP(CD21,Tables!S$5:T$100,2,FALSE))) ->  | CG21: N | CH21: =IF($AZ21="","",IF(ISNA(VLOOKUP(CG21,Tables!U$5:V$100,2,FALSE)),0,VLOOKUP(CG21,Tables!U$5:V$100,2,FALSE))) ->  | CK21: 0 | CL21: =IF($AZ21="","",IF(ISERROR(CK21),0,IF(ISNA(VLOOKUP(CK21,Tables!W$5:X$100,2,FALSE)),"0",VLOOKUP(CK21,Tables!W$5:X$100,2,FALSE)))) ->  | CO21: 0 | CP21: =IF($AZ21="","",IF(ISERROR(CO21),0,IF(ISNA(VLOOKUP(CO21,Tables!Y$5:Z$100,2,FALSE)),"0",VLOOKUP(CO21,Tables!Y$5:Z$100,2,FALSE)))) ->  | CS21: 0 | CT21: =IF($AZ21="","",IF(ISERROR(CS21),0,IF(ISNA(VLOOKUP(CS21,Tables!AA$5:AB$100,2,FALSE)),"0",VLOOKUP(CS21,Tables!AA$5:AB$100,2,FALSE)))) ->  | CV21: =IF(CU21="","",(Form!$H$3-CU21)/CU21*100) ->  | CX21: =IF($AZ21="","",IF(ISERROR(CW21),0,IF(ISNA(VLOOKUP(CW21,Tables!AC$5:AD$100,2,FALSE)),"0",VLOOKUP(CW21,Tables!AC$5:AD$100,2,FALSE)))) ->  | DB21: =IF($AZ21="","",IF(ISERROR(DA21),0,IF(ISNA(VLOOKUP(DA21,Tables!AE$5:AF$100,2,FALSE)),"0",VLOOKUP(DA21,Tables!AE$5:AF$100,2,FALSE)))) ->  | DH21: =IF($AZ21="","",IF(ISERROR(DG21),0,IF(ISNA(VLOOKUP(DF21,Tables!AG$5:AH$100,2,FALSE)),"0",VLOOKUP(DF21,Tables!AG$5:AH$100,2,FALSE)))) ->  | DL21: =IF($AZ21="","",IF(ISERROR(DK21),0,IF(ISNA(VLOOKUP(DK21,Tables!AI$5:AJ$100,2,FALSE)),"0",VLOOKUP(DK21,Tables!AI$5:AJ$100,2,FALSE)))) ->  | DR21: =IF($AZ21="","",IF(ISERROR(DQ21),0,IF(ISNA(VLOOKUP(DP21,Tables!AK$5:AL$100,2,FALSE)),"0",VLOOKUP(DP21,Tables!AK$5:AL$100,2,FALSE)))) ->  | DV21: =IF($AZ21="","",IF(ISERROR(DU21),0,IF(ISNA(VLOOKUP(DU21,Tables!AM$5:AN$100,2,FALSE)),"0",VLOOKUP(DU21,Tables!AM$5:AN$100,2,FALSE)))) ->  | EB21: =IF($BB21="","",IF(ISERROR(EA21),0,IF(ISNA(VLOOKUP(DZ21,Tables!AO$5:AP$100,2,FALSE)),"0",VLOOKUP(DZ21,Tables!AO$5:AP$100,2,FALSE)))) ->  | EC21: =IF(AZ21="","",VLOOKUP(AZ21,Race!$C$1:$N$100,12,FALSE)) ->  | EF21: =IF($BB21="","",IF(ISNA(VLOOKUP(EE21,Tables!AQ$5:AR$100,2,FALSE)),"0",VLOOKUP(EE21,Tables!AQ$5:AR$100,2,FALSE))) ->  | EG21: =IF(AZ21="","",IF(MainSheet!D28="Scratched","",BC21+BE21+BG21+BL21+BO21+BR21+BU21+BY21+CB21+CE21+CH21+CL21+CP21+CT21+CX21+DB21+DH21+DL21+DR21+DV21+EB21+EF21)) -> 
A22: =IF(RaceLists!A22="","",IF(RaceLists!A22="END","END",IF(RaceLists!E22="","",getAddress(RaceLists!E22)))) -> http://formguide.cyberhorse.com.au/index.php/Form/form.html?formdate=2010-11-24&track=Lakesi&raceno=3 | O22: =IF(Meetings!D22="","",getAddress(Meetings!D22)) -> http://www.tabonline.com.au/2010/11/24/NG01.html | P22: =IF(Meetings!E22="","",getAddress(Meetings!E22)) -> http://www.tabonline.com.au/2010/11/24/NG02.html | Q22: =IF(Meetings!F22="","",getAddress(Meetings!F22)) -> http://www.tabonline.com.au/2010/11/24/NG03.html | R22: =IF(Meetings!G22="","",getAddress(Meetings!G22)) -> http://www.tabonline.com.au/2010/11/24/NG04.html | S22: =IF(Meetings!H22="","",getAddress(Meetings!H22)) -> http://www.tabonline.com.au/2010/11/24/NG05.html | T22: =IF(Meetings!I22="","",getAddress(Meetings!I22)) -> http://www.tabonline.com.au/2010/11/24/NG06.html | U22: =IF(Meetings!J22="","",getAddress(Meetings!J22)) -> http://www.tabonline.com.au/2010/11/24/NG07.html | V22: =IF(Meetings!K22="","",getAddress(Meetings!K22)) -> http://www.tabonline.com.au/2010/11/24/NG08.html | W22: =IF(Meetings!L22="","",getAddress(Meetings!L22)) -> http://www.tabonline.com.au/2010/11/24/NG09.html | X22: =IF(Meetings!M22="","",getAddress(Meetings!M22)) -> http://www.tabonline.com.au/2010/11/24/NG10.html | Y22: =IF(Meetings!N22="","",getAddress(Meetings!N22)) ->  | AA22: 1900-01-18 | AZ22: =IF(Form!I25<>"",LEFT(Form!C25,FIND("(",Form!C25)-2),"") ->  | BB22: =IF(AZ22="","",Form!A25) ->  | BC22: =IF($AZ22="","",IF(ISNA(VLOOKUP(BB22,Tables!A$5:B$100,2,FALSE)),"0",VLOOKUP(BB22,Tables!A$5:B$100,2,FALSE))) ->  | BD22: =IF($AZ22="","",VLOOKUP(AZ22,Race!$C$1:$N$100,7,FALSE)) ->  | BE22: =IF($AZ22="","",IF(ISNA(VLOOKUP(BD22,Tables!C$5:D$100,2,FALSE)),"0",VLOOKUP(BD22,Tables!C$5:D$100,2,FALSE))) ->  | BF22: =IF(AZ22="","",Form!F25) ->  | BG22: =IF($AZ22="","",IF(ISNA(VLOOKUP(BF22,Tables!E$5:F$100,2,FALSE)),"0",VLOOKUP(BF22,Tables!E$5:F$100,2,FALSE))) ->  | BL22: =IF($AZ22="","",IF(ISERROR(BK22),0,IF(ISNA(VLOOKUP(BJ22,Tables!G$5:H$100,2,FALSE)),"0",VLOOKUP(BJ22,Tables!G25:H$100,2,FALSE)))) ->  | BM22: =IF($AZ22="","",Form!G25) ->  | BO22: =IF($AZ22="","",IF(ISNA(VLOOKUP(BN22,Tables!I$5:J$100,2,FALSE)),"0",VLOOKUP(BN22,Tables!I$5:J$100,2,FALSE))) ->  | BP22: =IF($AZ22="","",Form!H25) ->  | BR22: =IF($AZ22="","",IF(ISNA(VLOOKUP(BQ22,Tables!K$5:L$100,2,FALSE)),"0",VLOOKUP(BQ22,Tables!K$5:L$100,2,FALSE))) ->  | BS22: =IF($AZ22="","",Form!I25) ->  | BU22: =IF($AZ22="","",IF(ISNA(VLOOKUP(BT22,Tables!M$5:N$100,2,FALSE)),"0",VLOOKUP(BT22,Tables!M$5:N$100,2,FALSE))) ->  | BV22: =IF($AZ22="","",INDEX(Race!$D$1:$P$100,MATCH($AZ22,Race!$C$1:$C$100,0)+0,9)) ->  | BX22: N | BY22: =IF($AZ22="","",IF(ISNA(VLOOKUP(BX22,Tables!O$5:P$100,2,FALSE)),0,VLOOKUP(BX22,Tables!O$5:P$100,2,FALSE))) ->  | CA22: N | CB22: =IF($AZ22="","",IF(ISNA(VLOOKUP(CA22,Tables!Q$5:R$100,2,FALSE)),0,VLOOKUP(CA22,Tables!Q$5:R$100,2,FALSE))) ->  | CD22: N | CE22: =IF($AZ22="","",IF(ISNA(VLOOKUP(CD22,Tables!S$5:T$100,2,FALSE)),0,VLOOKUP(CD22,Tables!S$5:T$100,2,FALSE))) ->  | CG22: N | CH22: =IF($AZ22="","",IF(ISNA(VLOOKUP(CG22,Tables!U$5:V$100,2,FALSE)),0,VLOOKUP(CG22,Tables!U$5:V$100,2,FALSE))) ->  | CK22: 0 | CL22: =IF($AZ22="","",IF(ISERROR(CK22),0,IF(ISNA(VLOOKUP(CK22,Tables!W$5:X$100,2,FALSE)),"0",VLOOKUP(CK22,Tables!W$5:X$100,2,FALSE)))) ->  | CO22: 0 | CP22: =IF($AZ22="","",IF(ISERROR(CO22),0,IF(ISNA(VLOOKUP(CO22,Tables!Y$5:Z$100,2,FALSE)),"0",VLOOKUP(CO22,Tables!Y$5:Z$100,2,FALSE)))) ->  | CS22: 0 | CT22: =IF($AZ22="","",IF(ISERROR(CS22),0,IF(ISNA(VLOOKUP(CS22,Tables!AA$5:AB$100,2,FALSE)),"0",VLOOKUP(CS22,Tables!AA$5:AB$100,2,FALSE)))) ->  | CV22: =IF(CU22="","",(Form!$H$3-CU22)/CU22*100) ->  | CX22: =IF($AZ22="","",IF(ISERROR(CW22),0,IF(ISNA(VLOOKUP(CW22,Tables!AC$5:AD$100,2,FALSE)),"0",VLOOKUP(CW22,Tables!AC$5:AD$100,2,FALSE)))) ->  | DB22: =IF($AZ22="","",IF(ISERROR(DA22),0,IF(ISNA(VLOOKUP(DA22,Tables!AE$5:AF$100,2,FALSE)),"0",VLOOKUP(DA22,Tables!AE$5:AF$100,2,FALSE)))) ->  | DH22: =IF($AZ22="","",IF(ISERROR(DG22),0,IF(ISNA(VLOOKUP(DF22,Tables!AG$5:AH$100,2,FALSE)),"0",VLOOKUP(DF22,Tables!AG$5:AH$100,2,FALSE)))) ->  | DL22: =IF($AZ22="","",IF(ISERROR(DK22),0,IF(ISNA(VLOOKUP(DK22,Tables!AI$5:AJ$100,2,FALSE)),"0",VLOOKUP(DK22,Tables!AI$5:AJ$100,2,FALSE)))) ->  | DR22: =IF($AZ22="","",IF(ISERROR(DQ22),0,IF(ISNA(VLOOKUP(DP22,Tables!AK$5:AL$100,2,FALSE)),"0",VLOOKUP(DP22,Tables!AK$5:AL$100,2,FALSE)))) ->  | DV22: =IF($AZ22="","",IF(ISERROR(DU22),0,IF(ISNA(VLOOKUP(DU22,Tables!AM$5:AN$100,2,FALSE)),"0",VLOOKUP(DU22,Tables!AM$5:AN$100,2,FALSE)))) ->  | EB22: =IF($BB22="","",IF(ISERROR(EA22),0,IF(ISNA(VLOOKUP(DZ22,Tables!AO$5:AP$100,2,FALSE)),"0",VLOOKUP(DZ22,Tables!AO$5:AP$100,2,FALSE)))) ->  | EC22: =IF(AZ22="","",VLOOKUP(AZ22,Race!$C$1:$N$100,12,FALSE)) ->  | EF22: =IF($BB22="","",IF(ISNA(VLOOKUP(EE22,Tables!AQ$5:AR$100,2,FALSE)),"0",VLOOKUP(EE22,Tables!AQ$5:AR$100,2,FALSE))) ->  | EG22: =IF(AZ22="","",IF(MainSheet!D29="Scratched","",BC22+BE22+BG22+BL22+BO22+BR22+BU22+BY22+CB22+CE22+CH22+CL22+CP22+CT22+CX22+DB22+DH22+DL22+DR22+DV22+EB22+EF22)) -> 
A23: =IF(RaceLists!A23="","",IF(RaceLists!A23="END","END",IF(RaceLists!E23="","",getAddress(RaceLists!E23)))) -> http://formguide.cyberhorse.com.au/index.php/Form/form.html?formdate=2010-11-24&track=Lakesi&raceno=4 | O23: =IF(Meetings!D23="","",getAddress(Meetings!D23)) -> http://www.tabonline.com.au/2010/11/24/VG01.html | P23: =IF(Meetings!E23="","",getAddress(Meetings!E23)) -> http://www.tabonline.com.au/2010/11/24/VG02.html | Q23: =IF(Meetings!F23="","",getAddress(Meetings!F23)) -> http://www.tabonline.com.au/2010/11/24/VG03.html | R23: =IF(Meetings!G23="","",getAddress(Meetings!G23)) -> http://www.tabonline.com.au/2010/11/24/VG04.html | S23: =IF(Meetings!H23="","",getAddress(Meetings!H23)) -> http://www.tabonline.com.au/2010/11/24/VG05.html | T23: =IF(Meetings!I23="","",getAddress(Meetings!I23)) -> http://www.tabonline.com.au/2010/11/24/VG06.html | U23: =IF(Meetings!J23="","",getAddress(Meetings!J23)) -> http://www.tabonline.com.au/2010/11/24/VG07.html | V23: =IF(Meetings!K23="","",getAddress(Meetings!K23)) -> http://www.tabonline.com.au/2010/11/24/VG08.html | W23: =IF(Meetings!L23="","",getAddress(Meetings!L23)) -> http://www.tabonline.com.au/2010/11/24/VG09.html | X23: =IF(Meetings!M23="","",getAddress(Meetings!M23)) -> http://www.tabonline.com.au/2010/11/24/VG10.html | Y23: =IF(Meetings!N23="","",getAddress(Meetings!N23)) -> http://www.tabonline.com.au/2010/11/24/VG11.html | AA23: 18 | AZ23: =IF(Form!I26<>"",LEFT(Form!C26,FIND("(",Form!C26)-2),"") ->  | BB23: =IF(AZ23="","",Form!A26) ->  | BC23: =IF($AZ23="","",IF(ISNA(VLOOKUP(BB23,Tables!A$5:B$100,2,FALSE)),"0",VLOOKUP(BB23,Tables!A$5:B$100,2,FALSE))) ->  | BD23: =IF($AZ23="","",VLOOKUP(AZ23,Race!$C$1:$N$100,7,FALSE)) ->  | BE23: =IF($AZ23="","",IF(ISNA(VLOOKUP(BD23,Tables!C$5:D$100,2,FALSE)),"0",VLOOKUP(BD23,Tables!C$5:D$100,2,FALSE))) ->  | BF23: =IF(AZ23="","",Form!F26) ->  | BG23: =IF($AZ23="","",IF(ISNA(VLOOKUP(BF23,Tables!E$5:F$100,2,FALSE)),"0",VLOOKUP(BF23,Tables!E$5:F$100,2,FALSE))) ->  | BL23: =IF($AZ23="","",IF(ISERROR(BK23),0,IF(ISNA(VLOOKUP(BJ23,Tables!G$5:H$100,2,FALSE)),"0",VLOOKUP(BJ23,Tables!G26:H$100,2,FALSE)))) ->  | BM23: =IF($AZ23="","",Form!G26) ->  | BO23: =IF($AZ23="","",IF(ISNA(VLOOKUP(BN23,Tables!I$5:J$100,2,FALSE)),"0",VLOOKUP(BN23,Tables!I$5:J$100,2,FALSE))) ->  | BP23: =IF($AZ23="","",Form!H26) ->  | BR23: =IF($AZ23="","",IF(ISNA(VLOOKUP(BQ23,Tables!K$5:L$100,2,FALSE)),"0",VLOOKUP(BQ23,Tables!K$5:L$100,2,FALSE))) ->  | BS23: =IF($AZ23="","",Form!I26) ->  | BU23: =IF($AZ23="","",IF(ISNA(VLOOKUP(BT23,Tables!M$5:N$100,2,FALSE)),"0",VLOOKUP(BT23,Tables!M$5:N$100,2,FALSE))) ->  | BV23: =IF($AZ23="","",INDEX(Race!$D$1:$P$100,MATCH($AZ23,Race!$C$1:$C$100,0)+0,9)) ->  | BX23: N | BY23: =IF($AZ23="","",IF(ISNA(VLOOKUP(BX23,Tables!O$5:P$100,2,FALSE)),0,VLOOKUP(BX23,Tables!O$5:P$100,2,FALSE))) ->  | CA23: N | CB23: =IF($AZ23="","",IF(ISNA(VLOOKUP(CA23,Tables!Q$5:R$100,2,FALSE)),0,VLOOKUP(CA23,Tables!Q$5:R$100,2,FALSE))) ->  | CD23: N | CE23: =IF($AZ23="","",IF(ISNA(VLOOKUP(CD23,Tables!S$5:T$100,2,FALSE)),0,VLOOKUP(CD23,Tables!S$5:T$100,2,FALSE))) ->  | CG23: N | CH23: =IF($AZ23="","",IF(ISNA(VLOOKUP(CG23,Tables!U$5:V$100,2,FALSE)),0,VLOOKUP(CG23,Tables!U$5:V$100,2,FALSE))) ->  | CK23: 0 | CL23: =IF($AZ23="","",IF(ISERROR(CK23),0,IF(ISNA(VLOOKUP(CK23,Tables!W$5:X$100,2,FALSE)),"0",VLOOKUP(CK23,Tables!W$5:X$100,2,FALSE)))) ->  | CO23: 0 | CP23: =IF($AZ23="","",IF(ISERROR(CO23),0,IF(ISNA(VLOOKUP(CO23,Tables!Y$5:Z$100,2,FALSE)),"0",VLOOKUP(CO23,Tables!Y$5:Z$100,2,FALSE)))) ->  | CS23: 0 | CT23: =IF($AZ23="","",IF(ISERROR(CS23),0,IF(ISNA(VLOOKUP(CS23,Tables!AA$5:AB$100,2,FALSE)),"0",VLOOKUP(CS23,Tables!AA$5:AB$100,2,FALSE)))) ->  | CV23: =IF(CU23="","",(Form!$H$3-CU23)/CU23*100) ->  | CX23: =IF($AZ23="","",IF(ISERROR(CW23),0,IF(ISNA(VLOOKUP(CW23,Tables!AC$5:AD$100,2,FALSE)),"0",VLOOKUP(CW23,Tables!AC$5:AD$100,2,FALSE)))) ->  | DB23: =IF($AZ23="","",IF(ISERROR(DA23),0,IF(ISNA(VLOOKUP(DA23,Tables!AE$5:AF$100,2,FALSE)),"0",VLOOKUP(DA23,Tables!AE$5:AF$100,2,FALSE)))) ->  | DH23: =IF($AZ23="","",IF(ISERROR(DG23),0,IF(ISNA(VLOOKUP(DF23,Tables!AG$5:AH$100,2,FALSE)),"0",VLOOKUP(DF23,Tables!AG$5:AH$100,2,FALSE)))) ->  | DL23: =IF($AZ23="","",IF(ISERROR(DK23),0,IF(ISNA(VLOOKUP(DK23,Tables!AI$5:AJ$100,2,FALSE)),"0",VLOOKUP(DK23,Tables!AI$5:AJ$100,2,FALSE)))) ->  | DR23: =IF($AZ23="","",IF(ISERROR(DQ23),0,IF(ISNA(VLOOKUP(DP23,Tables!AK$5:AL$100,2,FALSE)),"0",VLOOKUP(DP23,Tables!AK$5:AL$100,2,FALSE)))) ->  | DV23: =IF($AZ23="","",IF(ISERROR(DU23),0,IF(ISNA(VLOOKUP(DU23,Tables!AM$5:AN$100,2,FALSE)),"0",VLOOKUP(DU23,Tables!AM$5:AN$100,2,FALSE)))) ->  | EB23: =IF($BB23="","",IF(ISERROR(EA23),0,IF(ISNA(VLOOKUP(DZ23,Tables!AO$5:AP$100,2,FALSE)),"0",VLOOKUP(DZ23,Tables!AO$5:AP$100,2,FALSE)))) ->  | EC23: =IF(AZ23="","",VLOOKUP(AZ23,Race!$C$1:$N$100,12,FALSE)) ->  | EF23: =IF($BB23="","",IF(ISNA(VLOOKUP(EE23,Tables!AQ$5:AR$100,2,FALSE)),"0",VLOOKUP(EE23,Tables!AQ$5:AR$100,2,FALSE))) ->  | EG23: =IF(AZ23="","",IF(MainSheet!D30="Scratched","",BC23+BE23+BG23+BL23+BO23+BR23+BU23+BY23+CB23+CE23+CH23+CL23+CP23+CT23+CX23+DB23+DH23+DL23+DR23+DV23+EB23+EF23)) -> 
A24: =IF(RaceLists!A24="","",IF(RaceLists!A24="END","END",IF(RaceLists!E24="","",getAddress(RaceLists!E24)))) -> http://formguide.cyberhorse.com.au/index.php/Form/form.html?formdate=2010-11-24&track=Lakesi&raceno=5 | AZ24: =IF(Form!I27<>"",LEFT(Form!C27,FIND("(",Form!C27)-2),"") ->  | BB24: =IF(AZ24="","",Form!A27) ->  | BC24: =IF($AZ24="","",IF(ISNA(VLOOKUP(BB24,Tables!A$5:B$100,2,FALSE)),"0",VLOOKUP(BB24,Tables!A$5:B$100,2,FALSE))) ->  | BD24: =IF($AZ24="","",VLOOKUP(AZ24,Race!$C$1:$N$100,7,FALSE)) ->  | BE24: =IF($AZ24="","",IF(ISNA(VLOOKUP(BD24,Tables!C$5:D$100,2,FALSE)),"0",VLOOKUP(BD24,Tables!C$5:D$100,2,FALSE))) ->  | BF24: =IF(AZ24="","",Form!F27) ->  | BG24: =IF($AZ24="","",IF(ISNA(VLOOKUP(BF24,Tables!E$5:F$100,2,FALSE)),"0",VLOOKUP(BF24,Tables!E$5:F$100,2,FALSE))) ->  | BL24: =IF($AZ24="","",IF(ISERROR(BK24),0,IF(ISNA(VLOOKUP(BJ24,Tables!G$5:H$100,2,FALSE)),"0",VLOOKUP(BJ24,Tables!G27:H$100,2,FALSE)))) ->  | BM24: =IF($AZ24="","",Form!G27) ->  | BO24: =IF($AZ24="","",IF(ISNA(VLOOKUP(BN24,Tables!I$5:J$100,2,FALSE)),"0",VLOOKUP(BN24,Tables!I$5:J$100,2,FALSE))) ->  | BP24: =IF($AZ24="","",Form!H27) ->  | BR24: =IF($AZ24="","",IF(ISNA(VLOOKUP(BQ24,Tables!K$5:L$100,2,FALSE)),"0",VLOOKUP(BQ24,Tables!K$5:L$100,2,FALSE))) ->  | BS24: =IF($AZ24="","",Form!I27) ->  | BU24: =IF($AZ24="","",IF(ISNA(VLOOKUP(BT24,Tables!M$5:N$100,2,FALSE)),"0",VLOOKUP(BT24,Tables!M$5:N$100,2,FALSE))) ->  | BV24: =IF($AZ24="","",INDEX(Race!$D$1:$P$100,MATCH($AZ24,Race!$C$1:$C$100,0)+0,9)) ->  | BX24: N | BY24: =IF($AZ24="","",IF(ISNA(VLOOKUP(BX24,Tables!O$5:P$100,2,FALSE)),0,VLOOKUP(BX24,Tables!O$5:P$100,2,FALSE))) ->  | CA24: N | CB24: =IF($AZ24="","",IF(ISNA(VLOOKUP(CA24,Tables!Q$5:R$100,2,FALSE)),0,VLOOKUP(CA24,Tables!Q$5:R$100,2,FALSE))) ->  | CD24: N | CE24: =IF($AZ24="","",IF(ISNA(VLOOKUP(CD24,Tables!S$5:T$100,2,FALSE)),0,VLOOKUP(CD24,Tables!S$5:T$100,2,FALSE))) ->  | CG24: N | CH24: =IF($AZ24="","",IF(ISNA(VLOOKUP(CG24,Tables!U$5:V$100,2,FALSE)),0,VLOOKUP(CG24,Tables!U$5:V$100,2,FALSE))) ->  | CK24: 0 | CL24: =IF($AZ24="","",IF(ISERROR(CK24),0,IF(ISNA(VLOOKUP(CK24,Tables!W$5:X$100,2,FALSE)),"0",VLOOKUP(CK24,Tables!W$5:X$100,2,FALSE)))) ->  | CO24: 0 | CP24: =IF($AZ24="","",IF(ISERROR(CO24),0,IF(ISNA(VLOOKUP(CO24,Tables!Y$5:Z$100,2,FALSE)),"0",VLOOKUP(CO24,Tables!Y$5:Z$100,2,FALSE)))) ->  | CS24: 0 | CT24: =IF($AZ24="","",IF(ISERROR(CS24),0,IF(ISNA(VLOOKUP(CS24,Tables!AA$5:AB$100,2,FALSE)),"0",VLOOKUP(CS24,Tables!AA$5:AB$100,2,FALSE)))) ->  | CV24: =IF(CU24="","",(Form!$H$3-CU24)/CU24*100) ->  | CX24: =IF($AZ24="","",IF(ISERROR(CW24),0,IF(ISNA(VLOOKUP(CW24,Tables!AC$5:AD$100,2,FALSE)),"0",VLOOKUP(CW24,Tables!AC$5:AD$100,2,FALSE)))) ->  | DB24: =IF($AZ24="","",IF(ISERROR(DA24),0,IF(ISNA(VLOOKUP(DA24,Tables!AE$5:AF$100,2,FALSE)),"0",VLOOKUP(DA24,Tables!AE$5:AF$100,2,FALSE)))) ->  | DH24: =IF($AZ24="","",IF(ISERROR(DG24),0,IF(ISNA(VLOOKUP(DF24,Tables!AG$5:AH$100,2,FALSE)),"0",VLOOKUP(DF24,Tables!AG$5:AH$100,2,FALSE)))) ->  | DL24: =IF($AZ24="","",IF(ISERROR(DK24),0,IF(ISNA(VLOOKUP(DK24,Tables!AI$5:AJ$100,2,FALSE)),"0",VLOOKUP(DK24,Tables!AI$5:AJ$100,2,FALSE)))) ->  | DR24: =IF($AZ24="","",IF(ISERROR(DQ24),0,IF(ISNA(VLOOKUP(DP24,Tables!AK$5:AL$100,2,FALSE)),"0",VLOOKUP(DP24,Tables!AK$5:AL$100,2,FALSE)))) ->  | DV24: =IF($AZ24="","",IF(ISERROR(DU24),0,IF(ISNA(VLOOKUP(DU24,Tables!AM$5:AN$100,2,FALSE)),"0",VLOOKUP(DU24,Tables!AM$5:AN$100,2,FALSE)))) ->  | EB24: =IF($BB24="","",IF(ISERROR(EA24),0,IF(ISNA(VLOOKUP(DZ24,Tables!AO$5:AP$100,2,FALSE)),"0",VLOOKUP(DZ24,Tables!AO$5:AP$100,2,FALSE)))) ->  | EC24: =IF(AZ24="","",VLOOKUP(AZ24,Race!$C$1:$N$100,12,FALSE)) ->  | EF24: =IF($BB24="","",IF(ISNA(VLOOKUP(EE24,Tables!AQ$5:AR$100,2,FALSE)),"0",VLOOKUP(EE24,Tables!AQ$5:AR$100,2,FALSE))) ->  | EG24: =IF(AZ24="","",IF(MainSheet!D31="Scratched","",BC24+BE24+BG24+BL24+BO24+BR24+BU24+BY24+CB24+CE24+CH24+CL24+CP24+CT24+CX24+DB24+DH24+DL24+DR24+DV24+EB24+EF24)) -> 
A25: =IF(RaceLists!A25="","",IF(RaceLists!A25="END","END",IF(RaceLists!E25="","",getAddress(RaceLists!E25)))) -> http://formguide.cyberhorse.com.au/index.php/Form/form.html?formdate=2010-11-24&track=Lakesi&raceno=6 | O25: =IF(Meetings!D24="","",getAddress(Meetings!D24)) -> http://www.tabonline.com.au/2010/11/24/AG01.html | P25: =IF(Meetings!E24="","",getAddress(Meetings!E24)) -> http://www.tabonline.com.au/2010/11/24/AG02.html | Q25: =IF(Meetings!F24="","",getAddress(Meetings!F24)) -> http://www.tabonline.com.au/2010/11/24/AG03.html | R25: =IF(Meetings!G24="","",getAddress(Meetings!G24)) -> http://www.tabonline.com.au/2010/11/24/AG04.html | S25: =IF(Meetings!H24="","",getAddress(Meetings!H24)) -> http://www.tabonline.com.au/2010/11/24/AG05.html | T25: =IF(Meetings!I24="","",getAddress(Meetings!I24)) -> http://www.tabonline.com.au/2010/11/24/AG06.html | U25: =IF(Meetings!J24="","",getAddress(Meetings!J24)) -> http://www.tabonline.com.au/2010/11/24/AG07.html | V25: =IF(Meetings!K24="","",getAddress(Meetings!K24)) -> http://www.tabonline.com.au/2010/11/24/AG08.html | W25: =IF(Meetings!L24="","",getAddress(Meetings!L24)) -> http://www.tabonline.com.au/2010/11/24/AG09.html | X25: =IF(Meetings!M24="","",getAddress(Meetings!M24)) -> http://www.tabonline.com.au/2010/11/24/AG10.html | Y25: =IF(Meetings!N24="","",getAddress(Meetings!N24)) ->  | Z25: =IF(AA25="","",IF(ISERROR(MID(AA25,FIND(" ",AA25,1)+1,FIND("(",AA25,1)-FIND(" ",AA25,1)-2)),"",MID(AA25,FIND(" ",AA25,1)+1,FIND("(",AA25,1)-FIND(" ",AA25,1)-2))) -> Hoosang | AA25: 1 Hoosang (6) 57.0kg 4yo br g | AZ25: =IF(Form!I28<>"",LEFT(Form!C28,FIND("(",Form!C28)-2),"") ->  | BB25: =IF(AZ25="","",Form!A28) ->  | BC25: =IF($AZ25="","",IF(ISNA(VLOOKUP(BB25,Tables!A$5:B$100,2,FALSE)),"0",VLOOKUP(BB25,Tables!A$5:B$100,2,FALSE))) ->  | BD25: =IF($AZ25="","",VLOOKUP(AZ25,Race!$C$1:$N$100,7,FALSE)) ->  | BE25: =IF($AZ25="","",IF(ISNA(VLOOKUP(BD25,Tables!C$5:D$100,2,FALSE)),"0",VLOOKUP(BD25,Tables!C$5:D$100,2,FALSE))) ->  | BF25: =IF(AZ25="","",Form!F28) ->  | BG25: =IF($AZ25="","",IF(ISNA(VLOOKUP(BF25,Tables!E$5:F$100,2,FALSE)),"0",VLOOKUP(BF25,Tables!E$5:F$100,2,FALSE))) ->  | BL25: =IF($AZ25="","",IF(ISERROR(BK25),0,IF(ISNA(VLOOKUP(BJ25,Tables!G$5:H$100,2,FALSE)),"0",VLOOKUP(BJ25,Tables!G28:H$100,2,FALSE)))) ->  | BM25: =IF($AZ25="","",Form!G27) ->  | BO25: =IF($AZ25="","",IF(ISNA(VLOOKUP(BN25,Tables!I$5:J$100,2,FALSE)),"0",VLOOKUP(BN25,Tables!I$5:J$100,2,FALSE))) ->  | BP25: =IF($AZ25="","",Form!H27) ->  | BR25: =IF($AZ25="","",IF(ISNA(VLOOKUP(BQ25,Tables!K$5:L$100,2,FALSE)),"0",VLOOKUP(BQ25,Tables!K$5:L$100,2,FALSE))) ->  | BS25: =IF($AZ25="","",Form!I28) ->  | BU25: =IF($AZ25="","",IF(ISNA(VLOOKUP(BT25,Tables!M$5:N$100,2,FALSE)),"0",VLOOKUP(BT25,Tables!M$5:N$100,2,FALSE))) ->  | BV25: =IF($AZ25="","",INDEX(Race!$D$1:$P$100,MATCH($AZ25,Race!$C$1:$C$100,0)+0,9)) ->  | BX25: N | BY25: =IF($AZ25="","",IF(ISNA(VLOOKUP(BX25,Tables!O$5:P$100,2,FALSE)),0,VLOOKUP(BX25,Tables!O$5:P$100,2,FALSE))) ->  | CA25: N | CB25: =IF($AZ25="","",IF(ISNA(VLOOKUP(CA25,Tables!Q$5:R$100,2,FALSE)),0,VLOOKUP(CA25,Tables!Q$5:R$100,2,FALSE))) ->  | CD25: N | CE25: =IF($AZ25="","",IF(ISNA(VLOOKUP(CD25,Tables!S$5:T$100,2,FALSE)),0,VLOOKUP(CD25,Tables!S$5:T$100,2,FALSE))) ->  | CG25: N | CH25: =IF($AZ25="","",IF(ISNA(VLOOKUP(CG25,Tables!U$5:V$100,2,FALSE)),0,VLOOKUP(CG25,Tables!U$5:V$100,2,FALSE))) ->  | CK25: 0 | CL25: =IF($AZ25="","",IF(ISERROR(CK25),0,IF(ISNA(VLOOKUP(CK25,Tables!W$5:X$100,2,FALSE)),"0",VLOOKUP(CK25,Tables!W$5:X$100,2,FALSE)))) ->  | CO25: 0 | CP25: =IF($AZ25="","",IF(ISERROR(CO25),0,IF(ISNA(VLOOKUP(CO25,Tables!Y$5:Z$100,2,FALSE)),"0",VLOOKUP(CO25,Tables!Y$5:Z$100,2,FALSE)))) ->  | CS25: 0 | CT25: =IF($AZ25="","",IF(ISERROR(CS25),0,IF(ISNA(VLOOKUP(CS25,Tables!AA$5:AB$100,2,FALSE)),"0",VLOOKUP(CS25,Tables!AA$5:AB$100,2,FALSE)))) ->  | CV25: =IF(CU25="","",(Form!$H$3-CU25)/CU25*100) ->  | CX25: =IF($AZ25="","",IF(ISERROR(CW25),0,IF(ISNA(VLOOKUP(CW25,Tables!AC$5:AD$100,2,FALSE)),"0",VLOOKUP(CW25,Tables!AC$5:AD$100,2,FALSE)))) ->  | DB25: =IF($AZ25="","",IF(ISERROR(DA25),0,IF(ISNA(VLOOKUP(DA25,Tables!AE$5:AF$100,2,FALSE)),"0",VLOOKUP(DA25,Tables!AE$5:AF$100,2,FALSE)))) ->  | DH25: =IF($AZ25="","",IF(ISERROR(DG25),0,IF(ISNA(VLOOKUP(DF25,Tables!AG$5:AH$100,2,FALSE)),"0",VLOOKUP(DF25,Tables!AG$5:AH$100,2,FALSE)))) ->  | DL25: =IF($AZ25="","",IF(ISERROR(DK25),0,IF(ISNA(VLOOKUP(DK25,Tables!AI$5:AJ$100,2,FALSE)),"0",VLOOKUP(DK25,Tables!AI$5:AJ$100,2,FALSE)))) ->  | DR25: =IF($AZ25="","",IF(ISERROR(DQ25),0,IF(ISNA(VLOOKUP(DP25,Tables!AK$5:AL$100,2,FALSE)),"0",VLOOKUP(DP25,Tables!AK$5:AL$100,2,FALSE)))) ->  | DV25: =IF($AZ25="","",IF(ISERROR(DU25),0,IF(ISNA(VLOOKUP(DU25,Tables!AM$5:AN$100,2,FALSE)),"0",VLOOKUP(DU25,Tables!AM$5:AN$100,2,FALSE)))) ->  | EB25: =IF($BB25="","",IF(ISERROR(EA25),0,IF(ISNA(VLOOKUP(DZ25,Tables!AO$5:AP$100,2,FALSE)),"0",VLOOKUP(DZ25,Tables!AO$5:AP$100,2,FALSE)))) ->  | EC25: =IF(AZ25="","",VLOOKUP(AZ25,Race!$C$1:$N$100,12,FALSE)) ->  | EF25: =IF($BB25="","",IF(ISNA(VLOOKUP(EE25,Tables!AQ$5:AR$100,2,FALSE)),"0",VLOOKUP(EE25,Tables!AQ$5:AR$100,2,FALSE))) ->  | EG25: =IF(AZ25="","",IF(MainSheet!D32="Scratched","",BC25+BE25+BG25+BL25+BO25+BR25+BU25+BY25+CB25+CE25+CH25+CL25+CP25+CT25+CX25+DB25+DH25+DL25+DR25+DV25+EB25+EF25)) -> 
A26: =IF(RaceLists!A26="","",IF(RaceLists!A26="END","END",IF(RaceLists!E26="","",getAddress(RaceLists!E26)))) -> http://formguide.cyberhorse.com.au/index.php/Form/form.html?formdate=2010-11-24&track=Lakesi&raceno=7 | O26: =IF(Meetings!D25="","",getAddress(Meetings!D25)) -> http://www.tabonline.com.au/2010/11/24/PG01.html | P26: =IF(Meetings!E25="","",getAddress(Meetings!E25)) -> http://www.tabonline.com.au/2010/11/24/PG02.html | Q26: =IF(Meetings!F25="","",getAddress(Meetings!F25)) -> http://www.tabonline.com.au/2010/11/24/PG03.html | R26: =IF(Meetings!G25="","",getAddress(Meetings!G25)) -> http://www.tabonline.com.au/2010/11/24/PG04.html | S26: =IF(Meetings!H25="","",getAddress(Meetings!H25)) -> http://www.tabonline.com.au/2010/11/24/PG05.html | T26: =IF(Meetings!I25="","",getAddress(Meetings!I25)) -> http://www.tabonline.com.au/2010/11/24/PG06.html | U26: =IF(Meetings!J25="","",getAddress(Meetings!J25)) -> http://www.tabonline.com.au/2010/11/24/PG07.html | V26: =IF(Meetings!K25="","",getAddress(Meetings!K25)) -> http://www.tabonline.com.au/2010/11/24/PG08.html | W26: =IF(Meetings!L25="","",getAddress(Meetings!L25)) -> http://www.tabonline.com.au/2010/11/24/PG09.html | X26: =IF(Meetings!M25="","",getAddress(Meetings!M25)) -> http://www.tabonline.com.au/2010/11/24/PG10.html | Y26: =IF(Meetings!N25="","",getAddress(Meetings!N25)) -> http://www.tabonline.com.au/2010/11/24/PG11.html | AA26: Colours: Royal blue | AB26: cream diagonal stripes and purple cap
A27: =IF(RaceLists!A27="","",IF(RaceLists!A27="END","END",IF(RaceLists!E27="","",getAddress(RaceLists!E27)))) ->  | O27: =IF(Meetings!D26="","",getAddress(Meetings!D26)) -> http://www.tabonline.com.au/2010/11/24/EG01.html | P27: =IF(Meetings!E26="","",getAddress(Meetings!E26)) -> http://www.tabonline.com.au/2010/11/24/EG02.html | Q27: =IF(Meetings!F26="","",getAddress(Meetings!F26)) -> http://www.tabonline.com.au/2010/11/24/EG03.html | R27: =IF(Meetings!G26="","",getAddress(Meetings!G26)) -> http://www.tabonline.com.au/2010/11/24/EG04.html | S27: =IF(Meetings!H26="","",getAddress(Meetings!H26)) -> http://www.tabonline.com.au/2010/11/24/EG05.html | T27: =IF(Meetings!I26="","",getAddress(Meetings!I26)) -> http://www.tabonline.com.au/2010/11/24/EG06.html | U27: =IF(Meetings!J26="","",getAddress(Meetings!J26)) -> http://www.tabonline.com.au/2010/11/24/EG07.html | V27: =IF(Meetings!K26="","",getAddress(Meetings!K26)) -> http://www.tabonline.com.au/2010/11/24/EG08.html | W27: =IF(Meetings!L26="","",getAddress(Meetings!L26)) -> http://www.tabonline.com.au/2010/11/24/EG09.html | X27: =IF(Meetings!M26="","",getAddress(Meetings!M26)) -> http://www.tabonline.com.au/2010/11/24/EG10.html | Y27: =IF(Meetings!N26="","",getAddress(Meetings!N26)) -> http://www.tabonline.com.au/2010/11/24/EG11.html | AA27: Owners: J E Hickmott | AB27: K J Hickmott | AC27: D King | AD27: G H Curtis | AE27: M R Mulligan | AF27: G J King | AG27: J A Coe | AH27: J N Pearce | AI27: B J Beecroft & T J Macleod | DN27: =IF($BH27="","",ROUND(0+DM27/0.5,0)*0.5) ->  | DX27: =IF($BH27="","",ROUND(0+DW27/0.5,0)*0.5) ->  | DY27: =IF($BH27="","",ROUND(0+DX27/0.5,0)*0.5) -> 
A28: =IF(RaceLists!A28="","",IF(RaceLists!A28="END","END",IF(RaceLists!E28="","",getAddress(RaceLists!E28)))) -> http://formguide.cyberhorse.com.au/index.php/Form/form.html?formdate=2010-11-24&track=MorhPk&raceno=1 | O28: =IF(Meetings!D27="","",getAddress(Meetings!D27)) -> http://www.tabonline.com.au/2010/11/24/ZG01.html | P28: =IF(Meetings!E27="","",getAddress(Meetings!E27)) -> http://www.tabonline.com.au/2010/11/24/ZG02.html | Q28: =IF(Meetings!F27="","",getAddress(Meetings!F27)) -> http://www.tabonline.com.au/2010/11/24/ZG03.html | R28: =IF(Meetings!G27="","",getAddress(Meetings!G27)) -> http://www.tabonline.com.au/2010/11/24/ZG04.html | S28: =IF(Meetings!H27="","",getAddress(Meetings!H27)) -> http://www.tabonline.com.au/2010/11/24/ZG05.html | T28: =IF(Meetings!I27="","",getAddress(Meetings!I27)) -> http://www.tabonline.com.au/2010/11/24/ZG06.html | U28: =IF(Meetings!J27="","",getAddress(Meetings!J27)) -> http://www.tabonline.com.au/2010/11/24/ZG07.html | V28: =IF(Meetings!K27="","",getAddress(Meetings!K27)) -> http://www.tabonline.com.au/2010/11/24/ZG08.html | W28: =IF(Meetings!L27="","",getAddress(Meetings!L27)) -> http://www.tabonline.com.au/2010/11/24/ZG09.html | X28: =IF(Meetings!M27="","",getAddress(Meetings!M27)) -> http://www.tabonline.com.au/2010/11/24/ZG10.html | Y28: =IF(Meetings!N27="","",getAddress(Meetings!N27)) -> http://www.tabonline.com.au/2010/11/24/ZG11.html | AA28: Career:
A29: =IF(RaceLists!A29="","",IF(RaceLists!A29="END","END",IF(RaceLists!E29="","",getAddress(RaceLists!E29)))) -> http://formguide.cyberhorse.com.au/index.php/Form/form.html?formdate=2010-11-24&track=MorhPk&raceno=2 | O29: =IF(Meetings!D28="","",getAddress(Meetings!D28)) ->  | P29: =IF(Meetings!E28="","",getAddress(Meetings!E28)) ->  | Q29: =IF(Meetings!F28="","",getAddress(Meetings!F28)) ->  | R29: =IF(Meetings!G28="","",getAddress(Meetings!G28)) ->  | S29: =IF(Meetings!H28="","",getAddress(Meetings!H28)) ->  | T29: =IF(Meetings!I28="","",getAddress(Meetings!I28)) ->  | U29: =IF(Meetings!J28="","",getAddress(Meetings!J28)) ->  | V29: =IF(Meetings!K28="","",getAddress(Meetings!K28)) ->  | W29: =IF(Meetings!L28="","",getAddress(Meetings!L28)) ->  | X29: =IF(Meetings!M28="","",getAddress(Meetings!M28)) ->  | Y29: =IF(Meetings!N28="","",getAddress(Meetings!N28)) ->  | AA29: 4:0-0-1
A30: =IF(RaceLists!A30="","",IF(RaceLists!A30="END","END",IF(RaceLists!E30="","",getAddress(RaceLists!E30)))) -> http://formguide.cyberhorse.com.au/index.php/Form/form.html?formdate=2010-11-24&track=MorhPk&raceno=3 | O30: =IF(Meetings!D29="","",getAddress(Meetings!D29)) ->  | P30: =IF(Meetings!E29="","",getAddress(Meetings!E29)) ->  | Q30: =IF(Meetings!F29="","",getAddress(Meetings!F29)) ->  | R30: =IF(Meetings!G29="","",getAddress(Meetings!G29)) ->  | S30: =IF(Meetings!H29="","",getAddress(Meetings!H29)) ->  | T30: =IF(Meetings!I29="","",getAddress(Meetings!I29)) ->  | U30: =IF(Meetings!J29="","",getAddress(Meetings!J29)) ->  | V30: =IF(Meetings!K29="","",getAddress(Meetings!K29)) ->  | W30: =IF(Meetings!L29="","",getAddress(Meetings!L29)) ->  | X30: =IF(Meetings!M29="","",getAddress(Meetings!M29)) ->  | Y30: =IF(Meetings!N29="","",getAddress(Meetings!N29)) ->  | AA30: Fast:
A31: =IF(RaceLists!A31="","",IF(RaceLists!A31="END","END",IF(RaceLists!E31="","",getAddress(RaceLists!E31)))) -> http://formguide.cyberhorse.com.au/index.php/Form/form.html?formdate=2010-11-24&track=MorhPk&raceno=4 | O31: =IF(Meetings!D30="","",getAddress(Meetings!D30)) ->  | P31: =IF(Meetings!E30="","",getAddress(Meetings!E30)) ->  | Q31: =IF(Meetings!F30="","",getAddress(Meetings!F30)) ->  | R31: =IF(Meetings!G30="","",getAddress(Meetings!G30)) ->  | S31: =IF(Meetings!H30="","",getAddress(Meetings!H30)) ->  | T31: =IF(Meetings!I30="","",getAddress(Meetings!I30)) ->  | U31: =IF(Meetings!J30="","",getAddress(Meetings!J30)) ->  | V31: =IF(Meetings!K30="","",getAddress(Meetings!K30)) ->  | W31: =IF(Meetings!L30="","",getAddress(Meetings!L30)) ->  | X31: =IF(Meetings!M30="","",getAddress(Meetings!M30)) ->  | Y31: =IF(Meetings!N30="","",getAddress(Meetings!N30)) ->  | AA31: 0:0-0-0
A32: =IF(RaceLists!A32="","",IF(RaceLists!A32="END","END",IF(RaceLists!E32="","",getAddress(RaceLists!E32)))) -> http://formguide.cyberhorse.com.au/index.php/Form/form.html?formdate=2010-11-24&track=MorhPk&raceno=5 | O32: =IF(Meetings!D31="","",getAddress(Meetings!D31)) ->  | P32: =IF(Meetings!E31="","",getAddress(Meetings!E31)) ->  | Q32: =IF(Meetings!F31="","",getAddress(Meetings!F31)) ->  | R32: =IF(Meetings!G31="","",getAddress(Meetings!G31)) ->  | S32: =IF(Meetings!H31="","",getAddress(Meetings!H31)) ->  | T32: =IF(Meetings!I31="","",getAddress(Meetings!I31)) ->  | U32: =IF(Meetings!J31="","",getAddress(Meetings!J31)) ->  | V32: =IF(Meetings!K31="","",getAddress(Meetings!K31)) ->  | W32: =IF(Meetings!L31="","",getAddress(Meetings!L31)) ->  | X32: =IF(Meetings!M31="","",getAddress(Meetings!M31)) ->  | Y32: =IF(Meetings!N31="","",getAddress(Meetings!N31)) ->  | AA32: 6-13 6.1L | AB32: M.Brge | AC32: 2010-11-10 | AD32: 1200m | AE32: Good | AF32: Race 1 | AG32: 4yo+ Mdn | AH32: Mdn 4+ | AI32: 10000 | AJ32: 0 | AK32: D Robinson | AL32: 13 | AM32: Cd 57.0-0.0 | AN32: (SW) | AO32: 1:12.23 | AP32: -35.6 | AQ32: 25/1 | AR32: Settled-9 1200-- 800-- Turn-7 | AS32: 1-Ambitious Bride 55.0
A33: =IF(RaceLists!A33="","",IF(RaceLists!A33="END","END",IF(RaceLists!E33="","",getAddress(RaceLists!E33)))) -> http://formguide.cyberhorse.com.au/index.php/Form/form.html?formdate=2010-11-24&track=MorhPk&raceno=6 | O33: =IF(Meetings!D32="","",getAddress(Meetings!D32)) ->  | P33: =IF(Meetings!E32="","",getAddress(Meetings!E32)) ->  | Q33: =IF(Meetings!F32="","",getAddress(Meetings!F32)) ->  | R33: =IF(Meetings!G32="","",getAddress(Meetings!G32)) ->  | S33: =IF(Meetings!H32="","",getAddress(Meetings!H32)) ->  | T33: =IF(Meetings!I32="","",getAddress(Meetings!I32)) ->  | U33: =IF(Meetings!J32="","",getAddress(Meetings!J32)) ->  | V33: =IF(Meetings!K32="","",getAddress(Meetings!K32)) ->  | W33: =IF(Meetings!L32="","",getAddress(Meetings!L32)) ->  | X33: =IF(Meetings!M32="","",getAddress(Meetings!M32)) ->  | Y33: =IF(Meetings!N32="","",getAddress(Meetings!N32)) ->  | AA33: 7-10 9.5L | AB33: F. Bay | AC33: 2010-07-28 | AD33: 1100m | AE33: Good | AF33: Race 3 | AG33: Mdn | AH33: Mdn | AI33: 15200 | AJ33: 0 | AK33: S Scriven | AL33: 5 | AM33: Cd 58.0-0.0 | AN33: (SW) | AO33: 1:03.78 | AP33: -34.74 | AQ33: 4/1 | AR33: Settled-- 1200-- 800-- Turn-- | AS33: 1-Charge Up 58.0
A34: =IF(RaceLists!A34="","",IF(RaceLists!A34="END","END",IF(RaceLists!E34="","",getAddress(RaceLists!E34)))) -> http://formguide.cyberhorse.com.au/index.php/Form/form.html?formdate=2010-11-24&track=MorhPk&raceno=7 | O34: =IF(Meetings!D33="","",getAddress(Meetings!D33)) ->  | P34: =IF(Meetings!E33="","",getAddress(Meetings!E33)) ->  | Q34: =IF(Meetings!F33="","",getAddress(Meetings!F33)) ->  | R34: =IF(Meetings!G33="","",getAddress(Meetings!G33)) ->  | S34: =IF(Meetings!H33="","",getAddress(Meetings!H33)) ->  | T34: =IF(Meetings!I33="","",getAddress(Meetings!I33)) ->  | U34: =IF(Meetings!J33="","",getAddress(Meetings!J33)) ->  | V34: =IF(Meetings!K33="","",getAddress(Meetings!K33)) ->  | W34: =IF(Meetings!L33="","",getAddress(Meetings!L33)) ->  | X34: =IF(Meetings!M33="","",getAddress(Meetings!M33)) ->  | Y34: =IF(Meetings!N33="","",getAddress(Meetings!N33)) ->  | AA34: 3-12 1.6L | AB34: F. Bay | AC34: 2010-07-14 | AD34: 1200m | AE34: Good | AF34: Race 1 | AG34: Mdn Plate | AH34: Mdn | AI34: 15200 | AJ34: -1300 | AK34: C Spry | AL34: 1 | AM34: Cd 58.0-0.0 | AN34: (SW) | AO34: 1:10.80 | AP34: -36.1 | AQ34: 12/1 | AR34: Settled-- 1200-- 800-- Turn-- | AS34: 1-Sharvee 58.0
A35: =IF(RaceLists!A35="","",IF(RaceLists!A35="END","END",IF(RaceLists!E35="","",getAddress(RaceLists!E35)))) -> http://formguide.cyberhorse.com.au/index.php/Form/form.html?formdate=2010-11-24&track=MorhPk&raceno=8 | O35: =IF(Meetings!D34="","",getAddress(Meetings!D34)) ->  | P35: =IF(Meetings!E34="","",getAddress(Meetings!E34)) ->  | Q35: =IF(Meetings!F34="","",getAddress(Meetings!F34)) ->  | R35: =IF(Meetings!G34="","",getAddress(Meetings!G34)) ->  | S35: =IF(Meetings!H34="","",getAddress(Meetings!H34)) ->  | T35: =IF(Meetings!I34="","",getAddress(Meetings!I34)) ->  | U35: =IF(Meetings!J34="","",getAddress(Meetings!J34)) ->  | V35: =IF(Meetings!K34="","",getAddress(Meetings!K34)) ->  | W35: =IF(Meetings!L34="","",getAddress(Meetings!L34)) ->  | X35: =IF(Meetings!M34="","",getAddress(Meetings!M34)) ->  | Y35: =IF(Meetings!N34="","",getAddress(Meetings!N34)) ->  | AA35: 12-13 15.6L | AB35: Balakl | AC35: 2010-02-28 | AD35: 1400m | AE35: Good | AF35: Race 5 | AG35: 3yo+ Mdn | AH35: Mdn 3+ | AI35: 10000 | AJ35: 0 | AK35: M Tyndall | AL35: 6 | AM35: Cd 53.0--3.0 | AN35: (SW) | AO35: 1:23.64 | AP35: () | AQ35: 50/1 | AR35: Settled-3 1200-- 800-3 Turn-6 | AS35: 1-Bunker Boy 56.0
A36: =IF(RaceLists!A36="","",IF(RaceLists!A36="END","END",IF(RaceLists!E36="","",getAddress(RaceLists!E36)))) ->  | O36: =IF(Meetings!D35="","",getAddress(Meetings!D35)) ->  | P36: =IF(Meetings!E35="","",getAddress(Meetings!E35)) ->  | Q36: =IF(Meetings!F35="","",getAddress(Meetings!F35)) ->  | R36: =IF(Meetings!G35="","",getAddress(Meetings!G35)) ->  | S36: =IF(Meetings!H35="","",getAddress(Meetings!H35)) ->  | T36: =IF(Meetings!I35="","",getAddress(Meetings!I35)) ->  | U36: =IF(Meetings!J35="","",getAddress(Meetings!J35)) ->  | V36: =IF(Meetings!K35="","",getAddress(Meetings!K35)) ->  | W36: =IF(Meetings!L35="","",getAddress(Meetings!L35)) ->  | X36: =IF(Meetings!M35="","",getAddress(Meetings!M35)) ->  | Y36: =IF(Meetings!N35="","",getAddress(Meetings!N35)) ->  | Z36: Kotor | AA36: 2 Kotor (16) 57.0kg 4yo b g
A37: =IF(RaceLists!A37="","",IF(RaceLists!A37="END","END",IF(RaceLists!E37="","",getAddress(RaceLists!E37)))) -> http://formguide.cyberhorse.com.au/index.php/Form/form.html?formdate=2010-11-24&track=W.Farm&raceno=1 | O37: =IF(Meetings!D36="","",getAddress(Meetings!D36)) ->  | P37: =IF(Meetings!E36="","",getAddress(Meetings!E36)) ->  | Q37: =IF(Meetings!F36="","",getAddress(Meetings!F36)) ->  | R37: =IF(Meetings!G36="","",getAddress(Meetings!G36)) ->  | S37: =IF(Meetings!H36="","",getAddress(Meetings!H36)) ->  | T37: =IF(Meetings!I36="","",getAddress(Meetings!I36)) ->  | U37: =IF(Meetings!J36="","",getAddress(Meetings!J36)) ->  | V37: =IF(Meetings!K36="","",getAddress(Meetings!K36)) ->  | W37: =IF(Meetings!L36="","",getAddress(Meetings!L36)) ->  | X37: =IF(Meetings!M36="","",getAddress(Meetings!M36)) ->  | Y37: =IF(Meetings!N36="","",getAddress(Meetings!N36)) ->  | AA37: Colours: Burgundy | AB37: gold stripe | AC37: black braces | AD37: white sleeves | AE37: burgundy cuffs | AF37: black cap
A38: =IF(RaceLists!A38="","",IF(RaceLists!A38="END","END",IF(RaceLists!E38="","",getAddress(RaceLists!E38)))) -> http://formguide.cyberhorse.com.au/index.php/Form/form.html?formdate=2010-11-24&track=W.Farm&raceno=2 | O38: =IF(Meetings!D37="","",getAddress(Meetings!D37)) ->  | P38: =IF(Meetings!E37="","",getAddress(Meetings!E37)) ->  | Q38: =IF(Meetings!F37="","",getAddress(Meetings!F37)) ->  | R38: =IF(Meetings!G37="","",getAddress(Meetings!G37)) ->  | S38: =IF(Meetings!H37="","",getAddress(Meetings!H37)) ->  | T38: =IF(Meetings!I37="","",getAddress(Meetings!I37)) ->  | U38: =IF(Meetings!J37="","",getAddress(Meetings!J37)) ->  | V38: =IF(Meetings!K37="","",getAddress(Meetings!K37)) ->  | W38: =IF(Meetings!L37="","",getAddress(Meetings!L37)) ->  | X38: =IF(Meetings!M37="","",getAddress(Meetings!M37)) ->  | Y38: =IF(Meetings!N37="","",getAddress(Meetings!N37)) ->  | AA38: Owners: P & Mrs J Zecevich
A39: =IF(RaceLists!A39="","",IF(RaceLists!A39="END","END",IF(RaceLists!E39="","",getAddress(RaceLists!E39)))) -> http://formguide.cyberhorse.com.au/index.php/Form/form.html?formdate=2010-11-24&track=W.Farm&raceno=3 | O39: =IF(Meetings!D38="","",getAddress(Meetings!D38)) ->  | P39: =IF(Meetings!E38="","",getAddress(Meetings!E38)) ->  | Q39: =IF(Meetings!F38="","",getAddress(Meetings!F38)) ->  | R39: =IF(Meetings!G38="","",getAddress(Meetings!G38)) ->  | S39: =IF(Meetings!H38="","",getAddress(Meetings!H38)) ->  | T39: =IF(Meetings!I38="","",getAddress(Meetings!I38)) ->  | U39: =IF(Meetings!J38="","",getAddress(Meetings!J38)) ->  | V39: =IF(Meetings!K38="","",getAddress(Meetings!K38)) ->  | W39: =IF(Meetings!L38="","",getAddress(Meetings!L38)) ->  | X39: =IF(Meetings!M38="","",getAddress(Meetings!M38)) ->  | Y39: =IF(Meetings!N38="","",getAddress(Meetings!N38)) ->  | AA39: Career:
A40: =IF(RaceLists!A40="","",IF(RaceLists!A40="END","END",IF(RaceLists!E40="","",getAddress(RaceLists!E40)))) -> http://formguide.cyberhorse.com.au/index.php/Form/form.html?formdate=2010-11-24&track=W.Farm&raceno=4 | O40: =IF(Meetings!D39="","",getAddress(Meetings!D39)) ->  | P40: =IF(Meetings!E39="","",getAddress(Meetings!E39)) ->  | Q40: =IF(Meetings!F39="","",getAddress(Meetings!F39)) ->  | R40: =IF(Meetings!G39="","",getAddress(Meetings!G39)) ->  | S40: =IF(Meetings!H39="","",getAddress(Meetings!H39)) ->  | T40: =IF(Meetings!I39="","",getAddress(Meetings!I39)) ->  | U40: =IF(Meetings!J39="","",getAddress(Meetings!J39)) ->  | V40: =IF(Meetings!K39="","",getAddress(Meetings!K39)) ->  | W40: =IF(Meetings!L39="","",getAddress(Meetings!L39)) ->  | X40: =IF(Meetings!M39="","",getAddress(Meetings!M39)) ->  | Y40: =IF(Meetings!N39="","",getAddress(Meetings!N39)) ->  | AA40: 4:0-0-1
A41: =IF(RaceLists!A41="","",IF(RaceLists!A41="END","END",IF(RaceLists!E41="","",getAddress(RaceLists!E41)))) -> http://formguide.cyberhorse.com.au/index.php/Form/form.html?formdate=2010-11-24&track=W.Farm&raceno=5 | O41: =IF(Meetings!D40="","",getAddress(Meetings!D40)) ->  | P41: =IF(Meetings!E40="","",getAddress(Meetings!E40)) ->  | Q41: =IF(Meetings!F40="","",getAddress(Meetings!F40)) ->  | R41: =IF(Meetings!G40="","",getAddress(Meetings!G40)) ->  | S41: =IF(Meetings!H40="","",getAddress(Meetings!H40)) ->  | T41: =IF(Meetings!I40="","",getAddress(Meetings!I40)) ->  | U41: =IF(Meetings!J40="","",getAddress(Meetings!J40)) ->  | V41: =IF(Meetings!K40="","",getAddress(Meetings!K40)) ->  | W41: =IF(Meetings!L40="","",getAddress(Meetings!L40)) ->  | X41: =IF(Meetings!M40="","",getAddress(Meetings!M40)) ->  | Y41: =IF(Meetings!N40="","",getAddress(Meetings!N40)) ->  | AA41: Fast:
A42: =IF(RaceLists!A42="","",IF(RaceLists!A42="END","END",IF(RaceLists!E42="","",getAddress(RaceLists!E42)))) -> http://formguide.cyberhorse.com.au/index.php/Form/form.html?formdate=2010-11-24&track=W.Farm&raceno=6 | O42: =IF(Meetings!D41="","",getAddress(Meetings!D41)) ->  | P42: =IF(Meetings!E41="","",getAddress(Meetings!E41)) ->  | Q42: =IF(Meetings!F41="","",getAddress(Meetings!F41)) ->  | R42: =IF(Meetings!G41="","",getAddress(Meetings!G41)) ->  | S42: =IF(Meetings!H41="","",getAddress(Meetings!H41)) ->  | T42: =IF(Meetings!I41="","",getAddress(Meetings!I41)) ->  | U42: =IF(Meetings!J41="","",getAddress(Meetings!J41)) ->  | V42: =IF(Meetings!K41="","",getAddress(Meetings!K41)) ->  | W42: =IF(Meetings!L41="","",getAddress(Meetings!L41)) ->  | X42: =IF(Meetings!M41="","",getAddress(Meetings!M41)) ->  | Y42: =IF(Meetings!N41="","",getAddress(Meetings!N41)) ->  | AA42: 0:0-0-0
A43: =IF(RaceLists!A43="","",IF(RaceLists!A43="END","END",IF(RaceLists!E43="","",getAddress(RaceLists!E43)))) -> http://formguide.cyberhorse.com.au/index.php/Form/form.html?formdate=2010-11-24&track=W.Farm&raceno=7 | O43: =IF(Meetings!D42="","",getAddress(Meetings!D42)) ->  | P43: =IF(Meetings!E42="","",getAddress(Meetings!E42)) ->  | Q43: =IF(Meetings!F42="","",getAddress(Meetings!F42)) ->  | R43: =IF(Meetings!G42="","",getAddress(Meetings!G42)) ->  | S43: =IF(Meetings!H42="","",getAddress(Meetings!H42)) ->  | T43: =IF(Meetings!I42="","",getAddress(Meetings!I42)) ->  | U43: =IF(Meetings!J42="","",getAddress(Meetings!J42)) ->  | V43: =IF(Meetings!K42="","",getAddress(Meetings!K42)) ->  | W43: =IF(Meetings!L42="","",getAddress(Meetings!L42)) ->  | X43: =IF(Meetings!M42="","",getAddress(Meetings!M42)) ->  | Y43: =IF(Meetings!N42="","",getAddress(Meetings!N42)) ->  | AA43: 5-13 2.4L | AB43: MorhPk | AC43: 2010-11-04 | AD43: 1400m | AE43: Good | AF43: Race 5 | AG43: 4yo+ Mdn | AH43: Mdn 4+ | AI43: 10000 | AJ43: 0 | AK43: S Cahill | AL43: 12 | AM43: Cd 57.0-0.0 | AN43: (SW) | AO43: 1:26.26 | AP43: -36.74 | AQ43: 9/1 | AR43: Settled-7 1200-- 800-- Turn-2 | AS43: 1-Master Beckett 55.0
A44: =IF(RaceLists!A44="","",IF(RaceLists!A44="END","END",IF(RaceLists!E44="","",getAddress(RaceLists!E44)))) -> END | O44: =IF(Meetings!D43="","",getAddress(Meetings!D43)) ->  | P44: =IF(Meetings!E43="","",getAddress(Meetings!E43)) ->  | Q44: =IF(Meetings!F43="","",getAddress(Meetings!F43)) ->  | R44: =IF(Meetings!G43="","",getAddress(Meetings!G43)) ->  | S44: =IF(Meetings!H43="","",getAddress(Meetings!H43)) ->  | T44: =IF(Meetings!I43="","",getAddress(Meetings!I43)) ->  | U44: =IF(Meetings!J43="","",getAddress(Meetings!J43)) ->  | V44: =IF(Meetings!K43="","",getAddress(Meetings!K43)) ->  | W44: =IF(Meetings!L43="","",getAddress(Meetings!L43)) ->  | X44: =IF(Meetings!M43="","",getAddress(Meetings!M43)) ->  | Y44: =IF(Meetings!N43="","",getAddress(Meetings!N43)) ->  | AA44: 3-13 2.6L | AB44: Strath | AC44: 2010-10-20 | AD44: 1200m | AE44: Good | AF44: Race 5 | AG44: 3yo+ Mdn | AH44: Mdn 3+ | AI44: 10000 | AJ44: -900 | AK44: S Cahill | AL44: 4 | AM44: Cd 57.0-0.0 | AN44: (SW) | AO44: 1:14.24 | AP44: -36.26 | AQ44: 11/1 | AR44: Settled-2 1200-- 800-- Turn-2 | AS44: 1-Chilli Deva 55.0
A45: =IF(RaceLists!A45="","",IF(RaceLists!A45="END","END",IF(RaceLists!E45="","",getAddress(RaceLists!E45)))) ->  | O45: =IF(Meetings!D44="","",getAddress(Meetings!D44)) ->  | P45: =IF(Meetings!E44="","",getAddress(Meetings!E44)) ->  | Q45: =IF(Meetings!F44="","",getAddress(Meetings!F44)) ->  | R45: =IF(Meetings!G44="","",getAddress(Meetings!G44)) ->  | S45: =IF(Meetings!H44="","",getAddress(Meetings!H44)) ->  | T45: =IF(Meetings!I44="","",getAddress(Meetings!I44)) ->  | U45: =IF(Meetings!J44="","",getAddress(Meetings!J44)) ->  | V45: =IF(Meetings!K44="","",getAddress(Meetings!K44)) ->  | W45: =IF(Meetings!L44="","",getAddress(Meetings!L44)) ->  | X45: =IF(Meetings!M44="","",getAddress(Meetings!M44)) ->  | Y45: =IF(Meetings!N44="","",getAddress(Meetings!N44)) ->  | AA45: 7-8 5.8L | AB45: Balakl | AC45: 2010-09-29 | AD45: 1050m | AE45: Dead | AF45: Race 3 | AG45: 4yo+ Mdn | AH45: Mdn 4+ | AI45: 10000 | AJ45: 0 | AK45: S Cahill | AL45: 1 | AM45: Cd 57.0-0.0 | AN45: (SW) | AO45: 1:02.14 | AP45: -34.21 | AQ45: 6/1 | AR45: Settled-4 1200-- 800-- Turn-4 | AS45: 1-Hollywood Dream 55.0
A46: =IF(RaceLists!A46="","",IF(RaceLists!A46="END","END",IF(RaceLists!E46="","",getAddress(RaceLists!E46)))) ->  | AA46: 8-9 5.5L | AB46: M.Brge | AC46: 2010-03-03 | AD46: 1000m | AE46: Good | AF46: Race 2 | AG46: 3yo Mdn | AH46: Mdn 3 | AI46: 10000 | AJ46: 0 | AK46: P Gatt | AL46: 2 | AM46: Cd 56.5-0.0 | AN46: (SW) | AO46: 0:58.54 | AP46: () | AQ46: 7/1 | AR46: Settled-4 1200-- 800-- Turn-5 | AS46: 1-Hearts 'n' Halos 54.5
A47: =IF(RaceLists!A47="","",IF(RaceLists!A47="END","END",IF(RaceLists!E47="","",getAddress(RaceLists!E47)))) ->  | Z47: Red Hot Jeune | AA47: 3 Red Hot Jeune (17) 57.0kg 4yo ch g
A48: =IF(RaceLists!A48="","",IF(RaceLists!A48="END","END",IF(RaceLists!E48="","",getAddress(RaceLists!E48)))) ->  | AA48: Colours: Royal blue | AB48: pink striped sleeves | AC48: royal blue cap
A49: =IF(RaceLists!A49="","",IF(RaceLists!A49="END","END",IF(RaceLists!E49="","",getAddress(RaceLists!E49)))) ->  | AA49: Owners: G L Martin
A50: =IF(RaceLists!A50="","",IF(RaceLists!A50="END","END",IF(RaceLists!E50="","",getAddress(RaceLists!E50)))) ->  | AA50: Career:
A51: =IF(RaceLists!A51="","",IF(RaceLists!A51="END","END",IF(RaceLists!E51="","",getAddress(RaceLists!E51)))) ->  | AA51: 5:0-0-2
A52: =IF(RaceLists!A52="","",IF(RaceLists!A52="END","END",IF(RaceLists!E52="","",getAddress(RaceLists!E52)))) ->  | AA52: Fast:
A53: =IF(RaceLists!A53="","",IF(RaceLists!A53="END","END",IF(RaceLists!E53="","",getAddress(RaceLists!E53)))) ->  | AA53: 0:0-0-0
A54: =IF(RaceLists!A54="","",IF(RaceLists!A54="END","END",IF(RaceLists!E54="","",getAddress(RaceLists!E54)))) ->  | AA54: 3-13 0.6L | AB54: M.Brge | AC54: 2010-11-10 | AD54: 1200m | AE54: Good | AF54: Race 1 | AG54: 4yo+ Mdn | AH54: Mdn 4+ | AI54: 10000 | AJ54: -900 | AK54: M Neilson | AL54: 7 | AM54: Cd 57.0-0.0 | AN54: (SW) | AO54: 1:12.23 | AP54: -35.6 | AQ54: 45/10 | AR54: Settled-5 1200-- 800-- Turn-4 | AS54: 1-Ambitious Bride 55.0
A55: =IF(RaceLists!A55="","",IF(RaceLists!A55="END","END",IF(RaceLists!E55="","",getAddress(RaceLists!E55)))) ->  | AA55: 5-12 2.8L | AB55: Gawlr | AC55: 2010-10-27 | AD55: 1100m | AE55: Good | AF55: Race 1 | AG55: 3yo+ Mdn | AH55: Mdn 3+ | AI55: 10000 | AJ55: 0 | AK55: M Neilson | AL55: 5 | AM55: Cd 57.0-0.0 | AN55: (SW) | AO55: 1:04.93 | AP55: -34.71 | AQ55: 15/2 | AR55: Settled-6 1200-- 800-- Turn-6 | AS55: 1-Cattyshack 52.0
A56: =IF(RaceLists!A56="","",IF(RaceLists!A56="END","END",IF(RaceLists!E56="","",getAddress(RaceLists!E56)))) ->  | AA56: 7-12 4.3L | AB56: Balakl | AC56: 2010-06-09 | AD56: 1055m | AE56: Dead | AF56: Race 3 | AG56: 3yo+ Mdn | AH56: Mdn 3+ | AI56: 10000 | AJ56: 0 | AK56: S Price | AL56: 7 | AM56: Cd 56.5-0.0 | AN56: (SW) | AO56: 1:03.40 | AP56: -36.1 | AQ56: 32/10 | AR56: Settled-7 1200-- 800-- Turn-6 | AS56: 1-Red England 57.0
A57: =IF(RaceLists!A57="","",IF(RaceLists!A57="END","END",IF(RaceLists!E57="","",getAddress(RaceLists!E57)))) ->  | AA57: 3-11 3.0L | AB57: M.Brge | AC57: 2010-05-26 | AD57: 1006m | AE57: Dead | AF57: Race 4 | AG57: 3yo+ Mdn | AH57: Mdn 3+ | AI57: 10000 | AJ57: -900 | AK57: S Price | AL57: 1 | AM57: Cd 56.5-0.0 | AN57: (SW) | AO57: 0:59.55 | AP57: -35.47 | AQ57: 5/1 | AR57: Settled-1 1200-- 800-- Turn-1 | AS57: 1-Silent Mode 54.5
A58: =IF(RaceLists!A58="","",IF(RaceLists!A58="END","END",IF(RaceLists!E58="","",getAddress(RaceLists!E58)))) ->  | AA58: 9-11 3.9L | AB58: Bend | AC58: 2010-05-07 | AD58: 1000m | AE58: Good | AF58: Race 1 | AG58: 3yo Mdn | AH58: Mdn 3 | AI58: 13000 | AJ58: -200 | AK58: M Pumpa | AL58: 6 | AM58: Cd 57.0-0.0 | AN58: (SW) | AO58: 0:58.68 | AP58: () | AQ58: 9/1 | AR58: Settled-1 1200-- 800-- Turn-1 | AS58: 1-Bel Shandy 57.0
A59: =IF(RaceLists!A59="","",IF(RaceLists!A59="END","END",IF(RaceLists!E59="","",getAddress(RaceLists!E59)))) ->  | Z59: Shiraz Knight | AA59: 4 Shiraz Knight (1) 57.0kg 6yo b/br g
A60: =IF(RaceLists!A60="","",IF(RaceLists!A60="END","END",IF(RaceLists!E60="","",getAddress(RaceLists!E60)))) ->  | AA60: Colours: Gold | AB60: royal blue spots | AC60: green hooped sleeves and cap
A61: =IF(RaceLists!A61="","",IF(RaceLists!A61="END","END",IF(RaceLists!E61="","",getAddress(RaceLists!E61)))) ->  | AA61: Owners: J L P Maddigan | AB61: J L Maddigan | AC61: Mrs K S Maddigan | AD61: P G Hansen & A J Whiley
A62: =IF(RaceLists!A62="","",IF(RaceLists!A62="END","END",IF(RaceLists!E62="","",getAddress(RaceLists!E62)))) ->  | AA62: Career:
A63: =IF(RaceLists!A63="","",IF(RaceLists!A63="END","END",IF(RaceLists!E63="","",getAddress(RaceLists!E63)))) ->  | AA63: 9:0-0-0
A64: =IF(RaceLists!A64="","",IF(RaceLists!A64="END","END",IF(RaceLists!E64="","",getAddress(RaceLists!E64)))) ->  | AA64: Fast:
A65: =IF(RaceLists!A65="","",IF(RaceLists!A65="END","END",IF(RaceLists!E65="","",getAddress(RaceLists!E65)))) ->  | AA65: 0:0-0-0
A66: =IF(RaceLists!A66="","",IF(RaceLists!A66="END","END",IF(RaceLists!E66="","",getAddress(RaceLists!E66)))) ->  | AA66: 4-12 4.5L | AB66: Gawlr | AC66: 2010-09-12 | AD66: 2100m | AE66: Slow | AF66: Race 2 | AG66: 3yo+ Mdn | AH66: Mdn 3+ | AI66: 10000 | AJ66: -600 | AK66: O Ay | AL66: 5 | AM66: Cd 54.0--3.0 | AN66: (SW) | AO66: 2:16.97 | AP66: -39 | AQ66: 55/10 | AR66: Settled-11 1200-12 800-12 Turn-10 | AS66: 1-Marizza's Dream 53.5
A67: =IF(RaceLists!A67="","",IF(RaceLists!A67="END","END",IF(RaceLists!E67="","",getAddress(RaceLists!E67)))) ->  | Z67: =IF(AA67="","",IF(ISERROR(MID(AA67,FIND(" ",AA67,1)+1,FIND("(",AA67,1)-FIND(" ",AA67,1)-2)),"",MID(AA67,FIND(" ",AA67,1)+1,FIND("(",AA67,1)-FIND(" ",AA67,1)-2))) ->  | AA67: 4-10 2.1L | AB67: Gawlr | AC67: 2010-08-05 | AD67: 2100m | AE67: Slow | AF67: Race 4 | AG67: 3yo+ Mdn | AH67: Mdn 3+ | AI67: 10000 | AJ67: -600 | AK67: D Robinson | AL67: 3 | AM67: Cd 57.0-0.0 | AN67: (SW) | AO67: 2:19.12 | AP67: -39.15 | AQ67: 20/1 | AR67: Settled-10 1200-10 800-9 Turn-7 | AS67: 1-Blanche Port 55.0
A68: =IF(RaceLists!A68="","",IF(RaceLists!A68="END","END",IF(RaceLists!E68="","",getAddress(RaceLists!E68)))) ->  | N68: =IF(M68="","",IF(ISERROR(LEFT(M68,FIND("-",M68)-1)),IF(ISERROR(LEFT(M68,FIND(" ",M68)-1)),M68,LEFT(M68,FIND(" ",M68)-1)),LEFT(M68,FIND("-",M68)-1))) ->  | AA68: 9-10 5.8L | AB68: Strath | AC68: 2010-07-21 | AD68: 2050m | AE68: Slow | AF68: Race 2 | AG68: 3yo+ Mdn | AH68: Mdn 3+ | AI68: 10000 | AJ68: 0 | AK68: D Robinson | AL68: 1 | AM68: Cd 57.0-0.0 | AN68: (SW) | AO68: 2:15.77 | AP68: -38.97 | AQ68: 8/1 | AR68: Settled-7 1200-8 800-8 Turn-9 | AS68: 1-Robeson 56.5
A69: =IF(RaceLists!A69="","",IF(RaceLists!A69="END","END",IF(RaceLists!E69="","",getAddress(RaceLists!E69)))) ->  | AA69: 5-12 2.6L | AB69: MorhPk | AC69: 2010-07-07 | AD69: 1950m | AE69: Dead | AF69: Race 4 | AG69: 2yo+ Mdn | AH69: Mdn | AI69: 10000 | AJ69: 0 | AK69: D Robinson | AL69: 3 | AM69: Cd 57.0-0.0 | AN69: (SW) | AO69: 2:06.38 | AP69: -37.51 | AQ69: 14/1 | AR69: Settled-10 1200-10 800-8 Turn-10 | AS69: 1-Big Love 54.5
A70: =IF(RaceLists!A70="","",IF(RaceLists!A70="END","END",IF(RaceLists!E70="","",getAddress(RaceLists!E70)))) ->  | AA70: 5-7 4.0L | AB70: M.Brge | AC70: 2010-06-14 | AD70: 1400m | AE70: Dead | AF70: Race 2 | AG70: 2yo+ Mdn | AH70: Mdn | AI70: 10000 | AJ70: 0 | AK70: D Robinson | AL70: 4 | AM70: Cd 57.0-0.0 | AN70: (SW) | AO70: 1:27.05 | AP70: () | AQ70: 25/1 | AR70: Settled-6 1200-- 800-6 Turn-7 | AS70: 1-Fantastic Glen 54.5
A71: =IF(RaceLists!A71="","",IF(RaceLists!A71="END","END",IF(RaceLists!E71="","",getAddress(RaceLists!E71)))) ->  | AA71: 8-13 6.6L | AB71: Clare | AC71: 2010-03-14 | AD71: 1800m | AE71: Good | AF71: Race 2 | AG71: 3yo+ Mdn | AH71: Mdn 3+ | AI71: 8000 | AJ71: 0 | AK71: D Robinson | AL71: 5 | AM71: Cd 57.0-0.0 | AN71: (SW) | AO71: 1:55.96 | AP71: () | AQ71: 40/1 | AR71: Settled-- 1200-- 800-- Turn-- | AS71: 1-Lord Of The Song 57.0
A72: =IF(RaceLists!A72="","",IF(RaceLists!A72="END","END",IF(RaceLists!E72="","",getAddress(RaceLists!E72)))) ->  | AA72: 10-13 7.3L | AB72: Balakl | AC72: 2010-02-28 | AD72: 1400m | AE72: Good | AF72: Race 5 | AG72: 3yo+ Mdn | AH72: Mdn 3+ | AI72: 10000 | AJ72: 0 | AK72: O Ay | AL72: 3 | AM72: Cd 54.0--3.0 | AN72: (SW) | AO72: 1:23.64 | AP72: () | AQ72: 50/1 | AR72: Settled-11 1200-- 800-12 Turn-10 | AS72: 1-Bunker Boy 56.0
A73: =IF(RaceLists!A73="","",IF(RaceLists!A73="END","END",IF(RaceLists!E73="","",getAddress(RaceLists!E73)))) ->  | AA73: 10-10 7.1L | AB73: Strath | AC73: 2010-01-27 | AD73: 1350m | AE73: Good | AF73: Race 2 | AG73: 4yo+ Mdn | AH73: Mdn 4+ | AI73: 7700 | AJ73: 0 | AK73: S Price | AL73: 4 | AM73: Cd 57.0-0.0 | AN73: (SW) | AO73: 1:22.97 | AP73: () | AQ73: 20/1 | AR73: Settled-10 1200-- 800-- Turn-10 | AS73: 1-Alakate 55.0
A74: =IF(RaceLists!A74="","",IF(RaceLists!A74="END","END",IF(RaceLists!E74="","",getAddress(RaceLists!E74)))) ->  | AA74: 15-16 26.7L | AB74: Mphvl | AC74: 2009-08-19 | AD74: 1050m | AE74: Good | AF74: Race 3 | AG74: 3yo+ Mdn | AH74: Mdn 3+ | AI74: 7700 | AJ74: 0 | AK74: M Hoppo | AL74: 12 | AM74: Cd 57.0-0.0 | AN74: (SW) | AO74: 0:59.42 | AP74: -33.86 | AQ74: 40/1 | AR74: Settled-14 1200-- 800-- Turn-15 | AS74: 1-Definitely Ready 55.0
A75: =IF(RaceLists!A75="","",IF(RaceLists!A75="END","END",IF(RaceLists!E75="","",getAddress(RaceLists!E75)))) ->  | Z75: Drafted | AA75: 5 Drafted (2) 55.5kg 3yo br g
A76: =IF(RaceLists!A76="","",IF(RaceLists!A76="END","END",IF(RaceLists!E76="","",getAddress(RaceLists!E76)))) ->  | AA76: Colours: White | AB76: red and black diamond sash and armbands
A77: =IF(RaceLists!A77="","",IF(RaceLists!A77="END","END",IF(RaceLists!E77="","",getAddress(RaceLists!E77)))) ->  | AA77: Owners: J I Halsall | AB77: P J & Mrs E B Noone | AC77: D P & D A Heffernan | AD77: Diplomats & M A Nunan
A78: =IF(RaceLists!A78="","",IF(RaceLists!A78="END","END",IF(RaceLists!E78="","",getAddress(RaceLists!E78)))) ->  | AA78: Career:
A79: =IF(RaceLists!A79="","",IF(RaceLists!A79="END","END",IF(RaceLists!E79="","",getAddress(RaceLists!E79)))) ->  | AA79: 2010-01-01T04:00:00
A80: =IF(RaceLists!A80="","",IF(RaceLists!A80="END","END",IF(RaceLists!E80="","",getAddress(RaceLists!E80)))) ->  | AA80: Fast:
A81: =IF(RaceLists!A81="","",IF(RaceLists!A81="END","END",IF(RaceLists!E81="","",getAddress(RaceLists!E81)))) ->  | AA81: 0:0-0-0
A82: =IF(RaceLists!A82="","",IF(RaceLists!A82="END","END",IF(RaceLists!E82="","",getAddress(RaceLists!E82)))) ->  | AA82: 3-12 1.3L | AB82: Gawlr | AC82: 2010-11-17 | AD82: 1100m | AE82: Good | AF82: Race 2 | AG82: 3yo+ E&g Mdn | AH82: Mdn 3+ | AI82: 10000 | AJ82: -900 | AK82: S Cahill | AL82: 3 | AM82: Cd 55.5-0.0 | AN82: (SW) | AO82: 1:04.90 | AP82: -35.38 | AQ82: 15/10F | AR82: Settled-- 1200-- 800-- Turn-- | AS82: 1-Vintage Punch 55.5
A83: =IF(RaceLists!A83="","",IF(RaceLists!A83="END","END",IF(RaceLists!E83="","",getAddress(RaceLists!E83)))) ->  | AA83: 2-13 0.8L | AB83: Mphvl | AC83: 2010-11-02 | AD83: 1200m | AE83: Good | AF83: Race 2 | AG83: 3yo+ E&g Mdn | AH83: Mdn 3+ | AI83: 10000 | AJ83: -1800 | AK83: S Cahill | AL83: 8 | AM83: Cd 55.5-0.0 | AN83: (SW) | AO83: 1:10.73 | AP83: -35.62 | AQ83: 22/10 | AR83: Settled-3 1200-- 800-- Turn-5 | AS83: 1-Mavross 57.0
A84: =IF(RaceLists!A84="","",IF(RaceLists!A84="END","END",IF(RaceLists!E84="","",getAddress(RaceLists!E84)))) ->  | AA84: 4-11 3.5L | AB84: Balakl | AC84: 2010-06-09 | AD84: 1210m | AE84: Dead | AF84: Race 1 | AG84: 2yo Mdn | AH84: Mdn 2 | AI84: 10000 | AJ84: -600 | AK84: S Cahill | AL84: 6 | AM84: Cd 56.5-0.0 | AN84: (SW) | AO84: 1:12.89 | AP84: () | AQ84: 11/10F | AR84: Settled-5 1200-- 800-- Turn-5 | AS84: 1-Kosciuszko's Side 56.5
A85: =IF(RaceLists!A85="","",IF(RaceLists!A85="END","END",IF(RaceLists!E85="","",getAddress(RaceLists!E85)))) ->  | AA85: 5-12 4.4L | AB85: Mphvl | AC85: 2010-05-29 | AD85: 1000m | AE85: Dead | AF85: Race 1 | AG85: 2yo Hcp | AH85: Open 2 | AI85: 40000 | AJ85: -900 | AK85: A Patterson | AL85: 12 | AM85: Cd 55.5-0.0 | AN85: -53 | AO85: 1:00.18 | AP85: -36.35 | AQ85: 6/1 | AR85: Settled-5 1200-- 800-- Turn-6 | AS85: 1-Lilgiggleo 54.5
A86: =IF(RaceLists!A86="","",IF(RaceLists!A86="END","END",IF(RaceLists!E86="","",getAddress(RaceLists!E86)))) ->  | Z86: Baena | AA86: 6 Baena (18) 55.0kg 4yo b m
A87: =IF(RaceLists!A87="","",IF(RaceLists!A87="END","END",IF(RaceLists!E87="","",getAddress(RaceLists!E87)))) ->  | AA87: Colours: Green | AB87: white hooped sleeves
A88: =IF(RaceLists!A88="","",IF(RaceLists!A88="END","END",IF(RaceLists!E88="","",getAddress(RaceLists!E88)))) ->  | AA88: Owners: Dr H Awang | AB88: C Tan | AC88: W H Lee | AD88: Dr Y Awang & Dato Azzat Kamaludin
A89: =IF(RaceLists!A89="","",IF(RaceLists!A89="END","END",IF(RaceLists!E89="","",getAddress(RaceLists!E89)))) ->  | AA89: Career:
A90: =IF(RaceLists!A90="","",IF(RaceLists!A90="END","END",IF(RaceLists!E90="","",getAddress(RaceLists!E90)))) ->  | AA90: 1:0-0-0
A91: =IF(RaceLists!A91="","",IF(RaceLists!A91="END","END",IF(RaceLists!E91="","",getAddress(RaceLists!E91)))) ->  | AA91: Fast:
A92: =IF(RaceLists!A92="","",IF(RaceLists!A92="END","END",IF(RaceLists!E92="","",getAddress(RaceLists!E92)))) ->  | AA92: 0:0-0-0
A93: =IF(RaceLists!A93="","",IF(RaceLists!A93="END","END",IF(RaceLists!E93="","",getAddress(RaceLists!E93)))) ->  | AA93: 7-10 4.7L | AB93: MorhPk | AC93: 2010-11-04 | AD93: 1250m | AE93: Good | AF93: Race 1 | AG93: 3yo+ F&m Mdn | AH93: Mdn fm | AI93: 10000 | AJ93: 0 | AK93: J Frew | AL93: 1 | AM93: Cd 53.5--3.0 | AN93: (SW) | AO93: 1:15.57 | AP93: -36.01 | AQ93: 60/1 | AR93: Settled-3 1200-- 800-- Turn-7 | AS93: 1-Fleet Riane 55.0
A94: =IF(RaceLists!A94="","",IF(RaceLists!A94="END","END",IF(RaceLists!E94="","",getAddress(RaceLists!E94)))) ->  | Z94: Burgundy Notes | AA94: 7 Burgundy Notes (14) 55.0kg 5yo b m
A95: =IF(RaceLists!A95="","",IF(RaceLists!A95="END","END",IF(RaceLists!E95="","",getAddress(RaceLists!E95)))) ->  | AA95: Colours: Light green | AB95: dark green | AC95: light green sleeves with dark green horse stripe
A96: =IF(RaceLists!A96="","",IF(RaceLists!A96="END","END",IF(RaceLists!E96="","",getAddress(RaceLists!E96)))) ->  | AA96: Owners: Tosca Farm Syndicate & Ms H Papazaharoudakis
A97: =IF(RaceLists!A97="","",IF(RaceLists!A97="END","END",IF(RaceLists!E97="","",getAddress(RaceLists!E97)))) ->  | AA97: Career:
A98: =IF(RaceLists!A98="","",IF(RaceLists!A98="END","END",IF(RaceLists!E98="","",getAddress(RaceLists!E98)))) ->  | AA98: 2000-05-01T10:00:00
A99: =IF(RaceLists!A99="","",IF(RaceLists!A99="END","END",IF(RaceLists!E99="","",getAddress(RaceLists!E99)))) ->  | AA99: Fast:
A100: =IF(RaceLists!A100="","",IF(RaceLists!A100="END","END",IF(RaceLists!E100="","",getAddress(RaceLists!E100)))) ->  | AA100: 0:0-0-0
A101: =IF(RaceLists!A101="","",IF(RaceLists!A101="END","END",IF(RaceLists!E101="","",getAddress(RaceLists!E101)))) ->  | AA101: 7-13 6.2L | AB101: M.Brge | AC101: 2010-11-10 | AD101: 1200m | AE101: Good | AF101: Race 1 | AG101: 4yo+ Mdn | AH101: Mdn 4+ | AI101: 10000 | AJ101: 0 | AK101: T Pannell | AL101: 5 | AM101: Cd 55.0-0.0 | AN101: (SW) | AO101: 1:12.23 | AP101: -35.6 | AQ101: 4/1 | AR101: Settled-4 1200-- 800-- Turn-5 | AS101: 1-Ambitious Bride 55.0
AA102: 2-6 3.0L | AB102: Balakl | AC102: 2010-02-28 | AD102: 2200m | AE102: Good | AF102: Race 1 | AG102: 3yo+ Mdn | AH102: Mdn 3+ | AI102: 10000 | AJ102: -1800 | AK102: C Lever | AL102: 1 | AM102: Cd 55.0-0.0 | AN102: (SW) | AO102: 2:23.96 | AP102: () | AQ102: 8/11F | AR102: Settled-1 1200-1 800-1 Turn-3 | AS102: 1-Pleats 55.0
AA103: 2-10 2.3L | AB103: Mphvl | AC103: 2010-02-03 | AD103: 2028m | AE103: Good | AF103: Race 2 | AG103: 3yo+ Mdn | AH103: Mdn 3+ | AI103: 10000 | AJ103: -1800 | AK103: M Neilson | AL103: 6 | AM103: Cd 55.0-0.0 | AN103: (SW) | AO103: 2:06.17 | AP103: -36.49 | AQ103: 2/1F | AR103: Settled-4 1200-4 800-4 Turn-5 | AS103: 1-Autentico Teatro 57.0
AA104: 2-7 0.4L | AB104: Mphvl | AC104: 2010-01-20 | AD104: 2044m | AE104: Good | AF104: Race 4 | AG104: 3yo+ Mdn | AH104: Mdn 3+ | AI104: 7700 | AJ104: -1000 | AK104: M Neilson | AL104: 6 | AM104: Cd 55.0-0.0 | AN104: (SW) | AO104: 2:09.76 | AP104: -37.43 | AQ104: 15/10F | AR104: Settled-5 1200-5 800-4 Turn-3 | AS104: 1-Hold That Conquest 53.5
AA105: 2-9 4.0L | AB105: Mphvl | AC105: 2010-01-06 | AD105: 1600m | AE105: Good | AF105: Race 3 | AG105: 3yo+ Mdn | AH105: Mdn 3+ | AI105: 7700 | AJ105: -1300 | AK105: M Neilson | AL105: 8 | AM105: Cd 55.0-0.0 | AN105: (SW) | AO105: 1:37.47 | AP105: -36.35 | AQ105: 4/1 | AR105: Settled-7 1200-7 800-7 Turn-5 | AS105: 1-Syanna's Bro 57.0
AA106: 5-14 5.6L | AB106: Mphvl | AC106: 2009-12-23 | AD106: 1200m | AE106: Good | AF106: Race 4 | AG106: 3yo+ Mdn | AH106: Mdn 3+ | AI106: 7700 | AJ106: 0 | AK106: M Neilson | AL106: 4 | AM106: Cd 55.0-0.0 | AN106: (SW) | AO106: 1:10.68 | AP106: -35.42 | AQ106: 12/1 | AR106: Settled-11 1200-- 800-- Turn-6 | AS106: 1-Catsonsong 55.5
AA107: 9-11 5.1L | AB107: Balakl | AC107: 2009-11-25 | AD107: 1407m | AE107: Good | AF107: Race 8 | AG107: 3yo+ Mdn | AH107: Mdn 3+ | AI107: 7700 | AJ107: 0 | AK107: C Lever | AL107: 1 | AM107: Cd 55.0-0.0 | AN107: (SW) | AO107: 1:24.30 | AP107: () | AQ107: 22/10 | AR107: Settled-4 1200-- 800-5 Turn-6 | AS107: 1-Sacre Nazaire 57.0
AA108: 5-11 3.5L | AB108: M.Brge | AC108: 2009-11-18 | AD108: 1400m | AE108: Good | AF108: Race 8 | AG108: 3yo+ Mdn | AH108: Mdn 3+ | AI108: 7700 | AJ108: 0 | AK108: C Lever | AL108: 7 | AM108: Cd 55.0-0.0 | AN108: (SW) | AO108: 1:24.33 | AP108: () | AQ108: 25/10 | AR108: Settled-9 1200-- 800-10 Turn-10 | AS108: 1-Ucetek 55.0
AA109: 2-12 1.0L | AB109: MorhPk | AC109: 2009-11-05 | AD109: 1250m | AE109: Good | AF109: Race 8 | AG109: 3yo+ F&m Mdn | AH109: Mdn fm | AI109: 7700 | AJ109: -1300 | AK109: C Lever | AL109: 10 | AM109: Cd 56.5-0.0 | AN109: (SW) | AO109: 1:16.53 | AP109: () | AQ109: 12/1 | AR109: Settled-8 1200-- 800-- Turn-9 | AS109: 1-Zhen Zhen 55.0
AA110: 11-13 9.4L | AB110: Balakl | AC110: 2009-05-20 | AD110: 1200m | AE110: Good | AF110: Race 3 | AG110: 3yo+ Mdn | AH110: Mdn 3+ | AI110: 7500 | AJ110: 0 | AK110: T Baker | AL110: 8 | AM110: Cd 54.5-0.0 | AN110: (SW) | AO110: 1:11.64 | AP110: () | AQ110: 25/1 | AR110: Settled-10 1200-- 800-- Turn-11 | AS110: 1-Cybercyn 52.0
Z111: Champagne Journey | AA111: 8 Champagne Journey (12) 55.0kg 4yo ch m
AA112: Colours: Light blue and purple diamonds | AB112: light blue cap | AC112: purple pom pom
AA113: Owners: Miss E Hubbard | AB113: A N Barratt | AC113: C Robertson & Ms M Freeman
AA114: Career:
AA115: 2000-01-01T08:00:00
AA116: Fast:
AA117: 0:0-0-0
AA118: 4-13 2.9L | AB118: M.Brge | AC118: 2010-11-10 | AD118: 1200m | AE118: Good | AF118: Race 1 | AG118: 4yo+ Mdn | AH118: Mdn 4+ | AI118: 10000 | AJ118: -600 | AK118: T Baker | AL118: 10 | AM118: Cd 55.0-0.0 | AN118: (SW) | AO118: 1:12.23 | AP118: -35.6 | AQ118: 12/1 | AR118: Settled-3 1200-- 800-- Turn-2 | AS118: 1-Ambitious Bride 55.0
AA119: 4-12 0.6L | AB119: Bortwn | AC119: 2010-10-24 | AD119: 1100m | AE119: Good | AF119: Race 3 | AG119: 3yo+ Mdn | AH119: Mdn 3+ | AI119: 8000 | AJ119: -400 | AK119: T Baker | AL119: 7 | AM119: Cd 55.0-0.0 | AN119: (SW) | AO119: 1:06.06 | AP119: () | AQ119: 6/1 | AR119: Settled-- 1200-- 800-- Turn-- | AS119: 1-Billy Whitesox 57.0
AA120: 2-15 1.5L | AB120: Strath | AC120: 2010-09-02 | AD120: 1250m | AE120: Slow | AF120: Race 5 | AG120: 3yo+ Mdn | AH120: Mdn 3+ | AI120: 10000 | AJ120: -1800 | AK120: T Baker | AL120: 5 | AM120: Cd 55.0-0.0 | AN120: (SW) | AO120: 1:20.90 | AP120: -39.58 | AQ120: 12/1 | AR120: Settled-1 1200-- 800-- Turn-1 | AS120: 1-Any Minute Now 57.0
AA121: 5-12 6.0L | AB121: M.Brge | AC121: 2010-07-28 | AD121: 1000m | AE121: Dead | AF121: Race 4 | AG121: 3yo+ Mdn | AH121: Mdn 3+ | AI121: 10000 | AJ121: 0 | AK121: T Baker | AL121: 3 | AM121: Cd 54.5-0.0 | AN121: (SW) | AO121: 0:59.04 | AP121: -35.12 | AQ121: 50/1 | AR121: Settled-7 1200-- 800-- Turn-9 | AS121: 1-Chicago Hood 56.5
AA122: 11-12 10.4L | AB122: Seymor | AC122: 2010-05-24 | AD122: 1600m | AE122: Dead | AF122: Race 2 | AG122: 2yo+ F&m Mdn | AH122: Mdn fm | AI122: 12000 | AJ122: 0 | AK122: L Beer | AL122: 1 | AM122: Cd 57.0-0.0 | AN122: (SW) | AO122: 1:39.65 | AP122: () | AQ122: 50/1 | AR122: Settled-3 1200-- 800-3 Turn-3 | AS122: 1-Bravelli 57.0
AA123: 8-12 12.7L | AB123: P'ham | AC123: 2010-05-08 | AD123: 1300m | AE123: Heavy | AF123: Race 1 | AG123: 3yo Mdn | AH123: Mdn 3 | AI123: 12000 | AJ123: -200 | AK123: A Mccabe | AL123: 5 | AM123: Cd 54.0--1.0 | AN123: (SW) | AO123: 1:21.70 | AP123: () | AQ123: 14/1 | AR123: Settled-8 1200-- 800-- Turn-8 | AS123: 1-Nenagh 55.0
AA124: 7-8 7.3L | AB124: G'long | AC124: 2010-04-09 | AD124: 1112m | AE124: Dead | AF124: Race 1 | AG124: 2yo+ Mdn Plate | AH124: Mdn | AI124: 13000 | AJ124: -200 | AK124: L Currie | AL124: 8 | AM124: Cd 55.5-0.0 | AN124: (SW) | AO124: 1:06.33 | AP124: -38.86 | AQ124: 20/1 | AR124: Settled-7 1200-- 800-- Turn-8 | AS124: 1-Brombed Out 56.0
AA125: 6-8 6.1L | AB125: G'long | AC125: 2010-03-26 | AD125: 1103m | AE125: Dead | AF125: Race 2 | AG125: 3yo F Mdn | AH125: Mdn 3 f | AI125: 12000 | AJ125: -200 | AK125: Michelle Payne | AL125: 2 | AM125: Cd 57.0-0.0 | AN125: (SW) | AO125: 1:05.74 | AP125: -34.21 | AQ125: 9/1 | AR125: Settled-5 1200-- 800-- Turn-5 | AS125: 1-Nothin Mist 57.0
Z126: Coco Loco | AA126: 9 Coco Loco (7) 55.0kg 5yo b m
AA127: Colours: Green | AB127: black and white checked sash | AC127: armbands and cap
AA128: Owners: W P & Mrs E S Benson
AA129: Career:
AA130: 2010-04-01T17:00:00
Z131: =IF(AA131="","",IF(ISERROR(MID(AA131,FIND(" ",AA131,1)+1,FIND("(",AA131,1)-FIND(" ",AA131,1)-2)),"",MID(AA131,FIND(" ",AA131,1)+1,FIND("(",AA131,1)-FIND(" ",AA131,1)-2))) ->  | AA131: Fast:
N132: =IF(M132="","",IF(ISERROR(LEFT(M132,FIND("-",M132)-1)),IF(ISERROR(LEFT(M132,FIND(" ",M132)-1)),M132,LEFT(M132,FIND(" ",M132)-1)),LEFT(M132,FIND("-",M132)-1))) ->  | AA132: 0:0-0-0
AA133: 3-8 4.6L | AB133: Kem.Gr | AC133: 2010-07-31 | AD133: 1600m | AE133: Heavy | AF133: Race 3 | AG133: Mdn | AH133: Mdn | AI133: 14000 | AJ133: -1400 | AK133: J Penza | AL133: 7 | AM133: Cd 56.5-0.0 | AN133: -56 | AO133: 1:45.36 | AP133: -37.68 | AQ133: 5/1 | AR133: Settled-6 1200-- 800-6 Turn-2 | AS133: 1-Irish Love 57.5
AA134: 2-14 0.2L | AB134: Kem.Gr | AC134: 2010-07-17 | AD134: 1400m | AE134: Good | AF134: Race 4 | AG134: F&m Mdn | AH134: Mdn fm | AI134: 14000 | AJ134: -2800 | AK134: C Reith | AL134: 6 | AM134: Cd 55.5-0.0 | AN134: -55.5 | AO134: 1:26.25 | AP134: -36.3 | AQ134: 7/2 | AR134: Settled-9 1200-- 800-8 Turn-6 | AS134: 1-Symphony 55.5
AA135: 4-14 3.5L | AB135: Kem.Gr | AC135: 2010-07-03 | AD135: 1300m | AE135: Dead | AF135: Race 7 | AG135: Mdn Plate | AH135: Mdn | AI135: 14000 | AJ135: -700 | AK135: C Reith | AL135: 14 | AM135: Cd 56.0-0.0 | AN135: (SW) | AO135: 1:19.78 | AP135: -34.98 | AQ135: 11/1 | AR135: Settled-14 1200-- 800-- Turn-13 | AS135: 1-Patricks 58.0
AA136: 4-13 1.3L | AB136: Kem.Gr | AC136: 2010-06-19 | AD136: 1400m | AE136: Dead | AF136: Race 7 | AG136: Mdn Plate | AH136: Mdn | AI136: 14000 | AJ136: -700 | AK136: J Penza | AL136: 2 | AM136: Cd 56.0-0.0 | AN136: (SW) | AO136: 1:26.21 | AP136: -35.61 | AQ136: 9/2 | AR136: Settled-5 1200-- 800-6 Turn-6 | AS136: 1-Stratocruiser 58.0
AA137: 5-6 5.3L | AB137: Kem.Gr | AC137: 2010-05-29 | AD137: 1500m | AE137: Heavy | AF137: Race 7 | AG137: Mdn Plate | AH137: Mdn | AI137: 14000 | AJ137: 0 | AK137: J Penza | AL137: 3 | AM137: Cd 56.0-0.0 | AN137: (SW) | AO137: 1:33.90 | AP137: -36.56 | AQ137: 9/4 | AR137: Settled-6 1200-- 800-4 Turn-4 | AS137: 1-Distant And Lovely 54.5
AA138: 3-8 0.9L | AB138: Kem.Gr | AC138: 2010-05-15 | AD138: 1400m | AE138: Good | AF138: Race 1 | AG138: Mdn Plate | AH138: Mdn | AI138: 14000 | AJ138: -1400 | AK138: J Penza | AL138: 4 | AM138: Cd 56.0-0.0 | AN138: (SW) | AO138: 1:25.17 | AP138: -33.41 | AQ138: 4/1 | AR138: Settled-4 1200-- 800-4 Turn-2 | AS138: 1-Zoot Suit 58.0
AA139: 3-11 2.3L | AB139: N'ctle | AC139: 2010-05-01 | AD139: 1200m | AE139: Dead | AF139: Race 5 | AG139: F&m Mdn | AH139: Mdn fm | AI139: 14000 | AJ139: -1400 | AK139: C Reith | AL139: 7 | AM139: Cd 55.0-0.0 | AN139: -55 | AO139: 1:11.32 | AP139: -35.67 | AQ139: 11/1 | AR139: Settled-11 1200-- 800-- Turn-8 | AS139: 1-Tokyo Light 55.5
AA140: 5-12 2.7L | AB140: N'ctle | AC140: 2009-12-26 | AD140: 1850m | AE140: Dead | AF140: Race 6 | AG140: Mdn | AH140: Mdn | AI140: 14000 | AJ140: 0 | AK140: J Adams | AL140: 8 | AM140: Cd 52.5--2.0 | AN140: -54.5 | AO140: 1:54.63 | AP140: -36.1 | AQ140: 8/1 | AR140: Settled-12 1200-12 800-12 Turn-8 | AS140: 1-Vilayet 55.5
AA141: 6-12 1.7L | AB141: C'bury | AC141: 2009-12-17 | AD141: 1550m | AE141: Good | AF141: Race 3 | AG141: 3yo+ Mdn | AH141: Mdn 3+ | AI141: 27000 | AJ141: 0 | AK141: J Parr | AL141: 9 | AM141: Cd 54.5-0.0 | AN141: -54.5 | AO141: 1:34.20 | AP141: -36.03 | AQ141: 16/1 | AR141: Settled-7 1200-- 800-7 Turn-7 | AS141: 1-Buffalo 56.5
AA142: 7-12 4.5L | AB142: C'bury | AC142: 2009-12-03 | AD142: 1550m | AE142: Good | AF142: Race 2 | AG142: 3yo+ Mdn Plate | AH142: Mdn 3+ | AI142: 27000 | AJ142: 0 | AK142: C Brown | AL142: 7 | AM142: Cd 56.0-0.0 | AN142: (SW) | AO142: 1:35.02 | AP142: -35.99 | AQ142: 9/1 | AR142: Settled-4 1200-- 800-- Turn-5 | AS142: 1-I Don't Recall 58.0
Z143: Often Away | AA143: 10 Often Away (9) 55.0kg 4yo b/br m
AA144: Colours: Royal blue | AB144: green and gold logo | AC144: green sleeves | AD144: gold cap and pom pom
Z145: Patinack Farm Racing Syndicate | AA145: Owners: Patinack Farm Racing Syndicate (mgr: N L Tinkler)
AA146: Career:
AA147: 40211.29167
AA148: Fast:
AA149: 0:0-0-0
AA150: 2-13 0.1L | AB150: Gawlr | AC150: 2010-11-17 | AD150: 1200m | AE150: Good | AF150: Race 3 | AG150: 4yo+ M Mdn | AH150: Mdn 4+ m | AI150: 10000 | AJ150: -1800 | AK150: T Pannell | AL150: 13 | AM150: Cd 56.5-0.0 | AN150: (SW) | AO150: 1:12.22 | AP150: -36.4 | AQ150: 25/10 | AR150: Settled-10 1200-- 800-- Turn-8 | AS150: 1-Rippa Matilla 56.5
AA151: 2-10 0.1L | AB151: MorhPk | AC151: 2010-11-04 | AD151: 1250m | AE151: Good | AF151: Race 1 | AG151: 3yo+ F&m Mdn | AH151: Mdn 3+ fm | AI151: 10000 | AJ151: -1800 | AK151: T Pannell | AL151: 10 | AM151: Cd 56.5-0.0 | AN151: (SW) | AO151: 1:15.57 | AP151: -36.01 | AQ151: 9/1 | AR151: Settled-10 1200-- 800-- Turn-9 | AS151: 1-Fleet Riane 55.0
AA152: 4-10 4.6L | AB152: Strath | AC152: 2010-10-20 | AD152: 1100m | AE152: Good | AF152: Race 3 | AG152: 3yo+ F&m Mdn | AH152: Mdn 3+ fm | AI152: 10000 | AJ152: -600 | AK152: C Lever | AL152: 8 | AM152: Cd 56.5-0.0 | AN152: (SW) | AO152: 1:06.89 | AP152: -36.13 | AQ152: 45/10 | AR152: Settled-9 1200-- 800-- Turn-9 | AS152: 1-Golden Penny 54.5
AA153: 4-7 3.5L | AB153: H'bury | AC153: 2010-04-01 | AD153: 1000m | AE153: Slow | AF153: Race 1 | AG153: Mdn Plate | AH153: Mdn | AI153: 16000 | AJ153: -800 | AK153: B Avdulla | AL153: 2 | AM153: Cd 55.5-0.0 | AN153: (SW) | AO153: 0:59.32 | AP153: -35.87 | AQ153: 12/1 | AR153: Settled-6 1200-- 800-- Turn-6 | AS153: 1-Maypan 55.5
AA154: 3-9 0.5L | AB154: N'ctle | AC154: 2009-11-15 | AD154: 900m | AE154: Good | AF154: Race 1 | AG154: 3yo Mdn Plate | AH154: Mdn 3 | AI154: 14000 | AJ154: -1400 | AK154: P Robl | AL154: 7 | AM154: Cd 54.0-0.0 | AN154: (SW) | AO154: 0:52.98 | AP154: -34.1 | AQ154: 10/9F | AR154: Settled-2 1200-- 800-- Turn-2 | AS154: 1-It's Our Turn 54.0
AA155: 3-10 2.3L | AB155: H'bury | AC155: 2009-10-22 | AD155: 1000m | AE155: Good | AF155: Race 1 | AG155: Mdn Plate | AH155: Mdn | AI155: 16000 | AJ155: -1600 | AK155: C Munce | AL155: 7 | AM155: Cd 53.5-0.0 | AN155: (SW) | AO155: 0:57.77 | AP155: -34.34 | AQ155: 5/2F | AR155: Settled-4 1200-- 800-- Turn-3 | AS155: 1-Dragon's Keep 55.5
AA156: 5-7 1.4L | AB156: H'bury | AC156: 2009-10-11 | AD156: 1000m | AE156: Slow | AF156: Race 1 | AG156: 3yo Mdn | AH156: Mdn 3 | AI156: 14000 | AJ156: 0 | AK156: H Bowman | AL156: 6 | AM156: Cd 56.0-0.0 | AN156: -55.5 | AO156: 0:58.89 | AP156: -35.25 | AQ156: 9/2 | AR156: Settled-3 1200-- 800-- Turn-3 | AS156: 1-Whiner 56.5
Z157: Promotional | AA157: 11 Promotional (8) 55.0kg 4yo b m
AA158: Colours: Pale blue | AB158: orange spot
AA159: Owners: Pukhraj Breeding & Racing Syndicate
AA160: Career:
AA161: 1:0-0-0
AA162: Fast:
AA163: 0:0-0-0
AA164: 6-9 4.8L | AB164: MorhPk | AC164: 2010-11-04 | AD164: 1250m | AE164: Good | AF164: Race 2 | AG164: 3yo+ F&m Mdn | AH164: Mdn fm | AI164: 10000 | AJ164: 0 | AK164: P Gatt | AL164: 4 | AM164: Cd 56.5-0.0 | AN164: (SW) | AO164: 1:15.92 | AP164: -34.77 | AQ164: 7/1 | AR164: Settled-6 1200-- 800-- Turn-6 | AS164: 1-Coquelet 53.5
Z165: Red Savina | AA165: 12 Red Savina (11) 55.0kg 4yo b m
AA166: Colours: Royal blue | AB166: black and white checked sash and cap
AA167: Owners: G J Hannan | AB167: Mrs J R Hannan | AC167: D D Bruton & J Vaughan
AA168: Career:
AA169: 2010-02-02T07:00:00
AA170: Fast:
AA171: 0:0-0-0
AA172: 6-10 4.1L | AB172: MorhPk | AC172: 2010-11-04 | AD172: 1250m | AE172: Good | AF172: Race 1 | AG172: 3yo+ F&m Mdn | AH172: Mdn fm | AI172: 10000 | AJ172: 0 | AK172: S Price | AL172: 6 | AM172: Cd 56.5-0.0 | AN172: (SW) | AO172: 1:15.57 | AP172: -36.01 | AQ172: 8/11F | AR172: Settled-8 1200-- 800-- Turn-8 | AS172: 1-Fleet Riane 55.0
AA173: 2-14 0.8L | AB173: Ball't | AC173: 2010-10-21 | AD173: 1200m | AE173: Dead | AF173: Race 2 | AG173: 3yo+ F&m Mdn | AH173: Mdn fm | AI173: 15000 | AJ173: -2700 | AK173: W Egan | AL173: 4 | AM173: Cd 57.0-0.0 | AN173: (SW) | AO173: 1:13.12 | AP173: () | AQ173: 9/2 | AR173: Settled-6 1200-- 800-- Turn-3 | AS173: 1-Booklet 54.5
AA174: 2-10 0.5L | AB174: Ball't | AC174: 2010-10-06 | AD174: 1200m | AE174: Dead | AF174: Race 2 | AG174: 3yo+ F&m Mdn | AH174: Mdn fm | AI174: 15000 | AJ174: -2700 | AK174: M Rodd | AL174: 8 | AM174: Cd 57.0-0.0 | AN174: (SW) | AO174: 1:13.89 | AP174: () | AQ174: 11/2 | AR174: Settled-3 1200-- 800-- Turn-2 | AS174: 1-Our Testament 57.0
AA175: 3-11 6.1L | AB175: Seymor | AC175: 2010-09-16 | AD175: 1009m | AE175: Heavy | AF175: Race 3 | AG175: 3yo+ Mdn | AH175: Mdn 3+ | AI175: 15000 | AJ175: -1300 | AK175: M Rodd | AL175: 10 | AM175: Cd 56.0-0.0 | AN175: (SW) | AO175: 1:00.71 | AP175: () | AQ175: 4/1 | AR175: Settled-4 1200-- 800-- Turn-4 | AS175: 1-Lady Dom 56.0
AA176: 7-9 6.1L | AB176: GeeSyn | AC176: 2010-08-27 | AD176: 1100m | AE176: Good | AF176: Race 1 | AG176: 3yo+ Mdn Plate | AH176: Mdn 3+ | AI176: 13000 | AJ176: -200 | AK176: W Egan | AL176: 1 | AM176: Cd 56.0-0.0 | AN176: (SW) | AO176: 1:05.60 | AP176: -34.23 | AQ176: 9/1 | AR176: Settled-5 1200-- 800-- Turn-6 | AS176: 1-Too Deadly 55.5
AA177: 3-12 2.3L | AB177: GeeSyn | AC177: 2010-08-06 | AD177: 1000m | AE177: Good | AF177: Race 3 | AG177: 4yo+ Mdn Plate | AH177: Mdn 4+ | AI177: 13000 | AJ177: -1100 | AK177: M Rodd | AL177: 9 | AM177: Cd 56.0-0.0 | AN177: (SW) | AO177: 0:58.92 | AP177: -33.88 | AQ177: 4/1 | AR177: Settled-1 1200-- 800-- Turn-1 | AS177: 1-Diamondcowboy 58.0
AA178: 6-11 3.5L | AB178: G'long | AC178: 2009-09-11 | AD178: 1340m | AE178: Dead | AF178: Race 4 | AG178: 3yo Mdn | AH178: Mdn 3 | AI178: 13000 | AJ178: -200 | AK178: W Egan | AL178: 11 | AM178: Cd 55.0-0.0 | AN178: (SW) | AO178: 1:19.76 | AP178: -35.06 | AQ178: 14/1 | AR178: Settled-10 1200-- 800-- Turn-10 | AS178: 1-Rebel Truce 57.0
Z179: September Rain | AA179: 13 September Rain (4) 53.5kg 3yo b f
AA180: Colours: White | AB180: pink stripes | AC180: black cap
AA181: Owners: I H Ravenscroft | AB181: M R Ravenscroft | AC181: P J Johnson | AD181: B R Turvey | AE181: M A Ricciuto | AF181: C S Clarke | AG181: W J Butterfield | AH181: J Hazeal | AI181: S Hornhardt & M
AA182: Career:
AA183: 2:0-0-0
AA184: Fast:
AA185: 0:0-0-0
AA186: 4-9 3.9L | AB186: MorhPk | AC186: 2010-11-04 | AD186: 1250m | AE186: Good | AF186: Race 2 | AG186: 3yo+ F&m Mdn | AH186: Mdn fm | AI186: 10000 | AJ186: -600 | AK186: J Potter | AL186: 3 | AM186: Cd 55.0-0.0 | AN186: (SW) | AO186: 1:15.92 | AP186: -34.77 | AQ186: 6/1 | AR186: Settled-4 1200-- 800-- Turn-4 | AS186: 1-Coquelet 53.5
AA187: 6-8 7.3L | AB187: MorhPk | AC187: 2010-10-04 | AD187: 1000m | AE187: Good | AF187: Race 4 | AG187: 3yo F Mdn | AH187: Mdn 3 f | AI187: 10000 | AJ187: 0 | AK187: C Lindop | AL187: 6 | AM187: Cd 56.5-0.0 | AN187: (SW) | AO187: 0:58.73 | AP187: -35.43 | AQ187: 10/1 | AR187: Settled-7 1200-- 800-- Turn-7 | AS187: 1-Amy's Glen 56.5
Z188: Twilight Dancer | AA188: 14 Twilight Dancer (10) 53.5kg 3yo ch f
AA189: Colours: Red | AB189: white star
AA190: Owners: W A Bogarts & J K Walker
AA191: Career:
AA192: 2000-01-01T04:00:00
AA193: Fast:
AA194: 0:0-0-0
Z195: =IF(AA195="","",IF(ISERROR(MID(AA195,FIND(" ",AA195,1)+1,FIND("(",AA195,1)-FIND(" ",AA195,1)-2)),"",MID(AA195,FIND(" ",AA195,1)+1,FIND("(",AA195,1)-FIND(" ",AA195,1)-2))) ->  | AA195: 5-13 3.8L | AB195: Mphvl | AC195: 2010-11-02 | AD195: 1100m | AE195: Good | AF195: Race 3 | AG195: 3yo F Mdn | AH195: Mdn 3 f | AI195: 10000 | AJ195: 0 | AK195: L Hopwood | AL195: 9 | AM195: Cd 55.0--1.5 | AN195: (SW) | AO195: 1:05.04 | AP195: -35.43 | AQ195: 8/1 | AR195: Settled-12 1200-- 800-- Turn-12 | AS195: 1-Tigress Joy 56.5
N196: =IF(M196="","",IF(ISERROR(LEFT(M196,FIND("-",M196)-1)),IF(ISERROR(LEFT(M196,FIND(" ",M196)-1)),M196,LEFT(M196,FIND(" ",M196)-1)),LEFT(M196,FIND("-",M196)-1))) ->  | AA196: 4-13 4.2L | AB196: Gawlr | AC196: 2010-10-06 | AD196: 1200m | AE196: Good | AF196: Race 4 | AG196: 3yo Mdn | AH196: Mdn 3 | AI196: 10000 | AJ196: -600 | AK196: L Hopwood | AL196: 3 | AM196: Cd 54.5-0.0 | AN196: (SW) | AO196: 1:12.23 | AP196: -36.48 | AQ196: 8/1 | AR196: Settled-6 1200-- 800-- Turn-5 | AS196: 1-It's Home 56.5
AA197: 9-12 7.6L | AB197: MorhPk | AC197: 2010-05-08 | AD197: 1250m | AE197: Good | AF197: Race 2 | AG197: 2yo Rst1 | AH197: RS1MW 2 | AI197: 32000 | AJ197: -400 | AK197: L Hopwood | AL197: 3 | AM197: Cd 54.0--1.5 | AN197: -54.5 | AO197: 1:15.22 | AP197: -37.89 | AQ197: 4/1 | AR197: Settled-4 1200-- 800-- Turn-5 | AS197: 1-Condelago 56.5
AA198: 2-14 1.5L | AB198: MorhPk | AC198: 2010-04-28 | AD198: 1000m | AE198: Good | AF198: Race 2 | AG198: 2yo Mdn Plate | AH198: Mdn 2 | AI198: 10000 | AJ198: -1800 | AK198: L Hopwood | AL198: 2 | AM198: Cd 53.0--1.5 | AN198: (SW) | AO198: 0:59.11 | AP198: -36.35 | AQ198: 8/1 | AR198: Settled-5 1200-- 800-- Turn-4 | AS198: 1-Monegasque 56.5
Z199: Boolcunda Gold | AA199: 15 Boolcunda Gold (3) 55.5kg 3yo b g
AA200: Colours: Red and white hoops | AB200: royal blue and white hooped sleeves | AC200: red and white qtrd cap
... 76 more rows
